{"text_format":"1","workbook":"xlsx","n_sheets":16,"sheets":["ReadMe","HVAC","Heat Pumps","Enhanced Ventilation Controls","Food Service Rebate Calculator","Electric Combination Oven","Electric Convection Oven","Electric Fryer","Electric Griddle","Steam Cookers","Solid-Door Refrig","Glass-Door Refrig","Solid-Door Freezer","Ice Makers","Lighting","Sheet4"],"not_rendered":{"charts":0,"images":9,"macros":1,"external_links":0,"defined_names":69,"comments":0,"pivot_tables":1},"unopened":[],"bounds":{"document_bytes":16777216,"sheet_cells":100000,"rows_first":2000,"rows_last":500,"rows_between":2000,"halvings":0,"cell_chars":16384,"cell_head_chars":4096},"cells_cut":0,"cells_raw":0,"read":"whole","date_system":"1900"}

{"sheet":"ReadMe","index":0,"n_rows":20,"n_cols":6,"rows_kept":20,"cut":false,"hidden":true,"merged":[[2,3,2,5],[3,3,3,5]]}
[null,null,null,null,"SVP Rebate Estimator - 2019-2020 Program "]
[]
[null,null,1,"This spreadsheet allows SVP customers to easily estimate their potential rebate for installing energy efficient air conditioning equipment, food service equipment, and prescriptive LED lighting measures. "]
[null,null,2,"To apply for a rebate, transfer the information from the rebate calculator to the appropriate SVP rebate application form and submit the form for pre-approval. "]
[null,null,3,"For equipment and program eligibility rules, please see the rebate application forms: "]
[null,null,null,"-","HVAC Rebate Application Form"]
[null,null,null,"-","HVAC Accelerated Replacement Rebate Application Form"]
[null,null,null,"-","Heat Pump Rebate Application Form"]
[null,null,null,"-","Heat Pump Accelerated Replacement Rebate Application Form"]
[null,null,null,"-","HVAC Enhanced Ventilation Rebate Application Form"]
[null,null,null,"-","Food Service Equipment Rebate Form"]
[null,null,null,"-","Lighting Rebate Application Form"]
[]
[null,null,4,"Spreadsheet Content Table"]
[null,null,null,null,"Tab Name","Description"]
[null,null,null,null,"HVAC","Unitary air cooled air conditioners and packaged terminal air conditioners"]
[null,null,null,null,"Heat Pumps","Unitary air cooled heat pumps and packaged terminal heat pumps"]
[null,null,null,null,"Enhanced Ventilation Controls","Controller for a  packaged air conditioning unit that optimizes operation and varies supply fan airflow"]
[null,null,null,null,"Food Service Equipment","Energy efficient commercial kitchen equipment"]
[null,null,null,null,"Lighting","For the following LED troffer, low-bay, and high-bay lighting fixtures"]

{"sheet":"HVAC","index":1,"n_rows":61,"n_cols":101,"rows_kept":61,"cut":false,"hidden":true,"merged":[]}
[null,"SVP Air Conditioning Rebate Calculator"]
[null,null,null,null,null,null,null,null,null,null,null,null,null,null,null,null,null,null,null,null,null,null,null,null,null,null,null,null,null,null,null,null,null,null,null,null,null,null,null,null,"LOOKUPS"]
[null,"Instructions for Using Rebate Calculator"]
[null,"1. Use the below tables to estimate your potential rebate amount.",null,null,null,null,null,null,null,null,null,null,null,null,null,null,null,null,null,null,null,null,null,null,null,null,null,null,null,null,null,null,null,null,null,null,null,null,null,null,"Units","Heating Section Type",null,"System Type"]
[null,"2. The tables are based on unit type and size (rated cooling capacity of the unit).",null,null,null,null,null,null,null,null,null,null,null,null,null,null,null,null,null,null,null,null,null,null,null,null,null,null,null,null,null,null,null,null,null,null,null,null,null,null,"tons","Electric Resistance",null,"Split System"]
[null,"3. Enter the quantity of each unit make and model being installed.",null,null,null,null,null,null,null,null,null,null,null,null,null,null,null,null,null,null,null,null,null,null,null,null,null,null,null,null,null,null,null,null,null,null,null,null,null,null,"Btuh","All Other",null,"Single Package"]
[null,"4. Enter the size in either tons or Btuh of rated capacity, then select the appropriate units.",null,null,null,null,null,null,null,null,null,null,null,null,null,null,null,null,null,null,null,null,null,null,null,null,null,null,null,null,null,null,null,null,null,null,null,null,null,null,null,"None"]
[null,"5. Enter the applicable AHRI rated efficiency for each unit (as listed in the manufacturer's technical specifications)."]
[null,"6. For unitary units smaller than 5.4 tons, enter the EER and SEER ratings. For unitary units larger than 5.4 tons, enter the EER and IEER ratings."]
[null,"7. Transfer the information to into the SVP rebate application form and submit a copy of this calculator."]
[null,"8. For equipment and program eligibility rules, see the SVP rebate application form."]
[null,"9. Accelerated Retirement Rebate - see the HVAC Accelerated Retirement Rebate Application form for eligibility requirements."]
[null,"10. Natural Replacement Rebate - see the HVAC Rebate Application form for eligibility requirements. The rebate level applies to all equipment that does not qualify for accelerated retirement."]
[]
[null,"Rebate Amount"]
[]
[null,"Unitary Air Conditioner, Air Cooled",null,null,null,null,null,null,null,null,null,null,null,null,null,null,null,null,null,null,null,null,null,null,null,null,null,null,"Unitary Air Conditioner, Air Cooled",null,null,null,null,null,null,null,null,null,null,null,"Unitary Air Conditioner Heating Type/System Lookup",null,null,"One_All_Split_System",null,null,null,null,null,"One_All_Single_Package",null,null,null,null,null,"Two_Electric_Resistance_None_All",null,null,null,null,null,"Two_All_Other_All",null,null,null,null,null,"Three_Electric_Resistance_None_All",null,null,null,null,null,"Three_All_Other_All",null,null,null,null,null,"Four_Electric_Resistance_None_All",null,null,null,null,null,"Four_All_Other_All",null,null,null,null,null,"Five_Electric_Resistance_None_All",null,null,null,null,null,"Five_All_Other_All"]
[null,"Item #","Make & Model","# of Units","Unit Size (tons or Btuh)","Size Units (tons or Btuh)","Heating Section Type","System Type","EER","SEER or IEER","Accelerated Retirement ($/ton)","Natural Replacement ($/ton)","Accelerated Retirement Rebate ","Natural Replacement Rebate",null,null,null,null,null,null,null,null,null,null,null,null,null,null,"HIDE Unit Size (Btuh)","HIDE Unit Size Group","HIDE Heating Section Group","HIDE System Type Group","SEER or IEER","HIDE Indirect Lookups EER","HIDE Indirect Lookups SEER/IEER","HIDE Indirect Lookups","HIDE SEER/EER/IEER Tier","HIDE Rebate Level","HIDE Rebate Level (AR)",null,"User Entered","Lookup Group",null,null,"SEER",null,null,null,null,null,"SEER",null,null,null,null,null,"IEER",null,null,null,null,null,"IEER",null,null,null,null,null,"IEER",null,null,null,null,null,"IEER",null,null,null,null,null,"IEER",null,null,null,null,null,"IEER",null,null,null,null,null,"IEER",null,null,null,null,null,"IEER"]
[null,1,null,null,null,null,"Electric Resistance",null,null,null,{"$f":"IF(AK19=\"NA\",\"Ineligible\",\"$\"&AM19&\"/ton\")","v":{"$error":"#N/A"}},{"$f":"IF(AK19=\"NA\",\"Ineligible\",\"$\"&AL19&\"/ton\")","v":{"$error":"#N/A"}},{"$f":"IF(ISNA(AL19),0,AM19*D19*AC19)/12000","v":0},{"$f":"IF(ISNA(AL19),0,AL19*D19*AC19)/12000","v":0},null,null,null,null,null,null,null,null,null,null,null,null,null,null,{"$f":"IF(F19=\"Btuh\",E19,IF(F19=\"tons\",E19*12000,0))","v":0},{"$f":"IF(AC19<65000,\"One\",IF(AND(AC19>=65000,AC19<135000),\"Two\",IF(AND(AC19>=135000,AC19<240000),\"Three\",IF(AND(AC19>=240000,AC19<760000),\"Four\",\"Five\"))))","v":"One"},{"$f":"IF(AD19=\"One\",\"All\",VLOOKUP(Table20[[#This Row],[Heating Section Type]],$AO$19:$AP$23,2,0))","v":"All"},{"$f":"IF(AD19=\"One\",VLOOKUP(Table20[[#This Row],[System Type]],$AO$19:$AP$23,2,0),\"All\")","v":{"$error":"#N/A"}},{"$f":"IF(AD19=\"One\",\"SEER\",\"IEER\")","v":"SEER"},{"$f":"AD19&\"_\"&AE19&\"_\"&AF19&\"_\"&\"EER\"","v":{"$error":"#N/A"}},{"$f":"AD19&\"_\"&AE19&\"_\"&AF19&\"_\"&AG19","v":{"$error":"#N/A"}},{"$f":"AD19&\"_\"&AE19&\"_\"&AF19","v":{"$error":"#N/A"}},{"$f":"INDEX(INDIRECT(AJ19),AS24,AS25)","v":{"$error":"#N/A"}},{"$f":"IF(AK19=1,80,IF(AK19=2,100,IF(AK19=3,160,0)))","v":{"$error":"#N/A"}},{"$f":"IF(AK19=1,280,IF(AK19=2,300,IF(AK19=3,360,0)))","v":{"$error":"#N/A"}},null,"Electric Resistance","Electric_Resistance_None",null,"EER",0,15,16,18,null,"EER",0,15,16,17,null,"EER",0,14,14.8,18,null,"EER",0,13.8,14.6,17.8,null,"EER",0,13.2,14.2,17,null,"EER",0,13,14,16.8,null,"EER",0,12.3,13.2,14.5,null,"EER",0,12.1,13,14.3,null,"EER",0,11.6,12.3,null,null,"EER",0,11.4,12.1]
[null,2,null,null,null,null,"All Other",null,null,null,{"$error":"#N/A"},{"$error":"#N/A"},0,{"$f":"IF(ISNA(AL20),0,AL20*D20*AC20)/12000","v":0},null,null,null,null,null,null,null,null,null,null,null,null,null,null,{"$f":"IF(F20=\"Btuh\",E20,IF(F20=\"tons\",E20*12000,0))","v":0},{"$f":"IF(AC20<65000,\"One\",IF(AND(AC20>=65000,AC20<135000),\"Two\",IF(AND(AC20>=135000,AC20<240000),\"Three\",IF(AND(AC20>=240000,AC20<760000),\"Four\",\"Five\"))))","v":"One"},{"$f":"IF(AD20=\"One\",\"All\",VLOOKUP(Table20[[#This Row],[Heating Section Type]],$AO$19:$AP$23,2,0))","v":"All"},{"$f":"IF(AD20=\"One\",VLOOKUP(Table20[[#This Row],[System Type]],$AO$19:$AP$23,2,0),\"All\")","v":{"$error":"#N/A"}},{"$f":"IF(AD20=\"One\",\"SEER\",\"IEER\")","v":"SEER"},{"$f":"AD20&\"_\"&AE20&\"_\"&AF20&\"_\"&\"EER\"","v":{"$error":"#N/A"}},{"$f":"AD20&\"_\"&AE20&\"_\"&AF20&\"_\"&AG20","v":{"$error":"#N/A"}},{"$f":"AD20&\"_\"&AE20&\"_\"&AF20","v":{"$error":"#N/A"}},{"$f":"INDEX(INDIRECT(AJ20),AS27,AS28)","v":{"$error":"#N/A"}},{"$f":"IF(AK20=1,80,IF(AK20=2,100,IF(AK20=3,160,0)))","v":{"$error":"#N/A"}},{"$f":"IF(AK20=1,280,IF(AK20=2,300,IF(AK20=3,360,0)))","v":{"$error":"#N/A"}},null,"All Other","All_Other",null,0,"NA","NA","NA","NA",null,0,"NA","NA","NA","NA",null,0,"NA","NA","NA","NA",null,0,"NA","NA","NA","NA",null,0,"NA","NA","NA","NA",null,0,"NA","NA","NA","NA",null,0,"NA","NA","NA","NA",null,0,"NA","NA","NA","NA",null,0,"NA","NA","NA",null,null,0,"NA","NA","NA"]
[null,3,null,null,null,null,"Electric Resistance",null,null,null,{"$error":"#N/A"},{"$error":"#N/A"},0,0,null,null,null,null,null,null,null,null,null,null,null,null,null,null,{"$f":"IF(F21=\"Btuh\",E21,IF(F21=\"tons\",E21*12000,0))","v":0},"One",{"$f":"IF(AD21=\"One\",\"All\",VLOOKUP(Table20[[#This Row],[Heating Section Type]],$AO$19:$AP$23,2,0))","v":"All"},{"$f":"IF(AD21=\"One\",VLOOKUP(Table20[[#This Row],[System Type]],$AO$19:$AP$23,2,0),\"All\")","v":{"$error":"#N/A"}},"SEER",{"$error":"#N/A"},{"$error":"#N/A"},{"$error":"#N/A"},{"$f":"INDEX(INDIRECT(AJ21),AS30,AS31)","v":{"$error":"#N/A"}},{"$f":"IF(AK21=1,80,IF(AK21=2,100,IF(AK21=3,160,0)))","v":{"$error":"#N/A"}},{"$error":"#N/A"},null,"None","Electric_Resistance_None",null,12.5,"NA",1,1,1,null,12,"NA",1,2,2,null,12.2,"NA",1,1,1,null,12,"NA",1,1,1,null,12.2,"NA",1,1,1,null,12,"NA",1,1,1,null,10.5,"NA",1,1,1,null,10.3,"NA",1,1,1,null,9.9,"NA",1,1,null,null,9.6999999999999993,"NA",1,1]
[null,4,null,null,null,null,"All Other",null,null,null,{"$error":"#N/A"},{"$error":"#N/A"},0,0,null,null,null,null,null,null,null,null,null,null,null,null,null,null,{"$f":"IF(F22=\"Btuh\",E22,IF(F22=\"tons\",E22*12000,0))","v":0},"One",{"$f":"IF(AD22=\"One\",\"All\",VLOOKUP(Table20[[#This Row],[Heating Section Type]],$AO$19:$AP$23,2,0))","v":"All"},{"$f":"IF(AD22=\"One\",VLOOKUP(Table20[[#This Row],[System Type]],$AO$19:$AP$23,2,0),\"All\")","v":{"$error":"#N/A"}},"SEER",{"$error":"#N/A"},{"$error":"#N/A"},{"$error":"#N/A"},{"$f":"INDEX(INDIRECT(AJ22),AS33,AS34)","v":{"$error":"#N/A"}},{"$f":"IF(AK22=1,80,IF(AK22=2,100,IF(AK22=3,160,0)))","v":{"$error":"#N/A"}},{"$error":"#N/A"},null,"Split System","Split_System",null,13,"NA",1,2,3,null,12.5,"NA",1,2,3,null,12.2,"NA",1,2,2,null,12,"NA",1,2,2,null,12.2,"NA",1,2,3,null,12,"NA",1,2,3,null,10.8,"NA",1,2,3,null,10.6,"NA",1,2,3,null,10.4,"NA",1,2,null,null,10.199999999999999,"NA",1,2]
[null,5,null,null,null,null,null,null,null,null,{"$error":"#N/A"},{"$error":"#N/A"},0,0,null,null,null,null,null,null,null,null,null,null,null,null,null,null,{"$f":"IF(F23=\"Btuh\",E23,IF(F23=\"tons\",E23*12000,0))","v":0},{"$f":"IF(AC23<65000,\"One\",IF(AND(AC23>=65000,AC23<135000),\"Two\",IF(AND(AC23>=135000,AC23<240000),\"Three\",IF(AND(AC23>=240000,AC23<760000),\"Four\",\"Five\"))))","v":"One"},{"$f":"IF(AD23=\"One\",\"All\",VLOOKUP(Table20[[#This Row],[Heating Section Type]],$AO$19:$AP$23,2,0))","v":"All"},{"$f":"IF(AD23=\"One\",VLOOKUP(Table20[[#This Row],[System Type]],$AO$19:$AP$23,2,0),\"All\")","v":{"$error":"#N/A"}},"SEER",{"$error":"#N/A"},{"$error":"#N/A"},{"$error":"#N/A"},{"$f":"INDEX(INDIRECT(AJ23),AS36,AS37)","v":{"$error":"#N/A"}},{"$f":"IF(AK23=1,80,IF(AK23=2,100,IF(AK23=3,160,0)))","v":{"$error":"#N/A"}},{"$error":"#N/A"},null,"Single Package","Single_Package",null,null,null,null,null,null,null,null,null,null,null,null,null,12.6,"NA",1,2,3,null,12.4,"NA",1,2,3]
[null,null,null,null,null,null,null,null,null,null,null,null,{"$f":"SUBTOTAL(109,Table20[[Accelerated Retirement Rebate ]])","v":0},{"$f":"SUBTOTAL(109,Table20[Natural Replacement Rebate])","v":0},null,null,null,null,null,null,null,null,null,null,null,null,null,null,null,null,null,null,null,null,null,null,null,null,null,null,null,null,null,"Row 1 EER Match",{"$f":"MATCH(I19,INDIRECT(AH19),1)","v":{"$error":"#N/A"}}]
[null,null,null,null,null,null,null,null,null,null,null,null,null,null,null,null,null,null,null,null,null,null,null,null,null,null,null,null,null,null,null,null,null,null,null,null,null,null,null,null,null,null,null,"Row 1 SEER Match",{"$f":"MATCH(J19,INDIRECT(AI19),1)","v":{"$error":"#N/A"}}]
[null,"Packaged Terminal Air Conditioner",null,null,null,null,null,null,null,null,null,null,null,null,null,null,null,null,null,null,null,null,null,null,null,null,null,null,"Packaged Terminal Air Conditioner",null,null,null,null,null,null,null,null,null,null,null,"Packaged Terminal Air Conditioner"]
[null,"Item #","Make & Model","# of Units","Unit Size (tons or Btuh)","Size Units (tons or Btuh)","EER","Required EER","Rebate ($/ton)","Rebate",null,null,null,null,null,null,null,null,null,null,null,null,null,null,null,null,null,null,"HIDE Unit Size (Btuh)","HIDE Unit Size Group","HIDE EER Eligibility","HIDE Rebate Level",null,null,null,null,null,null,null,null,"Unit Size Group","Min EER",null,"Row 2 EER Match",{"$f":"MATCH(I20,INDIRECT(AH20),1)","v":{"$error":"#N/A"}}]
[null,1,null,null,null,null,null,{"$f":"VLOOKUP(AD28,$AO$28:$AP$31,2,0)","v":11.3},{"$f":"IF(AE28=\"No\",\"Ineligible\",\"$\"&AF28&\"/ton\")","v":"Ineligible"},{"$f":"Table18[[#This Row],['# of Units]]*AF28*AC28/12000","v":0},null,null,null,null,null,null,null,null,null,null,null,null,null,null,null,null,null,null,{"$f":"IF(F28=\"Btuh\",E28,IF(F28=\"tons\",E28*12000,0))","v":0},{"$f":"IF(AC28<7000,1,IF(AND(AC28>=7000,AC28<=11000),2,IF(AND(AC28>11000,AC28<=15000),3,4)))","v":1},{"$f":"IF(G28>=VLOOKUP($AD28,$AO$28:$AP$31,2,0),\"Yes\",\"No\")","v":"No"},{"$f":"IF(AE28=\"Yes\",100,0)","v":0},null,null,null,null,null,null,null,null,1,11.3,null,"Row 2 SEER Match",{"$f":"MATCH(J20,INDIRECT(AI20),1)","v":{"$error":"#N/A"}}]
[null,2,null,null,null,null,null,{"$f":"VLOOKUP(AD29,$AO$28:$AP$31,2,0)","v":11.3},"Ineligible",{"$f":"Table18[[#This Row],['# of Units]]*AF29*AC29/12000","v":0},null,null,null,null,null,null,null,null,null,null,null,null,null,null,null,null,null,null,{"$f":"IF(F29=\"Btuh\",E29,IF(F29=\"tons\",E29*12000,0))","v":0},{"$f":"IF(AC29<7000,1,IF(AND(AC29>=7000,AC29<=11000),2,IF(AND(AC29>11000,AC29<=15000),3,4)))","v":1},{"$f":"IF(G29>=VLOOKUP($AD29,$AO$28:$AP$31,2,0),\"Yes\",\"No\")","v":"No"},{"$f":"IF(AE29=\"Yes\",100,0)","v":0},null,null,null,null,null,null,null,null,2,10.3]
[null,3,null,null,null,null,null,{"$f":"VLOOKUP(AD30,$AO$28:$AP$31,2,0)","v":11.3},"Ineligible",{"$f":"Table18[[#This Row],['# of Units]]*AF30*AC30/12000","v":0},null,null,null,null,null,null,null,null,null,null,null,null,null,null,null,null,null,null,{"$f":"IF(F30=\"Btuh\",E30,IF(F30=\"tons\",E30*12000,0))","v":0},1,{"$f":"IF(G30>=VLOOKUP($AD30,$AO$28:$AP$31,2,0),\"Yes\",\"No\")","v":"No"},0,null,null,null,null,null,null,null,null,3,9.5,null,"Row 3 EER Match",{"$f":"MATCH(I21,INDIRECT(AH21),1)","v":{"$error":"#N/A"}}]
[null,4,null,null,null,null,null,{"$f":"VLOOKUP(AD31,$AO$28:$AP$31,2,0)","v":11.3},"Ineligible",{"$f":"Table18[[#This Row],['# of Units]]*AF31*AC31/12000","v":0},null,null,null,null,null,null,null,null,null,null,null,null,null,null,null,null,null,null,{"$f":"IF(F31=\"Btuh\",E31,IF(F31=\"tons\",E31*12000,0))","v":0},1,{"$f":"IF(G31>=VLOOKUP($AD31,$AO$28:$AP$31,2,0),\"Yes\",\"No\")","v":"No"},0,null,null,null,null,null,null,null,null,4,9.3000000000000007,null,"Row 3 SEER Match",{"$f":"MATCH(J21,INDIRECT(AI21),1)","v":{"$error":"#N/A"}}]
[null,5,null,null,null,null,null,{"$f":"VLOOKUP(AD32,$AO$28:$AP$31,2,0)","v":11.3},"Ineligible",{"$f":"Table18[[#This Row],['# of Units]]*AF32*AC32/12000","v":0},null,null,null,null,null,null,null,null,null,null,null,null,null,null,null,null,null,null,{"$f":"IF(F32=\"Btuh\",E32,IF(F32=\"tons\",E32*12000,0))","v":0},1,{"$f":"IF(G32>=VLOOKUP($AD32,$AO$28:$AP$31,2,0),\"Yes\",\"No\")","v":"No"},0]
[null,null,null,null,null,null,null,null,null,{"$f":"SUBTOTAL(109,Table18[Rebate])","v":0},null,null,null,null,null,null,null,null,null,null,null,null,null,null,null,null,null,null,null,null,null,null,null,null,null,null,null,null,null,null,null,null,null,"Row 4 EER Match",{"$f":"MATCH(I22,INDIRECT(AH22),1)","v":{"$error":"#N/A"}}]
[null,null,null,null,null,null,null,null,null,null,null,null,null,null,null,null,null,null,null,null,null,null,null,null,null,null,null,null,null,null,null,null,null,null,null,null,null,null,null,null,null,null,null,"Row 4 SEER Match",{"$f":"MATCH(J22,INDIRECT(AI22),1)","v":{"$error":"#N/A"}}]
[]
[null,null,null,null,null,null,null,null,null,null,null,null,null,null,null,null,null,null,null,null,null,null,null,null,null,null,null,null,null,null,null,null,null,null,null,null,null,null,null,null,null,null,null,"Row 5 EER Match",{"$f":"MATCH(I23,INDIRECT(AH23),1)","v":{"$error":"#N/A"}}]
[null,null,null,null,null,null,null,null,null,null,null,"Rebate Levels - Natural Replacement",null,null,null,null,null,null,null,null,null,null,null,null,null,null,null,null,null,null,null,null,null,null,null,null,null,null,null,null,null,null,null,"Row 5 SEER Match",{"$f":"MATCH(J23,INDIRECT(AI23),1)","v":{"$error":"#N/A"}}]
[]
[]
[]
[]
[]
[]
[]
[]
[]
[]
[]
[]
[]
[]
[]
[]
[]
[]
[]
[]
[]
[]
[]
[null,null,null,null,null,null,null,null,null,null,null,"Rebate Levels - Accelerated Retirement"]

{"sheet":"Heat Pumps","index":2,"n_rows":70,"n_cols":49,"rows_kept":70,"cut":false,"hidden":true,"merged":[[15,1,15,2],[15,3,15,13],[24,1,24,2],[33,1,33,8]]}
[null,"SVP Heat Pump Rebate Calculator"]
[null,null,null,null,null,null,null,null,null,null,null,null,null,null,null,null,null,null,null,null,null,null,null,null,null,null,null,null,null,null,null,null,null,null,null,null,null,null,null,null,null,null,"LOOKUPS"]
[null,"Instructions for Using Rebate Calculator"]
[null,"1. Use the below tables to estimate your potential rebate amount.",null,null,null,null,null,null,null,null,null,null,null,null,null,null,null,null,null,null,null,null,null,null,null,null,null,null,null,null,null,null,null,null,null,null,null,null,null,null,null,null,"Units"]
[null,"2. The tables are based on unit type and size (rated cooling capacity of the unit).",null,null,null,null,null,null,null,null,null,null,null,null,null,null,null,null,null,null,null,null,null,null,null,null,null,null,null,null,null,null,null,null,null,null,null,null,null,null,null,null,"tons"]
[null,"3. Enter the quantity of each unit make and model being installed.",null,null,null,null,null,null,null,null,null,null,null,null,null,null,null,null,null,null,null,null,null,null,null,null,null,null,null,null,null,null,null,null,null,null,null,null,null,null,null,null,"Btuh"]
[null,"4. Enter the size in either tons or Btuh of rated capacity, then select the appropriate units."]
[null,"5. Enter the applicable AHRI rated efficiency for each unit (as listed in the manufacturer's technical specifications)."]
[null,"7. Transfer the information into the SVP rebate application form and submit a copy of this calculator."]
[null,"8. For equipment and program eligibility rules, see the SVP rebate application form."]
[null,"9. Accelerated Retirement Rebate - see the Heat Pump Accelerated Retirement Rebate Application form for eligibility requirements."]
[null,"10. Natural Replacement Rebate - see the Heat Pump Rebate Application form for eligibility requirements. The rebate level applies to all equipment that does not qualify for accelerated retirement."]
[null,null,null,null,null,null,null,null,null,null,null,null,null,null,null,null,null,null,null,null,null,null,null,null,null,null,null,null,null,null,null,null,null,null,null,null,null,null,null,null,null,null,"System Type","Lookups"]
[null,"Rebate Amount",null,null,null,null,null,null,null,null,null,null,null,null,null,null,null,null,null,null,null,null,null,null,null,null,null,null,null,null,null,null,null,null,null,null,null,null,null,null,null,null,"Split System","Split_System"]
[null,null,null,null,null,null,null,null,null,null,null,null,null,null,null,null,null,null,null,null,null,null,null,null,null,null,null,null,null,null,null,null,null,null,null,null,null,null,null,null,null,null,"Single Package","Single_Package"]
[null,"Unitary Heat Pumps",null,"< 5.4 tons",null,null,null,null,null,null,null,null,null,null,null,null,null,null,null,null,null,null,null,null,null,null,null,null,"Heat Pumps Less than 65000 Btuh"]
[null,"Item #","Make & Model","# of Units","Unit Size (tons or Btuh)","Size Units (tons or Btuh)","System Type","SEER","EER","HSPF","Accelerated Retirement  ($/ton)","Natural Replacement  ($/ton)","Accelerated Retirement Rebate","Natural Replacement Rebate",null,null,null,null,null,null,null,null,null,null,null,null,null,null,"HIDE Unit Size (tons)","HIDE System Type","HIDE SEER/EER Tier","HIDE HSPF Tier","HIDE Rebate Tier","HIDE System Type Lookup","HIDE System EER Lookup","HIDE System SEER Lookup","HIDE System Tier Lookup","HIDE AR Rebate Level","HIDE Rebate Level",null,null,null,"Split_System_Less_than_65000"]
[null,1,null,null,null,null,null,null,null,null,{"$f":"IF(AC18*12000>=65000,\"Enter Valid Unit Size\",IF(AG18=\"Ineligible\",\"Ineligible\",\"$\"&AL18&\"/ton\"))","v":{"$error":"#VALUE!"}},{"$f":"IF(AC18*12000>=65000,\"Enter Valid Unit Size\",IF(AG18=\"Ineligible\",\"Ineligible\",\"$\"&AM18&\"/ton\"))","v":{"$error":"#VALUE!"}},{"$f":"IF(ISNA(AL18),0,AL18*D18*AC18)","v":0},{"$f":"IF(ISNA(AM18),0,AM18*D18*AC18)","v":0},null,null,null,null,null,null,null,null,null,null,null,null,null,null,{"$f":"IF(F18=\"tons\",E18,IF(F18=\"Btuh\",E18/12000,\"-\"))","v":"-"},{"$f":"IF(Table2[[#This Row],[System Type]]=\"\",\"-\",IF(Table2[[#This Row],[System Type]]=\"Split System\",1,2))","v":"-"},{"$f":"INDEX(INDIRECT(AK18),AW19,AW20)","v":{"$error":"#N/A"}},{"$f":"IF(AND(AD18=1,J18>=8.5,J18<9),1,IF(AND(AD18=1,J18>=9),2,IF(AND(AD18=2,J18>=8.2),AE18,\"Ineligible\")))","v":"Ineligible"},{"$f":"IF(OR(AE18=\"NA\",AF18=\"Ineligible\",AC18>5.4),\"Ineligible\",MIN(AE18,AF18))","v":{"$error":"#N/A"}},{"$f":"VLOOKUP(G18,$AQ$14:$AR$15,2,0)","v":{"$error":"#N/A"}},{"$f":"AH18&\"_Less_than_65000_EER\"","v":{"$error":"#N/A"}},{"$f":"AH18&\"_Less_than_65000_SEER\"","v":{"$error":"#N/A"}},{"$f":"AH18&\"_Less_than_65000\"","v":{"$error":"#N/A"}},{"$f":"IF(AG18=1,280,IF(AG18=2,300,0))","v":{"$error":"#N/A"}},{"$f":"IF(AG18=1,80,IF(AG18=2,100,0))","v":{"$error":"#N/A"}},null,null,null,null,"SEER"]
[null,2,null,null,null,null,null,null,null,null,{"$error":"#VALUE!"},{"$error":"#VALUE!"},0,{"$f":"IF(ISNA(AM19),0,AM19*D19*AC19)","v":0},null,null,null,null,null,null,null,null,null,null,null,null,null,null,{"$f":"IF(F19=\"tons\",E19,IF(F19=\"Btuh\",E19/12000,\"-\"))","v":"-"},{"$f":"IF(Table2[[#This Row],[System Type]]=\"\",\"-\",IF(Table2[[#This Row],[System Type]]=\"Split System\",1,2))","v":"-"},{"$f":"INDEX(INDIRECT(AK19),AW22,AW23)","v":{"$error":"#N/A"}},{"$f":"IF(AND(AD19=1,J19>=8.5,J19<9),1,IF(AND(AD19=1,J19>=9),2,IF(AND(AD19=2,J19>=8.2),AE19,\"Ineligible\")))","v":"Ineligible"},{"$f":"IF(OR(AE19=\"NA\",AF19=\"Ineligible\",AC19>5.4),\"Ineligible\",MIN(AE19,AF19))","v":{"$error":"#N/A"}},{"$f":"VLOOKUP(G19,$AQ$14:$AR$15,2,0)","v":{"$error":"#N/A"}},{"$f":"AH19&\"_Less_than_65000_EER\"","v":{"$error":"#N/A"}},{"$f":"AH19&\"_Less_than_65000_SEER\"","v":{"$error":"#N/A"}},{"$f":"AH19&\"_Less_than_65000\"","v":{"$error":"#N/A"}},{"$f":"IF(AG19=1,280,IF(AG19=2,300,0))","v":{"$error":"#N/A"}},{"$f":"IF(AG19=1,80,IF(AG19=2,100,0))","v":{"$error":"#N/A"}},null,null,null,"EER",0,15,16,null,"Row 1 EER Match",{"$f":"MATCH(I18,INDIRECT(AI18),1)","v":{"$error":"#N/A"}}]
[null,3,null,null,null,null,null,null,null,null,{"$error":"#VALUE!"},{"$error":"#VALUE!"},0,0,null,null,null,null,null,null,null,null,null,null,null,null,null,null,{"$f":"IF(F20=\"tons\",E20,IF(F20=\"Btuh\",E20/12000,\"-\"))","v":"-"},{"$f":"IF(Table2[[#This Row],[System Type]]=\"\",\"-\",IF(Table2[[#This Row],[System Type]]=\"Split System\",1,2))","v":"-"},{"$f":"INDEX(INDIRECT(AK20),AW25,AW26)","v":{"$error":"#N/A"}},{"$f":"IF(AND(AD20=1,J20>=8.5,J20<9),1,IF(AND(AD20=1,J20>=9),2,IF(AND(AD20=2,J20>=8.2),AE20,\"Ineligible\")))","v":"Ineligible"},{"$error":"#N/A"},{"$f":"VLOOKUP(G20,$AQ$14:$AR$15,2,0)","v":{"$error":"#N/A"}},{"$error":"#N/A"},{"$error":"#N/A"},{"$error":"#N/A"},{"$error":"#N/A"},{"$error":"#N/A"},null,null,null,0,"NA","NA","NA",null,"Row 1 SEER Match",{"$f":"MATCH(H18,INDIRECT(AJ18),1)","v":{"$error":"#N/A"}}]
[null,4,null,null,null,null,null,null,null,null,{"$error":"#VALUE!"},{"$error":"#VALUE!"},0,0,null,null,null,null,null,null,null,null,null,null,null,null,null,null,{"$f":"IF(F21=\"tons\",E21,IF(F21=\"Btuh\",E21/12000,\"-\"))","v":"-"},{"$f":"IF(Table2[[#This Row],[System Type]]=\"\",\"-\",IF(Table2[[#This Row],[System Type]]=\"Split System\",1,2))","v":"-"},{"$f":"INDEX(INDIRECT(AK21),AW28,AW29)","v":{"$error":"#N/A"}},{"$f":"IF(AND(AD21=1,J21>=8.5,J21<9),1,IF(AND(AD21=1,J21>=9),2,IF(AND(AD21=2,J21>=8.2),AE21,\"Ineligible\")))","v":"Ineligible"},{"$error":"#N/A"},{"$f":"VLOOKUP(G21,$AQ$14:$AR$15,2,0)","v":{"$error":"#N/A"}},{"$error":"#N/A"},{"$error":"#N/A"},{"$error":"#N/A"},{"$error":"#N/A"},{"$error":"#N/A"},null,null,null,12.5,"NA",1,1]
[null,5,null,null,null,null,null,null,null,null,{"$error":"#VALUE!"},{"$error":"#VALUE!"},0,0,null,null,null,null,null,null,null,null,null,null,null,null,null,null,{"$f":"IF(F22=\"tons\",E22,IF(F22=\"Btuh\",E22/12000,\"-\"))","v":"-"},{"$f":"IF(Table2[[#This Row],[System Type]]=\"\",\"-\",IF(Table2[[#This Row],[System Type]]=\"Split System\",1,2))","v":"-"},{"$f":"INDEX(INDIRECT(AK22),AW31,AW32)","v":{"$error":"#N/A"}},{"$f":"IF(AND(AD22=1,J22>=8.5,J22<9),1,IF(AND(AD22=1,J22>=9),2,IF(AND(AD22=2,J22>=8.2),AE22,\"Ineligible\")))","v":"Ineligible"},{"$error":"#N/A"},{"$f":"VLOOKUP(G22,$AQ$14:$AR$15,2,0)","v":{"$error":"#N/A"}},{"$error":"#N/A"},{"$error":"#N/A"},{"$error":"#N/A"},{"$error":"#N/A"},{"$error":"#N/A"},null,null,null,13,"NA",1,2,null,"Row 2 EER Match",{"$f":"MATCH(I19,INDIRECT(AI19),1)","v":{"$error":"#N/A"}}]
[null,null,null,{"$f":"SUBTOTAL(109,Table2['# of Units])","v":0},null,null,null,null,null,null,null,null,{"$f":"SUBTOTAL(109,Table2[Accelerated Retirement Rebate])","v":0},{"$f":"SUBTOTAL(109,Table2[Natural Replacement Rebate])","v":0},null,null,null,null,null,null,null,null,null,null,null,null,null,null,null,null,null,null,null,null,null,null,null,null,null,null,null,null,null,null,null,null,null,"Row 2 SEER Match",{"$f":"MATCH(H19,INDIRECT(AJ19),1)","v":{"$error":"#N/A"}}]
[null,null,null,null,null,null,null,null,null,null,null,null,null,null,null,null,null,null,null,null,null,null,null,null,null,null,null,null,null,null,null,null,null,null,null,null,null,null,null,null,null,null,"Single_Package_Less_than_65000"]
[null,"Unitary Heat Pumps",null,">= 5.4 tons",null,null,null,null,null,null,null,null,null,null,null,null,null,null,null,null,null,null,null,null,null,null,null,null,"Heat Pumps Greater than 65000 Btuh",null,null,null,null,null,null,null,null,null,null,null,null,null,null,"SEER",null,null,null,"Row 3 EER Match",{"$f":"MATCH(I20,INDIRECT(AI20),1)","v":{"$error":"#N/A"}}]
[null,"Item #","Make & Model","# of Units","Unit Size (tons or Btuh)","Size Units (tons or Btuh)","EER","IEER","COP","Accelerated Retirement Rebate ($/ton)","Natural Replacement Rebate ($/ton)","Accelerated Retirement Rebate","Natural Replacement Rebate",null,null,null,null,null,null,null,null,null,null,null,null,null,null,null,"HIDE Unit Size (Btuh)","HIDE Unit Size Group","EER Eligibility","IEER Eligibility","COP Eligibility","HIDE Overall Eligibility","HIDE Rebate Level","HIDE AR Rebate Level",null,null,null,null,null,null,"EER",0,15,16,null,"Row 3 SEER Match",{"$f":"MATCH(H20,INDIRECT(AJ20),1)","v":{"$error":"#N/A"}}]
[null,1,null,null,null,null,null,null,null,{"$f":"IF(AH27=\"NA\",\"Enter Valid Unit Size\",IF(AH27=\"No\",\"Ineligible\",\"$\"&AJ27&\"/ton\"))","v":"Enter Valid Unit Size"},{"$f":"IF(AH27=\"NA\",\"Enter Valid Unit Size\",IF(AH27=\"No\",\"Ineligible\",\"$\"&AI27&\"/ton\"))","v":"Enter Valid Unit Size"},{"$f":"AJ27*Table16[[#This Row],['# of Units]]*AC27/12000","v":0},{"$f":"AI27*Table16[[#This Row],['# of Units]]*AC27/12000","v":0},null,null,null,null,null,null,null,null,null,null,null,null,null,null,null,{"$f":"IF(F27=\"Btuh\",E27,IF(F27=\"tons\",E27*12000,0))","v":0},{"$f":"IF(AND(AC27>=65000,AC27<135000),1,IF(AND(AC27>=135000,AC27<240000),2,IF(AND(AC27>=240000,AC27<760000),3,\"Ineligible_Size\")))","v":"Ineligible_Size"},{"$f":"IF(G27>=VLOOKUP($AD27,$AQ$39:$AT$41,2,0),\"Yes\",\"No\")","v":{"$error":"#N/A"}},{"$f":"IF(H27>=VLOOKUP($AD27,$AQ$39:$AT$41,3,0),\"Yes\",\"No\")","v":{"$error":"#N/A"}},{"$f":"IF(I27>=VLOOKUP($AD27,$AQ$39:$AT$41,4,0),\"Yes\",\"No\")","v":{"$error":"#N/A"}},{"$f":"IF(OR(ISNA(AE27),ISNA(AF27),ISNA(AG27)),\"NA\",IF(OR(AE27=\"No\",AF27=\"No\",AG27=\"No\"),\"No\",\"Yes\"))","v":"NA"},{"$f":"IF(AH27=\"Yes\",100,0)","v":0},{"$f":"IF(AH27=\"Yes\",300,0)","v":0},null,null,null,null,null,null,0,"NA","NA","NA"]
[null,2,null,null,null,null,null,null,null,"Enter Valid Unit Size",{"$f":"IF(AH28=\"NA\",\"Enter Valid Unit Size\",IF(AH28=\"No\",\"Ineligible\",\"$\"&AI28&\"/ton\"))","v":"Enter Valid Unit Size"},{"$f":"AJ28*Table16[[#This Row],['# of Units]]*AC28/12000","v":0},{"$f":"AI28*Table16[[#This Row],['# of Units]]*AC28/12000","v":0},null,null,null,null,null,null,null,null,null,null,null,null,null,null,null,{"$f":"IF(F28=\"Btuh\",E28,IF(F28=\"tons\",E28*12000,0))","v":0},{"$f":"IF(AND(AC28>=65000,AC28<135000),1,IF(AND(AC28>=135000,AC28<240000),2,IF(AND(AC28>=240000,AC28<760000),3,\"Ineligible_Size\")))","v":"Ineligible_Size"},{"$f":"IF(G28>=VLOOKUP($AD28,$AQ$39:$AT$41,2,0),\"Yes\",\"No\")","v":{"$error":"#N/A"}},{"$f":"IF(H28>=VLOOKUP($AD28,$AQ$39:$AT$41,3,0),\"Yes\",\"No\")","v":{"$error":"#N/A"}},{"$f":"IF(I28>=VLOOKUP($AD28,$AQ$39:$AT$41,4,0),\"Yes\",\"No\")","v":{"$error":"#N/A"}},{"$f":"IF(OR(ISNA(AE28),ISNA(AF28),ISNA(AG28)),\"NA\",IF(OR(AE28=\"No\",AF28=\"No\",AG28=\"No\"),\"No\",\"Yes\"))","v":"NA"},{"$f":"IF(AH28=\"Yes\",100,0)","v":0},{"$f":"IF(AH28=\"Yes\",300,0)","v":0},null,null,null,null,null,null,12,"NA",1,2,null,"Row 4 EER Match",{"$f":"MATCH(I21,INDIRECT(AI21),1)","v":{"$error":"#N/A"}}]
[null,3,null,null,null,null,null,null,null,"Enter Valid Unit Size","Enter Valid Unit Size",{"$f":"AJ29*Table16[[#This Row],['# of Units]]*AC29/12000","v":0},{"$f":"AI29*Table16[[#This Row],['# of Units]]*AC29/12000","v":0},null,null,null,null,null,null,null,null,null,null,null,null,null,null,null,{"$f":"IF(F29=\"Btuh\",E29,IF(F29=\"tons\",E29*12000,0))","v":0},{"$f":"IF(AND(AC29>=65000,AC29<135000),1,IF(AND(AC29>=135000,AC29<240000),2,IF(AND(AC29>=240000,AC29<760000),3,\"Ineligible_Size\")))","v":"Ineligible_Size"},{"$f":"IF(G29>=VLOOKUP($AD29,$AQ$39:$AT$41,2,0),\"Yes\",\"No\")","v":{"$error":"#N/A"}},{"$f":"IF(H29>=VLOOKUP($AD29,$AQ$39:$AT$41,3,0),\"Yes\",\"No\")","v":{"$error":"#N/A"}},{"$f":"IF(I29>=VLOOKUP($AD29,$AQ$39:$AT$41,4,0),\"Yes\",\"No\")","v":{"$error":"#N/A"}},"NA",0,0,null,null,null,null,null,null,null,null,null,null,null,"Row 4 SEER Match",{"$f":"MATCH(H21,INDIRECT(AJ21),1)","v":{"$error":"#N/A"}}]
[null,4,null,null,null,null,null,null,null,"Enter Valid Unit Size","Enter Valid Unit Size",{"$f":"AJ30*Table16[[#This Row],['# of Units]]*AC30/12000","v":0},{"$f":"AI30*Table16[[#This Row],['# of Units]]*AC30/12000","v":0},null,null,null,null,null,null,null,null,null,null,null,null,null,null,null,{"$f":"IF(F30=\"Btuh\",E30,IF(F30=\"tons\",E30*12000,0))","v":0},{"$f":"IF(AND(AC30>=65000,AC30<135000),1,IF(AND(AC30>=135000,AC30<240000),2,IF(AND(AC30>=240000,AC30<760000),3,\"Ineligible_Size\")))","v":"Ineligible_Size"},{"$f":"IF(G30>=VLOOKUP($AD30,$AQ$39:$AT$41,2,0),\"Yes\",\"No\")","v":{"$error":"#N/A"}},{"$f":"IF(H30>=VLOOKUP($AD30,$AQ$39:$AT$41,3,0),\"Yes\",\"No\")","v":{"$error":"#N/A"}},{"$f":"IF(I30>=VLOOKUP($AD30,$AQ$39:$AT$41,4,0),\"Yes\",\"No\")","v":{"$error":"#N/A"}},"NA",0,0]
[null,5,null,null,null,null,null,null,null,"Enter Valid Unit Size","Enter Valid Unit Size",{"$f":"AJ31*Table16[[#This Row],['# of Units]]*AC31/12000","v":0},{"$f":"AI31*Table16[[#This Row],['# of Units]]*AC31/12000","v":0},null,null,null,null,null,null,null,null,null,null,null,null,null,null,null,{"$f":"IF(F31=\"Btuh\",E31,IF(F31=\"tons\",E31*12000,0))","v":0},{"$f":"IF(AND(AC31>=65000,AC31<135000),1,IF(AND(AC31>=135000,AC31<240000),2,IF(AND(AC31>=240000,AC31<760000),3,\"Ineligible_Size\")))","v":"Ineligible_Size"},{"$f":"IF(G31>=VLOOKUP($AD31,$AQ$39:$AT$41,2,0),\"Yes\",\"No\")","v":{"$error":"#N/A"}},{"$f":"IF(H31>=VLOOKUP($AD31,$AQ$39:$AT$41,3,0),\"Yes\",\"No\")","v":{"$error":"#N/A"}},{"$f":"IF(I31>=VLOOKUP($AD31,$AQ$39:$AT$41,4,0),\"Yes\",\"No\")","v":{"$error":"#N/A"}},"NA",0,0,null,null,null,null,null,null,null,null,null,null,null,"Row 5 EER Match",{"$f":"MATCH(I22,INDIRECT(AI22),1)","v":{"$error":"#N/A"}}]
[null,null,null,{"$f":"SUBTOTAL(109,Table16['# of Units])","v":0},null,null,null,null,null,null,null,{"$f":"SUBTOTAL(109,Table16[Accelerated Retirement Rebate])","v":0},{"$f":"SUBTOTAL(109,Table16[Natural Replacement Rebate])","v":0},null,null,null,null,null,null,null,null,null,null,null,null,null,null,null,null,null,null,null,null,null,null,null,null,null,null,null,null,null,null,null,null,null,null,"Row 5 SEER Match",{"$f":"MATCH(H22,INDIRECT(AJ22),1)","v":{"$error":"#N/A"}}]
[]
[null,"Packaged Terminal Heat Pump",null,null,null,null,null,null,null,null,null,null,null,null,null,null,null,null,null,null,null,null,null,null,null,null,null,null,"Packaged Terminal Heat Pump"]
[null,"Item #","Make & Model","# of Units","Unit Size (tons or Btuh)","Size Units (tons or Btuh)","EER","Rebate ($/ton)","Rebate",null,null,null,null,null,null,null,null,null,null,null,null,null,null,null,null,null,null,null,"HIDE Unit Size (Btuh)","HIDE Unit Size Group","EER Eligibility","HIDE Rebate Level"]
[null,1,null,null,null,null,null,{"$f":"IF(AE36=\"No\",\"Ineligible\",\"$\"&AF36&\"/ton\")","v":"Ineligible"},{"$f":"AF36*Table17[[#This Row],['# of Units]]*AC36/12000","v":0},null,null,null,null,null,null,null,null,null,null,null,null,null,null,null,null,null,null,null,{"$f":"IF(F36=\"Btuh\",E36,IF(F36=\"tons\",E36*12000,0))","v":0},{"$f":"IF(AC36<7000,1,IF(AND(AC36>=7000,AC36<=11000),2,IF(AND(AC36>11000,AC36<=15000),3,4)))","v":1},{"$f":"IF(G36>=VLOOKUP($AD36,$AQ$48:$AR$51,2,0),\"Yes\",\"No\")","v":"No"},{"$f":"IF(AE36=\"Yes\",100,0)","v":0},null,null,null,null,null,null,null,null,null,null,"Heat Pumps Greater than 65000 Btuh"]
[null,2,null,null,null,null,null,"Ineligible",{"$f":"AF37*Table17[[#This Row],['# of Units]]*AC37/12000","v":0},null,null,null,null,null,null,null,null,null,null,null,null,null,null,null,null,null,null,null,{"$f":"IF(F37=\"Btuh\",E37,IF(F37=\"tons\",E37*12000,0))","v":0},{"$f":"IF(AC37<7000,1,IF(AND(AC37>=7000,AC37<=11000),2,IF(AND(AC37>11000,AC37<=15000),3,4)))","v":1},{"$f":"IF(G37>=VLOOKUP($AD37,$AQ$48:$AR$51,2,0),\"Yes\",\"No\")","v":"No"},{"$f":"IF(AE37=\"Yes\",100,0)","v":0}]
[null,3,null,null,null,null,null,"Ineligible",{"$f":"AF38*Table17[[#This Row],['# of Units]]*AC38/12000","v":0},null,null,null,null,null,null,null,null,null,null,null,null,null,null,null,null,null,null,null,{"$f":"IF(F38=\"Btuh\",E38,IF(F38=\"tons\",E38*12000,0))","v":0},1,{"$f":"IF(G38>=VLOOKUP($AD38,$AQ$48:$AR$51,2,0),\"Yes\",\"No\")","v":"No"},0,null,null,null,null,null,null,null,null,null,null,"Unit Size Group","Min EER","Min IEER","Min COP"]
[null,4,null,null,null,null,null,"Ineligible",{"$f":"AF39*Table17[[#This Row],['# of Units]]*AC39/12000","v":0},null,null,null,null,null,null,null,null,null,null,null,null,null,null,null,null,null,null,null,{"$f":"IF(F39=\"Btuh\",E39,IF(F39=\"tons\",E39*12000,0))","v":0},1,{"$f":"IF(G39>=VLOOKUP($AD39,$AQ$48:$AR$51,2,0),\"Yes\",\"No\")","v":"No"},0,null,null,null,null,null,null,null,null,null,null,1,11.6,13.4,3.4]
[null,5,null,null,null,null,null,"Ineligible",{"$f":"AF40*Table17[[#This Row],['# of Units]]*AC40/12000","v":0},null,null,null,null,null,null,null,null,null,null,null,null,null,null,null,null,null,null,null,{"$f":"IF(F40=\"Btuh\",E40,IF(F40=\"tons\",E40*12000,0))","v":0},1,{"$f":"IF(G40>=VLOOKUP($AD40,$AQ$48:$AR$51,2,0),\"Yes\",\"No\")","v":"No"},0,null,null,null,null,null,null,null,null,null,null,2,10.7,12.6,3.2]
[null,null,null,{"$f":"SUBTOTAL(109,Table17['# of Units])","v":0},null,null,null,null,{"$f":"SUBTOTAL(109,Table17[Rebate])","v":0},null,null,null,null,null,null,null,null,null,null,null,null,null,null,null,null,null,null,null,null,null,null,null,null,null,null,null,null,null,null,null,null,null,3,10.1,11.6,3.2]
[]
[]
[]
[null,null,null,null,null,null,null,null,null,null,null,null,null,null,null,null,null,null,null,null,null,null,null,null,null,null,null,null,null,null,null,null,null,null,null,null,null,null,null,null,null,null,"Packaged Terminal Heat Pump"]
[]
[null,null,null,null,null,null,null,null,null,null,null,null,null,null,null,null,null,null,null,null,null,null,null,null,null,null,null,null,null,null,null,null,null,null,null,null,null,null,null,null,null,null,"Unit Size Group","Min EER"]
[null,null,null,null,null,null,null,null,null,null,null,null,null,null,null,null,null,null,null,null,null,null,null,null,null,null,null,null,null,null,null,null,null,null,null,null,null,null,null,null,null,null,1,11.2]
[null,null,null,null,null,null,null,null,null,null,"Rebate levels - Natural Replacement",null,null,null,null,null,null,null,null,null,null,null,null,null,null,null,null,null,null,null,null,null,null,null,null,null,null,null,null,null,null,null,2,10.199999999999999]
[null,null,null,null,null,null,null,null,null,null,null,null,null,null,null,null,null,null,null,null,null,null,null,null,null,null,null,null,null,null,null,null,null,null,null,null,null,null,null,null,null,null,3,9.5]
[null,null,null,null,null,null,null,null,null,null,null,null,null,null,null,null,null,null,null,null,null,null,null,null,null,null,null,null,null,null,null,null,null,null,null,null,null,null,null,null,null,null,4,9.1]
[]
[]
[]
[]
[]
[]
[]
[]
[]
[]
[]
[]
[]
[]
[]
[]
[]
[]
[null,null,null,null,null,null,null,null,null,null,"Rebate levels - Accelerated Retirement"]

{"sheet":"Enhanced Ventilation Controls","index":3,"n_rows":26,"n_cols":8,"rows_kept":26,"cut":false,"hidden":true,"merged":[[25,6,25,7]]}
[null,"SVP HVAC Enhanced Ventilation Controller Rebate Calculator"]
[]
[null,"Instructions for Using Rebate Calculator"]
[null,"1. Use the below table to estimate you potential rebate amount."]
[null,"2. Rebates are limited to a maximum of $6,500 for each controller installed."]
[null,"3. List each HVAC unit size that will be retrofitted with an eligible enhanced control ventilation controller."]
[null,"4. Enter an HVAC unit number, description, or space type served by the HVAC unit."]
[null,"5. Enter the HVAC unit Capacity in Tons."]
[null,"6. Enter the number of units."]
[null,"7. Transfer the information to into the SVP rebate application form and submit a copy of this calculator."]
[null,"8. For equipment and program eligibility rules, see the SVP rebate application form."]
[]
[null,"Rebate Amount"]
[]
[null,"HVAC Unit #/Description","Unit Capacity (tons)","Quantity","Total Tons","Rebate per Ton","Rebate per Unit","Rebate"]
[null,null,null,null,{"$f":"Table1[[#This Row],[Unit Capacity (tons)]]*Table1[[#This Row],[Quantity]]","v":0},160,{"$f":"MIN(6500,F16*C16)","v":0},{"$f":"Table1[[#This Row],[Rebate per Unit]]*Table1[[#This Row],[Quantity]]","v":0}]
[null,null,null,null,{"$f":"Table1[[#This Row],[Unit Capacity (tons)]]*Table1[[#This Row],[Quantity]]","v":0},160,0,{"$f":"Table1[[#This Row],[Rebate per Unit]]*Table1[[#This Row],[Quantity]]","v":0}]
[null,null,null,null,{"$f":"Table1[[#This Row],[Unit Capacity (tons)]]*Table1[[#This Row],[Quantity]]","v":0},160,0,{"$f":"Table1[[#This Row],[Rebate per Unit]]*Table1[[#This Row],[Quantity]]","v":0}]
[null,null,null,null,{"$f":"Table1[[#This Row],[Unit Capacity (tons)]]*Table1[[#This Row],[Quantity]]","v":0},160,0,{"$f":"Table1[[#This Row],[Rebate per Unit]]*Table1[[#This Row],[Quantity]]","v":0}]
[null,null,null,null,{"$f":"Table1[[#This Row],[Unit Capacity (tons)]]*Table1[[#This Row],[Quantity]]","v":0},160,0,{"$f":"Table1[[#This Row],[Rebate per Unit]]*Table1[[#This Row],[Quantity]]","v":0}]
[null,"Total",{"$f":"SUBTOTAL(109,Table1[Unit Capacity (tons)])","v":0},{"$f":"SUBTOTAL(109,Table1[Quantity])","v":0},{"$f":"SUBTOTAL(109,Table1[Total Tons])","v":0},null,null,{"$f":"SUBTOTAL(109,Table1[Rebate])","v":0}]
[]
[null,"Transfer Below information into SVP Rebate Application Form"]
[]
[null,"Measure Description","Tons Controlled","Rebate per Ton","Total Rebate Amount"]
[null,"HVAC Enhanced Ventilation Controller",{"$f":"Table1[[#Totals],[Total Tons]]","v":0},160,{"$f":"Table1[[#Totals],[Rebate]]","v":0}]

{"sheet":"Food Service Rebate Calculator","index":4,"n_rows":79,"n_cols":33,"rows_kept":79,"cut":false,"hidden":false,"merged":[]}
[]
[null,"Instructions for Using Rebate Calculator"]
[null,"1. Use the below table to estimate your potential rebate amount."]
[null,"2. Select the eligible equipment type."]
[null,"3. Enter the quantity of the equipment being installed. For demand control kitchen ventilation, enter the total fan horsepower for the exhaust hood being controlled."]
[null,"4. For certain equipment types, enter the size classification."]
[null,"5. Transfer the information into the AMP rebate application form and submit a copy of this calculator."]
[null,"6. For equipment and program eligibility rules, visit AMP website."]
[]
[null,"Rebate Amount"]
[]
[null,"Equipment Type","Quantity","Unit","Size","Size Unit","Rebate Level","Rebate",null,null,null,null,null,null,null,null,null,null,null,null,null,null,null,null,null,"HIDE User Measure Lookups","HIDE Size Lookup","HIDE Unit Adj","HIDE Measure Category","HIDE Rebate Level","HIDE Rebate Unit"]
[null,null,null,{"$f":"AB13","v":{"$error":"#N/A"}},null,{"$f":"VLOOKUP(B13,$AB$30:$AE$42,3,0)","v":{"$error":"#N/A"}},{"$f":"IF(ISNA(AD13),\"Enter Size Unit\",\"$\"&AD13&\" \"&AE13)","v":{"$error":"#N/A"}},{"$f":"IF(ISNA(AD13),0,C13*AD13)","v":0},null,null,null,null,null,null,null,null,null,null,null,null,null,null,null,null,null,{"$f":"VLOOKUP(B13,$AB$30:$AC$42,2,0)","v":{"$error":"#N/A"}},{"$f":"IF(Z13=\"\",\"\",Z13&\"size\")","v":{"$error":"#N/A"}},{"$f":"VLOOKUP(B13,$AB$30:$AE$42,4,0)","v":{"$error":"#N/A"}},{"$f":"VLOOKUP(B13,$AB$30:$AG$42,6,0)","v":{"$error":"#N/A"}},{"$f":"IF(Table19[[#This Row],[Equipment Type]]=\"\",0,IF(AC13=2,Glass_Door_Beverage_Cooler_Controller[Rebate Level],IF(AC13=8,Electric_Steam_Cooker_Single_Compartment[Rebate Level],IF(AC13=9,Electric_Steam_Cooker_Two_Compartment[Rebate Level],IF(AC13=10,Electric_Convection_Oven[Rebate Level],IF(AC13=11,Electric_Fryer[Rebate Level],IF(AC13=12,Electric_Griddle[Rebate Level],IF(AC13=14,#REF!,VLOOKUP(E13,INDIRECT(Z13),3,FALSE)))))))))","v":0},{"$f":"VLOOKUP(B13,$AB$30:$AG$42,5,0)","v":{"$error":"#N/A"}}]
[null,null,null,{"$f":"AB14","v":{"$error":"#N/A"}},null,{"$f":"VLOOKUP(B14,$AB$30:$AE$42,3,0)","v":{"$error":"#N/A"}},{"$f":"IF(ISNA(AD14),\"Enter Size Unit\",\"$\"&AD14&\" \"&AE14)","v":{"$error":"#N/A"}},{"$f":"IF(ISNA(AD14),0,C14*AD14)","v":0},null,null,null,null,null,null,null,null,null,null,null,null,null,null,null,null,null,{"$f":"VLOOKUP(B14,$AB$30:$AC$42,2,0)","v":{"$error":"#N/A"}},{"$f":"IF(Z14=\"\",\"\",Z14&\"size\")","v":{"$error":"#N/A"}},{"$f":"VLOOKUP(B14,$AB$30:$AE$42,4,0)","v":{"$error":"#N/A"}},{"$f":"VLOOKUP(B14,$AB$30:$AG$42,6,0)","v":{"$error":"#N/A"}},{"$f":"IF(Table19[[#This Row],[Equipment Type]]=\"\",0,IF(AC14=2,Glass_Door_Beverage_Cooler_Controller[Rebate Level],IF(AC14=8,Electric_Steam_Cooker_Single_Compartment[Rebate Level],IF(AC14=9,Electric_Steam_Cooker_Two_Compartment[Rebate Level],IF(AC14=10,Electric_Convection_Oven[Rebate Level],IF(AC14=11,Electric_Fryer[Rebate Level],IF(AC14=12,Electric_Griddle[Rebate Level],IF(AC14=14,#REF!,VLOOKUP(E14,INDIRECT(Z14),3,FALSE)))))))))","v":0},{"$f":"VLOOKUP(B14,$AB$30:$AG$42,5,0)","v":{"$error":"#N/A"}}]
[null,null,null,{"$error":"#N/A"},null,{"$f":"VLOOKUP(B15,$AB$30:$AE$42,3,0)","v":{"$error":"#N/A"}},{"$error":"#N/A"},{"$f":"IF(ISNA(AD15),0,C15*AD15)","v":0},null,null,null,null,null,null,null,null,null,null,null,null,null,null,null,null,null,{"$f":"VLOOKUP(B15,$AB$30:$AC$42,2,0)","v":{"$error":"#N/A"}},{"$error":"#N/A"},{"$f":"VLOOKUP(B15,$AB$30:$AE$42,4,0)","v":{"$error":"#N/A"}},{"$f":"VLOOKUP(B15,$AB$30:$AG$42,6,0)","v":{"$error":"#N/A"}},{"$f":"IF(Table19[[#This Row],[Equipment Type]]=\"\",0,IF(AC15=2,Glass_Door_Beverage_Cooler_Controller[Rebate Level],IF(AC15=8,Electric_Steam_Cooker_Single_Compartment[Rebate Level],IF(AC15=9,Electric_Steam_Cooker_Two_Compartment[Rebate Level],IF(AC15=10,Electric_Convection_Oven[Rebate Level],IF(AC15=11,Electric_Fryer[Rebate Level],IF(AC15=12,Electric_Griddle[Rebate Level],IF(AC15=14,#REF!,VLOOKUP(E15,INDIRECT(Z15),3,FALSE)))))))))","v":0},{"$f":"VLOOKUP(B15,$AB$30:$AG$42,5,0)","v":{"$error":"#N/A"}}]
[null,null,null,{"$error":"#N/A"},null,{"$f":"VLOOKUP(B16,$AB$30:$AE$42,3,0)","v":{"$error":"#N/A"}},{"$error":"#N/A"},{"$f":"IF(ISNA(AD16),0,C16*AD16)","v":0},null,null,null,null,null,null,null,null,null,null,null,null,null,null,null,null,null,{"$f":"VLOOKUP(B16,$AB$30:$AC$42,2,0)","v":{"$error":"#N/A"}},{"$error":"#N/A"},{"$f":"VLOOKUP(B16,$AB$30:$AE$42,4,0)","v":{"$error":"#N/A"}},{"$f":"VLOOKUP(B16,$AB$30:$AG$42,6,0)","v":{"$error":"#N/A"}},{"$f":"IF(Table19[[#This Row],[Equipment Type]]=\"\",0,IF(AC16=2,Glass_Door_Beverage_Cooler_Controller[Rebate Level],IF(AC16=8,Electric_Steam_Cooker_Single_Compartment[Rebate Level],IF(AC16=9,Electric_Steam_Cooker_Two_Compartment[Rebate Level],IF(AC16=10,Electric_Convection_Oven[Rebate Level],IF(AC16=11,Electric_Fryer[Rebate Level],IF(AC16=12,Electric_Griddle[Rebate Level],IF(AC16=14,#REF!,VLOOKUP(E16,INDIRECT(Z16),3,FALSE)))))))))","v":0},{"$f":"VLOOKUP(B16,$AB$30:$AG$42,5,0)","v":{"$error":"#N/A"}}]
[null,null,null,{"$error":"#N/A"},null,{"$f":"VLOOKUP(B17,$AB$30:$AE$42,3,0)","v":{"$error":"#N/A"}},{"$error":"#N/A"},{"$f":"IF(ISNA(AD17),0,C17*AD17)","v":0},null,null,null,null,null,null,null,null,null,null,null,null,null,null,null,null,null,{"$f":"VLOOKUP(B17,$AB$30:$AC$42,2,0)","v":{"$error":"#N/A"}},{"$error":"#N/A"},{"$f":"VLOOKUP(B17,$AB$30:$AE$42,4,0)","v":{"$error":"#N/A"}},{"$f":"VLOOKUP(B17,$AB$30:$AG$42,6,0)","v":{"$error":"#N/A"}},{"$f":"IF(Table19[[#This Row],[Equipment Type]]=\"\",0,IF(AC17=2,Glass_Door_Beverage_Cooler_Controller[Rebate Level],IF(AC17=8,Electric_Steam_Cooker_Single_Compartment[Rebate Level],IF(AC17=9,Electric_Steam_Cooker_Two_Compartment[Rebate Level],IF(AC17=10,Electric_Convection_Oven[Rebate Level],IF(AC17=11,Electric_Fryer[Rebate Level],IF(AC17=12,Electric_Griddle[Rebate Level],IF(AC17=14,#REF!,VLOOKUP(E17,INDIRECT(Z17),3,FALSE)))))))))","v":0},{"$f":"VLOOKUP(B17,$AB$30:$AG$42,5,0)","v":{"$error":"#N/A"}}]
[null,"Total",{"$f":"SUBTOTAL(109,Table19[Quantity])","v":0},null,null,null,null,{"$f":"SUBTOTAL(109,Table19[Rebate])","v":0}]
[]
[null,"Equipment Types and Rebate Levels"]
[]
[null,"Commercial Ice Machine"]
[null,"Size","Size Unit","Rebate Level","Rebate Unit"]
[null,"100-300","lbs. of ice per day",200,"per machine"]
[null,"301-500","lbs. of ice per day",350,"per machine"]
[null,"501-1,000","lbs. of ice per day",450,"per machine"]
[null,"1,001-1,500","lbs. of ice per day",500,"per machine"]
[null,">1,500","lbs. of ice per day",700,"per machine"]
[null,null,null,null,null,null,null,null,null,null,null,null,null,null,null,null,null,null,null,null,null,null,null,null,null,"Lookup_Measures",null,"User_Measures_Dropdown","User_Measure_Lookups","Size Units","User_Unit_Lookup","Rebate Unit","Measure Category"]
[null,"Induction Cooktop/Range",null,null,null,null,null,null,null,null,null,null,null,null,null,null,null,null,null,null,null,null,null,null,null,"Commercial_Ice_Machine",null,"Commercial Ice Machine","Commercial_Ice_Machine","lbs. of ice per day","machine(s)","per machine",1]
[null,"Rebate Level","Rebate Unit",null,null,null,null,null,null,null,null,null,null,null,null,null,null,null,null,null,null,null,null,null,null,"Induction_Cooktop_Range",null,"Induction Cooktop/Range","Induction_Cooktop_Range","heating element","heating element(s)","per heating element",2]
[null,450,"per heating element",null,null,null,null,null,null,null,null,null,null,null,null,null,null,null,null,null,null,null,null,null,null,"Commercial_Refrigerator_Solid_Doors",null,"Commercial Refrigerator, Solid Doors","Commercial_Refrigerator_Solid_Doors","cubic feet","refrigerator(s)","per refrigerator",3]
[null,null,null,null,null,null,null,null,null,null,null,null,null,null,null,null,null,null,null,null,null,null,null,null,null,"Commercial_Freezer_Solid_Doors",null,"Commercial Freezer, Solid Doors","Commercial_Freezer_Solid_Doors","cubic feet","freezer(s)","per freezer",4]
[null,"Commercial Refrigerator Solid Doors",null,null,null,null,null,null,null,null,null,null,null,null,null,null,null,null,null,null,null,null,null,null,null,"Commercial_Refrigerator_Glass_Doors",null,"Commercial Refrigerator, Glass Doors","Commercial_Refrigerator_Glass_Doors","cubic feet","refrigerator(s)","per refrigerator",5]
[null,"Size","Units","Rebate Level","Rebate Unit",null,null,null,null,null,null,null,null,null,null,null,null,null,null,null,null,null,null,null,null,"Electric_Combination_Oven",null,"Electric Combination Oven","Electric_Combination_Oven","number of pans","oven(s)","per oven",6]
[null,"<15","cubic feet",50,"per refrigerator",null,null,null,null,null,null,null,null,null,null,null,null,null,null,null,null,null,null,null,null,"Electric_Steam_Cooker_Single_Compartment",null,"Electric Steam Cooker - Single Compartment","Electric_Steam_Cooker_Single_Compartment","steamers","steamer(s)","per steamer",7]
[null,"15-29.9","cubic feet",75,"per refrigerator",null,null,null,null,null,null,null,null,null,null,null,null,null,null,null,null,null,null,null,null,"Electric_Steam_Cooker_Two_Compartment",null,"Electric Steam Cooker - Two Compartment","Electric_Steam_Cooker_Two_Compartment","steamers","steamer(s)","per steamer",8]
[null,"30-49.9","cubic feet",125,"per refrigerator",null,null,null,null,null,null,null,null,null,null,null,null,null,null,null,null,null,null,null,null,"Electric_Convection_Oven",null,"Electric Convection Oven","Electric_Convection_Oven","ovens","oven(s)","per oven",9]
[null,">50","cubic feet",200,"per refrigerator",null,null,null,null,null,null,null,null,null,null,null,null,null,null,null,null,null,null,null,null,"Electric_Fryer",null,"Electric Fryer","Electric_Fryer","vats","vat(s)","per vat",10]
[null,null,null,null,null,null,null,null,null,null,null,null,null,null,null,null,null,null,null,null,null,null,null,null,null,"Electric_Griddle",null,"Electric Griddle","Electric_Griddle","per griddle","Griddle(s)","per griddle",11]
[null,"Commercial Freezer Solid Doors"]
[null,"Size","Units","Rebate Level","Rebate Unit"]
[null,"<15","cubic feet",100,"per freezer"]
[null,"15-29.9","cubic feet",150,"per freezer"]
[null,"30-49.9","cubic feet",300,"per freezer"]
[null,">50","cubic feet",900,"per freezer"]
[]
[null,"Commercial Refrigerator Glass Doors"]
[null,"Size","Units","Rebate Level","Rebate Unit"]
[null,"<15","cubic feet",100,"per refrigerator"]
[null,"15-29.9","cubic feet",150,"per refrigerator"]
[null,"30-49.9","cubic feet",250,"per refrigerator"]
[null,">50","cubic feet",400,"per refrigerator"]
[]
[null,"Electric Combination Oven"]
[null,"Size","Units","Rebate Level","Rebate Unit"]
[null,"<15","number of pans",2000,"per oven"]
[null,"15-28","number of pans",3000,"per oven"]
[null,">28","number of pans",4000,"per oven"]
[]
[null,"Electric Steam Cooker - Single Compartment"]
[null,"Rebate Level","Rebate Unit"]
[null,1850,"per steamer"]
[]
[null,"Electric Steam Cooker - Two Compartment"]
[null,"Rebate Level","Rebate Unit"]
[null,2500,"per steamer"]
[]
[null,"Electric Convection Oven"]
[null,"Rebate Level","Rebate Unit"]
[null,350,"per oven"]
[]
[null,"Electric Fryer"]
[null,"Rebate Level","Rebate Unit"]
[null,650,"per vat"]
[]
[null,"Electric Griddle"]
[null,"Rebate Level","Rebate Unit"]
[null,500,"per griddle"]

{"sheet":"Electric Combination Oven","index":5,"n_rows":43,"n_cols":16,"rows_kept":43,"cut":false,"hidden":false,"merged":[[4,6,4,9],[4,10,4,13]]}
[null,"Qualified Combination Ovens",null,null,null,null,null,null,null,null,null,null,null,null,"Updated "," 12/15/2020"]
[null,"Qualifying electric combination oven/steamer models must meet ENERGY STAR® version 2.2 specifications and have a tested steam mode cooking-energy efficiency of ≥ 55% and convection mode cooking energy efficiency of"]
[null,"≥ 76% utilizing ASTM F2861. "]
[null,"NOTE: Program criteria are subject to change. Check your utility rebate application for terms and conditions, and effective program dates."]
[null,null,null,null,null,null,"Convection Mode",null,null,null,"Steam Mode"]
[null,"Company","Model\nNumber","Size\n(Steam Pans)","Fuel\nType","Preheat\nEnergy\n(Btu or kWh)","Idle Rate\n(Btu/h or kW)","Energy\nEfficiency\n(%)","Production\nCapacity\n(lbs/h)","Cooking\nWater Use\n(gph)","Idle Rate\n(Btu/h or kW)","Energy\nEfficiency\n(%)","Production\nCapacity\n(lbs/h)","Cooking\nWater Use\n(gph)","Measure Type","Rebate\n(per oven)"]
[null,"AccuTemp","T0621IE",12,"Electric",1,1.1000000000000001,0.8,118,0,1.25,0.68,170,3.9,"Comm. combi oven < 15 pan capacity",2000]
[null,"Alto-Shaam ","7.14 ESI",14,"Electric",1.0900000000000001,1.42,0.78,136,1.1000000000000001,0.92,0.59,109,5.4,"Comm. combi oven < 15 pan capacity",2000]
[null,"Alto-Shaam ","7.14ES",14,"Electric",1.22,1.56,0.79,141,0,2.13,0.61,204,9.4,"Comm. combi oven < 15 pan capacity",2000]
[null,"Alto-Shaam ","CTP7-20E",14,"Electric",1.26,1.51,0.8,140,0.8,1.18,0.59,171,1.5,"Comm. combi oven < 15 pan capacity",2000]
[null,"Angelo Po","FX122E3**",24,"Electric",0.98,2.12,0.82,227,1.6,3.1,0.68,290,3.4,"Comm. combi oven 16-28 pan capacity",3000]
[null,"Angelo Po","FX202E3**",40,"Electric",3.75,3.34,0.82,431,1.2,5.43,0.67,524,5.3,"Comm. combi oven >29 pan capacity",4000]
[null,"Angelo Po","FX82E3**",16,"Electric",1.32,1.69,0.8,149,1.2,2.57,0.66,186,2.8,"Comm. combi oven 16-28 pan capacity",3000]
[null,"BKI","HE062R",12,"Electric",1.08,1.28,0.76,99,0,1.1299999999999999,0.66,126,9.1,"Comm. combi oven < 15 pan capacity",2000]
[null,"BKI","HE102",20,"Electric",1.43,1.69,0.81,200,0,1.81,0.68,220,12.9,"Comm. combi oven 16-28 pan capacity",3000]
[null,"Convotherm","C4e* 10.10ES",10,"Electric",0.97,1.19,0.78,104,0,0.71,0.72,101,0.5,"Comm. combi oven < 15 pan capacity",2000]
[null,"Convotherm","C4e* 10.20EB",22,"Electric",1.53,1.74,0.81,216,0,2.52,0.64,348,10.6,"Comm. combi oven 16-28 pan capacity",3000]
[null,"Convotherm","C4e* 10.20ES",22,"Electric",1.49,1.68,0.83,232,0.1,1.56,0.76,337,2.7,"Comm. combi oven 16-28 pan capacity",3000]
[null,"Convotherm","C4e* 6.20EB",14,"Electric",1.46,1.42,0.8,145,0,1.85,0.61,213,8.1,"Comm. combi oven < 15 pan capacity",2000]
[null,"Convotherm","C4e* 6.20ES",14,"Electric",1.05,1.36,0.81,139,0,1.44,0.7,183,0.2,"Comm. combi oven < 15 pan capacity",2000]
[null,"Convotherm","OES-10.20",20,"Electric",2.2999999999999998,1.7,0.8,200,29,2.6,0.64,332,2.2000000000000002,"Comm. combi oven 16-28 pan capacity",3000]
[null,"Convotherm","OES-6.10 Mini",4,"Electric",0.44,0.61,0.81,44,0,0.89,0.69,61,0.4,"Comm. combi oven < 15 pan capacity",2000]
[null,"Convotherm","OES-6.20",14,"Electric",0.89,1.59,0.83,151,8.9,2.0299999999999998,0.59,226,2.9,"Comm. combi oven < 15 pan capacity",2000]
[null,"Eloma","Genius *T12-21E",24,"Electric",2.61,2.0099999999999998,0.78,203,0,3.55,0.67,313,6.5,"Comm. combi oven 16-28 pan capacity",3000]
[null,"Giorik","SEHE062W*",12,"Electric",1.08,1.28,0.76,99,0,1.1299999999999999,0.66,126,9.1,"Comm. combi oven < 15 pan capacity",2000]
[null,"Giorik","SEHE102W*",20,"Electric",1.43,1.69,0.81,200,0,1.81,0.68,220,12.9,"Comm. combi oven 16-28 pan capacity",3000]
[null,"Henny Penny","ESC610",6,"Electric",0.6,0.59,0.78,57,0,1.35,0.63,78,5.0999999999999996,"Comm. combi oven < 15 pan capacity",2000]
[null,"Lainox","NAEB071",7,"Electric",0.79,1.03,0.78,84,0,1.46,0.62,107,3,"Comm. combi oven < 15 pan capacity",2000]
[null,"Lainox","NAEB072",14,"Electric",1.25,1.6,0.81,139,0,1.96,0.67,196,10.5,"Comm. combi oven < 15 pan capacity",2000]
[null,"Lainox","NAEB101",10,"Electric",1.1299999999999999,1.21,0.82,110,3.3,1.63,0.63,175,4.9000000000000004,"Comm. combi oven < 15 pan capacity",2000]
[null,"Lainox","NAEB102",20,"Electric",1.56,1.88,0.83,194,0,2.34,0.65,366,17.2,"Comm. combi oven 16-28 pan capacity",3000]
[null,"Lainox","NAEV071",7,"Electric",0.79,1.03,0.78,84,0,1.42,0.66,92,0.2,"Comm. combi oven < 15 pan capacity",2000]
[null,"Lainox","NAEV072",14,"Electric",1.56,1.27,0.81,138,14.1,1.1299999999999999,0.7,128,3.4,"Comm. combi oven < 15 pan capacity",2000]
[null,"Lainox","NAEV101",10,"Electric",1.1299999999999999,1.21,0.82,110,3.3,1.22,0.66,98,1.3,"Comm. combi oven < 15 pan capacity",2000]
[null,"Lainox","NAEV102",20,"Electric",1.56,1.76,0.84,196,8.8000000000000007,1.93,0.72,186,2.1,"Comm. combi oven 16-28 pan capacity",3000]
[null,"Rational","ICP 10-FULL E (LM100EE)\nCE1ERRA.*******",20,"Electric",1.44,1.22,0.82,206,0.1,2.0299999999999998,0.64,383,7.8,"Comm. combi oven 16-28 pan capacity",3000]
[null,"Rational","ICP 10-HALF E (LM100DE)\nCD1ERRA.*******",10,"Electric",0.97,0.97,0.8,108,12.8,0.95,0.6,203,11.6,"Comm. combi oven < 15 pan capacity",2000]
[null,"Rational","ICP 6-FULL E (LM100CE)\nCC1ERRA.*******",12,"Electric",1,0.95,0.81,127,15.4,0.87,0.59,236,16.8,"Comm. combi oven < 15 pan capacity",2000]
[null,"Rational","ICP 6-HALF E (LM100BE)\nCB1ERRA.*******",6,"Electric",0.8,0.7,0.77,65,10.6,0.92,0.56000000000000005,118,10.199999999999999,"Comm. combi oven < 15 pan capacity",2000]
[null,"Rational","SCC102E\nB1281***",20,"Electric",1.58,2,0.79,189,"-",3.3,0.61,367,"-","Comm. combi oven 16-28 pan capacity",3000]
[null,"Rational","SCCWE62E\nB6281***",12,"Electric",0.96,1.32,0.79,128,11.8,2,0.63,202,6.7,"Comm. combi oven < 15 pan capacity",2000]
[null,"UNOX","XAVC-06FS-EP*",12,"Electric",0.95,1.1299999999999999,0.78,117,0.2,1.33,0.64,179,6.8,"Comm. combi oven < 15 pan capacity",2000]
[null,"UNOX","XAVC-10FS-EP*",20,"Electric",1.54,1.57,0.83,192,0,1.65,0.63,287,13,"Comm. combi oven 16-28 pan capacity",3000]

{"sheet":"Electric Convection Oven","index":6,"n_rows":108,"n_cols":14,"rows_kept":108,"cut":false,"hidden":false,"merged":[]}
[null,"Qualified Convection Ovens",null,null,null,null,null,null,null,null,null,null,"Updated "," 12/15/2020"]
[null,"Qualifying models must be listed in the California Energy Commission database. "]
[null,"Electric ovens must meet ENERGY STAR® version 2.2. specifications and have a tested heavy load potato cooking energy efficiency of 71% or more, utilizing ASTM Standard F1496. Half-size"]
[null,"electric ovens must have an idle rate of 1.0 kW or less and full-size electric ovens must have an idle rate of 1.6 kW or less."]
[null,"NOTE: Program criteria are subject to change. Check your utility rebate application for terms and conditions, and effective program dates."]
[null,"Company","Model Number","Oven\nSize","Test Pan\nCapacity","Fuel\nType","Rated Energy\nInput Rate\n(Btu or kWh)","Preheat\nEnergy\n(Btu or kWh)","Idle Energy Rate\n(Btu/h or kW)","Energy\nEfficiency\n(%)","Production\nCapacity\n(lbs/h)","Fan/Control\nEnergy\n(kW)","Measure Type","Rebate \n(per oven)"]
[null,"APW Wyott","BCO-E","Full",5,"Electric",10.7,1.36,1.5,0.74,102,"-","Comm. full-size convection oven",350]
[null,"APW Wyott","GDCO-E","Full",5,"Electric",10.7,1.36,1.5,0.74,102,"-","Comm. full-size convection oven",350]
[null,"Bakers Pride","BCO-E","Full",5,"Electric",10.7,1.36,1.5,0.74,102,"-","Comm. full-size convection oven",350]
[null,"Bakers Pride","GDCO-E","Full",5,"Electric",10.7,1.36,1.5,0.74,102,"-","Comm. full-size convection oven",350]
[null,"BKI","COB-E","Full",5,"Electric",10.7,1.36,1.5,0.74,102,"-","Comm. full-size convection oven",350]
[null,"BKI","COM-E","Full",5,"Electric",10.7,1.36,1.5,0.74,102,"-","Comm. full-size convection oven",350]
[null,"Blodgett","BDO-100-E","Full",5,"Electric",11,1.54,1.5,0.76,99,"-","Comm. full-size convection oven",350]
[null,"Blodgett","CTB","Half",5,"Electric",5.6,0.92,1,0.74,50,"-","Comm. half-size convection oven",350]
[null,"Blodgett","CTB/R","Half",5,"Electric",5.6,0.92,1,0.74,50,"-","Comm. half-size convection oven",350]
[null,"Blodgett","HV100E","Full",5,"Electric",13,1.6,1.5,0.71,93,"-","Comm. full-size convection oven",350]
[null,"Blodgett","HVH-100E","Full",5,"Electric",13,1.6,1.5,0.71,93,"-","Comm. full-size convection oven",350]
[null,"Blodgett","Mark V-100","Full",5,"Electric",11,1.54,1.5,0.76,99,"-","Comm. full-size convection oven",350]
[null,"Blodgett","Mark V-100-K12","Full",5,"Electric",11,1.54,1.5,0.76,99,"-","Comm. full-size convection oven",350]
[null,"Blodgett","Mark V-200","Full",5,"Electric",11,1.54,1.5,0.76,99,"-","Comm. full-size convection oven",350]
[null,"Blodgett","Mark V-200-K12","Full",5,"Electric",11,1.54,1.5,0.76,99,"-","Comm. full-size convection oven",350]
[null,"Blodgett","SHO-100-E","Full",5,"Electric",11,1.7,1.6,0.76,90,"-","Comm. full-size convection oven",350]
[null,"Blodgett","XL-50E","Half",5,"Electric",10.3,0.84,0.6,0.75,51,"-","Comm. half-size convection oven",350]
[null,"Blodgett","Zephaire-100-E","Full",5,"Electric",11,"N/A",1.4,0.77,101,"-","Comm. full-size convection oven",350]
[null,"Blodgett","Zephaire-200-E","Full",5,"Electric",11,"N/A",1.6,0.73,87,"-","Comm. full-size convection oven",350]
[null,"Blue Seal","E32D5","Full",5,"Electric",6.5,0.67,1,0.8,82,"-","Comm. full-size convection oven",350]
[null,"Cadco","XAFT-04FS-**","Full",4,"Electric",7.6,0.59,1,0.72,74,"-","Comm. full-size convection oven",350]
[null,"CPG","CPG-DCO-E","Full",5,"Electric",10.7,1.36,1.5,0.74,102,"-","Comm. full-size convection oven",350]
[null,"Imperial","ICVE-1","Full",5,"Electric",11,1.5,1.6,0.74,85,"-","Comm. full-size convection oven",350]
[null,"Imperial","ICVE-2","Full",5,"Electric",11,1.5,1.6,0.74,85,"-","Comm. full-size convection oven",350]
[null,"Lang","ECOF-AP","Full",5,"Electric",11.5,1.44,1.4,0.74,85,"-","Comm. full-size convection oven",350]
[null,"Lang","ECOF-C","Full",5,"Electric",11.5,1.44,1.4,0.74,85,"-","Comm. full-size convection oven",350]
[null,"Lang","ECOF-PP","Full",5,"Electric",11.5,1.44,1.4,0.74,85,"-","Comm. full-size convection oven",350]
[null,"Lang","ECOF-PT","Full",5,"Electric",11.5,1.44,1.4,0.74,85,"-","Comm. full-size convection oven",350]
[null,"Lang","ECOF-S","Full",5,"Electric",11.5,1.44,1.4,0.74,85,"-","Comm. full-size convection oven",350]
[null,"Lang","ECOH","Half",5,"Electric",7.8,0.68,0.83,0.74,48,"-","Comm. half-size convection oven",350]
[null,"Lang","ECSF-ES","Full",5,"Electric",12.3,1.74,1.6,0.78,96,"-","Comm. full-size convection oven",350]
[null,"Lang","ECSF-ES1","Full",5,"Electric",12.3,1.74,1.6,0.78,96,"-","Comm. full-size convection oven",350]
[null,"Lang","ECSF-ES2","Full",5,"Electric",12.3,1.74,1.6,0.78,96,"-","Comm. full-size convection oven",350]
[null,"Lang","ECSF-EZ","Full",5,"Electric",12.3,1.74,1.6,0.78,96,"-","Comm. full-size convection oven",350]
[null,"Moffat","E32D5","Full",5,"Electric",5.8,0.67,1,0.8,82,"-","Comm. full-size convection oven",350]
[null,"Moffat","E32D5/2","Full",5,"Electric",5.8,0.67,1,0.8,82,"-","Comm. full-size convection oven",350]
[null,"Moffat","E32MS","Full",5,"Electric",6,0.57999999999999996,0.8,0.82,77,"-","Comm. full-size convection oven",350]
[null,"Moffat","E32MS/2","Full",5,"Electric",6,0.57999999999999996,0.8,0.82,77,"-","Comm. full-size convection oven",350]
[null,"Mono Equipment","BX-DD / FG189","Full",3,"Electric",7.5,0.75,1,0.76,59,"-","Comm. full-size convection oven",350]
[null,"Nu-Vu","X5","Full",5,"Electric",6.2,0.63,1.4,0.76,104,"-","Comm. full-size convection oven",350]
[null,"Revent","ONE39E","Full",8,"Electric",15.2,3.35,1.4,0.85,117,"-","Comm. full-size convection oven",350]
[null,"Short Order","SO-DCO-E","Full",5,"Electric",10.7,1.36,1.5,0.74,102,"-","Comm. full-size convection oven",350]
[null,"Southbend","BES/17CCH","Full",5,"Electric",8.5,1.53,1.3,0.76,92,"-","Comm. full-size convection oven",350]
[null,"Southbend","BES/17SC","Full",5,"Electric",8.5,1.53,1.3,0.76,92,"-","Comm. full-size convection oven",350]
[null,"Southbend","BES/19CCH","Full",5,"Electric",9.9,1.49,1.4,0.75,102,"-","Comm. full-size convection oven",350]
[null,"Southbend","BES/19SC","Full",5,"Electric",9.9,1.49,1.4,0.75,102,"-","Comm. full-size convection oven",350]
[null,"Southbend","BES/27CCH","Full",5,"Electric",8.5,1.53,1.3,0.76,92,"-","Comm. full-size convection oven",350]
[null,"Southbend","BES/27SC","Full",5,"Electric",8.5,1.53,1.3,0.76,92,"-","Comm. full-size convection oven",350]
[null,"Southbend","BES/29CCH","Full",5,"Electric",9.9,1.49,1.4,0.75,102,"-","Comm. full-size convection oven",350]
[null,"Southbend","BES/29SC","Full",5,"Electric",9.9,1.49,1.4,0.75,102,"-","Comm. full-size convection oven",350]
[null,"Southbend","ES/10CCH","Full",5,"Electric",12,1.48,1.4,0.74,95,"-","Comm. full-size convection oven",350]
[null,"Southbend","ES/10SC","Full",5,"Electric",12,1.48,1.4,0.74,95,"-","Comm. full-size convection oven",350]
[null,"Southbend","ES/17CCH","Full",5,"Electric",8.5,1.53,1.3,0.76,92,"-","Comm. full-size convection oven",350]
[null,"Southbend","ES/17SC","Full",5,"Electric",8.5,1.53,1.3,0.76,92,"-","Comm. full-size convection oven",350]
[null,"Southbend","ES/19CCH","Full",5,"Electric",9.9,1.49,1.4,0.75,102,"-","Comm. full-size convection oven",350]
[null,"Southbend","ES/19SC","Full",5,"Electric",9.9,1.49,1.4,0.75,102,"-","Comm. full-size convection oven",350]
[null,"Southbend","ES/20CCH","Full",5,"Electric",12,1.48,1.4,0.74,95,"-","Comm. full-size convection oven",350]
[null,"Southbend","ES/20SC","Full",5,"Electric",12,1.48,1.4,0.74,95,"-","Comm. full-size convection oven",350]
[null,"Southbend","ES/27CCH","Full",5,"Electric",8.5,1.53,1.3,0.76,92,"-","Comm. full-size convection oven",350]
[null,"Southbend","ES/27SC","Full",5,"Electric",8.5,1.53,1.3,0.76,92,"-","Comm. full-size convection oven",350]
[null,"Southbend","ES/29CCH","Full",5,"Electric",9.9,1.49,1.4,0.75,102,"-","Comm. full-size convection oven",350]
[null,"Southbend","ES/29SC","Full",5,"Electric",9.9,1.49,1.4,0.75,102,"-","Comm. full-size convection oven",350]
[null,"Southbend","KES/17CCH","Full",5,"Electric",8.5,1.53,1.3,0.76,92,"-","Comm. full-size convection oven",350]
[null,"Southbend","KES/17SC","Full",5,"Electric",8.5,1.53,1.3,0.76,92,"-","Comm. full-size convection oven",350]
[null,"Southbend","KES/19CCH","Full",5,"Electric",9.9,1.49,1.4,0.75,102,"-","Comm. full-size convection oven",350]
[null,"Southbend","KES/19SC","Full",5,"Electric",9.9,1.49,1.4,0.75,102,"-","Comm. full-size convection oven",350]
[null,"Southbend","KES/27CCH","Full",5,"Electric",8.5,1.53,1.3,0.76,92,"-","Comm. full-size convection oven",350]
[null,"Southbend","KES/27SC","Full",5,"Electric",8.5,1.53,1.3,0.76,92,"-","Comm. full-size convection oven",350]
[null,"Southbend","KES/29CCH","Full",5,"Electric",9.9,1.49,1.4,0.75,102,"-","Comm. full-size convection oven",350]
[null,"Southbend","KES/29SC","Full",5,"Electric",9.9,1.49,1.4,0.75,102,"-","Comm. full-size convection oven",350]
[null,"Southbend","KLES/17CCH","Full",5,"Electric",8.5,1.53,1.3,0.76,92,"-","Comm. full-size convection oven",350]
[null,"Southbend","KLES/17SC","Full",5,"Electric",8.5,1.53,1.3,0.76,92,"-","Comm. full-size convection oven",350]
[null,"Southbend","KLES/19CCH","Full",5,"Electric",9.9,1.49,1.4,0.75,102,"-","Comm. full-size convection oven",350]
[null,"Southbend","KLES/19SC","Full",5,"Electric",9.9,1.49,1.4,0.75,102,"-","Comm. full-size convection oven",350]
[null,"Southbend","KLES/27CCH","Full",5,"Electric",8.5,1.53,1.3,0.76,92,"-","Comm. full-size convection oven",350]
[null,"Southbend","KLES/27SC","Full",5,"Electric",8.5,1.53,1.3,0.76,92,"-","Comm. full-size convection oven",350]
[null,"Southbend","KLES/29CCH","Full",5,"Electric",9.9,1.49,1.4,0.75,102,"-","Comm. full-size convection oven",350]
[null,"Southbend","KLES/29SC","Full",5,"Electric",9.9,1.49,1.4,0.75,102,"-","Comm. full-size convection oven",350]
[null,"Southbend","KS/17CCH","Full",5,"Electric",8.5,1.53,1.3,0.76,92,"-","Comm. full-size convection oven",350]
[null,"Southbend","KS/17SC","Full",5,"Electric",8.5,1.53,1.3,0.76,92,"-","Comm. full-size convection oven",350]
[null,"Southbend","KS/19CCH","Full",5,"Electric",9.9,1.49,1.4,0.75,102,"-","Comm. full-size convection oven",350]
[null,"Southbend","KS/19SC","Full",5,"Electric",9.9,1.49,1.4,0.75,102,"-","Comm. full-size convection oven",350]
[null,"Southbend","KS/27CCH","Full",5,"Electric",8.5,1.53,1.3,0.76,92,"-","Comm. full-size convection oven",350]
[null,"Southbend","KS/27SC","Full",5,"Electric",8.5,1.53,1.3,0.76,92,"-","Comm. full-size convection oven",350]
[null,"Southbend","KS/29CCH","Full",5,"Electric",9.9,1.49,1.4,0.75,102,"-","Comm. full-size convection oven",350]
[null,"Southbend","KS/29SC","Full",5,"Electric",9.9,1.49,1.4,0.75,102,"-","Comm. full-size convection oven",350]
[null,"Southbend","PCR-1E","Full",5,"Electric",12,1.54,1.4,0.73,101,"-","Comm. full-size convection oven",350]
[null,"Southbend","PCR-2E","Full",5,"Electric",12,1.54,1.4,0.73,101,"-","Comm. full-size convection oven",350]
[null,"Southbend","SLES/10CCH","Full",5,"Electric",12,1.54,1.4,0.73,101,"-","Comm. full-size convection oven",350]
[null,"Southbend","SLES/10SC","Full",5,"Electric",12,1.54,1.4,0.73,101,"-","Comm. full-size convection oven",350]
[null,"Southbend","SLES/17CCH","Full",5,"Electric",8.5,1.53,1.3,0.76,92,"-","Comm. full-size convection oven",350]
[null,"Southbend","SLES/17SC","Full",5,"Electric",8.5,1.53,1.3,0.76,92,"-","Comm. full-size convection oven",350]
[null,"Southbend","SLES/19CCH","Full",5,"Electric",9.9,1.49,1.4,0.75,102,"-","Comm. full-size convection oven",350]
[null,"Southbend","SLES/19SC","Full",5,"Electric",9.9,1.49,1.4,0.75,102,"-","Comm. full-size convection oven",350]
[null,"Southbend","SLES/20CCH","Full",5,"Electric",12,1.54,1.4,0.73,101,"-","Comm. full-size convection oven",350]
[null,"Southbend","SLES/20SC","Full",5,"Electric",12,1.54,1.4,0.73,101,"-","Comm. full-size convection oven",350]
[null,"Southbend","SLES/27CCH","Full",5,"Electric",8.5,1.53,1.3,0.76,92,"-","Comm. full-size convection oven",350]
[null,"Southbend","SLES/27SC","Full",5,"Electric",8.5,1.53,1.3,0.76,92,"-","Comm. full-size convection oven",350]
[null,"Southbend","SLES/29CCH","Full",5,"Electric",9.9,1.49,1.4,0.75,102,"-","Comm. full-size convection oven",350]
[null,"Southbend","SLES/29SC","Full",5,"Electric",9.9,1.49,1.4,0.75,102,"-","Comm. full-size convection oven",350]
[null,"Tri-Star","TSCO-E","Full",5,"Electric",10.7,1.36,1.5,0.74,102,"-","Comm. full-size convection oven",350]
[null,"Vulcan","VC*E*-****","Full",5,"Electric",12.5,1.24,1.4,0.76,94,"-","Comm. full-size convection oven",350]

{"sheet":"Electric Fryer","index":7,"n_rows":71,"n_cols":13,"rows_kept":71,"cut":false,"hidden":false,"merged":[]}
[null,"Qualified Fryers",null,null,null,null,null,null,null,null,null,"Updated "," 12/15/2020"]
[null,"Qualifying electric fryer models (vat width < 18-inches) must meet ENERGY STAR specifications and have a tested heavy load cooking energy efficiency of ≥ 83%"]
[null,"and an idle energy rate ≤ 800 W utilizing ASTM Standard F1361. Qualifying electric fryer models (vat width ≥ 18-inches) must meet ENERGY STAR specifications and have"]
[null,"a tested heavy load cooking energy efficiency of ≥80% and and idle energy rate ≤ 1,100 W utilizing ASTM Standard F2144."]
[null,"Multiple vat configurations are paid per qualifying vat."]
[null,"NOTE: Program criteria are subject to change. Check your utility rebate application for terms and conditions, and effective program dates."]
[null,"Company","Model Number","Number\nof Vats","Vat\nWidth","Shortening\nCapacity\n(lb)","Fuel\nType","Preheat\nEnergy\n(Btu or kWh)","Idle Energy Rate\n(Btu/h or kW)","Energy\nEfficiency\n(%)","Production\nCapacity\n(lbs/h)","Measure Type","Rebate \n(per unit)"]
[null,"BKI","ALF-FC",1,14,50,"Electric",1.74,0.8,0.86,45,"Comm. Fryer",650]
[null,"Frymaster","1FQE60U***",1,18,63,"Electric",2.68,0.88,0.91,84,"Comm. Fryer",650]
[null,"Frymaster","2FQE30U***",2,13,30,"Electric",1.64,0.61,0.87,61,"Comm. Fryer",650]
[null,"Frymaster","2FQE60U***",2,18,63,"Electric",2.68,0.88,0.91,84,"Comm. Fryer",650]
[null,"Frymaster","3FQE30U***",3,13,30,"Electric",1.64,0.61,0.87,61,"Comm. Fryer",650]
[null,"Frymaster","3FQE60U***",3,18,63,"Electric",2.68,0.88,0.91,84,"Comm. Fryer",650]
[null,"Frymaster","4FQE30U***",4,13,30,"Electric",1.64,0.61,0.87,61,"Comm. Fryer",650]
[null,"Frymaster","BIELA214***",2,13,30,"Electric",1.64,0.61,0.87,61,"Comm. Fryer",650]
[null,"Frymaster","BIELA314***",3,13,30,"Electric",1.64,0.61,0.87,61,"Comm. Fryer",650]
[null,"Frymaster","BIELA414***",4,13,30,"Electric",1.64,0.61,0.87,61,"Comm. Fryer",650]
[null,"Frymaster","BIELA514***",5,13,30,"Electric",1.64,0.61,0.87,61,"Comm. Fryer",650]
[null,"Frymaster","FPEL14",1,14,35,"Electric",1.47,0.62,0.87,58,"Comm. Fryer",650]
[null,"Frymaster","FPEL214",2,14,35,"Electric",1.47,0.62,0.87,58,"Comm. Fryer",650]
[null,"Frymaster","FPEL314",3,14,35,"Electric",1.47,0.62,0.87,58,"Comm. Fryer",650]
[null,"Frymaster","FPEL414",4,14,35,"Electric",1.47,0.62,0.87,58,"Comm. Fryer",650]
[null,"Frymaster","FPEL514",5,14,35,"Electric",1.47,0.62,0.87,58,"Comm. Fryer",650]
[null,"Frymaster","H17TC",1,14,50,"Electric",1.7,0.77,0.84,72,"Comm. Fryer",650]
[null,"Frymaster","RE14***",1,14,50,"Electric",1.52,0.62,0.87,61,"Comm. Fryer",650]
[null,"Frymaster","RE22***",1,14,50,"Electric",1.65,0.52,0.89,69,"Comm. Fryer",650]
[null,"Giles Enterprises, Inc.","EOF-24",1,24,175,"Electric",4.84,0.95,0.83,150,"Comm. Fryer",650]
[null,"Giles Enterprises, Inc.","GEF-400",1,13,45,"Electric",1.32,0.7,0.86,53,"Comm. Fryer",650]
[null,"Giles Enterprises, Inc.","GEF-560",1,18.5,60,"Electric",1.52,0.83,0.89,77,"Comm. Fryer",650]
[null,"Giles Enterprises, Inc.","GEF-720",1,18.5,75,"Electric",3.17,0.93,0.85,96,"Comm. Fryer",650]
[null,"Henny Penny","EEE-141",1,12,30,"Electric",1.49,0.72,0.85,59,"Comm. Fryer",650]
[null,"Henny Penny","EEE-141 Split Vat",1,14,30,"Electric",1.59,0.76,0.86,61,"Comm. Fryer",650]
[null,"Henny Penny","EEE-142",2,12,30,"Electric",1.49,0.72,0.85,59,"Comm. Fryer",650]
[null,"Henny Penny","EEE-142 Split Vat",2,14,30,"Electric",1.59,0.76,0.86,61,"Comm. Fryer",650]
[null,"Henny Penny","EEE-143",3,12,30,"Electric",1.49,0.72,0.85,59,"Comm. Fryer",650]
[null,"Henny Penny","EEE-143 Split Vat",3,14,30,"Electric",1.59,0.76,0.86,61,"Comm. Fryer",650]
[null,"Henny Penny","EEE-144",4,12,30,"Electric",1.49,0.72,0.85,59,"Comm. Fryer",650]
[null,"Henny Penny","EEE-144 Split Vat",4,14,30,"Electric",1.59,0.76,0.86,61,"Comm. Fryer",650]
[null,"Henny Penny","LVE-201",1,12,30,"Electric",1.42,0.73,0.86,62,"Comm. Fryer",650]
[null,"Henny Penny","LVE-201 Split Vat",1,12,30,"Electric",1.52,0.79,0.85,57,"Comm. Fryer",650]
[null,"Henny Penny","LVE-202",2,12,30,"Electric",1.42,0.73,0.86,62,"Comm. Fryer",650]
[null,"Henny Penny","LVE-202 Split Vat",2,12,30,"Electric",1.52,0.79,0.85,57,"Comm. Fryer",650]
[null,"Henny Penny","LVE-203",3,12,30,"Electric",1.42,0.73,0.86,62,"Comm. Fryer",650]
[null,"Henny Penny","LVE-203 Split Vat",3,12,30,"Electric",1.52,0.79,0.85,57,"Comm. Fryer",650]
[null,"Henny Penny","LVE-204",4,12,30,"Electric",1.42,0.73,0.86,62,"Comm. Fryer",650]
[null,"Henny Penny","LVE-204 Split Vat",4,12,30,"Electric",1.52,0.79,0.85,57,"Comm. Fryer",650]
[null,"Henny Penny","OEA-321 (22kW)",1,14,65,"Electric",2.58,0.75,0.83,69,"Comm. Fryer",650]
[null,"Henny Penny","OEA-322 (22kW)",2,14,65,"Electric",2.58,0.75,0.83,69,"Comm. Fryer",650]
[null,"Henny Penny","OEA-323 (22kW)",3,14,65,"Electric",2.58,0.75,0.83,69,"Comm. Fryer",650]
[null,"Henny Penny","OFE-321 (22kW)",1,14,65,"Electric",2.58,0.75,0.83,69,"Comm. Fryer",650]
[null,"Henny Penny","OFE-322 (22kW)",2,14,65,"Electric",2.58,0.75,0.83,69,"Comm. Fryer",650]
[null,"Henny Penny","OFE-323 (22kW)",3,14,65,"Electric",2.58,0.75,0.83,69,"Comm. Fryer",650]
[null,"Hobart","HF50",1,14,50,"Electric",1.76,0.63,0.85,72,"Comm. Fryer",650]
[null,"Resfab","MB-85***",1,20,85,"Electric",3.66,1.1000000000000001,0.84,69,"Comm. Fryer",650]
[null,"Sapidus","UE-1100",1,15,70,"Electric",1.41,0.42,0.84,26,"Comm. Fryer",650]
[null,"Ultrafryer Systems","B-E20-18-2-***",2,18,100,"Electric",2.34,1.08,0.83,93,"Comm. Fryer",650]
[null,"Ultrafryer Systems","B-E20-18-3-***",3,18,100,"Electric",2.34,1.08,0.83,93,"Comm. Fryer",650]
[null,"Ultrafryer Systems","B-E20-18-4-***",4,18,100,"Electric",2.34,1.08,0.83,93,"Comm. Fryer",650]
[null,"Ultrafryer Systems","B-E20-18-5-***",5,18,100,"Electric",2.34,1.08,0.83,93,"Comm. Fryer",650]
[null,"Ultrafryer Systems","B-E20-18-6-***",6,18,100,"Electric",2.34,1.08,0.83,93,"Comm. Fryer",650]
[null,"Ultrafryer Systems","F-E20-18",1,18,100,"Electric",2.34,1.08,0.83,93,"Comm. Fryer",650]
[null,"Vulcan","1ER50**",1,14,50,"Electric",1.75,0.74,0.86,58,"Comm. Fryer",650]
[null,"Vulcan","1ER85**",1,18,85,"Electric",2.78,1.08,0.88,105,"Comm. Fryer",650]
[null,"Vulcan","2ER50**",2,14,50,"Electric",1.75,0.74,0.86,58,"Comm. Fryer",650]
[null,"Vulcan","2ER85**",2,18,85,"Electric",2.78,1.08,0.88,105,"Comm. Fryer",650]
[null,"Vulcan","3ER50**",3,14,50,"Electric",1.75,0.74,0.86,58,"Comm. Fryer",650]
[null,"Vulcan","3ER85**",3,18,85,"Electric",2.78,1.08,0.88,105,"Comm. Fryer",650]
[null,"Vulcan","4ER50**",4,14,50,"Electric",1.75,0.74,0.86,58,"Comm. Fryer",650]
[null,"Vulcan","4ER85**",4,18,85,"Electric",2.78,1.08,0.88,105,"Comm. Fryer",650]
[null,"Vulcan","CEF40",1,14,45,"Electric",1.88,0.7,0.85,70,"Comm. Fryer",650]
[null,"Winston","LP46C32SJ",1,14,65,"Electric",3,0.4,0.91,37,"Comm. Fryer",650]

{"sheet":"Electric Griddle","index":8,"n_rows":47,"n_cols":15,"rows_kept":47,"cut":false,"hidden":false,"merged":[[4,7,4,8],[4,9,4,10]]}
[null,"Qualified Griddles",null,null,null,null,null,null,null,null,null,null,null,"Updated "," 12/15/2020"]
[null,"Qualifying electric griddle models must meet ENERGY STAR® (Tier 2) and have a tested heavy-load cooking energy efficiency of 70% or greater and a normalized idle energy rate of 320 Watts"]
[null,"per ft² of cooking surface or less, utilizing ASTM Standard F1275."]
[null,"NOTE: Program criteria are subject to change. Check your utility rebate application for terms and conditions, and effective program dates."]
[null,null,null,null,null,null,null,"Preheat Energy",null,"Idle Energy"]
[null,"Company","Model Number","Single or\nDouble\nSided","Fuel\nType","Nominal\nWidth\n(ft)","Surface\nArea\n(ft²)","Gas\n(Btu/ft²)","Electric\n(Wh/ft²)","Gas\n(Btu/h/ft²)","Electric\n(W/ft²)","Energy\nEfficiency\n(%)","Production\nCapacity\n(lb/h/ft²)","Measure Type","Rebate\n(per unit)"]
[null,"AccuTemp","EGF****A2450","Single","Electric",2,6,"-",471.66666666666669,"-",228.33333333333334,0.86,8.7999999999999989,"Comm. Griddle",500]
[null,"AccuTemp","EGF****A3650","Single","Electric",3,9,"-",480,"-",225.55555555555554,0.86,8.1777777777777771,"Comm. Griddle",500]
[null,"Garland","MWE-2W","Double","Electric",3,6,"-",575,"-",300,0.76,8.3333333333333339,"Comm. Griddle",500]
[null,"Garland","MWE2S","Double","Electric",3,6,"-",575,"-",300,0.76,8.3333333333333339,"Comm. Griddle",500]
[null,"Garland","MWE3W-1","Double","Electric",3,6,"-",661.66666666666663,"-",306.66666666666669,0.78,11.366666666666667,"Comm. Griddle",500]
[null,"Garland","XE24","Double","Electric",2,4,"-",877.5,"-",255,0.75,17.55,"Comm. Griddle",500]
[null,"Garland","XE36","Double","Electric",3,6,"-",877.5,"-",255,0.75,17.55,"Comm. Griddle",500]
[null,"Imperial","ITG-24-E","Single","Electric",2,4,"-",285,"-",210,0.77,4.95,"Comm. Griddle",500]
[null,"Imperial","ITG-36-E","Single","Electric",3,6,"-",285,"-",210,0.77,4.95,"Comm. Griddle",500]
[null,"Imperial","ITG-48-E","Single","Electric",4,8,"-",285,"-",210,0.77,4.95,"Comm. Griddle",500]
[null,"Imperial","ITG-60-E","Single","Electric",5,10,"-",285,"-",210,0.77,4.95,"Comm. Griddle",500]
[null,"Imperial","ITG-72-E","Single","Electric",6,12,"-",285,"-",210,0.77,4.95,"Comm. Griddle",500]
[null,"Keating","ES24x30FT","Single","Electric",2,4,"-",438.33333333333331,"-",246.66666666666666,0.72,5.0666666666666664,"Comm. Griddle",500]
[null,"Keating","ES27x30FT","Single","Electric",2,4.5,"-",438.33333333333331,"-",246.66666666666666,0.72,5.0666666666666664,"Comm. Griddle",500]
[null,"Keating","ES30x30FT","Single","Electric",3,5,"-",438.33333333333331,"-",246.66666666666666,0.72,5.0666666666666664,"Comm. Griddle",500]
[null,"Keating","ES36x30FT","Single","Electric",3,6,"-",438.33333333333331,"-",246.66666666666666,0.72,5.0666666666666664,"Comm. Griddle",500]
[null,"Keating","ES36x36FT","Single","Electric",3,9,"-",438.33333333333331,"-",246.66666666666666,0.72,5.0666666666666664,"Comm. Griddle",500]
[null,"Keating","ES42x30FT","Single","Electric",4,7,"-",438.33333333333331,"-",246.66666666666666,0.72,5.0666666666666664,"Comm. Griddle",500]
[null,"Keating","ES48x30FT","Single","Electric",4,8,"-",438.33333333333331,"-",246.66666666666666,0.72,5.0666666666666664,"Comm. Griddle",500]
[null,"Keating","ES48x36FT","Single","Electric",4,10,"-",438.33333333333331,"-",246.66666666666666,0.72,5.0666666666666664,"Comm. Griddle",500]
[null,"Keating","ES60x30FT","Single","Electric",5,10,"-",438.33333333333331,"-",246.66666666666666,0.72,5.0666666666666664,"Comm. Griddle",500]
[null,"Keating","ES60x36FT","Single","Electric",5,12.5,"-",438.33333333333331,"-",246.66666666666666,0.72,5.0666666666666664,"Comm. Griddle",500]
[null,"Keating","ES72x30FT","Single","Electric",6,12,"-",438.33333333333331,"-",246.66666666666666,0.72,5.0666666666666664,"Comm. Griddle",500]
[null,"Keating","ES72x36FT","Single","Electric",6,15,"-",438.33333333333331,"-",246.66666666666666,0.72,5.0666666666666664,"Comm. Griddle",500]
[null,"Lang","124ZTC","Single","Electric",2,3.83,"-",576.66666666666663,"-",268.33333333333331,0.75,6.833333333333333,"Comm. Griddle",500]
[null,"Lang","136ZTC","Single","Electric",3,6,"-",576.66666666666663,"-",268.33333333333331,0.75,6.833333333333333,"Comm. Griddle",500]
[null,"Lang","148ZTC","Single","Electric",4,7.67,"-",576.66666666666663,"-",268.33333333333331,0.75,6.833333333333333,"Comm. Griddle",500]
[null,"Lang","160ZTC","Single","Electric",5,9.58,"-",576.66666666666663,"-",268.33333333333331,0.75,6.833333333333333,"Comm. Griddle",500]
[null,"Lang","172ZTC","Single","Electric",6,11.5,"-",576.66666666666663,"-",268.33333333333331,0.75,6.833333333333333,"Comm. Griddle",500]
[null,"Taylor Company","C810-**","Double","Electric",3,6,"-",636.66666666666663,"-",320,0.77,11.200000000000001,"Comm. Griddle",500]
[null,"Taylor Company","C812-**","Double","Electric",3,6,"-",636.66666666666663,"-",320,0.77,11.200000000000001,"Comm. Griddle",500]
[null,"Taylor Company","C832-**","Double","Electric",3,6,"-",636.66666666666663,"-",306.66666666666669,0.76,8.6166666666666671,"Comm. Griddle",500]
[null,"Taylor Company","C842-**","Double","Electric",3,6,"-",636.66666666666663,"-",320,0.77,11.200000000000001,"Comm. Griddle",500]
[null,"Taylor Company","L810-**","Double","Electric",3,6,"-",728.33333333333337,"-",318.33333333333331,0.87,17.083333333333332,"Comm. Griddle",500]
[null,"Taylor Company","L812-**","Double","Electric",3,6,"-",728.33333333333337,"-",318.33333333333331,0.87,17.083333333333332,"Comm. Griddle",500]
[null,"Taylor Company","L820-**","Double","Electric",2,4.05,"-",639.50617283950623,"-",293.82716049382719,0.87,17.679012345679013,"Comm. Griddle",500]
[null,"Wells","G-13","Single","Electric",2,2.75,"-",420,"-",241.66666666666666,0.75,5.2333333333333334,"Comm. Griddle",500]
[null,"Wells","G-19","Single","Electric",3,4.3600000000000003,"-",420,"-",241.66666666666666,0.75,5.2333333333333334,"Comm. Griddle",500]
[null,"Wells","G-23","Single","Electric",3,6,"-",420,"-",241.66666666666666,0.75,5.2333333333333334,"Comm. Griddle",500]
[null,"Wells","G-24","Single","Electric",4,7.91,"-",420,"-",241.66666666666666,0.75,5.2333333333333334,"Comm. Griddle",500]
[null,"Wells","G-60","Single","Electric",6,11.29,"-",420,"-",241.66666666666666,0.75,5.2333333333333334,"Comm. Griddle",500]

{"sheet":"Steam Cookers","index":9,"n_rows":51,"n_cols":12,"rows_kept":51,"cut":false,"hidden":false,"merged":[]}
[null,"Qualified Steam Cookers",null,null,null,null,null,null,null,null,"Updated "," 12/15/2020"]
[null,"Qualifying electric steam cooker models must meet ENERGY STAR® specifications and have a tested heavy load potato cooking energy efficiency of ≥ 50% utilizing ASTM Standard F1484."]
[null,"NOTE: Program criteria are subject to change. Check your utility rebate application for terms and conditions, and effective program dates."]
[null,"Company","Model Number","Steamer\nType","Pan\nCapacity","Fuel\nType","Preheat\nEnergy\n(Btu or kWh)","Idle Energy\nRate\n(Btu/h or kW)","Energy\nEfficiency\n(%)","Production\nCapacity\n(lb/h)","Water\nUse\n(gph)","Measure Type"]
[null,"AccuTemp","E6********","Boilerless","6 pan","Electric",2,0.1,0.7,127,"< 3.0","Comm. Steam Cooker"]
[null,"AccuTemp","S3********","Boilerless","3 pan","Electric",1.6,0.2,0.6,71,"< 1.5","Comm. Steam Cooker"]
[null,"AccuTemp","S6********","Boilerless","6 pan","Electric",1.7,0.3,0.69,97,"< 1.5","Comm. Steam Cooker"]
[null,"American Cook Systems","SS","Boilerless","6 pan","Electric",1.65,0.36,0.69,132,"< 3","Comm. Steam Cooker"]
[null,"Blodgett","SBF-3","Boilerless","3 pan","Electric",1.1599999999999999,0.13,0.63,66,"< 3.0","Comm. Steam Cooker"]
[null,"Blodgett","SBF-5","Boilerless","5 pan","Electric",1.65,0.22,0.68,97,"< 3.0","Comm. Steam Cooker"]
[null,"Cleveland","1SCE","Boilerless","5 pan","Electric",1.54,0.33,0.71,84,"< 2.5","Comm. Steam Cooker"]
[null,"Cleveland","22CCT6","Boilerless","6 pan","Electric",1.82,0.67,0.7,112,3.6,"Comm. Steam Cooker"]
[null,"Cleveland","22CET3.1","Boilerless","3 pan","Electric",1.2,0.18,0.67,56,2.2999999999999998,"Comm. Steam Cooker"]
[null,"Cleveland","22CET6.1","Boilerless","6 pan","Electric",1.33,0.49,0.62,94,1.5,"Comm. Steam Cooker"]
[null,"Crown Food Service\nEquipment Ltd","EPX-3","Boilerless","3 pan","Electric",1.1599999999999999,0.13,0.63,66,"< 3.0","Comm. Steam Cooker"]
[null,"Crown Food Service\nEquipment Ltd","EPX-5","Boilerless","5 pan","Electric",1.65,0.22,0.68,97,"< 3.0","Comm. Steam Cooker"]
[null,"Hobart","HC24EO5","Boilerless","5 pan","Electric",2.1800000000000002,0.38,0.65,92,1.3,"Comm. Steam Cooker"]
[null,"Hobart","HPX3","Boilerless","3 pan","Electric",1.4,0.3,0.7,64,"< 2.5","Comm. Steam Cooker"]
[null,"Hobart","HPX5","Boilerless","5 pan","Electric",1.5,0.5,0.68,101,"< 2.5","Comm. Steam Cooker"]
[null,"Intek","XS-***-*-*","Boilerless","6 pan","Electric",1.6,0.16,0.74,110,"< 1.5","Comm. Steam Cooker"]
[null,"Intek","XS4","Boilerless","4 pan","Electric",1.9,0.3,0.56999999999999995,94,"<3","Comm. Steam Cooker"]
[null,"Market Forge","Altair II-10","Boilerless","10 pan","Electric",3.25,0.73,0.64,175,1.6,"Comm. Steam Cooker"]
[null,"Market Forge","Altair II-12","Boilerless","12 pan","Electric",3.54,0.8,0.62,209,2.1,"Comm. Steam Cooker"]
[null,"Market Forge","Altair II-4","Boilerless","4 pan","Electric",1.48,0.33,0.67,71,0.6,"Comm. Steam Cooker"]
[null,"Market Forge","Altair II-6","Boilerless","6 pan","Electric",1.77,0.4,0.62,104,1,"Comm. Steam Cooker"]
[null,"Market Forge","Altair II-8","Boilerless","8 pan","Electric",2.95,0.66,0.67,142,1.2,"Comm. Steam Cooker"]
[null,"Market Forge","ET-3E","Boilerless","3 pan","Electric",1.2,0.2,0.68,63,"< 2.0","Comm. Steam Cooker"]
[null,"Market Forge","ET-6E","Boilerless","6 pan","Electric","-",0.2,0.73,94,"< 2.0","Comm. Steam Cooker"]
[null,"Market Forge","ETP-10E","Steam Generator","10 pan","Electric",1.83,0.43,0.67,159,5.9,"Comm. Steam Cooker"]
[null,"Solaris/Crown Food Service Equipment","EPX-3","Boilerless","3 pan","Electric",1.1599999999999999,0.13,0.63,66,"< 3.0","Comm. Steam Cooker"]
[null,"Solaris/Crown Food Service Equipment","EPX-5","Boilerless","5 pan","Electric",1.65,0.22,0.68,97,"< 3.0","Comm. Steam Cooker"]
[null,"Southbend","EZ18-3","Boilerless","3 pan","Electric",1.04,0.12,0.61,65,0.6,"Comm. Steam Cooker"]
[null,"Southbend","EZ18-5","Boilerless","5 pan","Electric",1.19,0.19,0.7,117,1.1000000000000001,"Comm. Steam Cooker"]
[null,"Southbend","EZ24-3","Boilerless","3 pan","Electric",1.1599999999999999,0.13,0.63,66,"< 3.0","Comm. Steam Cooker"]
[null,"Southbend","EZ24-5","Boilerless","5 pan","Electric",1.65,0.22,0.68,97,"< 3.0","Comm. Steam Cooker"]
[null,"SteamTek","ST-208-6-A","Boilerless","6 pan","Electric",1.79,0.3,0.71,194,"< 1.5","Comm. Steam Cooker"]
[null,"SteamTek","ST-240-16-A","Boilerless","6 pan","Electric",1.78,0.34,0.73,229,"< 1.5","Comm. Steam Cooker"]
[null,"Stellar","Capella-4","Boilerless","4 pan","Electric",2,0.2,0.55000000000000004,78,"< 2.5","Comm. Steam Cooker"]
[null,"Sterling","SP208-14-3-MF","Boilerless","6 pan","Electric",1.66,0.28999999999999998,0.79,132,0.9,"Comm. Steam Cooker"]
[null,"Superior","C24EO5","Boilerless","5 pan","Electric",2.1800000000000002,0.38,0.65,92,1.3,"Comm. Steam Cooker"]
[null,"Unified Brands, Inc/Groen","VRC-3E","Boilerless","3 pan","Electric",2.42,0.11,0.68,60,"< 2.5","Comm. Steam Cooker"]
[null,"Unified Brands, Inc/Groen","VRC-6E","Boilerless","6 pan","Electric",2.2000000000000002,0.2,0.71,98,"< 2.5","Comm. Steam Cooker"]
[null,"Vulcan","C24EA3-LWE","Steam Generator","3 pan","Electric",0.99,0.14000000000000001,0.62,72,4.9000000000000004,"Comm. Steam Cooker"]
[null,"Vulcan","C24EA5-LWE","Steam Generator","5 pan","Electric",1.1000000000000001,0.17,0.63,112,6,"Comm. Steam Cooker"]
[null,"Vulcan","C24EO3AF","Boilerless","3 pan","Electric",1.08,0.23,0.6,65,1.6,"Comm. Steam Cooker"]
[null,"Vulcan","C24EO5","Boilerless","5 pan","Electric",2.1800000000000002,0.38,0.65,92,1.3,"Comm. Steam Cooker"]
[null,"Vulcan","C24EO5AF","Boilerless","5 pan","Electric",1.22,0.31,0.69,106,1.2,"Comm. Steam Cooker"]
[null,"Vulcan","C24ET10-LWE","Steam Generator","10 pan","Electric",2.0699999999999998,0.31,0.67,236,7.6,"Comm. Steam Cooker"]
[null,"Vulcan","C24ET6-LWE","Steam Generator","6 pan","Electric",1.97,0.3,0.59,142,4.7,"Comm. Steam Cooker"]
[null,"Vulcan","VPX-3","Boilerless","3 pan","Electric",1.4,0.33,0.7,64,"< 2.5","Comm. Steam Cooker"]
[null,"Vulcan","VPX-5","Boilerless","5 pan","Electric",1.5,0.51,0.68,101,"< 2.5","Comm. Steam Cooker"]

{"sheet":"Solid-Door Refrig","index":10,"n_rows":697,"n_cols":8,"rows_kept":697,"cut":false,"hidden":false,"merged":[]}
[null,"Qualified Solid Door Refrigerators",null,null,null,null,"Updated "," 12/15/2020"]
[null,"Qualifying models must meet ENERGY STAR® Version 4.0 specification and must be listed in the California Energy Commission database."]
[null,"Products on this list qualify for purchases from the date they are added until the date they are removed."]
[null,"NOTE: Program criteria are subject to change. Check your utility rebate application for terms and conditions, and effective program dates."]
[null,"Company","Model Number","Style Type","Total\nVolume\n(cu. ft.)","Daily\nEnergy Use\n(kWh)","Measure Type","Rebate \n(per unit)"]
[null,"ACCUCOLD","FFAR121SS*","Reach-in",8.83,1.1499999999999999,"Reach-in refrigerator, solid door, < 15 cu.ft.",50]
[null,"ACCUCOLD","FFAR12W*","Reach-in",8.83,1.1499999999999999,"Reach-in refrigerator, solid door, < 15 cu.ft.",50]
[null,"Accucold by Summit Appliance","CM411*","Undercounter",4.0999999999999996,1.02,"Reach-in refrigerator, solid door, < 15 cu.ft.",50]
[null,"Accucold by Summit Appliance","CM421*","Undercounter",4.0999999999999996,1.02,"Reach-in refrigerator, solid door, < 15 cu.ft.",50]
[null,"Accucold by Summit Appliance","FF28*","Other",2.4,1,"Reach-in refrigerator, solid door, < 15 cu.ft.",50]
[null,"Accucold by Summit Appliance","S19LWH*","Other",1.7,1,"Reach-in refrigerator, solid door, < 15 cu.ft.",50]
[null,"Arctic Air","R22CW","Reach-in",18.5,1.3,"Reach-in refrigerator, solid door, 15-29 cu.ft.",75]
[null,"Atosa","MBF8004","Reach-in",21.38,1.56,"Reach-in refrigerator, solid door, 15-29 cu.ft.",75]
[null,"Atosa","MBF8005","Reach-in",41.99,2.34,"Reach-in refrigerator, solid door, 30-49 cu.ft.",125]
[null,"Atosa","MBF8505","Reach-in",19.149999999999999,1.56,"Reach-in refrigerator, solid door, 15-29 cu.ft.",75]
[null,"Atosa","MBF8507","Reach-in",43.46,2.34,"Reach-in refrigerator, solid door, 30-49 cu.ft.",125]
[null,"Atosa","MGF8401","Undercounter",7.15,0.9,"Reach-in refrigerator, solid door, < 15 cu.ft.",50]
[null,"Atosa","MGF8404","Undercounter",21.13,1.69,"Reach-in refrigerator, solid door, 15-29 cu.ft.",75]
[null,"Atosa","MGF8408","Work-Top Table",7.15,0.9,"Reach-in refrigerator, solid door, < 15 cu.ft.",50]
[null,"Atosa","MGF8411","Work-Top Table",21.13,1.69,"Reach-in refrigerator, solid door, 15-29 cu.ft.",75]
[null,"Avantco Refrigeration","CFD-1RR","Reach-in",20.6,1.2,"Reach-in refrigerator, solid door, 15-29 cu.ft.",75]
[null,"Avantco Refrigeration","CFD-2RR","Reach-in",41.4,2,"Reach-in refrigerator, solid door, 30-49 cu.ft.",125]
[null,"Beverage-Air","HBR19HC-1*S*********","Reach-in",17.87,1.2,"Reach-in refrigerator, solid door, 15-29 cu.ft.",75]
[null,"Beverage-Air","HBR23HC****S*******","Reach-in",23.1,1.3,"Reach-in refrigerator, solid door, 15-29 cu.ft.",75]
[null,"Beverage-Air","HBR27HC-1******","Reach-in",25.88,1.4,"Reach-in refrigerator, solid door, 15-29 cu.ft.",75]
[null,"Beverage-Air","HBR35HC-1*S*********","Reach-in",35.4,1.68,"Reach-in refrigerator, solid door, 30-49 cu.ft.",125]
[null,"Beverage-Air","HBR44HC-1******","Reach-in",40.200000000000003,1.93,"Reach-in refrigerator, solid door, 30-49 cu.ft.",125]
[null,"Beverage-Air","HBR49HC-1******","Reach-in",46.15,2.14,"Reach-in refrigerator, solid door, 30-49 cu.ft.",125]
[null,"Beverage-Air","HBR72HC-1******","Reach-in",68.930000000000007,2.68,"Reach-in refrigerator, solid door, ≥50 cu.ft.",200]
[null,"Beverage-Air","HR1WHC-1HS****","Reach-in",30.76,2.06,"Reach-in refrigerator, solid door, 30-49 cu.ft.",125]
[null,"Beverage-Air","HR1WHC-1S****","Reach-in",30.76,2.06,"Reach-in refrigerator, solid door, 30-49 cu.ft.",125]
[null,"Beverage-Air","HR2HC-1HS****","Reach-in",45.2,2.57,"Reach-in refrigerator, solid door, 30-49 cu.ft.",125]
[null,"Beverage-Air","HR2HC-1S****","Reach-in",45.2,2.57,"Reach-in refrigerator, solid door, 30-49 cu.ft.",125]
[null,"Beverage-Air","HR3HC-1HS****","Reach-in",71.52,3.5,"Reach-in refrigerator, solid door, ≥50 cu.ft.",200]
[null,"Beverage-Air","HR3HC-1S****","Reach-in",71.52,3.5,"Reach-in refrigerator, solid door, ≥50 cu.ft.",200]
[null,"Beverage-Air","HRP1WHC-1HS****","Reach-in",30.76,2.06,"Reach-in refrigerator, solid door, 30-49 cu.ft.",125]
[null,"Beverage-Air","HRP1WHC-1S****","Reach-in",30.76,2.06,"Reach-in refrigerator, solid door, 30-49 cu.ft.",125]
[null,"Beverage-Air","HRP2HC-1HS****","Reach-in",45.2,2.57,"Reach-in refrigerator, solid door, 30-49 cu.ft.",125]
[null,"Beverage-Air","HRP2HC-1S****","Reach-in",45.2,2.57,"Reach-in refrigerator, solid door, 30-49 cu.ft.",125]
[null,"Beverage-Air","HRP3HC-1HS****","Reach-in",71.52,3.5,"Reach-in refrigerator, solid door, ≥50 cu.ft.",200]
[null,"Beverage-Air","HRP3HC-1S****","Reach-in",71.52,3.5,"Reach-in refrigerator, solid door, ≥50 cu.ft.",200]
[null,"Beverage-Air","HRPS1WHC-1HS****","Reach-in",30.76,2.06,"Reach-in refrigerator, solid door, 30-49 cu.ft.",125]
[null,"Beverage-Air","HRPS1WHC-1S****","Reach-in",30.76,2.06,"Reach-in refrigerator, solid door, 30-49 cu.ft.",125]
[null,"Beverage-Air","HRPS2HC-1HS****","Reach-in",45.2,2.57,"Reach-in refrigerator, solid door, 30-49 cu.ft.",125]
[null,"Beverage-Air","HRPS2HC-1S****","Reach-in",45.2,2.57,"Reach-in refrigerator, solid door, 30-49 cu.ft.",125]
[null,"Beverage-Air","HRPS3HC-1HS****","Reach-in",71.52,3.5,"Reach-in refrigerator, solid door, ≥50 cu.ft.",200]
[null,"Beverage-Air","HRPS3HC-1S****","Reach-in",71.52,3.5,"Reach-in refrigerator, solid door, ≥50 cu.ft.",200]
[null,"Beverage-Air","HRS1WHC-1HS****","Reach-in",30.76,2.06,"Reach-in refrigerator, solid door, 30-49 cu.ft.",125]
[null,"Beverage-Air","HRS1WHC-1S****","Reach-in",30.76,2.06,"Reach-in refrigerator, solid door, 30-49 cu.ft.",125]
[null,"Beverage-Air","HRS2HC-1HS****","Reach-in",45.2,2.57,"Reach-in refrigerator, solid door, 30-49 cu.ft.",125]
[null,"Beverage-Air","HRS2HC-1S****","Reach-in",45.2,2.57,"Reach-in refrigerator, solid door, 30-49 cu.ft.",125]
[null,"Beverage-Air","HRS3HC-1HS****","Reach-in",71.52,3.5,"Reach-in refrigerator, solid door, ≥50 cu.ft.",200]
[null,"Beverage-Air","HRS3HC-1S****","Reach-in",71.52,3.5,"Reach-in refrigerator, solid door, ≥50 cu.ft.",200]
[null,"Beverage-Air","RB19HC-1*S*********","Reach-in",17.87,1.2,"Reach-in refrigerator, solid door, 15-29 cu.ft.",75]
[null,"Beverage-Air","RB23HC-1**S*******","Reach-in",23.1,1.3,"Reach-in refrigerator, solid door, 15-29 cu.ft.",75]
[null,"Beverage-Air","RB27HC-1*****","Reach-in",25.88,1.4,"Reach-in refrigerator, solid door, 15-29 cu.ft.",75]
[null,"Beverage-Air","RB35HC-1*S*********","Reach-in",35.4,1.68,"Reach-in refrigerator, solid door, 30-49 cu.ft.",125]
[null,"Beverage-Air","RB44HC-1*****","Reach-in",40.200000000000003,1.93,"Reach-in refrigerator, solid door, 30-49 cu.ft.",125]
[null,"Beverage-Air","RB49HC-1*****","Reach-in",46.15,2.14,"Reach-in refrigerator, solid door, 30-49 cu.ft.",125]
[null,"Beverage-Air","RB72HC-1*****","Reach-in",68.930000000000007,2.68,"Reach-in refrigerator, solid door, ≥50 cu.ft.",200]
[null,"Beverage-Air","SM49HC-*****","Milk or Beverage Cabinet",20.32,1.19,"Reach-in refrigerator, solid door, 15-29 cu.ft.",75]
[null,"Beverage-Air","SM58HC-*****","Milk or Beverage Cabinet",22.63,1.29,"Reach-in refrigerator, solid door, 15-29 cu.ft.",75]
[null,"Beverage-Air","UCR119AHC-******","Undercounter",40.119999999999997,2.69,"Reach-in refrigerator, solid door, 30-49 cu.ft.",125]
[null,"Beverage-Air","UCR20HC-************","Undercounter",2.25,0.67,"Reach-in refrigerator, solid door, < 15 cu.ft.",50]
[null,"Beverage-Air","UCR24AHC-******","Undercounter",5.16,0.99,"Reach-in refrigerator, solid door, < 15 cu.ft.",50]
[null,"Beverage-Air","UCR24HC-******","Undercounter",4.4800000000000004,1.01,"Reach-in refrigerator, solid door, < 15 cu.ft.",50]
[null,"Beverage-Air","UCR27AHC-***********","Undercounter",6.13,1.08,"Reach-in refrigerator, solid door, < 15 cu.ft.",50]
[null,"Beverage-Air","UCR27HC-*********","Undercounter",5.25,1,"Reach-in refrigerator, solid door, < 15 cu.ft.",50]
[null,"Beverage-Air","UCR32AHC-***********","Undercounter",7.22,0.95,"Reach-in refrigerator, solid door, < 15 cu.ft.",50]
[null,"Beverage-Air","UCR34HC-*************","Undercounter",5.96,1.08,"Reach-in refrigerator, solid door, < 15 cu.ft.",50]
[null,"Beverage-Air","UCR36AHC*********","Undercounter",8.5,1.08,"Reach-in refrigerator, solid door, < 15 cu.ft.",50]
[null,"Beverage-Air","UCR41AHC*********","Undercounter",7.94,1.02,"Reach-in refrigerator, solid door, < 15 cu.ft.",50]
[null,"Beverage-Air","UCRD119AHC-******","Undercounter",40.119999999999997,2.69,"Reach-in refrigerator, solid door, 30-49 cu.ft.",125]
[null,"Beverage-Air","UCRD27AHC-***********","Undercounter",6.13,1.08,"Reach-in refrigerator, solid door, < 15 cu.ft.",50]
[null,"Beverage-Air","UCRD32AHC-***********","Undercounter",7.22,0.95,"Reach-in refrigerator, solid door, < 15 cu.ft.",50]
[null,"Beverage-Air","WTR119AHC-******","Work-Top Table",40.119999999999997,2.69,"Reach-in refrigerator, solid door, 30-49 cu.ft.",125]
[null,"Beverage-Air","WTR20HC-************","Work-Top Table",2.25,0.67,"Reach-in refrigerator, solid door, < 15 cu.ft.",50]
[null,"Beverage-Air","WTR24AHC-******","Work-Top Table",5.16,0.99,"Reach-in refrigerator, solid door, < 15 cu.ft.",50]
[null,"Beverage-Air","WTR24HC-******","Work-Top Table",4.4800000000000004,1.01,"Reach-in refrigerator, solid door, < 15 cu.ft.",50]
[null,"Beverage-Air","WTR27AHC-***********","Work-Top Table",6.13,1.08,"Reach-in refrigerator, solid door, < 15 cu.ft.",50]
[null,"Beverage-Air","WTR27HC-*********","Work-Top Table",5.25,1,"Reach-in refrigerator, solid door, < 15 cu.ft.",50]
[null,"Beverage-Air","WTR32AHC-***********","Work-Top Table",7.22,0.95,"Reach-in refrigerator, solid door, < 15 cu.ft.",50]
[null,"Beverage-Air","WTR34HC-*************","Work-Top Table",5.96,1.08,"Reach-in refrigerator, solid door, < 15 cu.ft.",50]
[null,"Beverage-Air","WTR36AHC*********","Work-Top Table",8.5,1.1000000000000001,"Reach-in refrigerator, solid door, < 15 cu.ft.",50]
[null,"Beverage-Air","WTR41AHC*********","Work-Top Table",7.94,1.02,"Reach-in refrigerator, solid door, < 15 cu.ft.",50]
[null,"Beverage-Air","WTRD119AHC-******","Work-Top Table",40.119999999999997,2.69,"Reach-in refrigerator, solid door, 30-49 cu.ft.",125]
[null,"Beverage-Air","WTRD27AHC-***********","Work-Top Table",6.13,1.08,"Reach-in refrigerator, solid door, < 15 cu.ft.",50]
[null,"Beverage-Air","WTRD32AHC-***********","Work-Top Table",7.22,0.95,"Reach-in refrigerator, solid door, < 15 cu.ft.",50]
[null,"Continental Refrigerator","1REN","Reach-in",21.38,1.4,"Reach-in refrigerator, solid door, 15-29 cu.ft.",75]
[null,"Continental Refrigerator","1RENHD","Reach-in",21.11,1.46,"Reach-in refrigerator, solid door, 15-29 cu.ft.",75]
[null,"Continental Refrigerator","1RENPT","Pass-Through",23.79,1.86,"Reach-in refrigerator, solid door, 15-29 cu.ft.",75]
[null,"Continental Refrigerator","1RESN","Reach-in",18.79,1.27,"Reach-in refrigerator, solid door, 15-29 cu.ft.",75]
[null,"Continental Refrigerator","1RESNHD","Reach-in",18.52,1.49,"Reach-in refrigerator, solid door, 15-29 cu.ft.",75]
[null,"Continental Refrigerator","1RN","Reach-in",18.97,1.28,"Reach-in refrigerator, solid door, 15-29 cu.ft.",75]
[null,"Continental Refrigerator","1RNHD","Reach-in",18.559999999999999,1.43,"Reach-in refrigerator, solid door, 15-29 cu.ft.",75]
[null,"Continental Refrigerator","1RNPT","Pass-Through",22.03,1.54,"Reach-in refrigerator, solid door, 15-29 cu.ft.",75]
[null,"Continental Refrigerator","1RNPTHD","Pass-Through",21.49,1.61,"Reach-in refrigerator, solid door, 15-29 cu.ft.",75]
[null,"Continental Refrigerator","1RSEN","Reach-in",13.83,1.23,"Reach-in refrigerator, solid door, < 15 cu.ft.",50]
[null,"Continental Refrigerator","1RSENHD","Reach-in",13.63,1.26,"Reach-in refrigerator, solid door, < 15 cu.ft.",50]
[null,"Continental Refrigerator","1RSN","Reach-in",14.65,1.28,"Reach-in refrigerator, solid door, < 15 cu.ft.",50]
[null,"Continental Refrigerator","1RXN","Reach-in",28.66,1.71,"Reach-in refrigerator, solid door, 15-29 cu.ft.",75]
[null,"Continental Refrigerator","1RXNHD","Reach-in",28.36,1.74,"Reach-in refrigerator, solid door, 15-29 cu.ft.",75]
[null,"Continental Refrigerator","1RXNPT","Pass-Through",33.159999999999997,1.9,"Reach-in refrigerator, solid door, 30-49 cu.ft.",125]
[null,"Continental Refrigerator","1RXNPTHD","Pass-Through",32.700000000000003,1.96,"Reach-in refrigerator, solid door, 30-49 cu.ft.",125]
[null,"Continental Refrigerator","1RXSN","Reach-in",22.63,1.5,"Reach-in refrigerator, solid door, 15-29 cu.ft.",75]
[null,"Continental Refrigerator","2REN","Reach-in",48.64,2.06,"Reach-in refrigerator, solid door, 30-49 cu.ft.",125]
[null,"Continental Refrigerator","2RENHD","Reach-in",48.33,2.25,"Reach-in refrigerator, solid door, 30-49 cu.ft.",125]
[null,"Continental Refrigerator","2RENPT","Pass-Through",53.34,2.7,"Reach-in refrigerator, solid door, ≥50 cu.ft.",200]
[null,"Continental Refrigerator","2RENPTHD","Pass-Through",53,2.88,"Reach-in refrigerator, solid door, ≥50 cu.ft.",200]
[null,"Continental Refrigerator","2RESN","Reach-in",40.75,2.11,"Reach-in refrigerator, solid door, 30-49 cu.ft.",125]
[null,"Continental Refrigerator","2RESNHD","Reach-in",40.42,2.2200000000000002,"Reach-in refrigerator, solid door, 30-49 cu.ft.",125]
[null,"Continental Refrigerator","2RN","Reach-in",43.45,2.13,"Reach-in refrigerator, solid door, 30-49 cu.ft.",125]
[null,"Continental Refrigerator","2RNHD","Reach-in",43.03,2.15,"Reach-in refrigerator, solid door, 30-49 cu.ft.",125]
[null,"Continental Refrigerator","2RNPT","Pass-Through",47.2,2.46,"Reach-in refrigerator, solid door, 30-49 cu.ft.",125]
[null,"Continental Refrigerator","2RNPTHD","Pass-Through",46.3,2.58,"Reach-in refrigerator, solid door, 30-49 cu.ft.",125]
[null,"Continental Refrigerator","2RSEN","Reach-in",28.38,1.86,"Reach-in refrigerator, solid door, 15-29 cu.ft.",75]
[null,"Continental Refrigerator","2RSENHD","Reach-in",28.04,1.98,"Reach-in refrigerator, solid door, 15-29 cu.ft.",75]
[null,"Continental Refrigerator","2RSESN","Reach-in",24.44,1.83,"Reach-in refrigerator, solid door, 15-29 cu.ft.",75]
[null,"Continental Refrigerator","2RSESNHD","Reach-in",24.18,1.9,"Reach-in refrigerator, solid door, 15-29 cu.ft.",75]
[null,"Continental Refrigerator","2RSN","Reach-in",36.450000000000003,1.88,"Reach-in refrigerator, solid door, 30-49 cu.ft.",125]
[null,"Continental Refrigerator","2RSNHD","Reach-in",36.020000000000003,1.96,"Reach-in refrigerator, solid door, 30-49 cu.ft.",125]
[null,"Continental Refrigerator","3REN","Reach-in",77,3.04,"Reach-in refrigerator, solid door, ≥50 cu.ft.",200]
[null,"Continental Refrigerator","3RENHD","Reach-in",75.7,3.13,"Reach-in refrigerator, solid door, ≥50 cu.ft.",200]
[null,"Continental Refrigerator","3RENPT","Pass-Through",84,3.61,"Reach-in refrigerator, solid door, ≥50 cu.ft.",200]
[null,"Continental Refrigerator","3RENPTHD","Pass-Through",82.3,3.86,"Reach-in refrigerator, solid door, ≥50 cu.ft.",200]
[null,"Continental Refrigerator","3RN","Reach-in",68.400000000000006,2.98,"Reach-in refrigerator, solid door, ≥50 cu.ft.",200]
[null,"Continental Refrigerator","3RNHD","Reach-in",67.599999999999994,3.1,"Reach-in refrigerator, solid door, ≥50 cu.ft.",200]
[null,"Continental Refrigerator","3RNPT","Pass-Through",75.7,3.37,"Reach-in refrigerator, solid door, ≥50 cu.ft.",200]
[null,"Continental Refrigerator","3RNPTHD","Pass-Through",74,3.6,"Reach-in refrigerator, solid door, ≥50 cu.ft.",200]
[null,"Continental Refrigerator","3RSN","Reach-in",55.6,2.97,"Reach-in refrigerator, solid door, ≥50 cu.ft.",200]
[null,"Continental Refrigerator","3RSNHD","Reach-in",54.8,3.09,"Reach-in refrigerator, solid door, ≥50 cu.ft.",200]
[null,"Continental Refrigerator","BB79N","Milk or Beverage Cabinet",25.88,1.55,"Reach-in refrigerator, solid door, 15-29 cu.ft.",75]
[null,"Continental Refrigerator","D1REN","Reach-in",21.8,1.54,"Reach-in refrigerator, solid door, 15-29 cu.ft.",75]
[null,"Continental Refrigerator","D1RENHD","Reach-in",21.51,1.66,"Reach-in refrigerator, solid door, 15-29 cu.ft.",75]
[null,"Continental Refrigerator","D1RENPT","Pass-Through",23.79,1.86,"Reach-in refrigerator, solid door, 15-29 cu.ft.",75]
[null,"Continental Refrigerator","D1RENPTHD","Reach-in",23.96,1.88,"Reach-in refrigerator, solid door, 15-29 cu.ft.",75]
[null,"Continental Refrigerator","D1RESN","Reach-in",19.190000000000001,1.36,"Reach-in refrigerator, solid door, 15-29 cu.ft.",75]
[null,"Continental Refrigerator","D1RESNHD","Reach-in",18.920000000000002,1.41,"Reach-in refrigerator, solid door, 15-29 cu.ft.",75]
[null,"Continental Refrigerator","D1RIN","Reach-in",32,2.08,"Reach-in refrigerator, solid door, 30-49 cu.ft.",125]
[null,"Continental Refrigerator","D1RINE","Reach-in",34.5,2.1800000000000002,"Reach-in refrigerator, solid door, 30-49 cu.ft.",125]
[null,"Continental Refrigerator","D1RINRT","Reach-in",34.200000000000003,2.33,"Reach-in refrigerator, solid door, 30-49 cu.ft.",125]
[null,"Continental Refrigerator","D1RINRTE","Reach-in",37.299999999999997,2.41,"Reach-in refrigerator, solid door, 30-49 cu.ft.",125]
[null,"Continental Refrigerator","D1RN","Reach-in",19.3,1.39,"Reach-in refrigerator, solid door, 15-29 cu.ft.",75]
[null,"Continental Refrigerator","D1RNHD","Reach-in",19.25,1.42,"Reach-in refrigerator, solid door, 15-29 cu.ft.",75]
[null,"Continental Refrigerator","D1RNPT","Pass-Through",22.03,1.54,"Reach-in refrigerator, solid door, 15-29 cu.ft.",75]
[null,"Continental Refrigerator","D1RNPTHD","Pass-Through",21.49,1.61,"Reach-in refrigerator, solid door, 15-29 cu.ft.",75]
[null,"Continental Refrigerator","D1RSEN","Reach-in",13.83,1.22,"Reach-in refrigerator, solid door, < 15 cu.ft.",50]
[null,"Continental Refrigerator","D1RSENHD","Reach-in",13.63,1.24,"Reach-in refrigerator, solid door, < 15 cu.ft.",50]
[null,"Continental Refrigerator","D1RSESN","Reach-in",11.32,1.2,"Reach-in refrigerator, solid door, < 15 cu.ft.",50]
[null,"Continental Refrigerator","D1RSESNHD","Reach-in",11.12,1.2,"Reach-in refrigerator, solid door, < 15 cu.ft.",50]
[null,"Continental Refrigerator","D1RSN","Reach-in",15.16,1.26,"Reach-in refrigerator, solid door, 15-29 cu.ft.",75]
[null,"Continental Refrigerator","D1RXN","Reach-in",29.17,1.75,"Reach-in refrigerator, solid door, 15-29 cu.ft.",75]
[null,"Continental Refrigerator","D1RXNHD","Reach-in",28.87,1.8,"Reach-in refrigerator, solid door, 15-29 cu.ft.",75]
[null,"Continental Refrigerator","D1RXNPT","Pass-Through",33.159999999999997,1.9,"Reach-in refrigerator, solid door, 30-49 cu.ft.",125]
[null,"Continental Refrigerator","D1RXNPTHD","Pass-Through",32.700000000000003,1.96,"Reach-in refrigerator, solid door, 30-49 cu.ft.",125]
[null,"Continental Refrigerator","D1RXSN","Reach-in",22.36,1.43,"Reach-in refrigerator, solid door, 15-29 cu.ft.",75]
[null,"Continental Refrigerator","D1RXSNHD","Reach-in",22.06,1.47,"Reach-in refrigerator, solid door, 15-29 cu.ft.",75]
[null,"Continental Refrigerator","D2REN","Reach-in",49.1,2.42,"Reach-in refrigerator, solid door, 30-49 cu.ft.",125]
[null,"Continental Refrigerator","D2RENHD","Reach-in",48.7,2.5099999999999998,"Reach-in refrigerator, solid door, 30-49 cu.ft.",125]
[null,"Continental Refrigerator","D2RENPT","Pass-Through",53.34,2.7,"Reach-in refrigerator, solid door, ≥50 cu.ft.",200]
[null,"Continental Refrigerator","D2RENPTHD","Pass-Through",53.8,2.88,"Reach-in refrigerator, solid door, ≥50 cu.ft.",200]
[null,"Continental Refrigerator","D2RESN","Reach-in",41.1,2.14,"Reach-in refrigerator, solid door, 30-49 cu.ft.",125]
[null,"Continental Refrigerator","D2RESNHD","Reach-in",40.700000000000003,2.23,"Reach-in refrigerator, solid door, 30-49 cu.ft.",125]
[null,"Continental Refrigerator","D2RIN","Reach-in",62.94,3.22,"Reach-in refrigerator, solid door, ≥50 cu.ft.",200]
[null,"Continental Refrigerator","D2RINE","Reach-in",69.040000000000006,3.44,"Reach-in refrigerator, solid door, ≥50 cu.ft.",200]
[null,"Continental Refrigerator","D2RN","Reach-in",44.1,2.16,"Reach-in refrigerator, solid door, 30-49 cu.ft.",125]
[null,"Continental Refrigerator","D2RNHD","Reach-in",43.7,2.23,"Reach-in refrigerator, solid door, 30-49 cu.ft.",125]
[null,"Continental Refrigerator","D2RNPT","Pass-Through",47.2,2.61,"Reach-in refrigerator, solid door, 30-49 cu.ft.",125]
[null,"Continental Refrigerator","D2RNPTHD","Pass-Through",46.3,2.7,"Reach-in refrigerator, solid door, 30-49 cu.ft.",125]
[null,"Continental Refrigerator","D2RSEN","Reach-in",28.6,1.99,"Reach-in refrigerator, solid door, 15-29 cu.ft.",75]
[null,"Continental Refrigerator","D2RSESN","Reach-in",24.4,1.82,"Reach-in refrigerator, solid door, 15-29 cu.ft.",75]
[null,"Continental Refrigerator","D2RSN","Reach-in",37.1,2.0499999999999998,"Reach-in refrigerator, solid door, 30-49 cu.ft.",125]
[null,"Continental Refrigerator","D2RSNHD","Reach-in",36.700000000000003,2.08,"Reach-in refrigerator, solid door, 30-49 cu.ft.",125]
[null,"Continental Refrigerator","KC79N","Milk or Beverage Cabinet",25.88,1.55,"Reach-in refrigerator, solid door, 15-29 cu.ft.",75]
[null,"Continental Refrigerator","MC5NSCW","Milk or Beverage Cabinet",23.6,1.36,"Reach-in refrigerator, solid door, 15-29 cu.ft.",75]
[null,"Continental Refrigerator","RA118N","Reach-in",43,1.91,"Reach-in refrigerator, solid door, 30-49 cu.ft.",125]
[null,"Continental Refrigerator","RA43N","Reach-in",12.2,1.05,"Reach-in refrigerator, solid door, < 15 cu.ft.",50]
[null,"Continental Refrigerator","RA60N","Reach-in",19.2,1.4,"Reach-in refrigerator, solid door, 15-29 cu.ft.",75]
[null,"Continental Refrigerator","RA68N","Reach-in",22.9,1.53,"Reach-in refrigerator, solid door, 15-29 cu.ft.",75]
[null,"Continental Refrigerator","RA93N","Reach-in",33.299999999999997,1.91,"Reach-in refrigerator, solid door, 30-49 cu.ft.",125]
[null,"Continental Refrigerator","SW27N","Work-Top Table",6.66,0.86,"Reach-in refrigerator, solid door, < 15 cu.ft.",50]
[null,"Continental Refrigerator","SW32N","Work-Top Table",7.76,0.9,"Reach-in refrigerator, solid door, < 15 cu.ft.",50]
[null,"Continental Refrigerator","SW36N","Work-Top Table",8.27,0.91,"Reach-in refrigerator, solid door, < 15 cu.ft.",50]
[null,"Continental Refrigerator","SW48N","Work-Top Table",11.6,0.97,"Reach-in refrigerator, solid door, < 15 cu.ft.",50]
[null,"Continental Refrigerator","SW60N","Work-Top Table",14.5,1.04,"Reach-in refrigerator, solid door, < 15 cu.ft.",50]
[null,"Continental Refrigerator","SW72N","Work-Top Table",18.5,1.24,"Reach-in refrigerator, solid door, 15-29 cu.ft.",75]
[null,"Delfield","CSR2NP-S","Reach-in",39.76,2.08,"Reach-in refrigerator, solid door, 30-49 cu.ft.",125]
[null,"Delfield","CSR2NP-SH","Reach-in",39.53,2.09,"Reach-in refrigerator, solid door, 30-49 cu.ft.",125]
[null,"Delfield","CSRPT2P-S","Pass-Through",49.93,3.03,"Reach-in refrigerator, solid door, 30-49 cu.ft.",125]
[null,"Delfield","CSRPT2P-SH","Pass-Through",49.38,2.48,"Reach-in refrigerator, solid door, 30-49 cu.ft.",125]
[null,"Delfield","CSRRI1P-S","Reach-in",37.659999999999997,2.27,"Reach-in refrigerator, solid door, 30-49 cu.ft.",125]
[null,"Delfield","CSRRT1P-S","Roll-Through",39,2.4900000000000002,"Reach-in refrigerator, solid door, 30-49 cu.ft.",125]
[null,"Delfield","GCR2P-SH","Reach-in",45.58,2.48,"Reach-in refrigerator, solid door, 30-49 cu.ft.",125]
[null,"Delfield","GCR3P-SH","Reach-in",70.81,3.52,"Reach-in refrigerator, solid door, ≥50 cu.ft.",200]
[null,"Delfield","KCM-74","Milk or Beverage Cabinet",15.66,0.98,"Reach-in refrigerator, solid door, 15-29 cu.ft.",75]
[null,"Delfield","SCM-74","Milk or Beverage Cabinet",15.66,0.98,"Reach-in refrigerator, solid door, 15-29 cu.ft.",75]
[null,"Dowell","R-60","Wedge Case",2.12,0.66,"Reach-in refrigerator, solid door, < 15 cu.ft.",50]
[null,"Dukers","D28R","Reach-in",18.07,1.4,"Reach-in refrigerator, solid door, 15-29 cu.ft.",75]
[null,"Dukers","D55AR","Reach-in",41.73,1.54,"Reach-in refrigerator, solid door, 30-49 cu.ft.",125]
[null,"Dukers","D55R","Reach-in",41.07,2.59,"Reach-in refrigerator, solid door, 30-49 cu.ft.",125]
[null,"Dukers","D83R","Reach-in",65.11,2.34,"Reach-in refrigerator, solid door, ≥50 cu.ft.",200]
[null,"Dukers","DUC29R","Undercounter",7.55,0.87,"Reach-in refrigerator, solid door, < 15 cu.ft.",50]
[null,"Dukers","DUC48R","Undercounter",13.11,0.93,"Reach-in refrigerator, solid door, < 15 cu.ft.",50]
[null,"Dukers","DUC60R","Undercounter",16.690000000000001,0.86,"Reach-in refrigerator, solid door, 15-29 cu.ft.",75]
[null,"Dukers","DUC72R","Undercounter",20.21,1.08,"Reach-in refrigerator, solid door, 15-29 cu.ft.",75]
[null,"Everest Refrigeration","EBB48-24","Reach-in",12.71,1.03,"Reach-in refrigerator, solid door, < 15 cu.ft.",50]
[null,"Everest Refrigeration","EBC50","Reach-in",10.84,0.74,"Reach-in refrigerator, solid door, < 15 cu.ft.",50]
[null,"Everest Refrigeration","EBR1","Reach-in",21.1,1.66,"Reach-in refrigerator, solid door, 15-29 cu.ft.",75]
[null,"Everest Refrigeration","EBSR2","Reach-in",40.03,2.41,"Reach-in refrigerator, solid door, 30-49 cu.ft.",125]
[null,"Everest Refrigeration","ECB52-60D2","Reach-in",10.06,1,"Reach-in refrigerator, solid door, < 15 cu.ft.",50]
[null,"Everest Refrigeration","ESR1","Reach-in",21.24,1.37,"Reach-in refrigerator, solid door, 15-29 cu.ft.",75]
[null,"Everest Refrigeration","ESR2","Reach-in",36.450000000000003,2.52,"Reach-in refrigerator, solid door, 30-49 cu.ft.",125]
[null,"Everest Refrigeration","ETBR1","Undercounter",7.47,0.54,"Reach-in refrigerator, solid door, < 15 cu.ft.",50]
[null,"Everest Refrigeration","ETBR1-LH","Undercounter",7.47,0.54,"Reach-in refrigerator, solid door, < 15 cu.ft.",50]
[null,"Everest Refrigeration","ETBR2","Undercounter",13.7,1.1100000000000001,"Reach-in refrigerator, solid door, < 15 cu.ft.",50]
[null,"Excellence","DBC20S","Reach-in",19.7,1.23,"Reach-in refrigerator, solid door, 15-29 cu.ft.",75]
[null,"Fogel","HR15A","Reach-in",2.5499999999999998,0.76,"Reach-in refrigerator, solid door, < 15 cu.ft.",50]
[null,"Fogel","MTR-27","Undercounter",6.33,0.86,"Reach-in refrigerator, solid door, < 15 cu.ft.",50]
[null,"Fogel","MTR-48","Undercounter",12.09,1.22,"Reach-in refrigerator, solid door, < 15 cu.ft.",50]
[null,"Fresh Town Co Ltd","FBB-59B","Undercounter",18.559999999999999,1.43,"Reach-in refrigerator, solid door, 15-29 cu.ft.",75]
[null,"Fresh Town Co Ltd","FBB-59S","Undercounter",18.559999999999999,1.43,"Reach-in refrigerator, solid door, 15-29 cu.ft.",75]
[null,"Fresh Town Co Ltd","FBB-90B","Undercounter",30.47,2.16,"Reach-in refrigerator, solid door, 30-49 cu.ft.",125]
[null,"Fresh Town Co Ltd","FBB-90S","Undercounter",30.47,2.16,"Reach-in refrigerator, solid door, 30-49 cu.ft.",125]
[null,"Fresh Town Co Ltd","FBB-95B","Undercounter",32.4,2.31,"Reach-in refrigerator, solid door, 30-49 cu.ft.",125]
[null,"Fresh Town Co Ltd","FBC-95B","Undercounter",28.31,1.68,"Reach-in refrigerator, solid door, 15-29 cu.ft.",75]
[null,"Fresh Town Co Ltd","FBD-59B","Undercounter",18.559999999999999,1.43,"Reach-in refrigerator, solid door, 15-29 cu.ft.",75]
[null,"Fresh Town Co Ltd","FBD-59S","Undercounter",18.559999999999999,1.43,"Reach-in refrigerator, solid door, 15-29 cu.ft.",75]
[null,"Fresh Town Co Ltd","FBD-90B","Undercounter",30.47,2.16,"Reach-in refrigerator, solid door, 30-49 cu.ft.",125]
[null,"Fresh Town Co Ltd","FBD-90S","Undercounter",30.47,2.16,"Reach-in refrigerator, solid door, 30-49 cu.ft.",125]
[null,"Fresh Town Co Ltd","FBD-95B","Undercounter",32.4,2.31,"Reach-in refrigerator, solid door, 30-49 cu.ft.",125]
[null,"Fresh Town Co Ltd","FBD-95S","Undercounter",32.4,2.31,"Reach-in refrigerator, solid door, 30-49 cu.ft.",125]
[null,"Fresh Town Co Ltd","FRB-23RS","Reach-in",18.22,1.25,"Reach-in refrigerator, solid door, 15-29 cu.ft.",75]
[null,"Fresh Town Co Ltd","FRB-49RS","Reach-in",40.93,2.14,"Reach-in refrigerator, solid door, 30-49 cu.ft.",125]
[null,"Fresh Town Co Ltd","FRB-72RS","Reach-in",63.75,3.32,"Reach-in refrigerator, solid door, ≥50 cu.ft.",200]
[null,"Frigidaire","FCRS181RQB*","Reach-in",17.89,1.21,"Reach-in refrigerator, solid door, 15-29 cu.ft.",75]
[null,"Frigidaire","FCRS181RQBA","Reach-in",17.89,1.45,"Reach-in refrigerator, solid door, 15-29 cu.ft.",75]
[null,"Frigidaire","FCRS20****","Reach-in",19.399999999999999,1.32,"Reach-in refrigerator, solid door, 15-29 cu.ft.",75]
[null,"FWE","PTST-0911-56-1520-16HR","Reach-in",23.6,1.41,"Reach-in refrigerator, solid door, 15-29 cu.ft.",75]
[null,"FWE","R-30","Reach-in",17.2,1.27,"Reach-in refrigerator, solid door, 15-29 cu.ft.",75]
[null,"FWE","RBQ-96","Reach-in",29.14,1.41,"Reach-in refrigerator, solid door, 15-29 cu.ft.",75]
[null,"FWE","SR-30","Reach-in",17.2,1.27,"Reach-in refrigerator, solid door, 15-29 cu.ft.",75]
[null,"FWE","UHRS-10","Reach-in",19.010000000000002,1.27,"Reach-in refrigerator, solid door, 15-29 cu.ft.",75]
[null,"FWE","URS-10","Reach-in",19.71,1.27,"Reach-in refrigerator, solid door, 15-29 cu.ft.",75]
[null,"FWE","URS-10D","Reach-in",19.71,1.27,"Reach-in refrigerator, solid door, 15-29 cu.ft.",75]
[null,"FWE","URS-10P","Reach-in",19.71,1.27,"Reach-in refrigerator, solid door, 15-29 cu.ft.",75]
[null,"Gibson","GCBM18RQW*","Reach-in",17.89,1.21,"Reach-in refrigerator, solid door, 15-29 cu.ft.",75]
[null,"Gibson","RR18R*","Reach-in",18,1.32,"Reach-in refrigerator, solid door, 15-29 cu.ft.",75]
[null,"Hoshizaki","CR1S-FS*","Reach-in",20.9,1.55,"Reach-in refrigerator, solid door, 15-29 cu.ft.",75]
[null,"Hoshizaki","CR1S-FS**","Reach-in",20.9,1.55,"Reach-in refrigerator, solid door, 15-29 cu.ft.",75]
[null,"Hoshizaki","CR2S-FS*","Reach-in",47.2,2.48,"Reach-in refrigerator, solid door, 30-49 cu.ft.",125]
[null,"Hoshizaki","CR2S-FS*","Reach-in",47.2,2.48,"Reach-in refrigerator, solid door, 30-49 cu.ft.",125]
[null,"Hoshizaki","CR2S-HS","Reach-in",47,2.2999999999999998,"Reach-in refrigerator, solid door, 30-49 cu.ft.",125]
[null,"Hoshizaki","CRMR27-***","Undercounter",6.22,0.64,"Reach-in refrigerator, solid door, < 15 cu.ft.",50]
[null,"Hoshizaki","CRMR36-***","Undercounter",8.6999999999999993,0.81,"Reach-in refrigerator, solid door, < 15 cu.ft.",50]
[null,"Hoshizaki","CRMR72-***","Undercounter",19.68,1.53,"Reach-in refrigerator, solid door, 15-29 cu.ft.",75]
[null,"Hoshizaki","HR24A","Undercounter",3.7,0.38,"Reach-in refrigerator, solid door, < 15 cu.ft.",50]
[null,"Hoshizaki","HR24B","Undercounter",3.7,0.51,"Reach-in refrigerator, solid door, < 15 cu.ft.",50]
[null,"Hoshizaki","PT1A-FS-FS","Pass-Through",24.2,1.31,"Reach-in refrigerator, solid door, 15-29 cu.ft.",75]
[null,"Hoshizaki","PT1A-HS-HS","Pass-Through",24.2,1.31,"Reach-in refrigerator, solid door, 15-29 cu.ft.",75]
[null,"Hoshizaki","UR27B-***","Undercounter",6.21,0.65,"Reach-in refrigerator, solid door, < 15 cu.ft.",50]
[null,"Hoshizaki","UR36B-***","Undercounter",8.64,0.69,"Reach-in refrigerator, solid door, < 15 cu.ft.",50]
[null,"Hoshizaki","WR27B-***","Work-Top Table",6.21,0.65,"Reach-in refrigerator, solid door, < 15 cu.ft.",50]
[null,"Hoshizaki","WR36B-***","Work-Top Table",8.64,0.69,"Reach-in refrigerator, solid door, < 15 cu.ft.",50]
[null,"Hoshizaki America","CR1S-HS*","Reach-in",20.8,1.47,"Reach-in refrigerator, solid door, 15-29 cu.ft.",75]
[null,"Hoshizaki America","HR15A","Reach-in",2.54,0.76,"Reach-in refrigerator, solid door, < 15 cu.ft.",50]
[null,"Hoshizaki America","R1A-FS***","Reach-in",23.11,1.25,"Reach-in refrigerator, solid door, 15-29 cu.ft.",75]
[null,"Hoshizaki America","R1A-HS***","Reach-in",23.11,1.25,"Reach-in refrigerator, solid door, 15-29 cu.ft.",75]
[null,"Hoshizaki America","R2A-FS***","Reach-in",50.38,2.88,"Reach-in refrigerator, solid door, ≥50 cu.ft.",200]
[null,"Hoshizaki America","R2A-HS***","Reach-in",50.38,2.88,"Reach-in refrigerator, solid door, ≥50 cu.ft.",200]
[null,"Hoshizaki America, Inc.","BB80*","Undercounter",28.74,2.08,"Reach-in refrigerator, solid door, 15-29 cu.ft.",75]
[null,"Hoshizaki America, Inc.","BB95*","Undercounter",32.53,2.08,"Reach-in refrigerator, solid door, 30-49 cu.ft.",125]
[null,"Hoshizaki America, Inc.","CC80*","Other",24.67,1.44,"Reach-in refrigerator, solid door, 15-29 cu.ft.",75]
[null,"Hoshizaki America, Inc.","DD24*","Other",7.46,0.84,"Reach-in refrigerator, solid door, < 15 cu.ft.",50]
[null,"Hoshizaki America, Inc.","DD80*","Other",28.74,2.08,"Reach-in refrigerator, solid door, 15-29 cu.ft.",75]
[null,"Hoshizaki America, Inc.","DD95*","Other",32.53,2.08,"Reach-in refrigerator, solid door, 30-49 cu.ft.",125]
[null,"Hoshizaki America, Inc.","UR27A-***","Undercounter",6.22,0.63,"Reach-in refrigerator, solid door, < 15 cu.ft.",50]
[null,"Hoshizaki America, Inc.","UR36A-***","Undercounter",8.6999999999999993,0.54,"Reach-in refrigerator, solid door, < 15 cu.ft.",50]
[null,"Hoshizaki America, Inc.","UR48A-***","Undercounter",12,0.82,"Reach-in refrigerator, solid door, < 15 cu.ft.",50]
[null,"Hoshizaki America, Inc.","UR60A-***","Undercounter",15.4,0.89,"Reach-in refrigerator, solid door, 15-29 cu.ft.",75]
[null,"Hoshizaki America, Inc.","UR72A-***","Undercounter",19.7,1.3,"Reach-in refrigerator, solid door, 15-29 cu.ft.",75]
[null,"Hoshizaki America, Inc.","WR27A-***","Work-Top Table",6.22,0.63,"Reach-in refrigerator, solid door, < 15 cu.ft.",50]
[null,"Hoshizaki America, Inc.","WR36A-***","Work-Top Table",8.6999999999999993,0.54,"Reach-in refrigerator, solid door, < 15 cu.ft.",50]
[null,"Hoshizaki America, Inc.","WR48A-***","Work-Top Table",12,0.82,"Reach-in refrigerator, solid door, < 15 cu.ft.",50]
[null,"Hoshizaki America, Inc.","WR60A-***","Work-Top Table",15.4,0.89,"Reach-in refrigerator, solid door, 15-29 cu.ft.",75]
[null,"Hoshizaki America, Inc.","WR72A-***","Work-Top Table",19.7,1.3,"Reach-in refrigerator, solid door, 15-29 cu.ft.",75]
[null,"IM2","EVC1.5 R6","Reach-in",1.62,0.45,"Reach-in refrigerator, solid door, < 15 cu.ft.",50]
[null,"Imbera","G319 R2 SD","Reach-in",19.2,1.48,"Reach-in refrigerator, solid door, 15-29 cu.ft.",75]
[null,"Imbera","SSC-20-1S","Reach-in",21.7,1.59,"Reach-in refrigerator, solid door, 15-29 cu.ft.",75]
[null,"Imbera","SSC-45-2S","Reach-in",46.3,2.93,"Reach-in refrigerator, solid door, 30-49 cu.ft.",125]
[null,"Imbera","VC16-H2S","Reach-in",22.8,1.75,"Reach-in refrigerator, solid door, 15-29 cu.ft.",75]
[null,"Imbera","VC31-H2S2","Reach-in",47.6,2.5099999999999998,"Reach-in refrigerator, solid door, 30-49 cu.ft.",125]
[null,"Imperial","RF265*","Reach-in",27.61,1.88,"Reach-in refrigerator, solid door, 15-29 cu.ft.",75]
[null,"JonesZylon","JZHR-40-HC","Reach-in",23.6,1.41,"Reach-in refrigerator, solid door, 15-29 cu.ft.",75]
[null,"JonesZylon","JZR-10UBT","Reach-in",19.34,1.27,"Reach-in refrigerator, solid door, 15-29 cu.ft.",75]
[null,"JonesZylon","JZR-10UBTD","Reach-in",19.34,1.27,"Reach-in refrigerator, solid door, 15-29 cu.ft.",75]
[null,"JonesZylon","JZRR-120","Reach-in",28.52,1.9,"Reach-in refrigerator, solid door, 15-29 cu.ft.",75]
[null,"JonesZylon","JZRR-120HD","Reach-in",28.52,1.9,"Reach-in refrigerator, solid door, 15-29 cu.ft.",75]
[null,"JonesZylon","JZRR-144","Reach-in",39.61,1.9,"Reach-in refrigerator, solid door, 30-49 cu.ft.",125]
[null,"JonesZylon","JZRR-144HD","Reach-in",39.61,1.9,"Reach-in refrigerator, solid door, 30-49 cu.ft.",125]
[null,"Kairak","KUHT48-LR","Undercounter",13.56,1.2,"Reach-in refrigerator, solid door, < 15 cu.ft.",50]
[null,"Kegco","SLK-15BBR","Undercounter",2.86,0.5,"Reach-in refrigerator, solid door, < 15 cu.ft.",50]
[null,"Kegco","SLK-15BSR","Undercounter",2.86,0.5,"Reach-in refrigerator, solid door, < 15 cu.ft.",50]
[null,"Kelvinator","KCBM180RQY*","Reach-in",17.89,1.21,"Reach-in refrigerator, solid door, 15-29 cu.ft.",75]
[null,"Kelvinator","KCBM180RQYA","Reach-in",17.89,1.45,"Reach-in refrigerator, solid door, 15-29 cu.ft.",75]
[null,"Kelvinator","KRS22****","Reach-in",19.399999999999999,1.32,"Reach-in refrigerator, solid door, 15-29 cu.ft.",75]
[null,"KERONG","BC-136CT","Reach-in",4.8,0.57999999999999996,"Reach-in refrigerator, solid door, < 15 cu.ft.",50]
[null,"KERONG","BC-89F","Reach-in",3.13,0.53,"Reach-in refrigerator, solid door, < 15 cu.ft.",50]
[null,"Liebherr","GRB05S1HC","Reach-in",4.78,0.62,"Reach-in refrigerator, solid door, < 15 cu.ft.",50]
[null,"Liebherr","GRT21S1HC","Reach-in",20.059999999999999,1.27,"Reach-in refrigerator, solid door, 15-29 cu.ft.",75]
[null,"Liebherr","GRT21S2HC","Reach-in",20.77,1.27,"Reach-in refrigerator, solid door, 15-29 cu.ft.",75]
[null,"Liebherr","GRT50S2HC","Reach-in",46.31,2.4,"Reach-in refrigerator, solid door, 30-49 cu.ft.",125]
[null,"Master-Bilt","MBR23-SH","Reach-in",19.440000000000001,1.37,"Reach-in refrigerator, solid door, 15-29 cu.ft.",75]
[null,"Master-Bilt","MBR49-SH","Reach-in",42.06,2.73,"Reach-in refrigerator, solid door, 30-49 cu.ft.",125]
[null,"Master-Bilt","R23-SH","Reach-in",19.440000000000001,1.37,"Reach-in refrigerator, solid door, 15-29 cu.ft.",75]
[null,"Master-Bilt","R49-SH","Reach-in",42.06,2.73,"Reach-in refrigerator, solid door, 30-49 cu.ft.",125]
[null,"Ningbo Yingqi Metal Products Co., Ltd.","RF18D-A","Reach-in",1.62,0.98,"Reach-in refrigerator, solid door, < 15 cu.ft.",50]
[null,"Ningbo Yingqi Metal Products Co., Ltd.","RF20D-A","Reach-in",1.77,0.79,"Reach-in refrigerator, solid door, < 15 cu.ft.",50]
[null,"Norlake","AR124***/0-A","Milk or Beverage Cabinet",17.82,1.1599999999999999,"Reach-in refrigerator, solid door, 15-29 cu.ft.",75]
[null,"Norlake","AR162***/0-A","Milk or Beverage Cabinet",23.5,1.25,"Reach-in refrigerator, solid door, 15-29 cu.ft.",75]
[null,"Norlake","AR164***/0-A","Milk or Beverage Cabinet",23.5,1.32,"Reach-in refrigerator, solid door, 15-29 cu.ft.",75]
[null,"Norlake","NLR23-SH","Reach-in",19.440000000000001,1.37,"Reach-in refrigerator, solid door, 15-29 cu.ft.",75]
[null,"Norlake","NLR49-SH","Reach-in",42.06,2.73,"Reach-in refrigerator, solid door, 30-49 cu.ft.",125]
[null,"Norlake","NLUR36A","Undercounter",9.8699999999999992,1.1399999999999999,"Reach-in refrigerator, solid door, < 15 cu.ft.",50]
[null,"Norlake","NR241***/0","Reach-in",24.1,1.9,"Reach-in refrigerator, solid door, 15-29 cu.ft.",75]
[null,"Norlake","NR241**S/0X","Reach-in",24.1,1.82,"Reach-in refrigerator, solid door, 15-29 cu.ft.",75]
[null,"Norlake","NR242**S/0X","Reach-in",23.97,1.82,"Reach-in refrigerator, solid door, 15-29 cu.ft.",75]
[null,"Norlake","NR522**S/0X","Reach-in",51.45,2.98,"Reach-in refrigerator, solid door, ≥50 cu.ft.",200]
[null,"Norlake","NR803**S/0X","Reach-in",79.849999999999994,3.51,"Reach-in refrigerator, solid door, ≥50 cu.ft.",200]
[null,"Norlake","NR806**S/0X","Reach-in",79.52,3.36,"Reach-in refrigerator, solid door, ≥50 cu.ft.",200]
[null,"Norlake","NSFR241WMW/0M","Reach-in",24,1.19,"Reach-in refrigerator, solid door, 15-29 cu.ft.",75]
[null,"Norlake","NSLR241WMW/0M","Reach-in",24,1.19,"Reach-in refrigerator, solid door, 15-29 cu.ft.",75]
[null,"Norlake","R23-SH","Reach-in",19.440000000000001,1.37,"Reach-in refrigerator, solid door, 15-29 cu.ft.",75]
[null,"Norlake","R49-SH","Reach-in",42.06,2.73,"Reach-in refrigerator, solid door, 30-49 cu.ft.",125]
[null,"Norlake","UR36A","Undercounter",9.8699999999999992,1.1399999999999999,"Reach-in refrigerator, solid door, < 15 cu.ft.",50]
[null,"OMCAN INC","BB-CN-0005-HC","Undercounter",4.0999999999999996,0.92,"Reach-in refrigerator, solid door, < 15 cu.ft.",50]
[null,"OMCAN INC","BB-CN-0017-HC","Reach-in",17.5,1.08,"Reach-in refrigerator, solid door, 15-29 cu.ft.",75]
[null,"OMCAN INC","RE-CN-0006-HC","Undercounter",5.5,0.53,"Reach-in refrigerator, solid door, < 15 cu.ft.",50]
[null,"OMCAN INC","RE-CN-0021-HC","Reach-in",20.6,1.17,"Reach-in refrigerator, solid door, 15-29 cu.ft.",75]
[null,"Perlick","BBR24-RO-*","Reach-in",6.74,0.83,"Reach-in refrigerator, solid door, < 15 cu.ft.",50]
[null,"Perlick","BBRLP48-RO-*","Reach-in",10.7,1.1200000000000001,"Reach-in refrigerator, solid door, < 15 cu.ft.",50]
[null,"Perlick","HB24BS4S-**-*****","Undercounter",4.8099999999999996,0.83,"Reach-in refrigerator, solid door, < 15 cu.ft.",50]
[null,"Perlick","HB24RS4S-**-*****","Undercounter",4.8099999999999996,0.83,"Reach-in refrigerator, solid door, < 15 cu.ft.",50]
[null,"Perlick","HB24WS4S-**-*****","Undercounter",4.8099999999999996,0.83,"Reach-in refrigerator, solid door, < 15 cu.ft.",50]
[null,"Perlick","HC24RS4S-**-*****","Undercounter",5.22,0.76,"Reach-in refrigerator, solid door, < 15 cu.ft.",50]
[null,"Perlick","HC24WS4S-**-*****","Undercounter",5.22,0.76,"Reach-in refrigerator, solid door, < 15 cu.ft.",50]
[null,"Perlick","HD24RS4S-**-*****","Undercounter",3.2,0.68,"Reach-in refrigerator, solid door, < 15 cu.ft.",50]
[null,"Perlick","HD24WS4S-**-*****","Undercounter",3.2,0.68,"Reach-in refrigerator, solid door, < 15 cu.ft.",50]
[null,"Perlick","R24","Reach-in",4.7,0.89,"Reach-in refrigerator, solid door, < 15 cu.ft.",50]
[null,"Primoris","FB23R","Reach-in",19.100000000000001,1.56,"Reach-in refrigerator, solid door, 15-29 cu.ft.",75]
[null,"Primoris","FB49R","Reach-in",43.4,2.34,"Reach-in refrigerator, solid door, 30-49 cu.ft.",125]
[null,"Pro-Kold","SSC-20-1S","Reach-in",21.7,1.59,"Reach-in refrigerator, solid door, 15-29 cu.ft.",75]
[null,"Pro-Kold","SSC-45-2S","Reach-in",46.3,2.93,"Reach-in refrigerator, solid door, 30-49 cu.ft.",125]
[null,"Pro-Kold","VC16-H2S","Reach-in",22.8,1.75,"Reach-in refrigerator, solid door, 15-29 cu.ft.",75]
[null,"Pro-Kold","VC31-H2S2","Reach-in",47.6,2.5099999999999998,"Reach-in refrigerator, solid door, 30-49 cu.ft.",125]
[null,"Randell","51368PT-52","Work-Top Table",27.44,1.98,"Reach-in refrigerator, solid door, 15-29 cu.ft.",75]
[null,"Randell","51368PT-52*","Work-Top Table",27.44,1.98,"Reach-in refrigerator, solid door, 15-29 cu.ft.",75]
[null,"Randell","FX-1-290REF","Work-Top Table",3.1,0.88,"Reach-in refrigerator, solid door, < 15 cu.ft.",50]
[null,"Randell","FX-1-290REF*","Work-Top Table",3.1,0.88,"Reach-in refrigerator, solid door, < 15 cu.ft.",50]
[null,"Randell","FX-1A-290REF","Work-Top Table",2.5099999999999998,0.79,"Reach-in refrigerator, solid door, < 15 cu.ft.",50]
[null,"Randell","FX-1A-290REF*","Work-Top Table",2.5099999999999998,0.79,"Reach-in refrigerator, solid door, < 15 cu.ft.",50]
[null,"Randell","FX-1RE-290REF","Work-Top Table",3.1,0.88,"Reach-in refrigerator, solid door, < 15 cu.ft.",50]
[null,"Randell","FX-1RE-290REF*","Work-Top Table",3.1,0.88,"Reach-in refrigerator, solid door, < 15 cu.ft.",50]
[null,"Randell","FX-1REA-290REF","Work-Top Table",2.5099999999999998,0.79,"Reach-in refrigerator, solid door, < 15 cu.ft.",50]
[null,"Randell","FX-1REA-290REF*","Work-Top Table",2.5099999999999998,0.79,"Reach-in refrigerator, solid door, < 15 cu.ft.",50]
[null,"Randell","FX-1UC-290REF","Undercounter",2.83,0.75,"Reach-in refrigerator, solid door, < 15 cu.ft.",50]
[null,"Randell","FX-1UC-290REF*","Undercounter",2.83,0.75,"Reach-in refrigerator, solid door, < 15 cu.ft.",50]
[null,"Randell","R1R-29-1","Reach-in",21.63,1.66,"Reach-in refrigerator, solid door, 15-29 cu.ft.",75]
[null,"Randell","R1R-29-2","Reach-in",21.63,1.66,"Reach-in refrigerator, solid door, 15-29 cu.ft.",75]
[null,"Randell","R2R-52-2","Reach-in",42.3,2.66,"Reach-in refrigerator, solid door, 30-49 cu.ft.",125]
[null,"Silver King","SK2SB","Other",4.3,0.74,"Reach-in refrigerator, solid door, < 15 cu.ft.",50]
[null,"Silver King","SKBY1","Other",0.94,0.93,"Reach-in refrigerator, solid door, < 15 cu.ft.",50]
[null,"Silver King","SKMAJ2","Milk or Beverage Cabinet",4.01,0.33,"Reach-in refrigerator, solid door, < 15 cu.ft.",50]
[null,"Silver King","SKSD","Other",3.86,0.43,"Reach-in refrigerator, solid door, < 15 cu.ft.",50]
[null,"Summit","ADA2DOS","Reach-in",4.8,0.57999999999999996,"Reach-in refrigerator, solid door, < 15 cu.ft.",50]
[null,"Summit","ADRD24","Reach-in",4.8,0.57999999999999996,"Reach-in refrigerator, solid door, < 15 cu.ft.",50]
[null,"Summit","ADRD25OS","Reach-in",4.8,0.57999999999999996,"Reach-in refrigerator, solid door, < 15 cu.ft.",50]
[null,"Summit","BAR197","Reach-in",3.13,0.53,"Reach-in refrigerator, solid door, < 15 cu.ft.",50]
[null,"Summit","BAR198S","Reach-in",3.13,0.53,"Reach-in refrigerator, solid door, < 15 cu.ft.",50]
[null,"Summit","BCR199","Reach-in",3.13,0.53,"Reach-in refrigerator, solid door, < 15 cu.ft.",50]
[null,"Summit","BCR19S","Reach-in",3.13,0.53,"Reach-in refrigerator, solid door, < 15 cu.ft.",50]
[null,"Summit","FF195","Reach-in",3.13,0.53,"Reach-in refrigerator, solid door, < 15 cu.ft.",50]
[null,"Summit","FFAR25L*7*","Other",1.7,0.66,"Reach-in refrigerator, solid door, < 15 cu.ft.",50]
[null,"Summit","LADA2D24","Reach-in",4.8,0.57999999999999996,"Reach-in refrigerator, solid door, < 15 cu.ft.",50]
[null,"Summit","R17FF*","Reach-in",16.5,1.2,"Reach-in refrigerator, solid door, 15-29 cu.ft.",75]
[null,"Summit","SBC635M*7*","Undercounter",5.6,0.85,"Reach-in refrigerator, solid door, < 15 cu.ft.",50]
[null,"Summit","SCRR231","Reach-in",20.6,1.01,"Reach-in refrigerator, solid door, 15-29 cu.ft.",75]
[null,"Summit","SCRR491","Reach-in",41.3,2.0699999999999998,"Reach-in refrigerator, solid door, 30-49 cu.ft.",125]
[null,"Summit","SP6DS24ADA","Reach-in",4.8,0.57999999999999996,"Reach-in refrigerator, solid door, < 15 cu.ft.",50]
[null,"Summit","SPR196OS","Reach-in",3.13,0.53,"Reach-in refrigerator, solid door, < 15 cu.ft.",50]
[null,"Summit","SPR2DOSADA","Reach-in",4.8,0.57999999999999996,"Reach-in refrigerator, solid door, < 15 cu.ft.",50]
[null,"Summit Commercial","SBC695OS*","Undercounter",6.05,0.85,"Reach-in refrigerator, solid door, < 15 cu.ft.",50]
[null,"Summit Commercial","SCRR232**","Reach-in",19.53,1.03,"Reach-in refrigerator, solid door, 15-29 cu.ft.",75]
[null,"Summit Commercial","SCRR232LH**","Reach-in",19.53,1.03,"Reach-in refrigerator, solid door, 15-29 cu.ft.",75]
[null,"Summit Commercial","SCRR492**","Reach-in",42.24,1.83,"Reach-in refrigerator, solid door, 30-49 cu.ft.",125]
[null,"Summit Commercial","SCRR492LH**","Reach-in",42.24,1.83,"Reach-in refrigerator, solid door, 30-49 cu.ft.",125]
[null,"Summit Commercial","SCRR722**","Reach-in",60.84,2.44,"Reach-in refrigerator, solid door, ≥50 cu.ft.",200]
[null,"Summit Commercial","SCRR722LH**","Reach-in",60.84,2.44,"Reach-in refrigerator, solid door, ≥50 cu.ft.",200]
[null,"Traulsen","AHT132WUT-FHS-eS","Reach-in",23.43,1.76,"Reach-in refrigerator, solid door, 15-29 cu.ft.",75]
[null,"Traulsen","AHT132WUT-HHS-eS","Reach-in",23.37,1.76,"Reach-in refrigerator, solid door, 15-29 cu.ft.",75]
[null,"Traulsen","AHT232NUT-FHS-eS","Reach-in",46.02,2.78,"Reach-in refrigerator, solid door, 30-49 cu.ft.",125]
[null,"Traulsen","AHT232NUT-HHS-eS","Reach-in",45.89,2.78,"Reach-in refrigerator, solid door, 30-49 cu.ft.",125]
[null,"Traulsen","AHT232WUT-FHS-eS","Reach-in",50.53,2.95,"Reach-in refrigerator, solid door, ≥50 cu.ft.",200]
[null,"Traulsen","AHT232WUT-HHS-eS","Reach-in",50.4,2.94,"Reach-in refrigerator, solid door, ≥50 cu.ft.",200]
[null,"Traulsen","AHT332WUT-FHS-eS","Reach-in",77.45,3.56,"Reach-in refrigerator, solid door, ≥50 cu.ft.",200]
[null,"Traulsen","AHT332WUT-HHS-eS","Reach-in",77.260000000000005,3.56,"Reach-in refrigerator, solid door, ≥50 cu.ft.",200]
[null,"Traulsen","CLUC-27R-DW","Undercounter",6.4,1.06,"Reach-in refrigerator, solid door, < 15 cu.ft.",50]
[null,"Traulsen","CLUC-27R-SD","Undercounter",6.5,1.06,"Reach-in refrigerator, solid door, < 15 cu.ft.",50]
[null,"Traulsen","CLUC-36R-SD","Undercounter",9,1.1100000000000001,"Reach-in refrigerator, solid door, < 15 cu.ft.",50]
[null,"Traulsen","CLUC-48R-DW","Undercounter",12.2,1.18,"Reach-in refrigerator, solid door, < 15 cu.ft.",50]
[null,"Traulsen","CLUC-48R-SD","Undercounter",12.4,1.18,"Reach-in refrigerator, solid door, < 15 cu.ft.",50]
[null,"Traulsen","CLUC-60R-DW","Undercounter",15.7,1.28,"Reach-in refrigerator, solid door, 15-29 cu.ft.",75]
[null,"Traulsen","CLUC-60R-SD","Undercounter",15.9,1.29,"Reach-in refrigerator, solid door, 15-29 cu.ft.",75]
[null,"Traulsen","CLUC-72R-DW","Undercounter",19.399999999999999,1.51,"Reach-in refrigerator, solid door, 15-29 cu.ft.",75]
[null,"Traulsen","CLUC-72R-SD","Undercounter",19.600000000000001,1.52,"Reach-in refrigerator, solid door, 15-29 cu.ft.",75]
[null,"Traulsen","G10000","Reach-in",23.37,1.76,"Reach-in refrigerator, solid door, 15-29 cu.ft.",75]
[null,"Traulsen","G10000-032","Reach-in",23.37,1.76,"Reach-in refrigerator, solid door, 15-29 cu.ft.",75]
[null,"Traulsen","G10001","Reach-in",23.37,1.76,"Reach-in refrigerator, solid door, 15-29 cu.ft.",75]
[null,"Traulsen","G10001-032","Reach-in",23.37,1.76,"Reach-in refrigerator, solid door, 15-29 cu.ft.",75]
[null,"Traulsen","G10010","Reach-in",23.43,1.76,"Reach-in refrigerator, solid door, 15-29 cu.ft.",75]
[null,"Traulsen","G10010-032","Reach-in",23.43,1.76,"Reach-in refrigerator, solid door, 15-29 cu.ft.",75]
[null,"Traulsen","G10011","Reach-in",23.43,1.76,"Reach-in refrigerator, solid door, 15-29 cu.ft.",75]
[null,"Traulsen","G10011-032","Reach-in",23.43,1.76,"Reach-in refrigerator, solid door, 15-29 cu.ft.",75]
[null,"Traulsen","G30000","Reach-in",69.150000000000006,3.37,"Reach-in refrigerator, solid door, ≥50 cu.ft.",200]
[null,"Traulsen","G30000-032","Reach-in",69.150000000000006,3.37,"Reach-in refrigerator, solid door, ≥50 cu.ft.",200]
[null,"Traulsen","G30001","Reach-in",69.150000000000006,3.37,"Reach-in refrigerator, solid door, ≥50 cu.ft.",200]
[null,"Traulsen","G30001-032","Reach-in",69.150000000000006,3.37,"Reach-in refrigerator, solid door, ≥50 cu.ft.",200]
[null,"Traulsen","G30002","Reach-in",69.150000000000006,3.37,"Reach-in refrigerator, solid door, ≥50 cu.ft.",200]
[null,"Traulsen","G30002-032","Reach-in",69.150000000000006,3.37,"Reach-in refrigerator, solid door, ≥50 cu.ft.",200]
[null,"Traulsen","G30003","Reach-in",69.150000000000006,3.37,"Reach-in refrigerator, solid door, ≥50 cu.ft.",200]
[null,"Traulsen","G30003-032","Reach-in",69.150000000000006,3.37,"Reach-in refrigerator, solid door, ≥50 cu.ft.",200]
[null,"Traulsen","G30010","Reach-in",69.349999999999994,3.38,"Reach-in refrigerator, solid door, ≥50 cu.ft.",200]
[null,"Traulsen","G30010-032","Reach-in",69.349999999999994,3.38,"Reach-in refrigerator, solid door, ≥50 cu.ft.",200]
[null,"Traulsen","G30011","Reach-in",69.349999999999994,3.38,"Reach-in refrigerator, solid door, ≥50 cu.ft.",200]
[null,"Traulsen","G30011-032","Reach-in",69.349999999999994,3.38,"Reach-in refrigerator, solid door, ≥50 cu.ft.",200]
[null,"Traulsen","G30012","Reach-in",69.349999999999994,3.38,"Reach-in refrigerator, solid door, ≥50 cu.ft.",200]
[null,"Traulsen","G30012-032","Reach-in",69.349999999999994,3.38,"Reach-in refrigerator, solid door, ≥50 cu.ft.",200]
[null,"Traulsen","G30013","Reach-in",69.349999999999994,3.38,"Reach-in refrigerator, solid door, ≥50 cu.ft.",200]
[null,"Traulsen","G30013-032","Reach-in",69.349999999999994,3.38,"Reach-in refrigerator, solid door, ≥50 cu.ft.",200]
[null,"Traulsen","RHT132WUT-FHS-eS","Reach-in",23.43,1.76,"Reach-in refrigerator, solid door, 15-29 cu.ft.",75]
[null,"Traulsen","RHT132WUT-HHS-eS","Reach-in",23.37,1.76,"Reach-in refrigerator, solid door, 15-29 cu.ft.",75]
[null,"Traulsen","RHT232NUT-FHS-eS","Reach-in",46.02,2.78,"Reach-in refrigerator, solid door, 30-49 cu.ft.",125]
[null,"Traulsen","RHT232NUT-HHS-eS","Reach-in",45.89,2.78,"Reach-in refrigerator, solid door, 30-49 cu.ft.",125]
[null,"Traulsen","RHT232WUT-FHS-eS","Reach-in",50.53,2.95,"Reach-in refrigerator, solid door, ≥50 cu.ft.",200]
[null,"Traulsen","RHT232WUT-HHS-eS","Reach-in",50.4,2.94,"Reach-in refrigerator, solid door, ≥50 cu.ft.",200]
[null,"Traulsen","RHT332WUT-FHS-eS","Reach-in",77.45,3.56,"Reach-in refrigerator, solid door, ≥50 cu.ft.",200]
[null,"Traulsen","RHT332WUT-HHS-eS","Reach-in",77.260000000000005,3.56,"Reach-in refrigerator, solid door, ≥50 cu.ft.",200]
[null,"Traulsen","UHT32L0-0300","Undercounter",8.61,1.1000000000000001,"Reach-in refrigerator, solid door, < 15 cu.ft.",50]
[null,"Traulsen","UHT32R0-0300","Undercounter",8.61,1.1000000000000001,"Reach-in refrigerator, solid door, < 15 cu.ft.",50]
[null,"Traulsen","UHT48-LL","Undercounter",13.56,1.2,"Reach-in refrigerator, solid door, < 15 cu.ft.",50]
[null,"Traulsen","UHT48-LR","Undercounter",13.56,1.2,"Reach-in refrigerator, solid door, < 15 cu.ft.",50]
[null,"Traulsen","UHT48-RL","Undercounter",13.56,1.2,"Reach-in refrigerator, solid door, < 15 cu.ft.",50]
[null,"Traulsen","UHT48-RR","Undercounter",13.56,1.2,"Reach-in refrigerator, solid door, < 15 cu.ft.",50]
[null,"Traulsen","UHT48LL-0300","Undercounter",13.56,1.2,"Reach-in refrigerator, solid door, < 15 cu.ft.",50]
[null,"Traulsen","UHT48LR-0300","Undercounter",13.56,1.2,"Reach-in refrigerator, solid door, < 15 cu.ft.",50]
[null,"Traulsen","UHT48RR-0300","Undercounter",13.56,1.2,"Reach-in refrigerator, solid door, < 15 cu.ft.",50]
[null,"True","STA1R-1S-HC","Reach-in",22.09,1.61,"Reach-in refrigerator, solid door, 15-29 cu.ft.",75]
[null,"True","STA1R-2HS-HC","Reach-in",22,1.66,"Reach-in refrigerator, solid door, 15-29 cu.ft.",75]
[null,"True","STA1RPT-1S-1S-HC","Reach-in",23.53,1.63,"Reach-in refrigerator, solid door, 15-29 cu.ft.",75]
[null,"True","STA1RPT-1S-1S-HC","Pass-Through",23.52,1.63,"Reach-in refrigerator, solid door, 15-29 cu.ft.",75]
[null,"True","STA1RPT-2HS-1S-HC","Reach-in",23.44,1.84,"Reach-in refrigerator, solid door, 15-29 cu.ft.",75]
[null,"True","STA1RPT-2HS-1S-HC","Pass-Through",23.44,1.84,"Reach-in refrigerator, solid door, 15-29 cu.ft.",75]
[null,"True","STA1RPT-2HS-2HS-HC","Reach-in",23.35,1.84,"Reach-in refrigerator, solid door, 15-29 cu.ft.",75]
[null,"True","STA1RPT-2HS-2HS-HC","Pass-Through",23.35,1.84,"Reach-in refrigerator, solid door, 15-29 cu.ft.",75]
[null,"True","STA2R-2S-HC","Reach-in",46.86,2.23,"Reach-in refrigerator, solid door, 30-49 cu.ft.",125]
[null,"True","STG1R-1S-HC","Reach-in",22.09,1.61,"Reach-in refrigerator, solid door, 15-29 cu.ft.",75]
[null,"True","STG1R-2HS-HC","Reach-in",22,1.66,"Reach-in refrigerator, solid door, 15-29 cu.ft.",75]
[null,"True","STG1RPT-1S-1S-HC","Reach-in",23.53,1.63,"Reach-in refrigerator, solid door, 15-29 cu.ft.",75]
[null,"True","STG1RPT-1S-1S-HC","Pass-Through",23.52,1.63,"Reach-in refrigerator, solid door, 15-29 cu.ft.",75]
[null,"True","STG1RPT-2HS-1S-HC","Reach-in",23.44,1.84,"Reach-in refrigerator, solid door, 15-29 cu.ft.",75]
[null,"True","STG1RPT-2HS-1S-HC","Pass-Through",23.44,1.84,"Reach-in refrigerator, solid door, 15-29 cu.ft.",75]
[null,"True","STG1RPT-2HS-2HS-HC","Reach-in",23.35,1.84,"Reach-in refrigerator, solid door, 15-29 cu.ft.",75]
[null,"True","STG1RPT-2HS-2HS-HC","Pass-Through",23.35,1.84,"Reach-in refrigerator, solid door, 15-29 cu.ft.",75]
[null,"True","STG2R-2S-HC","Reach-in",46.86,2.23,"Reach-in refrigerator, solid door, 30-49 cu.ft.",125]
[null,"True","STM1R-1S-HC","Reach-in",22.09,1.61,"Reach-in refrigerator, solid door, 15-29 cu.ft.",75]
[null,"True","STM1R-2HS-HC","Reach-in",22,1.66,"Reach-in refrigerator, solid door, 15-29 cu.ft.",75]
[null,"True","STM1RPT-1S-1S-HC","Reach-in",23.52,1.63,"Reach-in refrigerator, solid door, 15-29 cu.ft.",75]
[null,"True","STM1RPT-2HS-2HS-HC","Reach-in",23.35,1.84,"Reach-in refrigerator, solid door, 15-29 cu.ft.",75]
[null,"True","STM2R-2S-HC","Reach-in",46.86,2.23,"Reach-in refrigerator, solid door, 30-49 cu.ft.",125]
[null,"True","STR1R-1S-HC","Reach-in",22.09,1.61,"Reach-in refrigerator, solid door, 15-29 cu.ft.",75]
[null,"True","STR1R-2HS-HC","Reach-in",22,1.66,"Reach-in refrigerator, solid door, 15-29 cu.ft.",75]
[null,"True","STR1RPT-1S-1S-HC","Reach-in",23.53,1.63,"Reach-in refrigerator, solid door, 15-29 cu.ft.",75]
[null,"True","STR1RPT-1S-1S-HC","Pass-Through",23.52,1.63,"Reach-in refrigerator, solid door, 15-29 cu.ft.",75]
[null,"True","STR1RPT-2HS-1S-HC","Reach-in",23.44,1.84,"Reach-in refrigerator, solid door, 15-29 cu.ft.",75]
[null,"True","STR1RPT-2HS-1S-HC","Pass-Through",23.44,1.84,"Reach-in refrigerator, solid door, 15-29 cu.ft.",75]
[null,"True","STR1RPT-2HS-2HS-HC","Reach-in",23.35,1.84,"Reach-in refrigerator, solid door, 15-29 cu.ft.",75]
[null,"True","STR1RPT-2HS-2HS-HC","Pass-Through",23.35,1.84,"Reach-in refrigerator, solid door, 15-29 cu.ft.",75]
[null,"True","STR2R-2S-HC","Reach-in",46.86,2.23,"Reach-in refrigerator, solid door, 30-49 cu.ft.",125]
[null,"True","T-12-HC","Reach-in",11.22,0.76,"Reach-in refrigerator, solid door, < 15 cu.ft.",50]
[null,"True","T-15-2-HC","Reach-in",12.46,0.81,"Reach-in refrigerator, solid door, < 15 cu.ft.",50]
[null,"True","T-19-HC","Reach-in",14.79,0.92,"Reach-in refrigerator, solid door, < 15 cu.ft.",50]
[null,"True","T-23-2-HC","Reach-in",20.13,1.36,"Reach-in refrigerator, solid door, 15-29 cu.ft.",75]
[null,"True","T-23-HC","Reach-in",20.260000000000002,1.27,"Reach-in refrigerator, solid door, 15-29 cu.ft.",75]
[null,"True","T-23PT-HC","Pass-Through",21.23,1.02,"Reach-in refrigerator, solid door, 15-29 cu.ft.",75]
[null,"True","T-43-HC","Reach-in",36.020000000000003,2.5,"Reach-in refrigerator, solid door, 30-49 cu.ft.",125]
[null,"True","T-49-HC","Reach-in",43.26,2.75,"Reach-in refrigerator, solid door, 30-49 cu.ft.",125]
[null,"True","TBB-1-HC","Undercounter",7.86,0.93,"Reach-in refrigerator, solid door, < 15 cu.ft.",50]
[null,"True","TBB-1-S-HC","Undercounter",7.86,0.93,"Reach-in refrigerator, solid door, < 15 cu.ft.",50]
[null,"True","TBB-2-HC","Undercounter",19.510000000000002,1.3,"Reach-in refrigerator, solid door, 15-29 cu.ft.",75]
[null,"True","TBB-2-S-HC","Undercounter",19.510000000000002,1.3,"Reach-in refrigerator, solid door, 15-29 cu.ft.",75]
[null,"True","TBB-3-HC","Undercounter",23.54,1.42,"Reach-in refrigerator, solid door, 15-29 cu.ft.",75]
[null,"True","TBB-3-S-HC","Undercounter",23.54,1.42,"Reach-in refrigerator, solid door, 15-29 cu.ft.",75]
[null,"True","TBB-4-HC","Undercounter",27.77,1.98,"Reach-in refrigerator, solid door, 15-29 cu.ft.",75]
[null,"True","TBB-4-S-HC","Undercounter",27.77,1.98,"Reach-in refrigerator, solid door, 15-29 cu.ft.",75]
[null,"True","TBB-4PT-HC","Undercounter",27.77,1.98,"Reach-in refrigerator, solid door, 15-29 cu.ft.",75]
[null,"True","TBB-4PT-S-HC","Undercounter",27.77,1.98,"Reach-in refrigerator, solid door, 15-29 cu.ft.",75]
[null,"True","TDD-1-HC","Other",7.86,0.93,"Reach-in refrigerator, solid door, < 15 cu.ft.",50]
[null,"True","TDD-1-S-HC","Other",7.86,0.93,"Reach-in refrigerator, solid door, < 15 cu.ft.",50]
[null,"True","TDD-2-HC","Other",19.510000000000002,1.3,"Reach-in refrigerator, solid door, 15-29 cu.ft.",75]
[null,"True","TDD-2-S-HC","Other",19.510000000000002,1.3,"Reach-in refrigerator, solid door, 15-29 cu.ft.",75]
[null,"True","TDD-2CT-HC","Other",19.510000000000002,1.3,"Reach-in refrigerator, solid door, 15-29 cu.ft.",75]
[null,"True","TDD-2CT-S-HC","Other",19.510000000000002,1.3,"Reach-in refrigerator, solid door, 15-29 cu.ft.",75]
[null,"True","TDD-3-HC","Reach-in",23.54,1.42,"Reach-in refrigerator, solid door, 15-29 cu.ft.",75]
[null,"True","TDD-3-S-HC","Reach-in",23.54,1.42,"Reach-in refrigerator, solid door, 15-29 cu.ft.",75]
[null,"True","TDD-3CT-HC","Reach-in",23.54,1.42,"Reach-in refrigerator, solid door, 15-29 cu.ft.",75]
[null,"True","TDD-3CT-S-HC","Reach-in",23.54,1.42,"Reach-in refrigerator, solid door, 15-29 cu.ft.",75]
[null,"True","TDD-4-HC","Other",27.77,1.98,"Reach-in refrigerator, solid door, 15-29 cu.ft.",75]
[null,"True","TDD-4-S-HC","Other",27.77,1.98,"Reach-in refrigerator, solid door, 15-29 cu.ft.",75]
[null,"True","TDD-4CT-HC","Other",27.77,1.98,"Reach-in refrigerator, solid door, 15-29 cu.ft.",75]
[null,"True","TDD-4CT-S-HC","Other",27.77,1.98,"Reach-in refrigerator, solid door, 15-29 cu.ft.",75]
[null,"True","TG1R-1S-HC","Reach-in",27.33,1.28,"Reach-in refrigerator, solid door, 15-29 cu.ft.",75]
[null,"True","TG2R-2S-HC","Reach-in",50.59,2.65,"Reach-in refrigerator, solid door, ≥50 cu.ft.",200]
[null,"True","TMC-49-HC","Milk or Beverage Cabinet",16.61,1.05,"Reach-in refrigerator, solid door, 15-29 cu.ft.",75]
[null,"True","TMC-49-S-HC","Milk or Beverage Cabinet",16.61,1.05,"Reach-in refrigerator, solid door, 15-29 cu.ft.",75]
[null,"True","TMC-49-S-SS-HC","Milk or Beverage Cabinet",16.61,1.05,"Reach-in refrigerator, solid door, 15-29 cu.ft.",75]
[null,"True","TMC-49-SS-HC","Milk or Beverage Cabinet",16.61,1.05,"Reach-in refrigerator, solid door, 15-29 cu.ft.",75]
[null,"True","TMC-58-HC","Milk or Beverage Cabinet",19.940000000000001,1.17,"Reach-in refrigerator, solid door, 15-29 cu.ft.",75]
[null,"True","TMC-58-S-HC","Milk or Beverage Cabinet",19.940000000000001,1.17,"Reach-in refrigerator, solid door, 15-29 cu.ft.",75]
[null,"True","TMC-58-S-SS-HC","Milk or Beverage Cabinet",19.940000000000001,1.17,"Reach-in refrigerator, solid door, 15-29 cu.ft.",75]
[null,"True","TMC-58-SS-HC","Milk or Beverage Cabinet",19.940000000000001,1.17,"Reach-in refrigerator, solid door, 15-29 cu.ft.",75]
[null,"True","TS-23-2-HC","Reach-in",20.13,1.36,"Reach-in refrigerator, solid door, 15-29 cu.ft.",75]
[null,"True","TS-23-HC","Reach-in",20.260000000000002,1.27,"Reach-in refrigerator, solid door, 15-29 cu.ft.",75]
[null,"True","TS-23PT-HC","Pass-Through",21.23,1.02,"Reach-in refrigerator, solid door, 15-29 cu.ft.",75]
[null,"True","TS-43-HC","Reach-in",36.020000000000003,2.5,"Reach-in refrigerator, solid door, 30-49 cu.ft.",125]
[null,"True","TS-49-HC","Reach-in",43.26,2.75,"Reach-in refrigerator, solid door, 30-49 cu.ft.",125]
[null,"True","TSD-33-HC-LD","Reach-in",29.32,2.09,"Reach-in refrigerator, solid door, 15-29 cu.ft.",75]
[null,"True","TUC-24","Undercounter",5,0.91,"Reach-in refrigerator, solid door, < 15 cu.ft.",50]
[null,"True","TUC-24-HC","Undercounter",4.97,0.59,"Reach-in refrigerator, solid door, < 15 cu.ft.",50]
[null,"True","TUC-24-HC~SPEC1","Undercounter",4.93,0.59,"Reach-in refrigerator, solid door, < 15 cu.ft.",50]
[null,"True","TUC-27-ADA-HC","Undercounter",7.07,0.93,"Reach-in refrigerator, solid door, < 15 cu.ft.",50]
[null,"True","TUC-27-ADA-HC~SPEC1","Undercounter",7.07,0.93,"Reach-in refrigerator, solid door, < 15 cu.ft.",50]
[null,"True","TUC-27-HC","Undercounter",7.07,0.93,"Reach-in refrigerator, solid door, < 15 cu.ft.",50]
[null,"True","TUC-27-HC~SPEC1","Undercounter",7.07,0.93,"Reach-in refrigerator, solid door, < 15 cu.ft.",50]
[null,"True","TUC-27-LP-HC","Undercounter",7.07,0.93,"Reach-in refrigerator, solid door, < 15 cu.ft.",50]
[null,"True","TUC-27-LP-HC~SPEC1","Undercounter",7.07,0.93,"Reach-in refrigerator, solid door, < 15 cu.ft.",50]
[null,"True","TUC-27-LP-K-HC","Undercounter",6.74,0.87,"Reach-in refrigerator, solid door, < 15 cu.ft.",50]
[null,"True","TUC-48-ADA-HC","Undercounter",13.35,1.1200000000000001,"Reach-in refrigerator, solid door, < 15 cu.ft.",50]
[null,"True","TUC-48-ADA-HC~SPEC1","Undercounter",13.35,1.1200000000000001,"Reach-in refrigerator, solid door, < 15 cu.ft.",50]
[null,"True","TUC-48-HC","Undercounter",13.35,1.1200000000000001,"Reach-in refrigerator, solid door, < 15 cu.ft.",50]
[null,"True","TUC-48-HC~SPEC1","Undercounter",13.35,1.1200000000000001,"Reach-in refrigerator, solid door, < 15 cu.ft.",50]
[null,"True","TUC-48-LP-HC","Undercounter",13.35,1.1200000000000001,"Reach-in refrigerator, solid door, < 15 cu.ft.",50]
[null,"True","TUC-48-LP-HC~SPEC1","Undercounter",13.35,1.1200000000000001,"Reach-in refrigerator, solid door, < 15 cu.ft.",50]
[null,"True","TUC-48-LP-K-HC","Undercounter",12.76,0.99,"Reach-in refrigerator, solid door, < 15 cu.ft.",50]
[null,"True","TUC-67D-2-HC","Undercounter",20.41,1.61,"Reach-in refrigerator, solid door, 15-29 cu.ft.",75]
[null,"True","TUC-67D-2-HC~SPEC1","Undercounter",20.41,1.61,"Reach-in refrigerator, solid door, 15-29 cu.ft.",75]
[null,"True","TUC-67D-4-HC","Undercounter",20.41,1.61,"Reach-in refrigerator, solid door, 15-29 cu.ft.",75]
[null,"True","TUC-67D-4-HC~SPEC1","Undercounter",20.41,1.61,"Reach-in refrigerator, solid door, 15-29 cu.ft.",75]
[null,"True","TUC-93-HC","Undercounter",31.34,2.04,"Reach-in refrigerator, solid door, 30-49 cu.ft.",125]
[null,"True","TUC-93-HC~SPEC1","Undercounter",31.34,2.04,"Reach-in refrigerator, solid door, 30-49 cu.ft.",125]
[null,"True","TUC-93D-2-HC","Undercounter",31.34,2.19,"Reach-in refrigerator, solid door, 30-49 cu.ft.",125]
[null,"True","TUC-93D-2-HC~SPEC1","Undercounter",31.34,2.19,"Reach-in refrigerator, solid door, 30-49 cu.ft.",125]
[null,"True","TUC-93D-4-HC","Undercounter",31.34,2.19,"Reach-in refrigerator, solid door, 30-49 cu.ft.",125]
[null,"True","TUC-93D-4-HC~SPEC1","Undercounter",31.34,2.19,"Reach-in refrigerator, solid door, 30-49 cu.ft.",125]
[null,"True","TUC-93D-6-HC","Undercounter",31.34,2.19,"Reach-in refrigerator, solid door, 30-49 cu.ft.",125]
[null,"True","TUC-93D-6-HC~SPEC1","Undercounter",31.34,2.19,"Reach-in refrigerator, solid door, 30-49 cu.ft.",125]
[null,"True","TWT-27-ADA-HC","Work-Top Table",7.07,0.93,"Reach-in refrigerator, solid door, < 15 cu.ft.",50]
[null,"True","TWT-27-ADA-HC~SPEC1","Work-Top Table",7.07,0.93,"Reach-in refrigerator, solid door, < 15 cu.ft.",50]
[null,"True","TWT-27-HC","Work-Top Table",7.07,0.93,"Reach-in refrigerator, solid door, < 15 cu.ft.",50]
[null,"True","TWT-27-HC~SPEC1","Work-Top Table",7.07,0.93,"Reach-in refrigerator, solid door, < 15 cu.ft.",50]
[null,"True","TWT-48-ADA-HC","Work-Top Table",13.35,1.1200000000000001,"Reach-in refrigerator, solid door, < 15 cu.ft.",50]
[null,"True","TWT-48-ADA-HC~SPEC1","Work-Top Table",13.35,1.1200000000000001,"Reach-in refrigerator, solid door, < 15 cu.ft.",50]
[null,"True","TWT-48-HC","Work-Top Table",13.35,1.1200000000000001,"Reach-in refrigerator, solid door, < 15 cu.ft.",50]
[null,"True","TWT-48-HC~SPEC1","Work-Top Table",13.35,1.1200000000000001,"Reach-in refrigerator, solid door, < 15 cu.ft.",50]
[null,"True","TWT-67D-2-HC","Work-Top Table",20.41,1.61,"Reach-in refrigerator, solid door, 15-29 cu.ft.",75]
[null,"True","TWT-67D-2-HC~SPEC1","Work-Top Table",20.41,1.61,"Reach-in refrigerator, solid door, 15-29 cu.ft.",75]
[null,"True","TWT-67D-4-HC","Work-Top Table",20.41,1.61,"Reach-in refrigerator, solid door, 15-29 cu.ft.",75]
[null,"True","TWT-67D-4-HC~SPEC1","Work-Top Table",20.41,1.61,"Reach-in refrigerator, solid door, 15-29 cu.ft.",75]
[null,"True","TWT-93-HC","Work-Top Table",31.34,2.04,"Reach-in refrigerator, solid door, 30-49 cu.ft.",125]
[null,"True","TWT-93-HC~SPEC1","Work-Top Table",31.34,2.04,"Reach-in refrigerator, solid door, 30-49 cu.ft.",125]
[null,"True","TWT-93D-2-HC","Work-Top Table",31.34,2.19,"Reach-in refrigerator, solid door, 30-49 cu.ft.",125]
[null,"True","TWT-93D-2-HC~SPEC1","Work-Top Table",31.34,2.19,"Reach-in refrigerator, solid door, 30-49 cu.ft.",125]
[null,"True","TWT-93D-4-HC","Work-Top Table",31.34,2.19,"Reach-in refrigerator, solid door, 30-49 cu.ft.",125]
[null,"True","TWT-93D-4-HC~SPEC1","Work-Top Table",31.34,2.19,"Reach-in refrigerator, solid door, 30-49 cu.ft.",125]
[null,"True","TWT-93D-6-HC","Work-Top Table",31.34,2.19,"Reach-in refrigerator, solid door, 30-49 cu.ft.",125]
[null,"True","TWT-93D-6-HC~SPEC1","Work-Top Table",31.34,2.19,"Reach-in refrigerator, solid door, 30-49 cu.ft.",125]
[null,"Turbo Air","ER19-1-N","Reach-in",18.440000000000001,1.41,"Reach-in refrigerator, solid door, 15-29 cu.ft.",75]
[null,"Turbo Air","ER19-1-N6-V","Reach-in",18.46,0.94,"Reach-in refrigerator, solid door, 15-29 cu.ft.",75]
[null,"Turbo Air","ER19-2-N","Reach-in",18.440000000000001,1.41,"Reach-in refrigerator, solid door, 15-29 cu.ft.",75]
[null,"Turbo Air","ER24-1-N","Reach-in",21.7,1.63,"Reach-in refrigerator, solid door, 15-29 cu.ft.",75]
[null,"Turbo Air","ER24-1-N6-V","Reach-in",21.94,1.08,"Reach-in refrigerator, solid door, 15-29 cu.ft.",75]
[null,"Turbo Air","ER24-2-N","Reach-in",21.7,1.63,"Reach-in refrigerator, solid door, 15-29 cu.ft.",75]
[null,"Turbo Air","ER47-2-N","Reach-in",42.1,2.42,"Reach-in refrigerator, solid door, 30-49 cu.ft.",125]
[null,"Turbo Air","ER47-2-N6-V","Reach-in",42.27,1.61,"Reach-in refrigerator, solid door, 30-49 cu.ft.",125]
[null,"Turbo Air","ER47-4-N","Reach-in",42.1,2.42,"Reach-in refrigerator, solid door, 30-49 cu.ft.",125]
[null,"Turbo Air","EUR-28-N6","Reach-in",6.76,0.75,"Reach-in refrigerator, solid door, < 15 cu.ft.",50]
[null,"Turbo Air","EUR-28-N6-N","Undercounter",7.11,0.69,"Reach-in refrigerator, solid door, < 15 cu.ft.",50]
[null,"Turbo Air","EUR-28-N6-N","Undercounter",7.11,0.77,"Reach-in refrigerator, solid door, < 15 cu.ft.",50]
[null,"Turbo Air","EUR-36-N6-V","Undercounter",9.74,0.86,"Reach-in refrigerator, solid door, < 15 cu.ft.",50]
[null,"Turbo Air","EUR-48-N6","Reach-in",12.18,0.93,"Reach-in refrigerator, solid door, < 15 cu.ft.",50]
[null,"Turbo Air","EUR-48-N6-V","Undercounter",13.24,1.1000000000000001,"Reach-in refrigerator, solid door, < 15 cu.ft.",50]
[null,"Turbo Air","EUR-60-N6","Reach-in",17.22,1.1100000000000001,"Reach-in refrigerator, solid door, 15-29 cu.ft.",75]
[null,"Turbo Air","EUR-60-N6-N","Undercounter",16.86,1.32,"Reach-in refrigerator, solid door, 15-29 cu.ft.",75]
[null,"Turbo Air","JUR-36-N6","Reach-in",6.37,0.73,"Reach-in refrigerator, solid door, < 15 cu.ft.",50]
[null,"Turbo Air","JUR-36N","Reach-in",5.66,0.8,"Reach-in refrigerator, solid door, < 15 cu.ft.",50]
[null,"Turbo Air","JUR-36S-N6","Reach-in",5.66,0.63,"Reach-in refrigerator, solid door, < 15 cu.ft.",50]
[null,"Turbo Air","JUR-48-N6","Reach-in",9.93,0.98,"Reach-in refrigerator, solid door, < 15 cu.ft.",50]
[null,"Turbo Air","JUR-48N","Reach-in",9.0399999999999991,0.98,"Reach-in refrigerator, solid door, < 15 cu.ft.",50]
[null,"Turbo Air","JUR-48S-N6","Reach-in",8.27,0.74,"Reach-in refrigerator, solid door, < 15 cu.ft.",50]
[null,"Turbo Air","JUR-60-N6","Reach-in",13.58,1.26,"Reach-in refrigerator, solid door, < 15 cu.ft.",50]
[null,"Turbo Air","JUR-60S-N6","Reach-in",11.31,1.04,"Reach-in refrigerator, solid door, < 15 cu.ft.",50]
[null,"Turbo Air","JUR-72-N6","Reach-in",17.2,1.1299999999999999,"Reach-in refrigerator, solid door, 15-29 cu.ft.",75]
[null,"Turbo Air","JUR-72S-N6","Reach-in",15.17,1.01,"Reach-in refrigerator, solid door, 15-29 cu.ft.",75]
[null,"Turbo Air","M3R19-1-N","Reach-in",18.440000000000001,1.41,"Reach-in refrigerator, solid door, 15-29 cu.ft.",75]
[null,"Turbo Air","M3R19-2-N","Reach-in",18.440000000000001,1.41,"Reach-in refrigerator, solid door, 15-29 cu.ft.",75]
[null,"Turbo Air","M3R24-1-N","Reach-in",21.7,0.94,"Reach-in refrigerator, solid door, 15-29 cu.ft.",75]
[null,"Turbo Air","M3R24-2-N","Reach-in",21.7,0.94,"Reach-in refrigerator, solid door, 15-29 cu.ft.",75]
[null,"Turbo Air","M3R47-2-N","Reach-in",42.1,1.65,"Reach-in refrigerator, solid door, 30-49 cu.ft.",125]
[null,"Turbo Air","M3R47-4-N","Reach-in",42.1,1.65,"Reach-in refrigerator, solid door, 30-49 cu.ft.",125]
[null,"Turbo Air","M3R72-3-N","Reach-in",65.88,2.35,"Reach-in refrigerator, solid door, ≥50 cu.ft.",200]
[null,"Turbo Air","M3R72-6-N","Reach-in",65.88,2.35,"Reach-in refrigerator, solid door, ≥50 cu.ft.",200]
[null,"Turbo Air","MUR-20S-N6","Reach-in",2.2999999999999998,0.82,"Reach-in refrigerator, solid door, < 15 cu.ft.",50]
[null,"Turbo Air","MUR-24S-N6","Reach-in",2.86,0.89,"Reach-in refrigerator, solid door, < 15 cu.ft.",50]
[null,"Turbo Air","MUR-28","Reach-in",6.8,0.84,"Reach-in refrigerator, solid door, < 15 cu.ft.",50]
[null,"Turbo Air","MUR-28L","Reach-in",6.8,0.84,"Reach-in refrigerator, solid door, < 15 cu.ft.",50]
[null,"Turbo Air","MUR-28L-N6","Reach-in",6.18,0.75,"Reach-in refrigerator, solid door, < 15 cu.ft.",50]
[null,"Turbo Air","MUR-36","Reach-in",9,1.06,"Reach-in refrigerator, solid door, < 15 cu.ft.",50]
[null,"Turbo Air","MUR-36-N6","Reach-in",9,0.91,"Reach-in refrigerator, solid door, < 15 cu.ft.",50]
[null,"Turbo Air","MUR-36L","Reach-in",9,1.06,"Reach-in refrigerator, solid door, < 15 cu.ft.",50]
[null,"Turbo Air","MUR-36L-N6","Reach-in",8.36,0.91,"Reach-in refrigerator, solid door, < 15 cu.ft.",50]
[null,"Turbo Air","MWR-20S-N6","Reach-in",2.2999999999999998,0.82,"Reach-in refrigerator, solid door, < 15 cu.ft.",50]
[null,"Turbo Air","MWR-24S-N6","Reach-in",2.86,0.89,"Reach-in refrigerator, solid door, < 15 cu.ft.",50]
[null,"Turbo Air","PRO-26-2R-N","Reach-in",25.4,1.58,"Reach-in refrigerator, solid door, 15-29 cu.ft.",75]
[null,"Turbo Air","PRO-26R-N","Reach-in",25.4,1.58,"Reach-in refrigerator, solid door, 15-29 cu.ft.",75]
[null,"Turbo Air","PRO-26R-RI-N","Reach-in",39.909999999999997,1.83,"Reach-in refrigerator, solid door, 30-49 cu.ft.",125]
[null,"Turbo Air","PRO-50-4R-N","Reach-in",48.7,2.4300000000000002,"Reach-in refrigerator, solid door, 30-49 cu.ft.",125]
[null,"Turbo Air","PRO-50R-N","Reach-in",48.7,2.4300000000000002,"Reach-in refrigerator, solid door, 30-49 cu.ft.",125]
[null,"Turbo Air","PRO-77-6R-N","Reach-in",75.040000000000006,2.99,"Reach-in refrigerator, solid door, ≥50 cu.ft.",200]
[null,"Turbo Air","PRO-77R-N","Reach-in",75.040000000000006,2.99,"Reach-in refrigerator, solid door, ≥50 cu.ft.",200]
[null,"Turbo Air","TBB-2SB-N6","Reach-in",19,1.53,"Reach-in refrigerator, solid door, 15-29 cu.ft.",75]
[null,"Turbo Air","TBB-3SB-N6","Reach-in",23,1.59,"Reach-in refrigerator, solid door, 15-29 cu.ft.",75]
[null,"Turbo Air","TBB-4SB-N","Reach-in",36.47,2.29,"Reach-in refrigerator, solid door, 30-49 cu.ft.",125]
[null,"Turbo Air","TBD-2SB","Reach-in",20.9,1.4,"Reach-in refrigerator, solid door, 15-29 cu.ft.",75]
[null,"Turbo Air","TBD-2SD","Reach-in",20.9,1.4,"Reach-in refrigerator, solid door, 15-29 cu.ft.",75]
[null,"Turbo Air","TCB-2SB-N6","Reach-in",20.9,1.33,"Reach-in refrigerator, solid door, 15-29 cu.ft.",75]
[null,"Turbo Air","TCB-2SD-N6","Reach-in",20.9,1.33,"Reach-in refrigerator, solid door, 15-29 cu.ft.",75]
[null,"Turbo Air","TCB-3SB-N6","Reach-in",25.4,1.1299999999999999,"Reach-in refrigerator, solid door, 15-29 cu.ft.",75]
[null,"Turbo Air","TCB-3SD-N6","Reach-in",25.4,1.1299999999999999,"Reach-in refrigerator, solid door, 15-29 cu.ft.",75]
[null,"Turbo Air","TCB-4SB-N","Reach-in",36.47,1.53,"Reach-in refrigerator, solid door, 30-49 cu.ft.",125]
[null,"Turbo Air","TCB-4SD-N","Reach-in",36.47,1.53,"Reach-in refrigerator, solid door, 30-49 cu.ft.",125]
[null,"Turbo Air","TSR-23SD*","Reach-in",19.3,1.56,"Reach-in refrigerator, solid door, 15-29 cu.ft.",75]
[null,"Turbo Air","TSR-23SD-N6","Reach-in",19.3,0.79,"Reach-in refrigerator, solid door, 15-29 cu.ft.",75]
[null,"Turbo Air","TSR-35SD-N","Reach-in",29,1.66,"Reach-in refrigerator, solid door, 15-29 cu.ft.",75]
[null,"Turbo Air","TSR-35SD-N6","Reach-in",29.19,1.45,"Reach-in refrigerator, solid door, 15-29 cu.ft.",75]
[null,"Turbo Air","TSR-49SD","Reach-in",41.1,2.4500000000000002,"Reach-in refrigerator, solid door, 30-49 cu.ft.",125]
[null,"Turbo Air","TSR-49SD-N6","Reach-in",42.69,1.37,"Reach-in refrigerator, solid door, 30-49 cu.ft.",125]
[null,"Turbo Air","TSR-72SD-N","Reach-in",64.099999999999994,2.33,"Reach-in refrigerator, solid door, ≥50 cu.ft.",200]
[null,"Turbo Air","TUR-28SD-D2","Undercounter",7,1.01,"Reach-in refrigerator, solid door, < 15 cu.ft.",50]
[null,"Turbo Air","TUR-36SD-N6","Reach-in",9,0.91,"Reach-in refrigerator, solid door, < 15 cu.ft.",50]
[null,"Turbo Air","TWR-28SD-D2","Work-Top Table",7,1.01,"Reach-in refrigerator, solid door, < 15 cu.ft.",50]
[null,"Turbo Air","TWR-36SD-N6","Reach-in",9,0.91,"Reach-in refrigerator, solid door, < 15 cu.ft.",50]
[null,"U-Line","UCRE524-SS32A","Reach-in",5.2,0.9,"Reach-in refrigerator, solid door, < 15 cu.ft.",50]
[null,"U-Line","UCRE524-SS33A","Reach-in",5.2,0.9,"Reach-in refrigerator, solid door, < 15 cu.ft.",50]
[null,"U-Line","UCWC524-SS32A","Reach-in",5.2,0.9,"Reach-in refrigerator, solid door, < 15 cu.ft.",50]
[null,"U-Line","UCWC524-SS33A","Reach-in",5.2,0.9,"Reach-in refrigerator, solid door, < 15 cu.ft.",50]
[null,"US Refrigeration","USBV-24R","Reach-in",19.149999999999999,1.56,"Reach-in refrigerator, solid door, 15-29 cu.ft.",75]
[null,"US Refrigeration","USBV-48R","Reach-in",43.46,2.34,"Reach-in refrigerator, solid door, 30-49 cu.ft.",125]
[null,"US Refrigeration","USTV-24R","Reach-in",21.38,1.56,"Reach-in refrigerator, solid door, 15-29 cu.ft.",75]
[null,"US Refrigeration","USTV-48R","Reach-in",41.99,2.34,"Reach-in refrigerator, solid door, 30-49 cu.ft.",125]
[null,"US Refrigeration","USUV-28","Undercounter",7.15,0.9,"Reach-in refrigerator, solid door, < 15 cu.ft.",50]
[null,"US Refrigeration","USUV-73","Undercounter",21.13,1.69,"Reach-in refrigerator, solid door, 15-29 cu.ft.",75]
[null,"US Refrigeration","USWT-28","Work-Top Table",7.15,0.9,"Reach-in refrigerator, solid door, < 15 cu.ft.",50]
[null,"US Refrigeration","USWT-73","Work-Top Table",21.13,1.69,"Reach-in refrigerator, solid door, 15-29 cu.ft.",75]
[null,"Utility Refrigerator","R-30-SS-1S-N-C","Reach-in",19.45,1.41,"Reach-in refrigerator, solid door, 15-29 cu.ft.",75]
[null,"Vencold","VC-R20SD","Reach-in",19.7,1.23,"Reach-in refrigerator, solid door, 15-29 cu.ft.",75]
[null,"Victory","RS-2D*S1*EW*HC","Reach-in",48.6,2.97,"Reach-in refrigerator, solid door, 30-49 cu.ft.",125]
[null,"Victory","RS-2D*S1*EW*HD*HC","Reach-in",48.26,2.97,"Reach-in refrigerator, solid door, 30-49 cu.ft.",125]
[null,"Victory","RSA-2D*S1*EW*HC","Reach-in",48.6,2.97,"Reach-in refrigerator, solid door, 30-49 cu.ft.",125]
[null,"Victory","RSA-2D*S1*EW*HD*HC","Reach-in",48.26,2.97,"Reach-in refrigerator, solid door, 30-49 cu.ft.",125]
[null,"Victory","VERSA-2D-HD-HC","Reach-in",45.2,2.57,"Reach-in refrigerator, solid door, 30-49 cu.ft.",125]
[null,"Victory","VERSA-2D-SD-HC","Reach-in",45.2,2.57,"Reach-in refrigerator, solid door, 30-49 cu.ft.",125]
[null,"Victory","VERSA-3D-HD-HC","Reach-in",71.52,3.5,"Reach-in refrigerator, solid door, ≥50 cu.ft.",200]
[null,"Victory","VERSA-3D-SD-HC","Reach-in",71.52,3.5,"Reach-in refrigerator, solid door, ≥50 cu.ft.",200]
[null,"Victory","VUR119HC***","Undercounter",40.119999999999997,2.69,"Reach-in refrigerator, solid door, 30-49 cu.ft.",125]
[null,"Victory","VUR27HC***","Undercounter",6.13,1.08,"Reach-in refrigerator, solid door, < 15 cu.ft.",50]
[null,"Victory","VUR36HC********","Undercounter",8.5,1.08,"Reach-in refrigerator, solid door, < 15 cu.ft.",50]
[null,"Victory","VURD119HC***","Undercounter",40.119999999999997,2.69,"Reach-in refrigerator, solid door, 30-49 cu.ft.",125]
[null,"Victory","VURD27HC***","Undercounter",6.13,1.08,"Reach-in refrigerator, solid door, < 15 cu.ft.",50]
[null,"Victory","VWR119HC***","Work-Top Table",40.119999999999997,2.69,"Reach-in refrigerator, solid door, 30-49 cu.ft.",125]
[null,"Victory","VWR27HC***","Work-Top Table",6.13,1.08,"Reach-in refrigerator, solid door, < 15 cu.ft.",50]
[null,"Victory","VWR36HC********","Work-Top Table",8.5,1.08,"Reach-in refrigerator, solid door, < 15 cu.ft.",50]
[null,"Victory","VWRD119HC***","Work-Top Table",40.119999999999997,2.69,"Reach-in refrigerator, solid door, 30-49 cu.ft.",125]
[null,"Victory","VWRD27HC***","Work-Top Table",6.13,1.08,"Reach-in refrigerator, solid door, < 15 cu.ft.",50]
[null,"Whynter","BEF-286SB","Reach-in",2.86,0.5,"Reach-in refrigerator, solid door, < 15 cu.ft.",50]
[null,"Whynter","BOR-53024-SSW","Undercounter",5.3,0.72,"Reach-in refrigerator, solid door, < 15 cu.ft.",50]
[null,"Whynter","TBR-182RS","Reach-in",1.8,0.57999999999999996,"Reach-in refrigerator, solid door, < 15 cu.ft.",50]
[null,"Whynter","TBR-185SR","Reach-in",1.8,0.57999999999999996,"Reach-in refrigerator, solid door, < 15 cu.ft.",50]
[null,"Zhejiang Meisda Refrigeration Technology Co.,Ltd.","SC68","Reach-in",2.2999999999999998,0.69,"Reach-in refrigerator, solid door, < 15 cu.ft.",50]
[null,"Zhejiang Meisda Refrigeration Technology Co.,Ltd.","SC80H","Reach-in",2.5,0.92,"Reach-in refrigerator, solid door, < 15 cu.ft.",50]

{"sheet":"Glass-Door Refrig","index":11,"n_rows":488,"n_cols":8,"rows_kept":488,"cut":false,"hidden":false,"merged":[]}
[null,"Qualified Glass Door Refrigerators",null,null,null,null,"Updated "," 12/15/2020"]
[null,"Qualifying models must meet ENERGY STAR® Version 4.0 specification and must be listed in the California Energy Commission database."]
[null,"Products on this list qualify for purchases from the date they are added until the date they are removed."]
[null,"NOTE: Program criteria are subject to change. Check your utility rebate application for terms and conditions, and effective program dates."]
[null,"Company","Model Number","Style Type","Total\nVolume\n(cu. ft.)","Daily\nEnergy Use\n(kWh)","Measure Type","Rebate \n(per unit)"]
[null,"ACCUCOLD","ACR1151*","Reach-in",9.36,1.3,"Reach-in refrigerator, glass door, <15 cu.ft.",100]
[null,"AHT","MALTA 185 NAM-R","Reach-in",27.46,1.47,"Reach-in refrigerator, glass door, 15-29 cu.ft.",150]
[null,"AHT","PARIS 210 NAM-R","Reach-in",32.25,1.81,"Reach-in refrigerator, glass door, 30-49 cu.ft.",250]
[null,"AHT","SYDNEY XL 210 NAM-R","Reach-in",40.98,2.11,"Reach-in refrigerator, glass door, 30-49 cu.ft.",250]
[null,"AHT","SYDNEY XL 250 NAM-R","Reach-in",49.88,1.52,"Reach-in refrigerator, glass door, 30-49 cu.ft.",250]
[null,"AHT","VENTO GD 250 L8 LAPS","Reach-in",119.42,6.2,"Reach-in refrigerator, glass door, ≥50 cu.ft.",400]
[null,"AHT","VENTO GD 250 L8 LTG","Reach-in",119.42,6.2,"Reach-in refrigerator, glass door, ≥50 cu.ft.",400]
[null,"AHT","VENTO GD 250 L8 LTG SLED","Reach-in",119.42,6.2,"Reach-in refrigerator, glass door, ≥50 cu.ft.",400]
[null,"AHT","VENTO GD 375 L8 LAPS","Reach-in",179.09,13.04,"Reach-in refrigerator, glass door, ≥50 cu.ft.",400]
[null,"AHT","VENTO GD 375 L8 LTG","Reach-in",179.09,13.04,"Reach-in refrigerator, glass door, ≥50 cu.ft.",400]
[null,"AHT","VENTO GD 375 L8 LTG SLED","Reach-in",179.09,13.04,"Reach-in refrigerator, glass door, ≥50 cu.ft.",400]
[null,"AHT","VENTO HYB GD 250 L8 LAPS","Reach-in",119.42,10.17,"Reach-in refrigerator, glass door, ≥50 cu.ft.",400]
[null,"AHT","VENTO HYB GD 250 L8 LTG","Reach-in",119.42,10.17,"Reach-in refrigerator, glass door, ≥50 cu.ft.",400]
[null,"AHT","VENTO HYB GD 250 L8 LTG SLED","Reach-in",119.42,10.17,"Reach-in refrigerator, glass door, ≥50 cu.ft.",400]
[null,"AHT","VENTO HYB GD 375 L8 LAPS","Reach-in",179.09,17.64,"Reach-in refrigerator, glass door, ≥50 cu.ft.",400]
[null,"AHT","VENTO HYB GD 375 L8 LTG","Reach-in",179.09,17.64,"Reach-in refrigerator, glass door, ≥50 cu.ft.",400]
[null,"AHT","VENTO HYB GD 375 L8 LTG SLED","Reach-in",179.09,17.64,"Reach-in refrigerator, glass door, ≥50 cu.ft.",400]
[null,"Avanti","CBC113G0WG","Reach-in",11.3,1.38,"Reach-in refrigerator, glass door, <15 cu.ft.",100]
[null,"Avanti","CF35T0WG-R","Reach-in",3.51,0.3,"Reach-in refrigerator, glass door, <15 cu.ft.",100]
[null,"Avanti","CFC83Q0WG-R","Reach-in",9.48,0.5,"Reach-in refrigerator, glass door, <15 cu.ft.",100]
[null,"Beverage-Air","CT96HC-1-**********","Reach-in",5.9,0.91,"Reach-in refrigerator, glass door, <15 cu.ft.",100]
[null,"Beverage-Air","HBR12HC-1*G***","Reach-in",12.06,1.5,"Reach-in refrigerator, glass door, <15 cu.ft.",100]
[null,"Beverage-Air","HBR19HC-1*G*********","Reach-in",17.87,1.98,"Reach-in refrigerator, glass door, 15-29 cu.ft.",150]
[null,"Beverage-Air","HBR23HC-1**G****","Reach-in",23.1,2.1800000000000002,"Reach-in refrigerator, glass door, 15-29 cu.ft.",150]
[null,"Beverage-Air","HBR27HC-1**G****","Reach-in",25.88,2.06,"Reach-in refrigerator, glass door, 15-29 cu.ft.",150]
[null,"Beverage-Air","HBR35HC-1*G*********","Reach-in",35.4,2.6,"Reach-in refrigerator, glass door, 30-49 cu.ft.",250]
[null,"Beverage-Air","HBR49HC-1**G****","Reach-in",46.15,3.65,"Reach-in refrigerator, glass door, 30-49 cu.ft.",250]
[null,"Beverage-Air","HBR72HC-1**G****","Reach-in",68.930000000000007,5.49,"Reach-in refrigerator, glass door, ≥50 cu.ft.",400]
[null,"Beverage-Air","HR2HC-1G****","Reach-in",46.88,3.55,"Reach-in refrigerator, glass door, 30-49 cu.ft.",250]
[null,"Beverage-Air","HR2HC-1HG****","Reach-in",46.88,3.55,"Reach-in refrigerator, glass door, 30-49 cu.ft.",250]
[null,"Beverage-Air","HR3HC-1G****","Reach-in",71.52,6.25,"Reach-in refrigerator, glass door, ≥50 cu.ft.",400]
[null,"Beverage-Air","HR3HC-1HG****","Reach-in",71.52,6.25,"Reach-in refrigerator, glass door, ≥50 cu.ft.",400]
[null,"Beverage-Air","HRP2HC-1G****","Reach-in",46.88,3.55,"Reach-in refrigerator, glass door, 30-49 cu.ft.",250]
[null,"Beverage-Air","HRP2HC-1HG****","Reach-in",46.88,3.55,"Reach-in refrigerator, glass door, 30-49 cu.ft.",250]
[null,"Beverage-Air","HRP3HC-1G****","Reach-in",71.52,6.25,"Reach-in refrigerator, glass door, ≥50 cu.ft.",400]
[null,"Beverage-Air","HRP3HC-1HG****","Reach-in",71.52,6.25,"Reach-in refrigerator, glass door, ≥50 cu.ft.",400]
[null,"Beverage-Air","HRPS2HC-1G****","Reach-in",46.88,3.55,"Reach-in refrigerator, glass door, 30-49 cu.ft.",250]
[null,"Beverage-Air","HRPS2HC-1HG****","Reach-in",46.88,3.55,"Reach-in refrigerator, glass door, 30-49 cu.ft.",250]
[null,"Beverage-Air","HRPS3HC-1G****","Reach-in",71.52,6.25,"Reach-in refrigerator, glass door, ≥50 cu.ft.",400]
[null,"Beverage-Air","HRPS3HC-1HG****","Reach-in",71.52,6.25,"Reach-in refrigerator, glass door, ≥50 cu.ft.",400]
[null,"Beverage-Air","HRS2HC-1G****","Reach-in",46.88,3.55,"Reach-in refrigerator, glass door, 30-49 cu.ft.",250]
[null,"Beverage-Air","HRS2HC-1HG****","Reach-in",46.88,3.55,"Reach-in refrigerator, glass door, 30-49 cu.ft.",250]
[null,"Beverage-Air","HRS3HC-1G****","Reach-in",71.52,6.25,"Reach-in refrigerator, glass door, ≥50 cu.ft.",400]
[null,"Beverage-Air","HRS3HC-1HG****","Reach-in",71.52,6.25,"Reach-in refrigerator, glass door, ≥50 cu.ft.",400]
[null,"Beverage-Air","LV10HC-1-********","Reach-in",9.6,1.32,"Reach-in refrigerator, glass door, <15 cu.ft.",100]
[null,"Beverage-Air","LV12HC-1*********","Reach-in",12.06,1.5,"Reach-in refrigerator, glass door, <15 cu.ft.",100]
[null,"Beverage-Air","LV19HC-1*********","Reach-in",17.87,1.98,"Reach-in refrigerator, glass door, 15-29 cu.ft.",150]
[null,"Beverage-Air","LV23HC-1*********","Reach-in",23.1,2.1800000000000002,"Reach-in refrigerator, glass door, 15-29 cu.ft.",150]
[null,"Beverage-Air","LV27HC-1*********","Reach-in",25.88,2.06,"Reach-in refrigerator, glass door, 15-29 cu.ft.",150]
[null,"Beverage-Air","LV35HC-1*********","Reach-in",35.4,2.6,"Reach-in refrigerator, glass door, 30-49 cu.ft.",250]
[null,"Beverage-Air","LV49HC-1*********","Reach-in",46.15,3.65,"Reach-in refrigerator, glass door, 30-49 cu.ft.",250]
[null,"Beverage-Air","LV72HC-1*********","Reach-in",68.930000000000007,5.49,"Reach-in refrigerator, glass door, ≥50 cu.ft.",400]
[null,"Beverage-Air","MMR19HC-1*********","Reach-in",17.87,1.98,"Reach-in refrigerator, glass door, 15-29 cu.ft.",150]
[null,"Beverage-Air","MMR23HC-1*******","Reach-in",23.1,2.1800000000000002,"Reach-in refrigerator, glass door, 15-29 cu.ft.",150]
[null,"Beverage-Air","MMR27HC-1*******","Reach-in",25.88,2.06,"Reach-in refrigerator, glass door, 15-29 cu.ft.",150]
[null,"Beverage-Air","MMR35HC-1*********","Reach-in",35.4,2.6,"Reach-in refrigerator, glass door, 30-49 cu.ft.",250]
[null,"Beverage-Air","MMR49HC-1*******","Reach-in",46.15,3.65,"Reach-in refrigerator, glass door, 30-49 cu.ft.",250]
[null,"Beverage-Air","MMR72HC-1*******","Reach-in",68.930000000000007,5.49,"Reach-in refrigerator, glass door, ≥50 cu.ft.",400]
[null,"Beverage-Air","MT08-1[*]","Reach-in",7.69,1.1499999999999999,"Reach-in refrigerator, glass door, <15 cu.ft.",100]
[null,"Beverage-Air","MT10-1[*]","Reach-in",9.43,1.24,"Reach-in refrigerator, glass door, <15 cu.ft.",100]
[null,"Beverage-Air","MT12-1[*]","Reach-in",11.5,1.46,"Reach-in refrigerator, glass door, <15 cu.ft.",100]
[null,"Beverage-Air","MT23-1[*]","Reach-in",19.2,1.8,"Reach-in refrigerator, glass door, 15-29 cu.ft.",150]
[null,"Beverage-Air","MT34-1","Reach-in",26.12,2.2599999999999998,"Reach-in refrigerator, glass door, 15-29 cu.ft.",150]
[null,"Beverage-Air","MT49-1-SD[*]","Reach-in",39.03,3,"Reach-in refrigerator, glass door, 30-49 cu.ft.",250]
[null,"Beverage-Air","MT49-1[*]","Reach-in",37.42,3.12,"Reach-in refrigerator, glass door, 30-49 cu.ft.",250]
[null,"Beverage-Air","MT53-1-SD[*]","Reach-in",41.66,3.31,"Reach-in refrigerator, glass door, 30-49 cu.ft.",250]
[null,"Beverage-Air","MT53-1[*]","Reach-in",41.66,3.29,"Reach-in refrigerator, glass door, 30-49 cu.ft.",250]
[null,"Beverage-Air","RB19HC-1*G*********","Reach-in",17.87,1.98,"Reach-in refrigerator, glass door, 15-29 cu.ft.",150]
[null,"Beverage-Air","RB23HC-1*G****","Reach-in",23.1,2.1800000000000002,"Reach-in refrigerator, glass door, 15-29 cu.ft.",150]
[null,"Beverage-Air","RB27HC-1*G****","Reach-in",25.88,2.06,"Reach-in refrigerator, glass door, 15-29 cu.ft.",150]
[null,"Beverage-Air","RB35HC-1*G*********","Reach-in",35.4,2.6,"Reach-in refrigerator, glass door, 30-49 cu.ft.",250]
[null,"Beverage-Air","RB49HC-1*G****","Reach-in",46.15,3.65,"Reach-in refrigerator, glass door, 30-49 cu.ft.",250]
[null,"Beverage-Air","RB72HC-1*G****","Reach-in",68.930000000000007,5.49,"Reach-in refrigerator, glass door, ≥50 cu.ft.",400]
[null,"Continental Refrigerator","1RENGD","Reach-in",21.4,2.06,"Reach-in refrigerator, glass door, 15-29 cu.ft.",150]
[null,"Continental Refrigerator","1RENGDHD","Reach-in",21.2,2.13,"Reach-in refrigerator, glass door, 15-29 cu.ft.",150]
[null,"Continental Refrigerator","1RENGDPT","Pass-Through",24.5,2.27,"Reach-in refrigerator, glass door, 15-29 cu.ft.",150]
[null,"Continental Refrigerator","1RENGDPTHD","Pass-Through",24,2.3199999999999998,"Reach-in refrigerator, glass door, 15-29 cu.ft.",150]
[null,"Continental Refrigerator","1RESNGD","Reach-in",18.8,1.84,"Reach-in refrigerator, glass door, 15-29 cu.ft.",150]
[null,"Continental Refrigerator","1RNGD","Reach-in",18.97,1.84,"Reach-in refrigerator, glass door, 15-29 cu.ft.",150]
[null,"Continental Refrigerator","1RNGDHD","Reach-in",18.600000000000001,1.89,"Reach-in refrigerator, glass door, 15-29 cu.ft.",150]
[null,"Continental Refrigerator","1RNGDPT","Pass-Through",22.1,2.2200000000000002,"Reach-in refrigerator, glass door, 15-29 cu.ft.",150]
[null,"Continental Refrigerator","1RSENGD","Reach-in",13.8,1.55,"Reach-in refrigerator, glass door, <15 cu.ft.",100]
[null,"Continental Refrigerator","1RSENGDHD","Reach-in",13.6,1.58,"Reach-in refrigerator, glass door, <15 cu.ft.",100]
[null,"Continental Refrigerator","1RSESNGD","Reach-in",11.3,1.42,"Reach-in refrigerator, glass door, <15 cu.ft.",100]
[null,"Continental Refrigerator","1RSNGD","Reach-in",14.7,1.6,"Reach-in refrigerator, glass door, <15 cu.ft.",100]
[null,"Continental Refrigerator","1RSNGDHD","Reach-in",14.4,1.63,"Reach-in refrigerator, glass door, <15 cu.ft.",100]
[null,"Continental Refrigerator","1RXNGD","Reach-in",28.7,2.29,"Reach-in refrigerator, glass door, 15-29 cu.ft.",150]
[null,"Continental Refrigerator","1RXNGDHD","Reach-in",28.4,2.46,"Reach-in refrigerator, glass door, 15-29 cu.ft.",150]
[null,"Continental Refrigerator","1RXNGDPT","Pass-Through",33.200000000000003,2.68,"Reach-in refrigerator, glass door, 30-49 cu.ft.",250]
[null,"Continental Refrigerator","1RXNGDPTHD","Pass-Through",32.6,2.76,"Reach-in refrigerator, glass door, 30-49 cu.ft.",250]
[null,"Continental Refrigerator","2RENGD","Reach-in",48.8,3.34,"Reach-in refrigerator, glass door, 30-49 cu.ft.",250]
[null,"Continental Refrigerator","2RENGDHD","Reach-in",48.3,3.45,"Reach-in refrigerator, glass door, 30-49 cu.ft.",250]
[null,"Continental Refrigerator","2RENGDPT","Pass-Through",53.8,4.2300000000000004,"Reach-in refrigerator, glass door, ≥50 cu.ft.",400]
[null,"Continental Refrigerator","2RENGDPTHD","Pass-Through",53,4.3099999999999996,"Reach-in refrigerator, glass door, ≥50 cu.ft.",400]
[null,"Continental Refrigerator","2RESNGD","Reach-in",40.799999999999997,3.05,"Reach-in refrigerator, glass door, 30-49 cu.ft.",250]
[null,"Continental Refrigerator","2RESNGDHD","Reach-in",40.299999999999997,3.11,"Reach-in refrigerator, glass door, 30-49 cu.ft.",250]
[null,"Continental Refrigerator","2RNGD","Reach-in",43.7,3.14,"Reach-in refrigerator, glass door, 30-49 cu.ft.",250]
[null,"Continental Refrigerator","2RNGDHD","Reach-in",42.6,3.21,"Reach-in refrigerator, glass door, 30-49 cu.ft.",250]
[null,"Continental Refrigerator","2RSNGD","Reach-in",36.5,2.82,"Reach-in refrigerator, glass door, 30-49 cu.ft.",250]
[null,"Continental Refrigerator","2RSNGDHD","Reach-in",36,2.88,"Reach-in refrigerator, glass door, 30-49 cu.ft.",250]
[null,"Continental Refrigerator","D1RINGD","Reach-in",32,2.61,"Reach-in refrigerator, glass door, 30-49 cu.ft.",250]
[null,"Continental Refrigerator","D2RENGDPT","Pass-Through",53.8,4.2300000000000004,"Reach-in refrigerator, glass door, ≥50 cu.ft.",400]
[null,"Continental Refrigerator","D2RENGDPTHD","Pass-Through",53,4.3099999999999996,"Reach-in refrigerator, glass door, ≥50 cu.ft.",400]
[null,"Continental Refrigerator","D2RINGD","Reach-in",62.94,4.6500000000000004,"Reach-in refrigerator, glass door, ≥50 cu.ft.",400]
[null,"Continental Refrigerator","D2RINGDRT","Reach-in",67.34,4.9800000000000004,"Reach-in refrigerator, glass door, ≥50 cu.ft.",400]
[null,"Continental Refrigerator","SW48NGD","Work-Top Table",11.6,1.49,"Reach-in refrigerator, glass door, <15 cu.ft.",100]
[null,"Continental Refrigerator","SW60NGD","Work-Top Table",14.5,1.53,"Reach-in refrigerator, glass door, <15 cu.ft.",100]
[null,"Continental Refrigerator","SW72NGD","Work-Top Table",18.5,2.02,"Reach-in refrigerator, glass door, 15-29 cu.ft.",150]
[null,"Delfield","CSR2NP-G","Reach-in",39.76,2.39,"Reach-in refrigerator, glass door, 30-49 cu.ft.",250]
[null,"Delfield","CSR2NP-GH","Reach-in",39.53,2.37,"Reach-in refrigerator, glass door, 30-49 cu.ft.",250]
[null,"Delfield","CSRPT1P-G","Pass-Through",23.63,2.21,"Reach-in refrigerator, glass door, 15-29 cu.ft.",150]
[null,"Delfield","CSRPT2P-G","Pass-Through",49.93,3.2,"Reach-in refrigerator, glass door, 30-49 cu.ft.",250]
[null,"Delfield","CSRPT2P-GH","Pass-Through",49.38,3.67,"Reach-in refrigerator, glass door, 30-49 cu.ft.",250]
[null,"Delfield","CSRRI1P-G","Roll-In",37.659999999999997,2.97,"Reach-in refrigerator, glass door, 30-49 cu.ft.",250]
[null,"Delfield","CSRRT2P-GS","Roll-Through",80.06,5.35,"Reach-in refrigerator, glass door, ≥50 cu.ft.",400]
[null,"Delfield","GCR1P-GH","Reach-in",21.46,2.04,"Reach-in refrigerator, glass door, 15-29 cu.ft.",150]
[null,"Delfield","GCR2P-G","Reach-in",45.85,3.69,"Reach-in refrigerator, glass door, 30-49 cu.ft.",250]
[null,"Delfield","GCR2P-GH","Reach-in",45.58,2.86,"Reach-in refrigerator, glass door, 30-49 cu.ft.",250]
[null,"Delfield","GCR3P-G","Reach-in",71.22,5.58,"Reach-in refrigerator, glass door, ≥50 cu.ft.",400]
[null,"Delfield","GCR3P-GH","Reach-in",70.81,5.05,"Reach-in refrigerator, glass door, ≥50 cu.ft.",400]
[null,"Economy Series","EUR27A","Reach-in",6.33,0.86,"Reach-in refrigerator, glass door, <15 cu.ft.",100]
[null,"Economy Series","EUR48A","Reach-in",12.09,1.22,"Reach-in refrigerator, glass door, <15 cu.ft.",100]
[null,"Everest Refrigeration","EMGR24","Reach-in",25.02,2.34,"Reach-in refrigerator, glass door, 15-29 cu.ft.",150]
[null,"Everest Refrigeration","EMGR24B","Reach-in",25.02,2.34,"Reach-in refrigerator, glass door, 15-29 cu.ft.",150]
[null,"Everest Refrigeration","EMGR24C","Reach-in",25.02,2.34,"Reach-in refrigerator, glass door, 15-29 cu.ft.",150]
[null,"Fogel","HR24-GL","Reach-in",3.9,0.65,"Reach-in refrigerator, glass door, <15 cu.ft.",100]
[null,"Fogel","V-513","Reach-in",15.62,1.79,"Reach-in refrigerator, glass door, 15-29 cu.ft.",150]
[null,"Fogel","VR-10-HC","Reach-in",8.74,1.1000000000000001,"Reach-in refrigerator, glass door, <15 cu.ft.",100]
[null,"Fogel","VR-12-HC","Reach-in",10.68,1.27,"Reach-in refrigerator, glass door, <15 cu.ft.",100]
[null,"Fogel","VR-17-RE","Reach-in",15.46,1.75,"Reach-in refrigerator, glass door, 15-29 cu.ft.",150]
[null,"Fogel","VR-26-HC","Reach-in",21.34,1.81,"Reach-in refrigerator, glass door, 15-29 cu.ft.",150]
[null,"Fogel","VR-9-HC-US","Reach-in",7.23,1.1000000000000001,"Reach-in refrigerator, glass door, <15 cu.ft.",100]
[null,"Frigidaire","FCGM181RQBB","Reach-in",18.48,2,"Reach-in refrigerator, glass door, 15-29 cu.ft.",150]
[null,"Haier","SC-258H","Reach-in",8.5,1.1499999999999999,"Reach-in refrigerator, glass door, <15 cu.ft.",100]
[null,"Haier","SC-328H","Reach-in",10.7,1.41,"Reach-in refrigerator, glass door, <15 cu.ft.",100]
[null,"Hoshizaki","CRMR27-GLP01","Undercounter",6.22,0.96,"Reach-in refrigerator, glass door, <15 cu.ft.",100]
[null,"Hoshizaki","HR24C","Reach-in",3.87,0.64,"Reach-in refrigerator, glass door, <15 cu.ft.",100]
[null,"Hoshizaki","R3A-FG***","Reach-in",79.03,6.5,"Reach-in refrigerator, glass door, ≥50 cu.ft.",400]
[null,"Hoshizaki","R3A-HG***","Reach-in",79.03,6.5,"Reach-in refrigerator, glass door, ≥50 cu.ft.",400]
[null,"Hoshizaki America","RM-10-HC","Reach-in",8.74,1.1000000000000001,"Reach-in refrigerator, glass door, <15 cu.ft.",100]
[null,"Hoshizaki America","RM-26-HC","Reach-in",21.34,1.81,"Reach-in refrigerator, glass door, 15-29 cu.ft.",150]
[null,"Hoshizaki America, Inc.","BB80-G*","Undercounter",28.73,2.44,"Reach-in refrigerator, glass door, 15-29 cu.ft.",150]
[null,"Hoshizaki America, Inc.","BB95-G*","Undercounter",32.53,2.64,"Reach-in refrigerator, glass door, 30-49 cu.ft.",250]
[null,"Hoshizaki America, Inc.","UR27A-GLP01","Undercounter",6.22,0.86,"Reach-in refrigerator, glass door, <15 cu.ft.",100]
[null,"Hoshizaki America, Inc.","UR48A-GLP01","Undercounter",12,1.1499999999999999,"Reach-in refrigerator, glass door, <15 cu.ft.",100]
[null,"Imbera","EVC04 R6","Reach-in",3.92,0.78,"Reach-in refrigerator, glass door, <15 cu.ft.",100]
[null,"Imbera","G319 R2","Reach-in",19.2,1.8,"Reach-in refrigerator, glass door, 15-29 cu.ft.",150]
[null,"Imbera","G319 R2 SZ","Reach-in",19.2,2.02,"Reach-in refrigerator, glass door, 15-29 cu.ft.",150]
[null,"Imbera","G326 R2","Reach-in",26.12,2.2599999999999998,"Reach-in refrigerator, glass door, 15-29 cu.ft.",150]
[null,"Imbera","VR08 R6","Reach-in",7.69,1.1499999999999999,"Reach-in refrigerator, glass door, <15 cu.ft.",100]
[null,"Imbera","VR09 CC R2","Reach-in",10.31,1.36,"Reach-in refrigerator, glass door, <15 cu.ft.",100]
[null,"Imbera","VR10 R2","Reach-in",9.43,1.24,"Reach-in refrigerator, glass door, <15 cu.ft.",100]
[null,"Imbera","VR12 R2","Reach-in",11.5,1.46,"Reach-in refrigerator, glass door, <15 cu.ft.",100]
[null,"Imbera","VRD21 R2","Reach-in",16.77,1.83,"Reach-in refrigerator, glass door, 15-29 cu.ft.",150]
[null,"Imbera","VRD26 HC","Reach-in",25.69,2.37,"Reach-in refrigerator, glass door, 15-29 cu.ft.",150]
[null,"Imbera","VRD26 HC","Reach-in",26.12,2.2599999999999998,"Reach-in refrigerator, glass door, 15-29 cu.ft.",150]
[null,"Imbera","VRD35 R2","Reach-in",32.119999999999997,2.56,"Reach-in refrigerator, glass door, 30-49 cu.ft.",250]
[null,"Imbera","VRD37 R2","Reach-in",37.42,3.12,"Reach-in refrigerator, glass door, 30-49 cu.ft.",250]
[null,"Imbera","VRD37 SD R2","Reach-in",39.03,3,"Reach-in refrigerator, glass door, 30-49 cu.ft.",250]
[null,"Imbera","VRD41 SD 48HC","Reach-in",13.44,1.62,"Reach-in refrigerator, glass door, <15 cu.ft.",100]
[null,"Imbera","VRD41 SD 54HC","Reach-in",17.100000000000001,1.71,"Reach-in refrigerator, glass door, 15-29 cu.ft.",150]
[null,"Imbera","VRD43 R2","Reach-in",41.66,3.29,"Reach-in refrigerator, glass door, 30-49 cu.ft.",250]
[null,"Imbera","VRD43 SD R2","Reach-in",41.66,3.31,"Reach-in refrigerator, glass door, 30-49 cu.ft.",250]
[null,"Imbera","VRD44 HC CZ","Reach-in",40.26,2.92,"Reach-in refrigerator, glass door, 30-49 cu.ft.",250]
[null,"Imbera","VRD50 HC CZ","Reach-in",45.16,3.04,"Reach-in refrigerator, glass door, 30-49 cu.ft.",250]
[null,"Kelvinator","KCGM180RQYB","Reach-in",18.48,2,"Reach-in refrigerator, glass door, 15-29 cu.ft.",150]
[null,"KERONG","BC-89","Reach-in",3.13,0.65,"Reach-in refrigerator, glass door, <15 cu.ft.",100]
[null,"KERONG","KWS-34F","Reach-in",3.13,0.65,"Reach-in refrigerator, glass door, <15 cu.ft.",100]
[null,"Master-Bilt","MPR80*SSG/0X","Reach-in",82.95,6.72,"Reach-in refrigerator, glass door, ≥50 cu.ft.",400]
[null,"METALFRIO","NG10CHC","Reach-in",9.1999999999999993,1,"Reach-in refrigerator, glass door, <15 cu.ft.",100]
[null,"METALFRIO","NG11CHC","Reach-in",9.5,1.1399999999999999,"Reach-in refrigerator, glass door, <15 cu.ft.",100]
[null,"METALFRIO","NG12CHC","Reach-in",11.29,1.17,"Reach-in refrigerator, glass door, <15 cu.ft.",100]
[null,"METALFRIO","NG13CHC","Reach-in",11.6,1.26,"Reach-in refrigerator, glass door, <15 cu.ft.",100]
[null,"METALFRIO","NG26CHC","Reach-in",22.2,2,"Reach-in refrigerator, glass door, 15-29 cu.ft.",150]
[null,"METALFRIO","NG27CHC","Reach-in",24.5,2.2799999999999998,"Reach-in refrigerator, glass door, 15-29 cu.ft.",150]
[null,"METALFRIO","NG42CHC","Reach-in",33.700000000000003,2.89,"Reach-in refrigerator, glass door, 30-49 cu.ft.",250]
[null,"METALFRIO","NG43CHC","Reach-in",39.229999999999997,3.31,"Reach-in refrigerator, glass door, 30-49 cu.ft.",250]
[null,"METALFRIO","NG43CHCSD","Reach-in",34.799999999999997,2.79,"Reach-in refrigerator, glass door, 30-49 cu.ft.",250]
[null,"METALFRIO","NG44CHC","Reach-in",41.18,3.34,"Reach-in refrigerator, glass door, 30-49 cu.ft.",250]
[null,"METALFRIO","NG49CHC","Reach-in",45.45,3.44,"Reach-in refrigerator, glass door, 30-49 cu.ft.",250]
[null,"METALFRIO","NG50CHC","Reach-in",48.64,3.54,"Reach-in refrigerator, glass door, 30-49 cu.ft.",250]
[null,"METALFRIO","NG6CHC","Reach-in",6.47,0.98,"Reach-in refrigerator, glass door, <15 cu.ft.",100]
[null,"METALFRIO","NG9CHC","Reach-in",8,1.1100000000000001,"Reach-in refrigerator, glass door, <15 cu.ft.",100]
[null,"METALFRIO SOLUTIONS MEXICO SA DE CV","NG4CHC","Reach-in",4.66,0.87,"Reach-in refrigerator, glass door, <15 cu.ft.",100]
[null,"Minus Forty","10-USGR-00-1C00*-***********","Reach-in",9.15,1.19,"Reach-in refrigerator, glass door, <15 cu.ft.",100]
[null,"Minus Forty","10-USGR-X1-1C00*-***********","Reach-in",9.15,1.19,"Reach-in refrigerator, glass door, <15 cu.ft.",100]
[null,"Minus Forty","13-USGR-00-1C00*-***********","Reach-in",11.24,1.37,"Reach-in refrigerator, glass door, <15 cu.ft.",100]
[null,"Minus Forty","13-USGR-L1-1C00*-***********","Reach-in",11.24,1.37,"Reach-in refrigerator, glass door, <15 cu.ft.",100]
[null,"Minus Forty","13-USGR-L2-1C00*-***********","Reach-in",11.24,1.37,"Reach-in refrigerator, glass door, <15 cu.ft.",100]
[null,"Minus Forty","13-USGR-X1-1C00*-***********","Reach-in",11.24,1.37,"Reach-in refrigerator, glass door, <15 cu.ft.",100]
[null,"Minus Forty","19-USGR-**-1C00*-*********","Reach-in",18.39,1.85,"Reach-in refrigerator, glass door, 15-29 cu.ft.",150]
[null,"Minus Forty","19-USGR-00-1C00*-***********","Reach-in",18.39,1.72,"Reach-in refrigerator, glass door, 15-29 cu.ft.",150]
[null,"Minus Forty","19-USGR-L1-1C00*-***********","Reach-in",18.39,1.72,"Reach-in refrigerator, glass door, 15-29 cu.ft.",150]
[null,"Minus Forty","19-USGR-L2-1C00*-***********","Reach-in",18.39,1.72,"Reach-in refrigerator, glass door, 15-29 cu.ft.",150]
[null,"Minus Forty","19-USGR-X1-1C00*-***********","Reach-in",18.39,1.72,"Reach-in refrigerator, glass door, 15-29 cu.ft.",150]
[null,"Minus Forty","22-USGR-**-1C00*-*********","Reach-in",21.5,1.85,"Reach-in refrigerator, glass door, 15-29 cu.ft.",150]
[null,"Minus Forty","22-USGR-00-1C00*-***********","Reach-in",21.5,1.85,"Reach-in refrigerator, glass door, 15-29 cu.ft.",150]
[null,"Minus Forty","22-USGR-F1-1C00*-***********","Reach-in",21.83,2.06,"Reach-in refrigerator, glass door, 15-29 cu.ft.",150]
[null,"Minus Forty","22-USGR-F2-1C00*-***********","Reach-in",21.83,2.06,"Reach-in refrigerator, glass door, 15-29 cu.ft.",150]
[null,"Minus Forty","22-USGR-L1-1C00*-***********","Reach-in",21.5,1.85,"Reach-in refrigerator, glass door, 15-29 cu.ft.",150]
[null,"Minus Forty","22-USGR-L2-1C00*-***********","Reach-in",21.5,1.85,"Reach-in refrigerator, glass door, 15-29 cu.ft.",150]
[null,"Minus Forty","22-USGR-X1-1C00*-***********","Reach-in",21.5,1.85,"Reach-in refrigerator, glass door, 15-29 cu.ft.",150]
[null,"Minus Forty","43-UDGR-**-1C00*-*********","Reach-in",35.44,2.85,"Reach-in refrigerator, glass door, 30-49 cu.ft.",250]
[null,"Minus Forty","43-UDGR-00-1C00*-***********","Reach-in",35.43,2.81,"Reach-in refrigerator, glass door, 30-49 cu.ft.",250]
[null,"Minus Forty","43-UDGR-L1-1C00*-***********","Reach-in",35.43,2.81,"Reach-in refrigerator, glass door, 30-49 cu.ft.",250]
[null,"Minus Forty","43-UDGR-X1-1C00*-***********","Reach-in",35.43,2.81,"Reach-in refrigerator, glass door, 30-49 cu.ft.",250]
[null,"Minus Forty","44-UDGR-**-1C00*-*********","Reach-in",38.43,2.85,"Reach-in refrigerator, glass door, 30-49 cu.ft.",250]
[null,"Minus Forty","44-UDGR-00-1C00*-***********","Reach-in",38.43,2.85,"Reach-in refrigerator, glass door, 30-49 cu.ft.",250]
[null,"Minus Forty","44-UDGR-L1-1C00*-***********","Reach-in",38.43,2.85,"Reach-in refrigerator, glass door, 30-49 cu.ft.",250]
[null,"Minus Forty","44-UDGR-X1-1C00*-***********","Reach-in",38.43,2.85,"Reach-in refrigerator, glass door, 30-49 cu.ft.",250]
[null,"Norlake","NR803**G/0X","Reach-in",79.849999999999994,5.98,"Reach-in refrigerator, glass door, ≥50 cu.ft.",400]
[null,"Norlake","NR806**G/0X","Reach-in",79.52,5.9,"Reach-in refrigerator, glass door, ≥50 cu.ft.",400]
[null,"Norlake","NR806SSG/0","Reach-in",79.52,7.2,"Reach-in refrigerator, glass door, ≥50 cu.ft.",400]
[null,"Norlake","PR80*SSG/0X","Reach-in",82.95,6.72,"Reach-in refrigerator, glass door, ≥50 cu.ft.",400]
[null,"Perlick","BBS60-RF-G-*-*-H1","Reach-in",16.04,1.87,"Reach-in refrigerator, glass door, 15-29 cu.ft.",150]
[null,"Perlick","BBS60GS-S-4","Reach-in",16.04,1.87,"Reach-in refrigerator, glass door, 15-29 cu.ft.",150]
[null,"Perlick","HC24RS4T-**-*****","Undercounter",5.22,0.86,"Reach-in refrigerator, glass door, <15 cu.ft.",100]
[null,"Perlick","HC24WS4T-**-*****","Undercounter",5.22,0.86,"Reach-in refrigerator, glass door, <15 cu.ft.",100]
[null,"Pro-Kold","VC-12-H2-G1","Reach-in",11.5,1.46,"Reach-in refrigerator, glass door, <15 cu.ft.",100]
[null,"Pro-Kold","VC-23-H2-G1","Reach-in",19.2,1.8,"Reach-in refrigerator, glass door, 15-29 cu.ft.",150]
[null,"Pro-Kold","VC-43-H2-G2","Reach-in",37.42,3.12,"Reach-in refrigerator, glass door, 30-49 cu.ft.",250]
[null,"Pro-Kold","VC-49-H2-G2","Reach-in",41.66,3.29,"Reach-in refrigerator, glass door, 30-49 cu.ft.",250]
[null,"Pro-Kold","VRD26 HC","Reach-in",25.69,2.37,"Reach-in refrigerator, glass door, 15-29 cu.ft.",150]
[null,"Pro-Kold","VRD26 HC","Reach-in",26.12,2.2599999999999998,"Reach-in refrigerator, glass door, 15-29 cu.ft.",150]
[null,"Pro-Kold","VRD44 HC CZ","Reach-in",40.26,2.92,"Reach-in refrigerator, glass door, 30-49 cu.ft.",250]
[null,"Pro-Kold","VRD50 HC CZ","Reach-in",45.16,3.04,"Reach-in refrigerator, glass door, 30-49 cu.ft.",250]
[null,"QBD","PC8-HC","Reach-in",9.67,1.3,"Reach-in refrigerator, glass door, <15 cu.ft.",100]
[null,"QDB","CD34-HC","Reach-in",28.96,2.5499999999999998,"Reach-in refrigerator, glass door, 15-29 cu.ft.",150]
[null,"QDB","CD35-HC","Reach-in",30.29,2.5499999999999998,"Reach-in refrigerator, glass door, 30-49 cu.ft.",250]
[null,"Royal Vendors","RVCF-027","Reach-in",25.44,2.39,"Reach-in refrigerator, glass door, 15-29 cu.ft.",150]
[null,"Royal Vendors","RVCFH-027","Reach-in",25.44,2.39,"Reach-in refrigerator, glass door, 15-29 cu.ft.",150]
[null,"Summit","BAR19","Reach-in",3.13,0.65,"Reach-in refrigerator, glass door, <15 cu.ft.",100]
[null,"Summit","BAR191S","Reach-in",3.13,0.65,"Reach-in refrigerator, glass door, <15 cu.ft.",100]
[null,"Summit","BC193S","Reach-in",3.13,0.65,"Reach-in refrigerator, glass door, <15 cu.ft.",100]
[null,"Summit","BC89","Reach-in",3.13,0.65,"Reach-in refrigerator, glass door, <15 cu.ft.",100]
[null,"Summit","SCR1400W","Reach-in",15.2,1.88,"Reach-in refrigerator, glass door, 15-29 cu.ft.",150]
[null,"Summit","SCR1931","Reach-in",3.13,0.65,"Reach-in refrigerator, glass door, <15 cu.ft.",100]
[null,"Summit","SCR314L","Reach-in",2.15,0.64,"Reach-in refrigerator, glass door, <15 cu.ft.",100]
[null,"Summit","SCR489OS","Reach-in",3.21,0.6,"Reach-in refrigerator, glass door, <15 cu.ft.",100]
[null,"Summit","SCR610BL","Reach-in",5.07,0.84,"Reach-in refrigerator, glass door, <15 cu.ft.",100]
[null,"Summit","SPR489OS","Reach-in",3.13,0.65,"Reach-in refrigerator, glass door, <15 cu.ft.",100]
[null,"Summit Commercial","ADA72G","Other",5.43,0.94,"Reach-in refrigerator, glass door, <15 cu.ft.",100]
[null,"Summit Commercial","ADA72GB***","Other",5.5,0.94,"Reach-in refrigerator, glass door, <15 cu.ft.",100]
[null,"Summit Commercial","ADA72GLH","Other",5.43,0.94,"Reach-in refrigerator, glass door, <15 cu.ft.",100]
[null,"Summit Commercial","BAR72G","Other",5.43,0.94,"Reach-in refrigerator, glass door, <15 cu.ft.",100]
[null,"Summit Commercial","BAR72GB***","Other",5.5,0.94,"Reach-in refrigerator, glass door, <15 cu.ft.",100]
[null,"Summit Commercial","BAR72GLH","Other",5.43,0.94,"Reach-in refrigerator, glass door, <15 cu.ft.",100]
[null,"Summit Commercial","SBC56****","Undercounter",5.43,0.94,"Reach-in refrigerator, glass door, <15 cu.ft.",100]
[null,"Summit Commercial","SBC56BG****","Other",5.5,0.94,"Reach-in refrigerator, glass door, <15 cu.ft.",100]
[null,"Summit Commercial","SCLP73BG***","Other",5.5,0.94,"Reach-in refrigerator, glass door, <15 cu.ft.",100]
[null,"Summit Commercial","SCLP74WG***","Other",5.5,0.94,"Reach-in refrigerator, glass door, <15 cu.ft.",100]
[null,"Summit Commercial","SCOM73BG****","Other",5.5,0.94,"Reach-in refrigerator, glass door, <15 cu.ft.",100]
[null,"Summit Commercial","SCOM74WG***","Other",5.5,0.94,"Reach-in refrigerator, glass door, <15 cu.ft.",100]
[null,"Summit Commercial","SCR23SSG**","Reach-in",19.53,1.74,"Reach-in refrigerator, glass door, 15-29 cu.ft.",150]
[null,"Summit Commercial","SCR23SSGLH**","Reach-in",19.53,1.74,"Reach-in refrigerator, glass door, 15-29 cu.ft.",150]
[null,"Summit Commercial","SCR49SSG**","Reach-in",42.24,3.15,"Reach-in refrigerator, glass door, 30-49 cu.ft.",250]
[null,"Summit Commercial","SCR49SSGLH**","Reach-in",42.24,3.16,"Reach-in refrigerator, glass door, 30-49 cu.ft.",250]
[null,"Summit Commercial","SCR600*GL**","Other",5.43,0.94,"Reach-in refrigerator, glass door, <15 cu.ft.",100]
[null,"Summit Commercial","SCR600B*GL**","Other",5.43,0.94,"Reach-in refrigerator, glass door, <15 cu.ft.",100]
[null,"Summit Commercial","SCR600B*GL**","Other",5.43,0.94,"Reach-in refrigerator, glass door, <15 cu.ft.",100]
[null,"Summit Commercial","SCR72SSG**","Reach-in",60.84,4.18,"Reach-in refrigerator, glass door, ≥50 cu.ft.",400]
[null,"Summit Commercial","SCR72SSGLH**","Reach-in",60.84,4.18,"Reach-in refrigerator, glass door, ≥50 cu.ft.",400]
[null,"Traulsen","CLUC-27R-GD","Undercounter",6.8,1.04,"Reach-in refrigerator, glass door, <15 cu.ft.",100]
[null,"Traulsen","CLUC-36R-GD","Undercounter",9.3000000000000007,1.26,"Reach-in refrigerator, glass door, <15 cu.ft.",100]
[null,"Traulsen","CLUC-48R-GD","Undercounter",12.8,1.58,"Reach-in refrigerator, glass door, <15 cu.ft.",100]
[null,"Traulsen","CLUC-60R-GD","Undercounter",16.399999999999999,1.84,"Reach-in refrigerator, glass door, 15-29 cu.ft.",150]
[null,"Traulsen","CLUC-72R-GD","Undercounter",20.3,2.0299999999999998,"Reach-in refrigerator, glass door, 15-29 cu.ft.",150]
[null,"True","GDM-05-HC-LD","Reach-in",5.43,0.87,"Reach-in refrigerator, glass door, <15 cu.ft.",100]
[null,"True","GDM-05-S-HC-LD","Reach-in",5.43,0.87,"Reach-in refrigerator, glass door, <15 cu.ft.",100]
[null,"True","GDM-06-34-HC~TSL01","Reach-in",5.35,0.86,"Reach-in refrigerator, glass door, <15 cu.ft.",100]
[null,"True","GDM-07-HC-LD","Reach-in",6.69,1.04,"Reach-in refrigerator, glass door, <15 cu.ft.",100]
[null,"True","GDM-07-HC~TSL01","Pass-Through",6.69,1.04,"Reach-in refrigerator, glass door, <15 cu.ft.",100]
[null,"True","GDM-07-S-HC-LD","Reach-in",6.69,1.04,"Reach-in refrigerator, glass door, <15 cu.ft.",100]
[null,"True","GDM-08-HC~TSL01","Reach-in",6.66,1.05,"Reach-in refrigerator, glass door, <15 cu.ft.",100]
[null,"True","GDM-10-58-HC-LD","Reach-in",10.31,1.38,"Reach-in refrigerator, glass door, <15 cu.ft.",100]
[null,"True","GDM-10-HC-LD","Reach-in",9.1999999999999993,1.18,"Reach-in refrigerator, glass door, <15 cu.ft.",100]
[null,"True","GDM-10-HC~TSL01","Pass-Through",9.1999999999999993,1.18,"Reach-in refrigerator, glass door, <15 cu.ft.",100]
[null,"True","GDM-12-HC-LD","Reach-in",11.31,1.27,"Reach-in refrigerator, glass door, <15 cu.ft.",100]
[null,"True","GDM-12-HC~TSL01","Pass-Through",11.31,1.27,"Reach-in refrigerator, glass door, <15 cu.ft.",100]
[null,"True","GDM-12FC-HC-LD","Reach-in",11.31,1.27,"Reach-in refrigerator, glass door, <15 cu.ft.",100]
[null,"True","GDM-19T-HC-LD","Reach-in",16.45,1.91,"Reach-in refrigerator, glass door, 15-29 cu.ft.",150]
[null,"True","GDM-19T-HC-LD~TSL01","Reach-in",16.45,1.91,"Reach-in refrigerator, glass door, 15-29 cu.ft.",150]
[null,"True","GDM-19T-HC~TSL01","Reach-in",16.45,1.91,"Reach-in refrigerator, glass door, 15-29 cu.ft.",150]
[null,"True","GDM-23-2-HC-LD","Reach-in",20.41,1.84,"Reach-in refrigerator, glass door, 15-29 cu.ft.",150]
[null,"True","GDM-23-HC-LD","Reach-in",20.55,1.95,"Reach-in refrigerator, glass door, 15-29 cu.ft.",150]
[null,"True","GDM-23-HC~TSL01","Reach-in",20.55,1.95,"Reach-in refrigerator, glass door, 15-29 cu.ft.",150]
[null,"True","GDM-23-HST-HC~TSL01","Reach-in",20.55,1.95,"Reach-in refrigerator, glass door, 15-29 cu.ft.",150]
[null,"True","GDM-23FC-HC~TSL01","Reach-in",20.55,1.95,"Reach-in refrigerator, glass door, 15-29 cu.ft.",150]
[null,"True","GDM-23W-HC~TSL01","Reach-in",20.55,1.95,"Reach-in refrigerator, glass door, 15-29 cu.ft.",150]
[null,"True","GDM-26-HC-LD","Reach-in",23.12,2.2200000000000002,"Reach-in refrigerator, glass door, 15-29 cu.ft.",150]
[null,"True","GDM-26-HC~TSL01","Reach-in",23.21,1.92,"Reach-in refrigerator, glass door, 15-29 cu.ft.",150]
[null,"True","GDM-26-HST-HC~TSL01","Reach-in",23.21,1.92,"Reach-in refrigerator, glass door, 15-29 cu.ft.",150]
[null,"True","GDM-35SL-RF-HC-LD","Reach-in",15.5,1.72,"Reach-in refrigerator, glass door, 15-29 cu.ft.",150]
[null,"True","GDM-41C-48-HC-LD","Reach-in",14.48,1.57,"Reach-in refrigerator, glass door, <15 cu.ft.",100]
[null,"True","GDM-41SL-54-HC-LD","Reach-in",14.1,1.74,"Reach-in refrigerator, glass door, <15 cu.ft.",100]
[null,"True","GDM-41SL-60-HC-LD","Reach-in",16.5,1.85,"Reach-in refrigerator, glass door, 15-29 cu.ft.",150]
[null,"True","GDM-49-HC-LD","Reach-in",44.34,3.6,"Reach-in refrigerator, glass door, 30-49 cu.ft.",250]
[null,"True","GDM-49-HC~TSL01","Reach-in",44.34,3.6,"Reach-in refrigerator, glass door, 30-49 cu.ft.",250]
[null,"True","GDM-49FC-HC~TSL01","Reach-in",44.34,3.6,"Reach-in refrigerator, glass door, 30-49 cu.ft.",250]
[null,"True","GDM-72-HC-LD","Reach-in",65.680000000000007,4.9000000000000004,"Reach-in refrigerator, glass door, ≥50 cu.ft.",400]
[null,"True","GDM-72-HC~TSL01","Reach-in",65.680000000000007,4.9000000000000004,"Reach-in refrigerator, glass door, ≥50 cu.ft.",400]
[null,"True","GDM-72FC-HC~TSL01","Reach-in",65.680000000000007,4.9000000000000004,"Reach-in refrigerator, glass door, ≥50 cu.ft.",400]
[null,"True","STA1R-1G","Reach-in",22.86,2.21,"Reach-in refrigerator, glass door, 15-29 cu.ft.",150]
[null,"True","STA1R-1G-HC","Reach-in",22.86,1.74,"Reach-in refrigerator, glass door, 15-29 cu.ft.",150]
[null,"True","STA1R-1HG/1HS","Reach-in",22.33,2.11,"Reach-in refrigerator, glass door, 15-29 cu.ft.",150]
[null,"True","STA1R-2HG","Reach-in",22.67,2.11,"Reach-in refrigerator, glass door, 15-29 cu.ft.",150]
[null,"True","STA1RPT-1G-1G-HC","Reach-in",25.07,2.37,"Reach-in refrigerator, glass door, 15-29 cu.ft.",150]
[null,"True","STA1RPT-1G-1G-HC","Pass-Through",25.07,2.37,"Reach-in refrigerator, glass door, 15-29 cu.ft.",150]
[null,"True","STA1RRI-1G","Roll-In",36.979999999999997,3.06,"Reach-in refrigerator, glass door, 30-49 cu.ft.",250]
[null,"True","STA2R-2G-HC","Reach-in",48.4,3.01,"Reach-in refrigerator, glass door, 30-49 cu.ft.",250]
[null,"True","STA2R-4HG-HC","Reach-in",48.01,3.41,"Reach-in refrigerator, glass door, 30-49 cu.ft.",250]
[null,"True","STA2RPT-2G-2G-HC","Reach-in",52.79,3.41,"Reach-in refrigerator, glass door, ≥50 cu.ft.",400]
[null,"True","STA2RPT-2G-2G-HC","Pass-Through",52.79,3.41,"Reach-in refrigerator, glass door, ≥50 cu.ft.",400]
[null,"True","STA2RPT-2G-2S-HC","Reach-in",51.25,3.41,"Reach-in refrigerator, glass door, ≥50 cu.ft.",400]
[null,"True","STA2RPT-2G-2S-HC","Pass-Through",51.25,3.41,"Reach-in refrigerator, glass door, ≥50 cu.ft.",400]
[null,"True","STA2RPT-2HG/2HS-2G-HC","Reach-in",52.1,3.41,"Reach-in refrigerator, glass door, ≥50 cu.ft.",400]
[null,"True","STA2RPT-2HG/2HS-2G-HC","Pass-Through",52.1,3.41,"Reach-in refrigerator, glass door, ≥50 cu.ft.",400]
[null,"True","STA2RPT-2S-2G-HC","Reach-in",51.25,3.41,"Reach-in refrigerator, glass door, ≥50 cu.ft.",400]
[null,"True","STA2RPT-2S-2G-HC","Pass-Through",51.25,3.41,"Reach-in refrigerator, glass door, ≥50 cu.ft.",400]
[null,"True","STA2RPT-4HG-2G-HC","Reach-in",52.4,3.41,"Reach-in refrigerator, glass door, ≥50 cu.ft.",400]
[null,"True","STA2RPT-4HG-2G-HC","Pass-Through",52.4,3.41,"Reach-in refrigerator, glass door, ≥50 cu.ft.",400]
[null,"True","STA2RPT-4HG-2S-HC","Reach-in",50.85,3.41,"Reach-in refrigerator, glass door, ≥50 cu.ft.",400]
[null,"True","STA2RPT-4HG-2S-HC","Pass-Through",50.85,3.41,"Reach-in refrigerator, glass door, ≥50 cu.ft.",400]
[null,"True","STA2RPT-4HG-4HG-HC","Reach-in",52.01,3.41,"Reach-in refrigerator, glass door, ≥50 cu.ft.",400]
[null,"True","STA2RPT-4HG-4HG-HC","Pass-Through",52.01,3.41,"Reach-in refrigerator, glass door, ≥50 cu.ft.",400]
[null,"True","STA2RPT-4HS-2G-HC","Reach-in",51.08,3.41,"Reach-in refrigerator, glass door, ≥50 cu.ft.",400]
[null,"True","STA2RPT-4HS-2G-HC","Pass-Through",51.08,3.41,"Reach-in refrigerator, glass door, ≥50 cu.ft.",400]
[null,"True","STA3R-3G","Reach-in",73.78,6.52,"Reach-in refrigerator, glass door, ≥50 cu.ft.",400]
[null,"True","STG1R-1G","Reach-in",22.86,2.21,"Reach-in refrigerator, glass door, 15-29 cu.ft.",150]
[null,"True","STG1R-1G-HC","Reach-in",22.86,1.74,"Reach-in refrigerator, glass door, 15-29 cu.ft.",150]
[null,"True","STG1R-1HG/1HS","Reach-in",22.33,2.11,"Reach-in refrigerator, glass door, 15-29 cu.ft.",150]
[null,"True","STG1R-2HG","Reach-in",22.67,2.11,"Reach-in refrigerator, glass door, 15-29 cu.ft.",150]
[null,"True","STG1RPT-1G-1G-HC","Reach-in",25.07,2.37,"Reach-in refrigerator, glass door, 15-29 cu.ft.",150]
[null,"True","STG1RPT-1G-1G-HC","Pass-Through",25.07,2.37,"Reach-in refrigerator, glass door, 15-29 cu.ft.",150]
[null,"True","STG1RRI-1G","Roll-In",36.979999999999997,3.06,"Reach-in refrigerator, glass door, 30-49 cu.ft.",250]
[null,"True","STG2R-2G-HC","Reach-in",48.4,3.01,"Reach-in refrigerator, glass door, 30-49 cu.ft.",250]
[null,"True","STG2R-4HG-HC","Reach-in",48.01,3.41,"Reach-in refrigerator, glass door, 30-49 cu.ft.",250]
[null,"True","STG2RPT-2G-2G-HC","Reach-in",52.79,3.41,"Reach-in refrigerator, glass door, ≥50 cu.ft.",400]
[null,"True","STG2RPT-2G-2G-HC","Pass-Through",52.79,3.41,"Reach-in refrigerator, glass door, ≥50 cu.ft.",400]
[null,"True","STG2RPT-2G-2S-HC","Reach-in",51.25,3.41,"Reach-in refrigerator, glass door, ≥50 cu.ft.",400]
[null,"True","STG2RPT-2G-2S-HC","Pass-Through",51.25,3.41,"Reach-in refrigerator, glass door, ≥50 cu.ft.",400]
[null,"True","STG2RPT-2HG/2HS-2G-HC","Reach-in",52.1,3.41,"Reach-in refrigerator, glass door, ≥50 cu.ft.",400]
[null,"True","STG2RPT-2HG/2HS-2G-HC","Pass-Through",52.1,3.41,"Reach-in refrigerator, glass door, ≥50 cu.ft.",400]
[null,"True","STG2RPT-2S-2G-HC","Reach-in",51.25,3.41,"Reach-in refrigerator, glass door, ≥50 cu.ft.",400]
[null,"True","STG2RPT-2S-2G-HC","Pass-Through",51.25,3.41,"Reach-in refrigerator, glass door, ≥50 cu.ft.",400]
[null,"True","STG2RPT-4HG-2G-HC","Reach-in",52.4,3.41,"Reach-in refrigerator, glass door, ≥50 cu.ft.",400]
[null,"True","STG2RPT-4HG-2G-HC","Pass-Through",52.4,3.41,"Reach-in refrigerator, glass door, ≥50 cu.ft.",400]
[null,"True","STG2RPT-4HG-2S-HC","Reach-in",50.85,3.41,"Reach-in refrigerator, glass door, ≥50 cu.ft.",400]
[null,"True","STG2RPT-4HG-2S-HC","Pass-Through",50.85,3.41,"Reach-in refrigerator, glass door, ≥50 cu.ft.",400]
[null,"True","STG2RPT-4HG-4HG-HC","Reach-in",52.01,3.41,"Reach-in refrigerator, glass door, ≥50 cu.ft.",400]
[null,"True","STG2RPT-4HG-4HG-HC","Pass-Through",52.01,3.41,"Reach-in refrigerator, glass door, ≥50 cu.ft.",400]
[null,"True","STG2RPT-4HS-2G-HC","Reach-in",51.08,3.41,"Reach-in refrigerator, glass door, ≥50 cu.ft.",400]
[null,"True","STG2RPT-4HS-2G-HC","Pass-Through",51.08,3.41,"Reach-in refrigerator, glass door, ≥50 cu.ft.",400]
[null,"True","STG3R-3G","Reach-in",73.78,6.52,"Reach-in refrigerator, glass door, ≥50 cu.ft.",400]
[null,"True","STR1R-1G","Reach-in",22.86,2.21,"Reach-in refrigerator, glass door, 15-29 cu.ft.",150]
[null,"True","STR1R-1G-HC","Reach-in",22.86,1.74,"Reach-in refrigerator, glass door, 15-29 cu.ft.",150]
[null,"True","STR1R-1HG/1HS","Reach-in",22.33,2.11,"Reach-in refrigerator, glass door, 15-29 cu.ft.",150]
[null,"True","STR1R-2HG","Reach-in",22.67,2.11,"Reach-in refrigerator, glass door, 15-29 cu.ft.",150]
[null,"True","STR1RPT-1G-1G-HC","Reach-in",25.07,2.37,"Reach-in refrigerator, glass door, 15-29 cu.ft.",150]
[null,"True","STR1RPT-1G-1G-HC","Pass-Through",25.07,2.37,"Reach-in refrigerator, glass door, 15-29 cu.ft.",150]
[null,"True","STR1RRI-1G","Roll-In",36.979999999999997,3.06,"Reach-in refrigerator, glass door, 30-49 cu.ft.",250]
[null,"True","STR2R-2G-HC","Reach-in",48.4,3.01,"Reach-in refrigerator, glass door, 30-49 cu.ft.",250]
[null,"True","STR2R-4HG-HC","Reach-in",48.01,3.41,"Reach-in refrigerator, glass door, 30-49 cu.ft.",250]
[null,"True","STR2RPT-2G-2G-HC","Reach-in",52.79,3.41,"Reach-in refrigerator, glass door, ≥50 cu.ft.",400]
[null,"True","STR2RPT-2G-2G-HC","Pass-Through",52.79,3.41,"Reach-in refrigerator, glass door, ≥50 cu.ft.",400]
[null,"True","STR2RPT-2G-2S-HC","Reach-in",51.25,3.41,"Reach-in refrigerator, glass door, ≥50 cu.ft.",400]
[null,"True","STR2RPT-2G-2S-HC","Pass-Through",51.25,3.41,"Reach-in refrigerator, glass door, ≥50 cu.ft.",400]
[null,"True","STR2RPT-2HG/2HS-2G-HC","Reach-in",52.1,3.41,"Reach-in refrigerator, glass door, ≥50 cu.ft.",400]
[null,"True","STR2RPT-2HG/2HS-2G-HC","Pass-Through",52.1,3.41,"Reach-in refrigerator, glass door, ≥50 cu.ft.",400]
[null,"True","STR2RPT-2S-2G-HC","Reach-in",51.25,3.41,"Reach-in refrigerator, glass door, ≥50 cu.ft.",400]
[null,"True","STR2RPT-2S-2G-HC","Pass-Through",51.25,3.41,"Reach-in refrigerator, glass door, ≥50 cu.ft.",400]
[null,"True","STR2RPT-4HG-2G-HC","Reach-in",52.4,3.41,"Reach-in refrigerator, glass door, ≥50 cu.ft.",400]
[null,"True","STR2RPT-4HG-2G-HC","Pass-Through",52.4,3.41,"Reach-in refrigerator, glass door, ≥50 cu.ft.",400]
[null,"True","STR2RPT-4HG-2S-HC","Reach-in",50.85,3.41,"Reach-in refrigerator, glass door, ≥50 cu.ft.",400]
[null,"True","STR2RPT-4HG-2S-HC","Pass-Through",50.85,3.41,"Reach-in refrigerator, glass door, ≥50 cu.ft.",400]
[null,"True","STR2RPT-4HG-4HG-HC","Reach-in",52.01,3.41,"Reach-in refrigerator, glass door, ≥50 cu.ft.",400]
[null,"True","STR2RPT-4HG-4HG-HC","Pass-Through",52.01,3.41,"Reach-in refrigerator, glass door, ≥50 cu.ft.",400]
[null,"True","STR2RPT-4HS-2G-HC","Reach-in",51.08,3.41,"Reach-in refrigerator, glass door, ≥50 cu.ft.",400]
[null,"True","STR2RPT-4HS-2G-HC","Pass-Through",51.08,3.41,"Reach-in refrigerator, glass door, ≥50 cu.ft.",400]
[null,"True","STR3R-3G","Reach-in",73.78,6.52,"Reach-in refrigerator, glass door, ≥50 cu.ft.",400]
[null,"True","T-12G-HC~FGD01","Reach-in",11.33,1.17,"Reach-in refrigerator, glass door, <15 cu.ft.",100]
[null,"True","T-15-1-G-1-HC-LD","Reach-in",12.76,1.1200000000000001,"Reach-in refrigerator, glass door, <15 cu.ft.",100]
[null,"True","T-19G-HC~FGD01","Reach-in",15.29,1.4,"Reach-in refrigerator, glass door, 15-29 cu.ft.",150]
[null,"True","T-23G-2-HC~FGD01","Reach-in",19.68,1.41,"Reach-in refrigerator, glass door, 15-29 cu.ft.",150]
[null,"True","T-23G-HC~FGD01","Reach-in",20.25,1.49,"Reach-in refrigerator, glass door, 15-29 cu.ft.",150]
[null,"True","T-23G-PT-HC~FGD01 MCD1","Pass-Through",20.96,1.51,"Reach-in refrigerator, glass door, 15-29 cu.ft.",150]
[null,"True","T-49-2-G-2-HC~FGD01","Reach-in",43.41,3.2,"Reach-in refrigerator, glass door, 30-49 cu.ft.",250]
[null,"True","T-49G-4-HC~FGD01","Reach-in",43.41,3.2,"Reach-in refrigerator, glass door, 30-49 cu.ft.",250]
[null,"True","T-49G-HC~FGD01","Reach-in",43.41,3.2,"Reach-in refrigerator, glass door, 30-49 cu.ft.",250]
[null,"True","TBB-24-48G-HC-LD","Undercounter",13.21,1.47,"Reach-in refrigerator, glass door, <15 cu.ft.",100]
[null,"True","TBB-24-48G-S-HC-LD","Undercounter",13.21,1.47,"Reach-in refrigerator, glass door, <15 cu.ft.",100]
[null,"True","TBB-24-60G-HC-LD","Undercounter",17.61,1.66,"Reach-in refrigerator, glass door, 15-29 cu.ft.",150]
[null,"True","TBB-24-60G-S-HC-LD","Undercounter",17.61,1.66,"Reach-in refrigerator, glass door, 15-29 cu.ft.",150]
[null,"True","TBB-24GAL-48G-HC-LD","Undercounter",13.21,1.47,"Reach-in refrigerator, glass door, <15 cu.ft.",100]
[null,"True","TBB-24GAL-48G-S-HC-LD","Undercounter",13.21,1.47,"Reach-in refrigerator, glass door, <15 cu.ft.",100]
[null,"True","TBB-24GAL-60G-HC-LD","Undercounter",17.61,1.66,"Reach-in refrigerator, glass door, 15-29 cu.ft.",150]
[null,"True","TBB-24GAL-60G-S-HC-LD","Undercounter",17.61,1.66,"Reach-in refrigerator, glass door, 15-29 cu.ft.",150]
[null,"True","TBB-2G-HC-LD","Undercounter",20.34,1.43,"Reach-in refrigerator, glass door, 15-29 cu.ft.",150]
[null,"True","TBB-2G-S-HC-LD","Undercounter",20.34,1.43,"Reach-in refrigerator, glass door, 15-29 cu.ft.",150]
[null,"True","TBB-3G-HC-LD","Undercounter",24.42,1.74,"Reach-in refrigerator, glass door, 15-29 cu.ft.",150]
[null,"True","TBB-3G-S-HC-LD","Undercounter",24.42,1.74,"Reach-in refrigerator, glass door, 15-29 cu.ft.",150]
[null,"True","TBB-4G-HC-LD","Undercounter",28.57,2.35,"Reach-in refrigerator, glass door, 15-29 cu.ft.",150]
[null,"True","TBB-4G-S-HC-LD","Undercounter",28.57,2.35,"Reach-in refrigerator, glass door, 15-29 cu.ft.",150]
[null,"True","TDB-24-48-1-G-1-HC-LD","Undercounter",13.21,1.47,"Reach-in refrigerator, glass door, <15 cu.ft.",100]
[null,"True","TDB-24-48G-HC-LD","Undercounter",13.21,1.47,"Reach-in refrigerator, glass door, <15 cu.ft.",100]
[null,"True","TS-23G-2-HC~FGD01","Reach-in",19.68,1.41,"Reach-in refrigerator, glass door, 15-29 cu.ft.",150]
[null,"True","TS-23G-HC~FGD01","Reach-in",20.25,1.49,"Reach-in refrigerator, glass door, 15-29 cu.ft.",150]
[null,"True","TS-49-2-G-2-HC~FGD01","Reach-in",43.41,3.2,"Reach-in refrigerator, glass door, 30-49 cu.ft.",250]
[null,"True","TS-49G-4-HC~FGD01","Reach-in",43.41,3.2,"Reach-in refrigerator, glass door, 30-49 cu.ft.",250]
[null,"True","TS-49G-HC~FGD01","Reach-in",43.41,3.2,"Reach-in refrigerator, glass door, 30-49 cu.ft.",250]
[null,"True","TSD-47G-HC-LD","Reach-in",42.05,3.5,"Reach-in refrigerator, glass door, 30-49 cu.ft.",250]
[null,"True","TUC-24G-HC~FGD01","Undercounter",5.42,0.85,"Reach-in refrigerator, glass door, <15 cu.ft.",100]
[null,"True","TUC-27G-ADA-HC~FGD01","Undercounter",7.37,1.01,"Reach-in refrigerator, glass door, <15 cu.ft.",100]
[null,"True","TUC-27G-ADA-HC~SPEC1","Undercounter",7.37,1.01,"Reach-in refrigerator, glass door, <15 cu.ft.",100]
[null,"True","TUC-27G-HC~FGD01","Undercounter",7.37,1.01,"Reach-in refrigerator, glass door, <15 cu.ft.",100]
[null,"True","TUC-27G-HC~SPEC1","Undercounter",7.37,1.01,"Reach-in refrigerator, glass door, <15 cu.ft.",100]
[null,"True","TUC-27G-LP-HC~FGD01","Undercounter",7.37,1.01,"Reach-in refrigerator, glass door, <15 cu.ft.",100]
[null,"True","TUC-27G-LP-HC~SPEC1","Undercounter",7.37,1.01,"Reach-in refrigerator, glass door, <15 cu.ft.",100]
[null,"True","TUC-48G-ADA-HC~FGD01","Undercounter",13.78,1.47,"Reach-in refrigerator, glass door, <15 cu.ft.",100]
[null,"True","TUC-48G-ADA-HC~SPEC1","Undercounter",13.78,1.47,"Reach-in refrigerator, glass door, <15 cu.ft.",100]
[null,"True","TUC-48G-HC~FGD01","Undercounter",13.78,1.47,"Reach-in refrigerator, glass door, <15 cu.ft.",100]
[null,"True","TUC-48G-HC~SPEC1","Undercounter",13.78,1.47,"Reach-in refrigerator, glass door, <15 cu.ft.",100]
[null,"True","TUC-48G-LP-HC~FGD01","Undercounter",13.78,1.47,"Reach-in refrigerator, glass door, <15 cu.ft.",100]
[null,"True","TUC-48G-LP-HC~SPEC1","Undercounter",13.78,1.47,"Reach-in refrigerator, glass door, <15 cu.ft.",100]
[null,"Turbo Air","JUR-48-G-N","Reach-in",10.66,1.44,"Reach-in refrigerator, glass door, <15 cu.ft.",100]
[null,"Turbo Air","JUR-60-G-N","Reach-in",14.58,1.78,"Reach-in refrigerator, glass door, <15 cu.ft.",100]
[null,"Turbo Air","JUR-72-G-N","Reach-in",18.739999999999998,1.97,"Reach-in refrigerator, glass door, 15-29 cu.ft.",150]
[null,"Turbo Air","MSR-72G-3","Reach-in",67.02,5.43,"Reach-in refrigerator, glass door, ≥50 cu.ft.",400]
[null,"Turbo Air","TGM-12SDB-N6","Reach-in",10.19,1.31,"Reach-in refrigerator, glass door, <15 cu.ft.",100]
[null,"Turbo Air","TGM-12SDV-N6","Reach-in",10.19,1.31,"Reach-in refrigerator, glass door, <15 cu.ft.",100]
[null,"Turbo Air","TGM-12SDW-N6","Reach-in",10.19,1.31,"Reach-in refrigerator, glass door, <15 cu.ft.",100]
[null,"Turbo Air","TGM-15SD*-N6","Reach-in",14.43,1.64,"Reach-in refrigerator, glass door, <15 cu.ft.",100]
[null,"Turbo Air","TGM-15SDHB-N","Reach-in",14.7,1.42,"Reach-in refrigerator, glass door, <15 cu.ft.",100]
[null,"Turbo Air","TGM-15SDHB-N6","Reach-in",14.7,1.42,"Reach-in refrigerator, glass door, <15 cu.ft.",100]
[null,"Turbo Air","TGM-15SDHV-N","Reach-in",14.7,1.42,"Reach-in refrigerator, glass door, <15 cu.ft.",100]
[null,"Turbo Air","TGM-15SDHV-N6","Reach-in",14.7,1.42,"Reach-in refrigerator, glass door, <15 cu.ft.",100]
[null,"Turbo Air","TGM-15SDHW-N","Reach-in",14.7,1.42,"Reach-in refrigerator, glass door, <15 cu.ft.",100]
[null,"Turbo Air","TGM-15SDHW-N6","Reach-in",14.7,1.42,"Reach-in refrigerator, glass door, <15 cu.ft.",100]
[null,"Turbo Air","TGM-23SD*-N6","Reach-in",19.399999999999999,1.85,"Reach-in refrigerator, glass door, 15-29 cu.ft.",150]
[null,"Turbo Air","TGM-23SDB-N6-L","Reach-in",19.399999999999999,1.85,"Reach-in refrigerator, glass door, 15-29 cu.ft.",150]
[null,"Turbo Air","TGM-23SDHB-N6","Reach-in",19.02,1.88,"Reach-in refrigerator, glass door, 15-29 cu.ft.",150]
[null,"Turbo Air","TGM-23SDHB-N6-L","Reach-in",19.02,1.88,"Reach-in refrigerator, glass door, 15-29 cu.ft.",150]
[null,"Turbo Air","TGM-23SDHV-N6","Reach-in",19.02,1.88,"Reach-in refrigerator, glass door, 15-29 cu.ft.",150]
[null,"Turbo Air","TGM-23SDHV-N6-L","Reach-in",19.02,1.88,"Reach-in refrigerator, glass door, 15-29 cu.ft.",150]
[null,"Turbo Air","TGM-23SDHW-N6","Reach-in",19.02,1.88,"Reach-in refrigerator, glass door, 15-29 cu.ft.",150]
[null,"Turbo Air","TGM-23SDHW-N6-L","Reach-in",19.02,1.88,"Reach-in refrigerator, glass door, 15-29 cu.ft.",150]
[null,"Turbo Air","TGM-23SDV-N6-L","Reach-in",19.399999999999999,1.85,"Reach-in refrigerator, glass door, 15-29 cu.ft.",150]
[null,"Turbo Air","TGM-23SDW-N6-L","Reach-in",19.399999999999999,1.85,"Reach-in refrigerator, glass door, 15-29 cu.ft.",150]
[null,"Turbo Air","TGM-35SDHB-N","Reach-in",31.7,2.2599999999999998,"Reach-in refrigerator, glass door, 30-49 cu.ft.",250]
[null,"Turbo Air","TGM-35SDHV-N","Reach-in",31.7,2.2599999999999998,"Reach-in refrigerator, glass door, 30-49 cu.ft.",250]
[null,"Turbo Air","TGM-35SDHW-N","Reach-in",31.7,2.2599999999999998,"Reach-in refrigerator, glass door, 30-49 cu.ft.",250]
[null,"Turbo Air","TGM-47SD*-N","Reach-in",41.71,3.3,"Reach-in refrigerator, glass door, 30-49 cu.ft.",250]
[null,"Turbo Air","TGM-47SDHB-N","Reach-in",44.22,2.8,"Reach-in refrigerator, glass door, 30-49 cu.ft.",250]
[null,"Turbo Air","TGM-47SDHV-N","Reach-in",44.22,2.8,"Reach-in refrigerator, glass door, 30-49 cu.ft.",250]
[null,"Turbo Air","TGM-47SDHW-N","Reach-in",44.22,2.8,"Reach-in refrigerator, glass door, 30-49 cu.ft.",250]
[null,"Turbo Air","TGM-50RS-N","Reach-in",45.97,3.15,"Reach-in refrigerator, glass door, 30-49 cu.ft.",250]
[null,"Turbo Air","TGM-50RSB-N","Reach-in",45.97,3.15,"Reach-in refrigerator, glass door, 30-49 cu.ft.",250]
[null,"Turbo Air","TGM-5R-N6","Reach-in",4.16,0.6,"Reach-in refrigerator, glass door, <15 cu.ft.",100]
[null,"Turbo Air","TGM-72SDB-N","Reach-in",67.98,5.75,"Reach-in refrigerator, glass door, ≥50 cu.ft.",400]
[null,"Turbo Air","TGM-72SDHB-N","Reach-in",70.44,5.14,"Reach-in refrigerator, glass door, ≥50 cu.ft.",400]
[null,"Turbo Air","TGM-72SDHV-N","Reach-in",70.44,5.14,"Reach-in refrigerator, glass door, ≥50 cu.ft.",400]
[null,"Turbo Air","TGM-72SDHW-N","Reach-in",70.44,5.14,"Reach-in refrigerator, glass door, ≥50 cu.ft.",400]
[null,"Turbo Air","TGM-72SDV-N","Reach-in",67.98,5.75,"Reach-in refrigerator, glass door, ≥50 cu.ft.",400]
[null,"Turbo Air","TGM-72SDW-N","Reach-in",67.98,5.75,"Reach-in refrigerator, glass door, ≥50 cu.ft.",400]
[null,"Turbo Air","TGM-7SDB-N6","Reach-in",6.2,0.92,"Reach-in refrigerator, glass door, <15 cu.ft.",100]
[null,"Turbo Air","TGM-7SDV-N6","Reach-in",6.2,0.92,"Reach-in refrigerator, glass door, <15 cu.ft.",100]
[null,"Turbo Air","TGM-7SDW-N6","Reach-in",6.2,0.92,"Reach-in refrigerator, glass door, <15 cu.ft.",100]
[null,"Turbo Air","TSR-23GSD-N6","Reach-in",20,1.64,"Reach-in refrigerator, glass door, 15-29 cu.ft.",150]
[null,"Turbo Air","TSR-35GSD-N","Reach-in",27.5,2.4300000000000002,"Reach-in refrigerator, glass door, 15-29 cu.ft.",150]
[null,"Turbo Air","TSR-49GSD-N","Reach-in",44.14,2.99,"Reach-in refrigerator, glass door, 30-49 cu.ft.",250]
[null,"Turbo Air","TSR-72GSD-N","Reach-in",67.02,5.23,"Reach-in refrigerator, glass door, ≥50 cu.ft.",400]
[null,"U-Line","UCRE524-SG32A","Reach-in",5.2,0.9,"Reach-in refrigerator, glass door, <15 cu.ft.",100]
[null,"U-Line","UCRE524-SG33A","Reach-in",5.2,0.9,"Reach-in refrigerator, glass door, <15 cu.ft.",100]
[null,"U-Line","UCRE524-SG33B","Reach-in",5.2,0.9,"Reach-in refrigerator, glass door, <15 cu.ft.",100]
[null,"U-Line","UCWC524-SG32A","Reach-in",5.2,0.9,"Reach-in refrigerator, glass door, <15 cu.ft.",100]
[null,"U-Line","UCWC524-SG33A","Reach-in",5.2,0.9,"Reach-in refrigerator, glass door, <15 cu.ft.",100]
[null,"Victory","RA-3D-S7-GD","Reach-in",70.099999999999994,6.11,"Reach-in refrigerator, glass door, ≥50 cu.ft.",400]
[null,"Victory","RS-3D-S7-GD","Reach-in",70.099999999999994,6.11,"Reach-in refrigerator, glass door, ≥50 cu.ft.",400]
[null,"Victory","RSA-3D-S7-GD","Reach-in",70.099999999999994,6.11,"Reach-in refrigerator, glass door, ≥50 cu.ft.",400]
[null,"Victory","VERSA-2D-GD-HC","Reach-in",46.88,3.55,"Reach-in refrigerator, glass door, 30-49 cu.ft.",250]
[null,"Victory","VERSA-2D-HG-HC","Reach-in",46.88,3.55,"Reach-in refrigerator, glass door, 30-49 cu.ft.",250]
[null,"Victory","VERSA-3D-GD-HC","Reach-in",71.52,6.26,"Reach-in refrigerator, glass door, ≥50 cu.ft.",400]
[null,"Victory","VERSA-3D-HG-HC","Reach-in",71.52,6.26,"Reach-in refrigerator, glass door, ≥50 cu.ft.",400]

{"sheet":"Solid-Door Freezer","index":12,"n_rows":268,"n_cols":8,"rows_kept":268,"cut":false,"hidden":false,"merged":[]}
[null,"Qualified Solid Door Freezers",null,null,null,null,"Updated "," 12/15/2020"]
[null,"Qualifying models must meet ENERGY STAR® Version 4.0 specification and must be listed in the California Energy Commission database."]
[null,"Products on this list qualify for purchases from the date they are added until the date they are removed."]
[null,"NOTE: Program criteria are subject to change. Check your utility rebate application for terms and conditions, and effective program dates."]
[null,"Company","Model Number","Style Type","Total\nVolume\n(cu. ft.)","Daily\nEnergy Use\n(kWh)","Measure Type","Rebate \n(per unit)"]
[null,"ACCUCOLD","ACF332D*","Undercounter",2.5,1.36,"Reach-in freezer, solid door, <15 cu.ft.",100]
[null,"Accucold by Summit Appliance","ALF62*","Undercounter",3.5,1.37,"Reach-in freezer, solid door, <15 cu.ft.",100]
[null,"Accucold by Summit Appliance","FS24L*","Other",2.1,1.1399999999999999,"Reach-in freezer, solid door, <15 cu.ft.",100]
[null,"Arctic Air","F22CW","Reach-in",18.5,3.17,"Reach-in freezer, solid door, 15-29 cu.ft.",150]
[null,"Atosa","MBF8003","Reach-in",64.88,10.7,"Reach-in freezer, solid door, ≥50 cu.ft.",900]
[null,"Atosa","MBF8503","Reach-in",44.77,9.99,"Reach-in freezer, solid door, 30-49 cu.ft.",300]
[null,"Atosa","MBF8504","Reach-in",67.989999999999995,10.7,"Reach-in freezer, solid door, ≥50 cu.ft.",900]
[null,"Avantco Refrigeration","CFD-1FF","Reach-in",20.6,4.7,"Reach-in freezer, solid door, 15-29 cu.ft.",150]
[null,"Beverage-Air","3801 THERMO","Reach-in",27.11,4.45,"Reach-in freezer, solid door, 15-29 cu.ft.",150]
[null,"Beverage-Air","BT30CW-EXPR","Reach-in",25.7,4.5999999999999996,"Reach-in freezer, solid door, 15-29 cu.ft.",150]
[null,"Beverage-Air","BT30CWFMS","Reach-in",27.11,4.45,"Reach-in freezer, solid door, 15-29 cu.ft.",150]
[null,"Beverage-Air","F-27SFC","Reach-in",27.11,4.45,"Reach-in freezer, solid door, 15-29 cu.ft.",150]
[null,"Beverage-Air","FB35HC-1*S*********","Reach-in",36.869999999999997,6.83,"Reach-in freezer, solid door, 30-49 cu.ft.",300]
[null,"Beverage-Air","FB44HC-1*****","Reach-in",44,7.69,"Reach-in freezer, solid door, 30-49 cu.ft.",300]
[null,"Beverage-Air","FB49HC-1*****","Reach-in",46.1,8.1999999999999993,"Reach-in freezer, solid door, 30-49 cu.ft.",300]
[null,"Beverage-Air","HBF35HC-1*S*********","Reach-in",36.869999999999997,6.83,"Reach-in freezer, solid door, 30-49 cu.ft.",300]
[null,"Beverage-Air","HBF44HC-1******","Reach-in",44,7.69,"Reach-in freezer, solid door, 30-49 cu.ft.",300]
[null,"Beverage-Air","HBF49HC-1******","Reach-in",46.1,8.1999999999999993,"Reach-in freezer, solid door, 30-49 cu.ft.",300]
[null,"Beverage-Air","HF2HC-1HS****","Reach-in",45.2,7.93,"Reach-in freezer, solid door, 30-49 cu.ft.",300]
[null,"Beverage-Air","HF2HC-1S****","Reach-in",45.2,7.93,"Reach-in freezer, solid door, 30-49 cu.ft.",300]
[null,"Beverage-Air","HF3HC-1HS****","Reach-in",69.099999999999994,11.76,"Reach-in freezer, solid door, ≥50 cu.ft.",900]
[null,"Beverage-Air","HF3HC-1S****","Reach-in",69.099999999999994,11.76,"Reach-in freezer, solid door, ≥50 cu.ft.",900]
[null,"Beverage-Air","HFP2HC-1HS****","Reach-in",45.2,7.93,"Reach-in freezer, solid door, 30-49 cu.ft.",300]
[null,"Beverage-Air","HFP2HC-1S****","Reach-in",45.2,7.93,"Reach-in freezer, solid door, 30-49 cu.ft.",300]
[null,"Beverage-Air","HFP3HC-1HS****","Reach-in",69.099999999999994,11.76,"Reach-in freezer, solid door, ≥50 cu.ft.",900]
[null,"Beverage-Air","HFP3HC-1S****","Reach-in",69.099999999999994,11.76,"Reach-in freezer, solid door, ≥50 cu.ft.",900]
[null,"Beverage-Air","HFPS2HC-1HS****","Reach-in",45.2,7.93,"Reach-in freezer, solid door, 30-49 cu.ft.",300]
[null,"Beverage-Air","HFPS2HC-1S****","Reach-in",45.2,7.93,"Reach-in freezer, solid door, 30-49 cu.ft.",300]
[null,"Beverage-Air","HFPS3HC-1HS****","Reach-in",69.099999999999994,11.76,"Reach-in freezer, solid door, ≥50 cu.ft.",900]
[null,"Beverage-Air","HFPS3HC-1S****","Reach-in",69.099999999999994,11.76,"Reach-in freezer, solid door, ≥50 cu.ft.",900]
[null,"Beverage-Air","HFS2HC-1HS****","Reach-in",45.2,7.93,"Reach-in freezer, solid door, 30-49 cu.ft.",300]
[null,"Beverage-Air","HFS2HC-1S****","Reach-in",45.2,7.93,"Reach-in freezer, solid door, 30-49 cu.ft.",300]
[null,"Beverage-Air","HFS3HC-1HS****","Reach-in",69.099999999999994,11.76,"Reach-in freezer, solid door, ≥50 cu.ft.",900]
[null,"Beverage-Air","HFS3HC-1S****","Reach-in",69.099999999999994,11.76,"Reach-in freezer, solid door, ≥50 cu.ft.",900]
[null,"Beverage-Air","WTF27AHC-***********","Work-Top Table",5.87,2.09,"Reach-in freezer, solid door, <15 cu.ft.",100]
[null,"Beverage-Air","WTFD27AHC-***********","Work-Top Table",5.87,2.09,"Reach-in freezer, solid door, <15 cu.ft.",100]
[null,"Continental Refrigerator","1FEN","Reach-in",21.38,4.5999999999999996,"Reach-in freezer, solid door, 15-29 cu.ft.",150]
[null,"Continental Refrigerator","1FENHD","Reach-in",21.11,4.6500000000000004,"Reach-in freezer, solid door, 15-29 cu.ft.",150]
[null,"Continental Refrigerator","1FENPT","Pass-Through",24.5,5.16,"Reach-in freezer, solid door, 15-29 cu.ft.",150]
[null,"Continental Refrigerator","1FESN","Reach-in",18.79,4.3499999999999996,"Reach-in freezer, solid door, 15-29 cu.ft.",150]
[null,"Continental Refrigerator","1FESNHD","Reach-in",18.52,4.34,"Reach-in freezer, solid door, 15-29 cu.ft.",150]
[null,"Continental Refrigerator","1FN","Reach-in",18.97,4.45,"Reach-in freezer, solid door, 15-29 cu.ft.",150]
[null,"Continental Refrigerator","1FXN","Reach-in",28.66,4.8,"Reach-in freezer, solid door, 15-29 cu.ft.",150]
[null,"Continental Refrigerator","1FXNHD","Reach-in",28.36,4.83,"Reach-in freezer, solid door, 15-29 cu.ft.",150]
[null,"Continental Refrigerator","1FXNPT","Pass-Through",33.159999999999997,5.51,"Reach-in freezer, solid door, 30-49 cu.ft.",300]
[null,"Continental Refrigerator","1FXSN","Reach-in",22.36,4.58,"Reach-in freezer, solid door, 15-29 cu.ft.",150]
[null,"Continental Refrigerator","1FXSNHD","Reach-in",22.06,4.72,"Reach-in freezer, solid door, 15-29 cu.ft.",150]
[null,"Continental Refrigerator","2F","Reach-in",43.45,7.28,"Reach-in freezer, solid door, 30-49 cu.ft.",300]
[null,"Continental Refrigerator","2F-HD","Reach-in",43.03,7.47,"Reach-in freezer, solid door, 30-49 cu.ft.",300]
[null,"Continental Refrigerator","2FE","Reach-in",48.75,7.35,"Reach-in freezer, solid door, 30-49 cu.ft.",300]
[null,"Continental Refrigerator","2FE-HD","Reach-in",48.33,7.53,"Reach-in freezer, solid door, 30-49 cu.ft.",300]
[null,"Continental Refrigerator","2FEN","Reach-in",48.75,9.4499999999999993,"Reach-in freezer, solid door, 30-49 cu.ft.",300]
[null,"Continental Refrigerator","2FENHD","Reach-in",48.33,9.82,"Reach-in freezer, solid door, 30-49 cu.ft.",300]
[null,"Continental Refrigerator","2FES","Reach-in",40.75,7.17,"Reach-in freezer, solid door, 30-49 cu.ft.",300]
[null,"Continental Refrigerator","2FES-HD","Reach-in",40.33,7.49,"Reach-in freezer, solid door, 30-49 cu.ft.",300]
[null,"Continental Refrigerator","2FESN","Reach-in",40.75,8.7200000000000006,"Reach-in freezer, solid door, 30-49 cu.ft.",300]
[null,"Continental Refrigerator","2FN","Reach-in",43.45,8.85,"Reach-in freezer, solid door, 30-49 cu.ft.",300]
[null,"Continental Refrigerator","2FNHD","Reach-in",43.03,9.17,"Reach-in freezer, solid door, 30-49 cu.ft.",300]
[null,"Continental Refrigerator","CGC50***","Reach-in",16.22,3.04,"Reach-in freezer, solid door, 15-29 cu.ft.",150]
[null,"Continental Refrigerator","DL2FE","Reach-in",49.07,10.88,"Reach-in freezer, solid door, 30-49 cu.ft.",300]
[null,"Continental Refrigerator","SWF60N","Work-Top Table",14.59,3.79,"Reach-in freezer, solid door, <15 cu.ft.",100]
[null,"Danby","DH016A1*","Reach-in",1.6,0.6,"Reach-in freezer, solid door, <15 cu.ft.",100]
[null,"Danby","DH032A1*","Reach-in",3.2,0.8,"Reach-in freezer, solid door, <15 cu.ft.",100]
[null,"Delfield","18FC43V","Work-Top Table",8.32,2.39,"Reach-in freezer, solid door, <15 cu.ft.",100]
[null,"Delfield","18FC62V","Work-Top Table",13.86,3.14,"Reach-in freezer, solid door, <15 cu.ft.",100]
[null,"Delfield","CSFPT2P-S","Reach-in",49.93,11.17,"Reach-in freezer, solid door, 30-49 cu.ft.",300]
[null,"Delfield","CSFPT2P-SH","Reach-in",49.38,10.23,"Reach-in freezer, solid door, 30-49 cu.ft.",300]
[null,"Delfield","F17C88CP","Other",14.07,3.81,"Reach-in freezer, solid door, <15 cu.ft.",100]
[null,"Delfield","F18FC43V","Work-Top Table",8.32,2.39,"Reach-in freezer, solid door, <15 cu.ft.",100]
[null,"Delfield","F18FC62V","Work-Top Table",13.86,3.14,"Reach-in freezer, solid door, <15 cu.ft.",100]
[null,"Delfield","F2688*P****","Other",14.07,3.81,"Reach-in freezer, solid door, <15 cu.ft.",100]
[null,"Delfield","F2694*P****","Other",14.07,3.81,"Reach-in freezer, solid door, <15 cu.ft.",100]
[null,"Delfield","GUF32P-D****","Undercounter",7.53,2.46,"Reach-in freezer, solid door, <15 cu.ft.",100]
[null,"Delfield","GUF32P-S****","Undercounter",7.53,2.17,"Reach-in freezer, solid door, <15 cu.ft.",100]
[null,"Delfield","GUF60P-S****","Undercounter",15.09,4.0199999999999996,"Reach-in freezer, solid door, 15-29 cu.ft.",150]
[null,"Dukers","D55F","Reach-in",41.07,8.23,"Reach-in freezer, solid door, 30-49 cu.ft.",300]
[null,"Dukers","D83AF","Reach-in",65.88,10.85,"Reach-in freezer, solid door, ≥50 cu.ft.",900]
[null,"Dukers","D83F","Reach-in",65.11,13.21,"Reach-in freezer, solid door, ≥50 cu.ft.",900]
[null,"Excellence","DBF20S","Reach-in",19.7,4.1100000000000003,"Reach-in freezer, solid door, 15-29 cu.ft.",150]
[null,"Fogel","MTF-48","Undercounter",12.09,3.17,"Reach-in freezer, solid door, <15 cu.ft.",100]
[null,"Fresh Town Co Ltd","FRB-23FS","Reach-in",18.22,3.73,"Reach-in freezer, solid door, 15-29 cu.ft.",150]
[null,"Fresh Town Co Ltd","FRB-23FSL","Reach-in",18.22,3.29,"Reach-in freezer, solid door, 15-29 cu.ft.",150]
[null,"Fresh Town Co Ltd","FRB-49FS","Reach-in",40.93,6.06,"Reach-in freezer, solid door, 30-49 cu.ft.",300]
[null,"Fresh Town Co Ltd","FRB-72FS","Reach-in",63.75,9.66,"Reach-in freezer, solid door, ≥50 cu.ft.",900]
[null,"Frigidaire","FCCS071QW*","Reach-in",7.36,0.7,"Reach-in freezer, solid door, <15 cu.ft.",100]
[null,"Frigidaire","FCCS161QW*","Reach-in",15.58,1.01,"Reach-in freezer, solid door, 15-29 cu.ft.",150]
[null,"Frigidaire","FCCS181QW*","Reach-in",17.510000000000002,1.18,"Reach-in freezer, solid door, 15-29 cu.ft.",150]
[null,"Frigidaire","FCCS20***","Reach-in",19.850000000000001,1.54,"Reach-in freezer, solid door, 15-29 cu.ft.",150]
[null,"Frigidaire","FCFS181LQB*","Reach-in",17.89,2.87,"Reach-in freezer, solid door, 15-29 cu.ft.",150]
[null,"Frigidaire","FCFS181LQBA","Reach-in",17.89,4.2699999999999996,"Reach-in freezer, solid door, 15-29 cu.ft.",150]
[null,"Frigidaire","FCFS20****","Reach-in",19.399999999999999,3.19,"Reach-in freezer, solid door, 15-29 cu.ft.",150]
[null,"Gibson","GCBM18FQW*","Reach-in",17.89,2.87,"Reach-in freezer, solid door, 15-29 cu.ft.",150]
[null,"Gibson","RR18F*","Reach-in",18,3.19,"Reach-in freezer, solid door, 15-29 cu.ft.",150]
[null,"Hoshizaki","CF2S-FS*","Reach-in",47.2,10.56,"Reach-in freezer, solid door, 30-49 cu.ft.",300]
[null,"Hoshizaki","CF2S-FS*","Reach-in",47.2,10.56,"Reach-in freezer, solid door, 30-49 cu.ft.",300]
[null,"Hoshizaki","DT1A-HS","Reach-in",20.38,4.49,"Reach-in freezer, solid door, 15-29 cu.ft.",150]
[null,"Hoshizaki","DT2A-FS","Reach-in",46.22,8.43,"Reach-in freezer, solid door, 30-49 cu.ft.",300]
[null,"Hoshizaki","DT2A-HS","Reach-in",46.22,8.43,"Reach-in freezer, solid door, 30-49 cu.ft.",300]
[null,"Hoshizaki America","CF2S-HS","Reach-in",47,9.52,"Reach-in freezer, solid door, 30-49 cu.ft.",300]
[null,"Imbera","SSF-20-1S","Reach-in",21.7,4.71,"Reach-in freezer, solid door, 15-29 cu.ft.",150]
[null,"Imbera","SSF-45-2S","Reach-in",46.3,9.66,"Reach-in freezer, solid door, 30-49 cu.ft.",300]
[null,"Imbera","VRF-24-1DS","Reach-in",22.9,4.8899999999999997,"Reach-in freezer, solid door, 15-29 cu.ft.",150]
[null,"Imbera","VRF-46-2DS","Reach-in",47,10.51,"Reach-in freezer, solid door, 30-49 cu.ft.",300]
[null,"Kelvinator","KCBM180FQY*","Reach-in",17.89,2.87,"Reach-in freezer, solid door, 15-29 cu.ft.",150]
[null,"Kelvinator","KCBM180FQYA","Reach-in",17.89,4.2699999999999996,"Reach-in freezer, solid door, 15-29 cu.ft.",150]
[null,"Kelvinator","KCCF070QW*","Reach-in",7.36,0.7,"Reach-in freezer, solid door, <15 cu.ft.",100]
[null,"Kelvinator","KCCF140WH","Reach-in",14.2,1.2,"Reach-in freezer, solid door, <15 cu.ft.",100]
[null,"Kelvinator","KCCF160QW*","Reach-in",15.58,1.01,"Reach-in freezer, solid door, 15-29 cu.ft.",150]
[null,"Kelvinator","KCCF160QWA","Reach-in",15.58,1.41,"Reach-in freezer, solid door, 15-29 cu.ft.",150]
[null,"Kelvinator","KCCF170WH","Reach-in",17.3,1.2,"Reach-in freezer, solid door, 15-29 cu.ft.",150]
[null,"Kelvinator","KCCF180QW*","Reach-in",17.510000000000002,1.18,"Reach-in freezer, solid door, 15-29 cu.ft.",150]
[null,"Kelvinator","KCCF180QWA","Reach-in",17.510000000000002,1.51,"Reach-in freezer, solid door, 15-29 cu.ft.",150]
[null,"Kelvinator","KCCF210WH","Reach-in",20.9,1.58,"Reach-in freezer, solid door, 15-29 cu.ft.",150]
[null,"Kelvinator","KCCF220QW*","Reach-in",21.57,1.25,"Reach-in freezer, solid door, 15-29 cu.ft.",150]
[null,"Kelvinator","KCCF220QWA","Reach-in",21.57,1.74,"Reach-in freezer, solid door, 15-29 cu.ft.",150]
[null,"Kelvinator","KCS05***","Reach-in",4.9800000000000004,0.82,"Reach-in freezer, solid door, <15 cu.ft.",100]
[null,"Kelvinator","KCS13***","Reach-in",12.86,1.2,"Reach-in freezer, solid door, <15 cu.ft.",100]
[null,"Kelvinator","KCS20***","Reach-in",19.850000000000001,1.54,"Reach-in freezer, solid door, 15-29 cu.ft.",150]
[null,"Kelvinator","KFS22****","Reach-in",19.399999999999999,3.19,"Reach-in freezer, solid door, 15-29 cu.ft.",150]
[null,"Liebherr","GFT50S2HC","Reach-in",43.31,8.82,"Reach-in freezer, solid door, 30-49 cu.ft.",300]
[null,"Minus Forty","22-USSF-00-1C00*-***********","Reach-in",21.31,4.63,"Reach-in freezer, solid door, 15-29 cu.ft.",150]
[null,"Minus Forty","22-USSF-X1-1C00*-***********","Reach-in",21.31,4.63,"Reach-in freezer, solid door, 15-29 cu.ft.",150]
[null,"Norlake","LF041WWW/OM","Reach-in",3.5,0.81,"Reach-in freezer, solid door, <15 cu.ft.",100]
[null,"Pro-Kold","SSF-20-1S","Reach-in",21.7,4.71,"Reach-in freezer, solid door, 15-29 cu.ft.",150]
[null,"Pro-Kold","SSF-45-2S","Reach-in",46.3,9.66,"Reach-in freezer, solid door, 30-49 cu.ft.",300]
[null,"Pro-Kold","VRF-24-1DS","Reach-in",22.9,4.8899999999999997,"Reach-in freezer, solid door, 15-29 cu.ft.",150]
[null,"Pro-Kold","VRF-46-2DS","Reach-in",47,10.51,"Reach-in freezer, solid door, 30-49 cu.ft.",300]
[null,"Randell","9404-32-290","Undercounter",10.8,3.06,"Reach-in freezer, solid door, <15 cu.ft.",100]
[null,"Randell","9404-32-290*","Undercounter",10.8,3.06,"Reach-in freezer, solid door, <15 cu.ft.",100]
[null,"Randell","FX-2UCB-290*","Undercounter",5.66,1.5,"Reach-in freezer, solid door, <15 cu.ft.",100]
[null,"Randell","FX-2WSA-290*","Work-Top Table",5.0199999999999996,1.58,"Reach-in freezer, solid door, <15 cu.ft.",100]
[null,"Randell","FX-2WSREA-290*","Work-Top Table",5.0199999999999996,1.58,"Reach-in freezer, solid door, <15 cu.ft.",100]
[null,"Randell","R1DT-25-1FB","Reach-in",15.8,3.77,"Reach-in freezer, solid door, 15-29 cu.ft.",150]
[null,"Summit","FS20L*","Reach-in",1.6,1.04,"Reach-in freezer, solid door, <15 cu.ft.",100]
[null,"Summit","FS21L*","Other",1.4,1,"Reach-in freezer, solid door, <15 cu.ft.",100]
[null,"Summit","FS22L*","Reach-in",1.42,1.04,"Reach-in freezer, solid door, <15 cu.ft.",100]
[null,"Summit","VT65M*","Reach-in",3.5,1.45,"Reach-in freezer, solid door, <15 cu.ft.",100]
[null,"Summit Commercial","SCFF237**","Reach-in",19.53,4.29,"Reach-in freezer, solid door, 15-29 cu.ft.",150]
[null,"Summit Commercial","SCFF237LH**","Reach-in",19.53,4.29,"Reach-in freezer, solid door, 15-29 cu.ft.",150]
[null,"Summit Commercial","SCFF497**","Reach-in",42.24,7.1,"Reach-in freezer, solid door, 30-49 cu.ft.",300]
[null,"Summit Commercial","SCFF497LH**","Reach-in",42.24,7.1,"Reach-in freezer, solid door, 30-49 cu.ft.",300]
[null,"Summit Commercial","SCFF727**","Reach-in",60.84,10.65,"Reach-in freezer, solid door, ≥50 cu.ft.",900]
[null,"Summit Commercial","SCFF727LH**","Reach-in",60.84,10.65,"Reach-in freezer, solid door, ≥50 cu.ft.",900]
[null,"Traulsen","AL232N-X0031","Reach-in",46.02,9.69,"Reach-in freezer, solid door, 30-49 cu.ft.",300]
[null,"Traulsen","AL232W-X0026","Reach-in",50.53,11.15,"Reach-in freezer, solid door, ≥50 cu.ft.",900]
[null,"Traulsen","AL232W-X0029","Reach-in",50.4,10.57,"Reach-in freezer, solid door, ≥50 cu.ft.",900]
[null,"Traulsen","ALT232WUT-FHS-eS","Reach-in",50.53,11.04,"Reach-in freezer, solid door, ≥50 cu.ft.",900]
[null,"Traulsen","ALT232WUT-HHS-eS","Reach-in",50.4,11.02,"Reach-in freezer, solid door, ≥50 cu.ft.",900]
[null,"Traulsen","ALT332NUT***","Reach-in",69.099999999999994,13.94,"Reach-in freezer, solid door, ≥50 cu.ft.",900]
[null,"Traulsen","ALT332WUT-FHS-eS","Reach-in",77.45,14.67,"Reach-in freezer, solid door, ≥50 cu.ft.",900]
[null,"Traulsen","ALT332WUT-HHS-eS","Reach-in",77.260000000000005,14.65,"Reach-in freezer, solid door, ≥50 cu.ft.",900]
[null,"Traulsen","G12000-ES","Reach-in",23.37,4.8,"Reach-in freezer, solid door, 15-29 cu.ft.",150]
[null,"Traulsen","G12001-ES","Reach-in",23.37,4.8,"Reach-in freezer, solid door, 15-29 cu.ft.",150]
[null,"Traulsen","G12010-ES","Reach-in",23.43,4.8099999999999996,"Reach-in freezer, solid door, 15-29 cu.ft.",150]
[null,"Traulsen","G12011-ES","Reach-in",23.43,4.8099999999999996,"Reach-in freezer, solid door, 15-29 cu.ft.",150]
[null,"Traulsen","G22010","Reach-in",46.02,9.89,"Reach-in freezer, solid door, 30-49 cu.ft.",300]
[null,"Traulsen","G22011","Reach-in",46.02,9.89,"Reach-in freezer, solid door, 30-49 cu.ft.",300]
[null,"Traulsen","G22012","Reach-in",46.02,9.89,"Reach-in freezer, solid door, 30-49 cu.ft.",300]
[null,"Traulsen","G22013","Reach-in",46.02,9.89,"Reach-in freezer, solid door, 30-49 cu.ft.",300]
[null,"Traulsen","G31000-032","Reach-in",69.150000000000006,13.55,"Reach-in freezer, solid door, ≥50 cu.ft.",900]
[null,"Traulsen","G31001-032","Reach-in",69.150000000000006,13.55,"Reach-in freezer, solid door, ≥50 cu.ft.",900]
[null,"Traulsen","G31002-032","Reach-in",69.150000000000006,13.55,"Reach-in freezer, solid door, ≥50 cu.ft.",900]
[null,"Traulsen","G31003-032","Reach-in",69.150000000000006,13.55,"Reach-in freezer, solid door, ≥50 cu.ft.",900]
[null,"Traulsen","G31010-032","Reach-in",69.349999999999994,13.58,"Reach-in freezer, solid door, ≥50 cu.ft.",900]
[null,"Traulsen","G31011-032","Reach-in",69.349999999999994,13.58,"Reach-in freezer, solid door, ≥50 cu.ft.",900]
[null,"Traulsen","G31012-032","Reach-in",69.349999999999994,13.58,"Reach-in freezer, solid door, ≥50 cu.ft.",900]
[null,"Traulsen","G31013-032","Reach-in",69.349999999999994,13.58,"Reach-in freezer, solid door, ≥50 cu.ft.",900]
[null,"Traulsen","RL232W-X0091","Reach-in",50.53,10.59,"Reach-in freezer, solid door, ≥50 cu.ft.",900]
[null,"Traulsen","RLT232WUT-FHS-eS","Reach-in",50.53,11.04,"Reach-in freezer, solid door, ≥50 cu.ft.",900]
[null,"Traulsen","RLT232WUT-HHS-eS","Reach-in",50.4,11.02,"Reach-in freezer, solid door, ≥50 cu.ft.",900]
[null,"Traulsen","RLT332NUT***","Reach-in",69.099999999999994,13.94,"Reach-in freezer, solid door, ≥50 cu.ft.",900]
[null,"Traulsen","RLT332WUT-FHS-eS","Reach-in",77.45,14.67,"Reach-in freezer, solid door, ≥50 cu.ft.",900]
[null,"Traulsen","RLT332WUT-HHS-eS","Reach-in",77.260000000000005,14.65,"Reach-in freezer, solid door, ≥50 cu.ft.",900]
[null,"True","STA2F-2S-HC","Reach-in",46.86,10.43,"Reach-in freezer, solid door, 30-49 cu.ft.",300]
[null,"True","STG2F-2S-HC","Reach-in",46.86,10.43,"Reach-in freezer, solid door, 30-49 cu.ft.",300]
[null,"True","STM2F-2S-HC","Reach-in",46.86,10.43,"Reach-in freezer, solid door, 30-49 cu.ft.",300]
[null,"True","STR2F-2S-HC","Reach-in",46.86,10.43,"Reach-in freezer, solid door, 30-49 cu.ft.",300]
[null,"True","T-19F-HC","Reach-in",14.79,3.89,"Reach-in freezer, solid door, <15 cu.ft.",100]
[null,"True","T-19FZ-HC","Reach-in",14.79,3.89,"Reach-in freezer, solid door, <15 cu.ft.",100]
[null,"True","T-23F-HC","Reach-in",18.54,4.2699999999999996,"Reach-in freezer, solid door, 15-29 cu.ft.",150]
[null,"True","T-49F-HC","Reach-in",41.47,8.57,"Reach-in freezer, solid door, 30-49 cu.ft.",300]
[null,"True","TS-23F-HC","Reach-in",18.54,4.2699999999999996,"Reach-in freezer, solid door, 15-29 cu.ft.",150]
[null,"True","TS-49F-HC","Reach-in",41.47,8.57,"Reach-in freezer, solid door, 30-49 cu.ft.",300]
[null,"True","TUC-27F-ADA-HC","Undercounter",7.07,2.2200000000000002,"Reach-in freezer, solid door, <15 cu.ft.",100]
[null,"True","TUC-27F-ADA-HC~SPEC1","Undercounter",7.07,2.2200000000000002,"Reach-in freezer, solid door, <15 cu.ft.",100]
[null,"True","TUC-27F-HC","Undercounter",7.07,2.2200000000000002,"Reach-in freezer, solid door, <15 cu.ft.",100]
[null,"True","TUC-27F-HC~SPEC1","Undercounter",7.07,2.2200000000000002,"Reach-in freezer, solid door, <15 cu.ft.",100]
[null,"True","TUC-27F-LP-HC","Undercounter",7.07,2.2200000000000002,"Reach-in freezer, solid door, <15 cu.ft.",100]
[null,"True","TUC-27F-LP-HC~SPEC1","Undercounter",7.07,2.2200000000000002,"Reach-in freezer, solid door, <15 cu.ft.",100]
[null,"True","TUC-44F-HC","Undercounter",11.14,3.23,"Reach-in freezer, solid door, <15 cu.ft.",100]
[null,"True","TUC-44F-HC~SPEC1","Undercounter",11.14,3.23,"Reach-in freezer, solid door, <15 cu.ft.",100]
[null,"True","TUC-48F-ADA-HC","Undercounter",12.85,3.56,"Reach-in freezer, solid door, <15 cu.ft.",100]
[null,"True","TUC-48F-ADA-HC~SPEC1","Undercounter",12.85,3.56,"Reach-in freezer, solid door, <15 cu.ft.",100]
[null,"True","TUC-48F-HC","Undercounter",12.85,3.56,"Reach-in freezer, solid door, <15 cu.ft.",100]
[null,"True","TUC-48F-HC~SPEC1","Undercounter",12.85,3.56,"Reach-in freezer, solid door, <15 cu.ft.",100]
[null,"True","TUC-48F-LP-HC","Undercounter",12.85,3.56,"Reach-in freezer, solid door, <15 cu.ft.",100]
[null,"True","TUC-48F-LP-HC~SPEC1","Undercounter",12.85,3.56,"Reach-in freezer, solid door, <15 cu.ft.",100]
[null,"True","TWT-27F-HC","Work-Top Table",7.07,2.2200000000000002,"Reach-in freezer, solid door, <15 cu.ft.",100]
[null,"True","TWT-27F-HC~SPEC1","Work-Top Table",7.07,2.2200000000000002,"Reach-in freezer, solid door, <15 cu.ft.",100]
[null,"True","TWT-44F-HC","Work-Top Table",11.14,3.23,"Reach-in freezer, solid door, <15 cu.ft.",100]
[null,"True","TWT-44F-HC~SPEC1","Work-Top Table",11.14,3.23,"Reach-in freezer, solid door, <15 cu.ft.",100]
[null,"True","TWT-48F-HC","Work-Top Table",12.85,3.56,"Reach-in freezer, solid door, <15 cu.ft.",100]
[null,"True","TWT-48F-HC~SPEC1","Work-Top Table",12.85,3.56,"Reach-in freezer, solid door, <15 cu.ft.",100]
[null,"Turbo Air","EF19-1-N","Reach-in",18.440000000000001,4.37,"Reach-in freezer, solid door, 15-29 cu.ft.",150]
[null,"Turbo Air","EF19-1-N-V","Reach-in",18.46,4.25,"Reach-in freezer, solid door, 15-29 cu.ft.",150]
[null,"Turbo Air","EF19-2-N","Reach-in",18.440000000000001,4.37,"Reach-in freezer, solid door, 15-29 cu.ft.",150]
[null,"Turbo Air","EF24-1-N","Reach-in",21.7,4.7699999999999996,"Reach-in freezer, solid door, 15-29 cu.ft.",150]
[null,"Turbo Air","EF24-1-N-V","Reach-in",21.94,4.7300000000000004,"Reach-in freezer, solid door, 15-29 cu.ft.",150]
[null,"Turbo Air","EF24-2-N","Reach-in",21.7,4.7699999999999996,"Reach-in freezer, solid door, 15-29 cu.ft.",150]
[null,"Turbo Air","EF47-2-N","Reach-in",42.1,5.27,"Reach-in freezer, solid door, 30-49 cu.ft.",300]
[null,"Turbo Air","EF47-2-N-V","Reach-in",42.27,6.74,"Reach-in freezer, solid door, 30-49 cu.ft.",300]
[null,"Turbo Air","EF47-4-N","Reach-in",42.1,5.27,"Reach-in freezer, solid door, 30-49 cu.ft.",300]
[null,"Turbo Air","JRF-45","Reach-in",35.97,5.89,"Reach-in freezer, solid door, 30-49 cu.ft.",300]
[null,"Turbo Air","JRF-65","Reach-in",61.84,8.2899999999999991,"Reach-in freezer, solid door, ≥50 cu.ft.",900]
[null,"Turbo Air","JUF-36-N","Reach-in",6.37,2.11,"Reach-in freezer, solid door, <15 cu.ft.",100]
[null,"Turbo Air","JUF-60-N","Reach-in",13.58,3.71,"Reach-in freezer, solid door, <15 cu.ft.",100]
[null,"Turbo Air","JURF-72-N","Reach-in",17.760000000000002,4.22,"Reach-in freezer, solid door, 15-29 cu.ft.",150]
[null,"Turbo Air","M3F19-1-N","Reach-in",18.440000000000001,4.37,"Reach-in freezer, solid door, 15-29 cu.ft.",150]
[null,"Turbo Air","M3F19-2-N","Reach-in",18.440000000000001,4.37,"Reach-in freezer, solid door, 15-29 cu.ft.",150]
[null,"Turbo Air","M3F24-1-N","Reach-in",21.7,4.05,"Reach-in freezer, solid door, 15-29 cu.ft.",150]
[null,"Turbo Air","M3F24-2-N","Reach-in",21.7,4.05,"Reach-in freezer, solid door, 15-29 cu.ft.",150]
[null,"Turbo Air","M3F47-2-N","Reach-in",42.1,6.66,"Reach-in freezer, solid door, 30-49 cu.ft.",300]
[null,"Turbo Air","M3F47-4-N","Reach-in",42.1,6.66,"Reach-in freezer, solid door, 30-49 cu.ft.",300]
[null,"Turbo Air","M3F72-3-N","Reach-in",65.88,10.19,"Reach-in freezer, solid door, ≥50 cu.ft.",900]
[null,"Turbo Air","M3F72-6-N","Reach-in",65.88,10.19,"Reach-in freezer, solid door, ≥50 cu.ft.",900]
[null,"Turbo Air","M3RF19-2-N","Reach-in",16.28,3.77,"Reach-in freezer, solid door, 15-29 cu.ft.",150]
[null,"Turbo Air","M3RF45-2","Reach-in",35.97,5.89,"Reach-in freezer, solid door, 30-49 cu.ft.",300]
[null,"Turbo Air","M3RF45-2-N","Reach-in",35.97,5.25,"Reach-in freezer, solid door, 30-49 cu.ft.",300]
[null,"Turbo Air","MUF-28-711","Reach-in",6.97,1.96,"Reach-in freezer, solid door, <15 cu.ft.",100]
[null,"Turbo Air","PRO-50-4F-N","Reach-in",48.7,9.18,"Reach-in freezer, solid door, 30-49 cu.ft.",300]
[null,"Turbo Air","PRO-50F-N","Reach-in",48.7,9.18,"Reach-in freezer, solid door, 30-49 cu.ft.",300]
[null,"Turbo Air","TSF-23SD-N","Reach-in",19.03,3.44,"Reach-in freezer, solid door, 15-29 cu.ft.",150]
[null,"Turbo Air","TSF-35SD-N","Reach-in",29,5.45,"Reach-in freezer, solid door, 15-29 cu.ft.",150]
[null,"Turbo Air","TSF-35SDN-N","Reach-in",29.19,5.43,"Reach-in freezer, solid door, 15-29 cu.ft.",150]
[null,"Turbo Air","TSF-49SD","Reach-in",39.9,7.66,"Reach-in freezer, solid door, 30-49 cu.ft.",300]
[null,"Turbo Air","TSF-49SD-N","Reach-in",39.9,5.3,"Reach-in freezer, solid door, 30-49 cu.ft.",300]
[null,"Turbo Air","TSF-72SD","Reach-in",63.8,11.57,"Reach-in freezer, solid door, ≥50 cu.ft.",900]
[null,"Turbo Air","TSF-72SD-N","Reach-in",63.8,7.59,"Reach-in freezer, solid door, ≥50 cu.ft.",900]
[null,"US Refrigeration","USBV-48F","Reach-in",44.77,9.99,"Reach-in freezer, solid door, 30-49 cu.ft.",300]
[null,"US Refrigeration","USBV-70F","Reach-in",67.989999999999995,10.7,"Reach-in freezer, solid door, ≥50 cu.ft.",900]
[null,"US Refrigeration","USTV-70F","Reach-in",64.88,10.7,"Reach-in freezer, solid door, ≥50 cu.ft.",900]
[null,"Vencold","VC-F20SD","Reach-in",19.7,4.1100000000000003,"Reach-in freezer, solid door, 15-29 cu.ft.",150]
[null,"Victory","FS-1D*S1*HC","Reach-in",23.67,4.41,"Reach-in freezer, solid door, 15-29 cu.ft.",150]
[null,"Victory","FS-1D*S1*HD*HC","Reach-in",23.67,4.41,"Reach-in freezer, solid door, 15-29 cu.ft.",150]
[null,"Victory","FS-2D*S1*EW*HD*HC","Reach-in",48.26,10.63,"Reach-in freezer, solid door, 30-49 cu.ft.",300]
[null,"Victory","FS-3D*S1*EW*HC","Reach-in",73.17,14.55,"Reach-in freezer, solid door, ≥50 cu.ft.",900]
[null,"Victory","FS-3D*S1*EW*HD*HC","Reach-in",73.17,14.55,"Reach-in freezer, solid door, ≥50 cu.ft.",900]
[null,"Victory","FS-3D-S1****HC*********","Reach-in",64.61,13.1,"Reach-in freezer, solid door, ≥50 cu.ft.",900]
[null,"Victory","FSA-1D*S1*HC","Reach-in",23.67,4.41,"Reach-in freezer, solid door, 15-29 cu.ft.",150]
[null,"Victory","FSA-1D*S1*HD*HC","Reach-in",23.67,4.41,"Reach-in freezer, solid door, 15-29 cu.ft.",150]
[null,"Victory","FSA-2D*S1*EW*HD*HC","Reach-in",48.26,10.63,"Reach-in freezer, solid door, 30-49 cu.ft.",300]
[null,"Victory","FSA-3D*S1*EW*HC","Reach-in",73.17,14.55,"Reach-in freezer, solid door, ≥50 cu.ft.",900]
[null,"Victory","FSA-3D*S1*EW*HD*HC","Reach-in",73.17,14.55,"Reach-in freezer, solid door, ≥50 cu.ft.",900]
[null,"Victory","FSA-3D-S1****HC*********","Reach-in",64.61,13.1,"Reach-in freezer, solid door, ≥50 cu.ft.",900]
[null,"Victory","VEFSA-2D-HD-HC","Reach-in",45.2,7.93,"Reach-in freezer, solid door, 30-49 cu.ft.",300]
[null,"Victory","VEFSA-2D-SD-HC","Reach-in",45.2,7.93,"Reach-in freezer, solid door, 30-49 cu.ft.",300]
[null,"Victory","VEFSA-3D-HD-HC","Reach-in",69.099999999999994,11.76,"Reach-in freezer, solid door, ≥50 cu.ft.",900]
[null,"Victory","VEFSA-3D-SD-HC","Reach-in",69.099999999999994,11.76,"Reach-in freezer, solid door, ≥50 cu.ft.",900]
[null,"Zero Zone, Inc.","1RVZC30****","Reach-in",32.86,6.39,"Reach-in freezer, solid door, 30-49 cu.ft.",300]
[null,"Zero Zone, Inc.","2RVZC30****","Reach-in",64.489999999999995,10.8,"Reach-in freezer, solid door, ≥50 cu.ft.",900]
[null,"Zero Zone, Inc.","3RVZC30****","Reach-in",96.12,15.21,"Reach-in freezer, solid door, ≥50 cu.ft.",900]
[null,"Zero Zone, Inc.","4RVZC30****","Reach-in",127.74,19.62,"Reach-in freezer, solid door, ≥50 cu.ft.",900]
[null,"Zero Zone, Inc.","5RVZC30****","Reach-in",159.37,24.03,"Reach-in freezer, solid door, ≥50 cu.ft.",900]

{"sheet":"Ice Makers","index":13,"n_rows":332,"n_cols":8,"rows_kept":332,"cut":false,"hidden":false,"merged":[]}
[null,"Qualified Ice Makers",null,null,null,null,"Updated "," 12/15/2020"]
[null,"Qualifying models must meet ENERGY STAR® Version 3.0 specifications and be listed in the California Energy Commission database."]
[null,"Valid for machines generating 60 grams (2 oz.) or lighter ice cubes, as well as flaked, crushed, or fragmented ice machines. Only air cooled machines are eligible."]
[null,"Performance data is based on AHRI Standard 810."]
[null,"NOTE: Program criteria are subject to change. Check your utility rebate application for terms and conditions, and effective program dates."]
[null,"Company","Machine Type","Model Number","Ice Type","Ice\nHarvest\nRate\n(lbs/day)","Energy\nUse Rate\n(kWh/100 lbs)","Measure Type"]
[null,"Atosa","SC-A","HD350-AP-161","Continuous",352,6,"Comm. Ice machine, 300-800 lbs/day"]
[null,"Atosa","SC-A","YR140-AP-161","Cube",101,7.2,"Comm. ice machine, <300 lbs/day"]
[null,"Atosa","SC-A","YR280-AP-161","Cube",236,6.1,"Comm. ice machine, <300 lbs/day"]
[null,"Atosa","IMH-A","YR450-AP-161","Cube",403,5.0999999999999996,"Comm. Ice machine, 300-800 lbs/day"]
[null,"Follett","SC-A","15CI100A","Continuous",95,9.64,"Comm. ice machine, <300 lbs/day"]
[null,"Follett","SC-A","15CI100A-**","Continuous",95,9.64,"Comm. ice machine, <300 lbs/day"]
[null,"Follett","SC-A","15FS100A","Continuous",95,9.64,"Comm. ice machine, <300 lbs/day"]
[null,"Follett","SC-A","15FS100A-**","Continuous",95,9.64,"Comm. ice machine, <300 lbs/day"]
[null,"Follett","IMH-A","HCC700A**","Continuous",474,5.61,"Comm. Ice machine, 300-800 lbs/day"]
[null,"Follett","IMH-A","HCD710A**","Continuous",586,4.78,"Comm. Ice machine, 300-800 lbs/day"]
[null,"Follett","RCRC-A","HCF1010R**","Continuous",770,3.88,"Comm. Ice machine, 300-800 lbs/day"]
[null,"Follett","RCRC-A","HCF1410R**","Continuous",1156,3.26,"Comm. Ice machine, 801-1500 lbs/day"]
[null,"Follett","RCRC-A","HCF1810R**","Continuous",1445,3.63,"Comm. Ice machine, 801-1500 lbs/day"]
[null,"Follett","RCRC-A","HCF2110R**","Continuous",1633,3.21,"Comm. Ice machine, >1500 lbs/day"]
[null,"Follett","IMH-A","HMC700A**","Continuous",474,5.61,"Comm. Ice machine, 300-800 lbs/day"]
[null,"Follett","IMH-A","HMD710A**","Continuous",586,4.78,"Comm. Ice machine, 300-800 lbs/day"]
[null,"Follett","RCRC-A","HMF1010R**","Continuous",770,3.88,"Comm. Ice machine, 300-800 lbs/day"]
[null,"Follett","RCRC-A","HMF1410R**","Continuous",1156,3.26,"Comm. Ice machine, 801-1500 lbs/day"]
[null,"Follett","RCRC-A","HMF1810R**","Continuous",1445,3.63,"Comm. Ice machine, 801-1500 lbs/day"]
[null,"Follett","RCRC-A","HMF2110R**","Continuous",1633,3.21,"Comm. Ice machine, >1500 lbs/day"]
[null,"Follett","IMH-A","MCD425A**","Continuous",351,6.06,"Comm. Ice machine, 300-800 lbs/day"]
[null,"Follett","SC-A","UCD100A30-CF","Continuous",90,10,"Comm. ice machine, <300 lbs/day"]
[null,"Follett","SC-A","UCD100A30-NF","Continuous",90,10,"Comm. ice machine, <300 lbs/day"]
[null,"Follett","SC-A","UCD100A30ADA-CF","Continuous",90,10,"Comm. ice machine, <300 lbs/day"]
[null,"Follett","SC-A","UCD100A30ADA-NF","Continuous",90,10,"Comm. ice machine, <300 lbs/day"]
[null,"Follett","SC-A","UMD425A80","Continuous",478,5.19,"Comm. Ice machine, 300-800 lbs/day"]
[null,"Home","SC-A","HME030293N","Cube",97,6.79,"Comm. ice machine, <300 lbs/day"]
[null,"Hoshizaki","SC-A","DCM-271BAH","Continuous",194,6.9,"Comm. ice machine, <300 lbs/day"]
[null,"Hoshizaki","SC-A","DCM-271BAH***","Continuous",194,6.9,"Comm. ice machine, <300 lbs/day"]
[null,"Hoshizaki","SC-A","DCM-271BAH-OS","Continuous",194,6.9,"Comm. ice machine, <300 lbs/day"]
[null,"Hoshizaki","SC-A","DCM-300BAH","Continuous",232,6.84,"Comm. ice machine, <300 lbs/day"]
[null,"Hoshizaki","SC-A","DCM-300BAH-OS","Continuous",232,6.84,"Comm. ice machine, <300 lbs/day"]
[null,"Hoshizaki","SC-A","DCM-500BAH","Continuous",450,5.62,"Comm. Ice machine, 300-800 lbs/day"]
[null,"Hoshizaki","SC-A","DCM-500BAH-OS","Continuous",450,5.62,"Comm. Ice machine, 300-800 lbs/day"]
[null,"Hoshizaki","SC-A","DCM-752BAH","Continuous",576,5.0999999999999996,"Comm. Ice machine, 300-800 lbs/day"]
[null,"Hoshizaki","SC-A","DCM-752BAH-OS","Continuous",576,5.0999999999999996,"Comm. Ice machine, 300-800 lbs/day"]
[null,"Hoshizaki","SC-A","DKM-500BAJ","Cube",534,5.56,"Comm. Ice machine, 300-800 lbs/day"]
[null,"Hoshizaki","IMH-A","F-1002MAJ","Continuous",758,4.3600000000000003,"Comm. Ice machine, 300-800 lbs/day"]
[null,"Hoshizaki","IMH-A","F-1002MAJ-C","Continuous",726,4.57,"Comm. Ice machine, 300-800 lbs/day"]
[null,"Hoshizaki","RCRC-A","F-1002MLJ*RACK","Continuous",797,1.51,"Comm. Ice machine, 300-800 lbs/day"]
[null,"Hoshizaki","IMH-A","F-1501MAJ","Continuous",1154,4,"Comm. Ice machine, 801-1500 lbs/day"]
[null,"Hoshizaki","IMH-A","F-1501MAJ-C","Continuous",1020,4.6100000000000003,"Comm. Ice machine, 801-1500 lbs/day"]
[null,"Hoshizaki","RCU-A","F-1501MRJ*URC-14F","Continuous",1181,4,"Comm. Ice machine, 801-1500 lbs/day"]
[null,"Hoshizaki","RCRC-A","F-2001MLJ*RACK","Continuous",1733,0.6,"Comm. Ice machine, >1500 lbs/day"]
[null,"Hoshizaki","RCU-A","F-2001MRJ*URC-22F","Continuous",1660,3.81,"Comm. Ice machine, >1500 lbs/day"]
[null,"Hoshizaki","RCU-A","F-2001MRJ3*URC-22F","Continuous",1675,3.9,"Comm. Ice machine, >1500 lbs/day"]
[null,"Hoshizaki","SC-A","F-300BAJ","Continuous",247,6.14,"Comm. ice machine, <300 lbs/day"]
[null,"Hoshizaki","SC-A","F-330BAJ","Continuous",243,5.91,"Comm. ice machine, <300 lbs/day"]
[null,"Hoshizaki","IMH-A","F-450MAJ","Continuous",395,4.9400000000000004,"Comm. Ice machine, 300-800 lbs/day"]
[null,"Hoshizaki","IMH-A","F-450MAJ-C","Continuous",316,6.1,"Comm. Ice machine, 300-800 lbs/day"]
[null,"Hoshizaki","SC-A","F-500BAJ","Continuous",420,5.05,"Comm. Ice machine, 300-800 lbs/day"]
[null,"Hoshizaki","IMH-A","F-801MAJ","Continuous",566,4.5,"Comm. Ice machine, 300-800 lbs/day"]
[null,"Hoshizaki","IMH-A","F-801MAJ-C","Continuous",532,5,"Comm. Ice machine, 300-800 lbs/day"]
[null,"Hoshizaki","IMH-A","FD-1002MAJ-C","Continuous",726,4.57,"Comm. Ice machine, 300-800 lbs/day"]
[null,"Hoshizaki","IMH-A","FD-650MAJ-C","Continuous",495,5.5,"Comm. Ice machine, 300-800 lbs/day"]
[null,"Hoshizaki","RCU-A","FD-650MRJ-C*URC-5F","Continuous",470,4.95,"Comm. Ice machine, 300-800 lbs/day"]
[null,"Hoshizaki","SC-A","KM-115BAJ","Cube",102,8.1,"Comm. ice machine, <300 lbs/day"]
[null,"Hoshizaki","SC-A","KM-116BAJ","Cube",100,8.1,"Comm. ice machine, <300 lbs/day"]
[null,"Hoshizaki","IMH-A","KM-1301SAJ","Cube",1301,4.2699999999999996,"Comm. Ice machine, 801-1500 lbs/day"]
[null,"Hoshizaki","IMH-A","KM-1301SAJ3","Cube",1350,3.95,"Comm. Ice machine, 801-1500 lbs/day"]
[null,"Hoshizaki","RCU-A","KM-1301SRJ3*URC-14F","Cube",1330,3.83,"Comm. Ice machine, 801-1500 lbs/day"]
[null,"Hoshizaki","RCU-A","KM-1340MRJ3 W/ URC-14F","Cube",1266,4.12,"Comm. Ice machine, 801-1500 lbs/day"]
[null,"Hoshizaki","RCU-A","KM-1340MRJ3*URC-14F","Cube",1266,4.12,"Comm. Ice machine, 801-1500 lbs/day"]
[null,"Hoshizaki","RCU-A","KM-1601MRJ3*URC-22F","Cube",1550,4.09,"Comm. Ice machine, >1500 lbs/day"]
[null,"Hoshizaki","IMH-A","KM-1601SAJ","Cube",1433,4.24,"Comm. Ice machine, 801-1500 lbs/day"]
[null,"Hoshizaki","RCU-A","KM-1601SRJ*URC-22F","Cube",1600,3.96,"Comm. Ice machine, >1500 lbs/day"]
[null,"Hoshizaki","IMH-A","KM-1900SAJ","Cube",1675,3.9,"Comm. Ice machine, >1500 lbs/day"]
[null,"Hoshizaki","IMH-A","KM-1900SAJ3","Cube",1675,3.9,"Comm. Ice machine, >1500 lbs/day"]
[null,"Hoshizaki","RCU-A","KM-1900SRJ*","Cube",1700,3.9,"Comm. Ice machine, >1500 lbs/day"]
[null,"Hoshizaki","RCU-A","KM-1900SRJ*URC-22F","Cube",1700,3.9,"Comm. Ice machine, >1500 lbs/day"]
[null,"Hoshizaki","RCU-A","KM-1900SRJ3*URC-22F","Cube",1700,3.9,"Comm. Ice machine, >1500 lbs/day"]
[null,"Hoshizaki","RCU-A","KM-2200SRJ3*URC-22F","Cube",2075,3.75,"Comm. Ice machine, >1500 lbs/day"]
[null,"Hoshizaki","RCU-A","KM-2600SRJ3*URC-26J","Cube",2580,3.61,"Comm. Ice machine, >1500 lbs/day"]
[null,"Hoshizaki","IMH-A","KM-350MAJ","Cube",393,5.42,"Comm. Ice machine, 300-800 lbs/day"]
[null,"Hoshizaki","IMH-A","KM-520MAJ","Cube",480,4.68,"Comm. Ice machine, 300-800 lbs/day"]
[null,"Hoshizaki","RCU-A","KM-520MRJ*URC-5F","Cube",495,4.8,"Comm. Ice machine, 300-800 lbs/day"]
[null,"Hoshizaki","RCU-A","KM-901MRJ*URC-14F","Cube",853,4.5199999999999996,"Comm. Ice machine, 801-1500 lbs/day"]
[null,"Hoshizaki","RCU-A","KM-901MRJ3*URC-14F","Cube",830,4.4000000000000004,"Comm. Ice machine, 801-1500 lbs/day"]
[null,"Hoshizaki","IMH-A","KMD-460MAJ","Cube",400,5.48,"Comm. Ice machine, 300-800 lbs/day"]
[null,"Hoshizaki","RCU-A","KMH-2100SRJ*URC-22F","Cube",1850,3.75,"Comm. Ice machine, >1500 lbs/day"]
[null,"Hoshizaki","RCU-A","KMH-2100SRJ3*URC-22F","Cube",1925,3.67,"Comm. Ice machine, >1500 lbs/day"]
[null,"Hoshizaki","IMH-A","KML-325MAJ","Cube",300,5.72,"Comm. Ice machine, 300-800 lbs/day"]
[null,"Hoshizaki","IMH-A","KML-500MAJ","Cube",400,5.55,"Comm. Ice machine, 300-800 lbs/day"]
[null,"Hoshizaki","IMH-A","KML-700MAJ","Cube",610,4.9000000000000004,"Comm. Ice machine, 300-800 lbs/day"]
[null,"Hoshizaki","RCU-A","KML-700MRJ*URC-9F","Cube",614,4.9000000000000004,"Comm. Ice machine, 300-800 lbs/day"]
[null,"Hoshizaki","RCRC-A","KMS-1122MLJ*SRK-12J3","Cube",1100,4.05,"Comm. Ice machine, 801-1500 lbs/day"]
[null,"Hoshizaki","RCRC-A","KMS-830MLJ W/ SRK-10J","Cube",810,4.5999999999999996,"Comm. Ice machine, 801-1500 lbs/day"]
[null,"Hoshizaki","RCRC-A","KMS-830MLJ*SRK-10J","Cube",810,4.5999999999999996,"Comm. Ice machine, 801-1500 lbs/day"]
[null,"Howe","RCRC-A","1000-RLE","Continuous",1014,2.78,"Comm. Ice machine, 801-1500 lbs/day"]
[null,"Howe","IMH-A","1000-SCAE","Continuous",774,4.05,"Comm. Ice machine, 300-800 lbs/day"]
[null,"Howe","RCRC-A","3000-RL*","Continuous",2879,3.74,"Comm. Ice machine, >1500 lbs/day"]
[null,"Howe","RCRC-A","4000-RL*","Continuous",3946,3.04,"Comm. Ice machine, >1500 lbs/day"]
[null,"Ice-o-matic","IMH-A","CIM0430FA","Cube",310,5.6,"Comm. Ice machine, 300-800 lbs/day"]
[null,"Ice-o-matic","IMH-A","CIM0430HA","Cube",310,5.6,"Comm. Ice machine, 300-800 lbs/day"]
[null,"Ice-o-matic","IMH-A","CIM0436FA","Cube",340,5.63,"Comm. Ice machine, 300-800 lbs/day"]
[null,"Ice-o-matic","IMH-A","CIM0436HA","Cube",340,5.63,"Comm. Ice machine, 300-800 lbs/day"]
[null,"Ice-o-matic","RCU-A","CIM0636FR","Cube",520,5.45,"Comm. Ice machine, 300-800 lbs/day"]
[null,"Ice-o-matic","RCU-A","CIM0636HR","Cube",520,5.45,"Comm. Ice machine, 300-800 lbs/day"]
[null,"Ice-o-matic","IMH-A","GEM0450A","Continuous",354,5.97,"Comm. Ice machine, 300-800 lbs/day"]
[null,"Ice-o-matic","IMH-A","GEM1306A","Continuous",1000,4.74,"Comm. Ice machine, 801-1500 lbs/day"]
[null,"Ice-o-matic","SC-A","ICEU226FA","Cube",168,6.25,"Comm. ice machine, <300 lbs/day"]
[null,"Ice-o-matic","SC-A","ICEU226HA","Cube",168,6.25,"Comm. ice machine, <300 lbs/day"]
[null,"Ice-o-matic","IMH-A","MFI0800A","Continuous",665,5.09,"Comm. Ice machine, 300-800 lbs/day"]
[null,"Icetro","SC-A","ID-0300-AN","Continuous",206,6.5,"Comm. ice machine, <300 lbs/day"]
[null,"Icetro","IMH-A","IM-0460-AC","Cube",364,5.4,"Comm. Ice machine, 300-800 lbs/day"]
[null,"Icetro","IMH-A","IM-0460-AH","Cube",364,5.4,"Comm. Ice machine, 300-800 lbs/day"]
[null,"Icetro","IMH-A","IM-0770-AF","Continuous",595,5.18,"Comm. Ice machine, 300-800 lbs/day"]
[null,"Icetro","IMH-A","IM-0770-AN","Continuous",562,5.43,"Comm. Ice machine, 300-800 lbs/day"]
[null,"Icetro","SC-A","KND-300-A","Continuous",206,6.5,"Comm. ice machine, <300 lbs/day"]
[null,"Koolaire","IMH-A","KDT0300A-161","Cube",230,5.85,"Comm. ice machine, <300 lbs/day"]
[null,"Koolaire","IMH-A","KDT0500A-161","Cube",400,5.4,"Comm. Ice machine, 300-800 lbs/day"]
[null,"Koolaire","IMH-A","KYT0300A-161","Cube",230,5.85,"Comm. ice machine, <300 lbs/day"]
[null,"Koolaire","IMH-A","KYT0400A-161","Cube",350,5.6,"Comm. Ice machine, 300-800 lbs/day"]
[null,"Koolaire","IMH-A","KYT0400A-261","Cube",350,5.6,"Comm. Ice machine, 300-800 lbs/day"]
[null,"Koolaire","IMH-A","KYT0420A-161","Cube",360,5.5,"Comm. Ice machine, 300-800 lbs/day"]
[null,"Koolaire","IMH-A","KYT0420A-261","Cube",360,5.5,"Comm. Ice machine, 300-800 lbs/day"]
[null,"Koolaire","IMH-A","KYT0500A-161","Cube",425,5.3,"Comm. Ice machine, 300-800 lbs/day"]
[null,"Koolaire","IMH-A","KYT0700A-261","Cube",580,5.12,"Comm. Ice machine, 300-800 lbs/day"]
[null,"Koolaire","RCU-A","KYT1700N-261*JCT1500-261","Cube",1490,4,"Comm. Ice machine, 801-1500 lbs/day"]
[null,"Koolaire","RCU-A","KYT1700N-261E*JCT1500-261","Cube",1477,4.0599999999999996,"Comm. Ice machine, 801-1500 lbs/day"]
[null,"Koolaire","RCU-A","KYT1700N-263*JCT1500-261","Cube",1490,4,"Comm. Ice machine, 801-1500 lbs/day"]
[null,"Manitowoc","SC-A","CNF0201A-161","Continuous",222,6.69,"Comm. ice machine, <300 lbs/day"]
[null,"Manitowoc","SC-A","CNF0202A-161","Continuous",222,6.69,"Comm. ice machine, <300 lbs/day"]
[null,"Manitowoc","RCRC-A","IB0894YC-161*ICVD0996-261","Cube",732,4.8600000000000003,"Comm. Ice machine, 300-800 lbs/day"]
[null,"Manitowoc","RCRC-A","IB0894YC-161*ICVD09963-263","Cube",732,4.8600000000000003,"Comm. Ice machine, 300-800 lbs/day"]
[null,"Manitowoc","RCRC-A","IBF0820C-161*CVDF0900-261","Cube",728,4.88,"Comm. Ice machine, 300-800 lbs/day"]
[null,"Manitowoc","RCRC-A","IBF0820C-161*CVDF0900-263","Cube",728,4.88,"Comm. Ice machine, 300-800 lbs/day"]
[null,"Manitowoc","RCRC-A","ID-0686C-161*ICVD-0696-261","Cube",520,5.57,"Comm. Ice machine, 300-800 lbs/day"]
[null,"Manitowoc","RCRC-A","ID-0686C-161*ICVD-06963-263","Cube",520,5.57,"Comm. Ice machine, 300-800 lbs/day"]
[null,"Manitowoc","RCU-A","ID0996N-261*JC0995-261","Cube",727,4.91,"Comm. Ice machine, 300-800 lbs/day"]
[null,"Manitowoc","RCU-A","IDF0900N-261*JCF0900-261","Cube",720,4.91,"Comm. Ice machine, 300-800 lbs/day"]
[null,"Manitowoc","IMH-A","IDT0300A-161","Cube",230,6.35,"Comm. ice machine, <300 lbs/day"]
[null,"Manitowoc","IMH-A","IDT0300A-261","Cube",230,6.35,"Comm. ice machine, <300 lbs/day"]
[null,"Manitowoc","IMH-A","IDT0420A-161","Cube",375,5.6,"Comm. Ice machine, 300-800 lbs/day"]
[null,"Manitowoc","IMH-A","IDT0420A-261","Cube",375,5.6,"Comm. Ice machine, 300-800 lbs/day"]
[null,"Manitowoc","IMH-A","IDT0450A-161","Cube",358,5.63,"Comm. Ice machine, 300-800 lbs/day"]
[null,"Manitowoc","IMH-A","IDT0450A-261","Cube",358,5.63,"Comm. Ice machine, 300-800 lbs/day"]
[null,"Manitowoc","IMH-A","IDT0500A-161","Cube",400,5.25,"Comm. Ice machine, 300-800 lbs/day"]
[null,"Manitowoc","IMH-A","IDT0500A-261","Cube",400,5.25,"Comm. Ice machine, 300-800 lbs/day"]
[null,"Manitowoc","IMH-A","IDT0620A-161","Cube",450,5.18,"Comm. Ice machine, 300-800 lbs/day"]
[null,"Manitowoc","IMH-A","IDT0620A-261","Cube",450,5.18,"Comm. Ice machine, 300-800 lbs/day"]
[null,"Manitowoc","IMH-A","IDT0750A-261","Cube",540,5.24,"Comm. Ice machine, 300-800 lbs/day"]
[null,"Manitowoc","IMH-A","IDT0900A-261","Cube",695,4.8499999999999996,"Comm. Ice machine, 300-800 lbs/day"]
[null,"Manitowoc","RCU-A","IDT1500N-261*JCT1500-261","Cube",1435,3.9,"Comm. Ice machine, 801-1500 lbs/day"]
[null,"Manitowoc","RCU-A","IDT1500N-261A*JCT1500-261","Cube",1452,4,"Comm. Ice machine, 801-1500 lbs/day"]
[null,"Manitowoc","RCU-A","IDT1500N-261E*JCT1500-261","Cube",1523,3.9,"Comm. Ice machine, >1500 lbs/day"]
[null,"Manitowoc","RCU-A","IDT1900N-261*JCT1500-261","Cube",1540,4.08,"Comm. Ice machine, >1500 lbs/day"]
[null,"Manitowoc","RCU-A","IDT1900N-261E*JCT1500-261","Cube",1643,4.0199999999999996,"Comm. Ice machine, >1500 lbs/day"]
[null,"Manitowoc","RCU-A","IDT1900N-263*JCT1500-261","Cube",1540,4.08,"Comm. Ice machine, >1500 lbs/day"]
[null,"Manitowoc","RCU-A","IDT1900N-263E*JCT1500-261","Cube",1643,4.0199999999999996,"Comm. Ice machine, >1500 lbs/day"]
[null,"Manitowoc","IMH-A","IRT0500A-161","Cube",386,5.04,"Comm. Ice machine, 300-800 lbs/day"]
[null,"Manitowoc","IMH-A","IRT0500A-261","Cube",386,5.04,"Comm. Ice machine, 300-800 lbs/day"]
[null,"Manitowoc","IMH-A","IRT0620A-161","Cube",410,5.29,"Comm. Ice machine, 300-800 lbs/day"]
[null,"Manitowoc","RCU-A","IRT1900N-261*JCT1500-261","Cube",1530,4.08,"Comm. Ice machine, >1500 lbs/day"]
[null,"Manitowoc","RCU-A","IRT1900N-263*JCT1500-261","Cube",1530,4.08,"Comm. Ice machine, >1500 lbs/day"]
[null,"Manitowoc","RCRC-A","IY-0686C-161*ICVD-0696-261","Cube",530,5.54,"Comm. Ice machine, 300-800 lbs/day"]
[null,"Manitowoc","RCRC-A","IY-0686C-161*ICVD-06963-263","Cube",530,5.54,"Comm. Ice machine, 300-800 lbs/day"]
[null,"Manitowoc","RCRC-A","IY0976C-161*ICVD0996-261","Cube",714,4.93,"Comm. Ice machine, 300-800 lbs/day"]
[null,"Manitowoc","RCRC-A","IY0976C-161*ICVD09963-263","Cube",714,4.93,"Comm. Ice machine, 300-800 lbs/day"]
[null,"Manitowoc","RCRC-A","IYF0600C-161*CVDF0600-261","Cube",530,5.53,"Comm. Ice machine, 300-800 lbs/day"]
[null,"Manitowoc","RCRC-A","IYF0600C-161*CVDF0600-263","Cube",530,5.53,"Comm. Ice machine, 300-800 lbs/day"]
[null,"Manitowoc","RCRC-A","IYF0900C-161*CVDF0900-261","Cube",714,4.93,"Comm. Ice machine, 300-800 lbs/day"]
[null,"Manitowoc","RCRC-A","IYF0900C-161*CVDF0900-263","Cube",714,4.93,"Comm. Ice machine, 300-800 lbs/day"]
[null,"Manitowoc","IMH-A","IYT0300A-161","Cube",230,5.99,"Comm. ice machine, <300 lbs/day"]
[null,"Manitowoc","IMH-A","IYT0300A-261","Cube",230,5.99,"Comm. ice machine, <300 lbs/day"]
[null,"Manitowoc","IMH-A","IYT0420A-161","Cube",375,5.4,"Comm. Ice machine, 300-800 lbs/day"]
[null,"Manitowoc","IMH-A","IYT0450A-161","Cube",378,5.52,"Comm. Ice machine, 300-800 lbs/day"]
[null,"Manitowoc","IMH-A","IYT0450A-261","Cube",378,5.52,"Comm. Ice machine, 300-800 lbs/day"]
[null,"Manitowoc","IMH-A","IYT0500A-161","Cube",440,4.58,"Comm. Ice machine, 300-800 lbs/day"]
[null,"Manitowoc","IMH-A","IYT0500A-261","Cube",440,4.58,"Comm. Ice machine, 300-800 lbs/day"]
[null,"Manitowoc","RCU-A","IYT0500N-161*JCT0500-161","Cube",500,5.59,"Comm. Ice machine, 300-800 lbs/day"]
[null,"Manitowoc","IMH-A","IYT0620A-161","Cube",465,4.87,"Comm. Ice machine, 300-800 lbs/day"]
[null,"Manitowoc","IMH-A","IYT0620A-261","Cube",465,4.87,"Comm. Ice machine, 300-800 lbs/day"]
[null,"Manitowoc","IMH-A","IYT0750A-261","Cube",575,5.12,"Comm. Ice machine, 300-800 lbs/day"]
[null,"Manitowoc","IMH-A","IYT0900A-261","Cube",750,4.58,"Comm. Ice machine, 300-800 lbs/day"]
[null,"Manitowoc","RCU-A","IYT1500N-261*JCT1500-261","Cube",1460,3.9,"Comm. Ice machine, 801-1500 lbs/day"]
[null,"Manitowoc","RCU-A","IYT1500N-261A*JCT1500-261","Cube",1450,4.09,"Comm. Ice machine, 801-1500 lbs/day"]
[null,"Manitowoc","RCU-A","IYT1500N-261E*JCT1500-261","Cube",1533,4,"Comm. Ice machine, >1500 lbs/day"]
[null,"Manitowoc","RCU-A","IYT1500N-263*JCT1500-261","Cube",1460,3.9,"Comm. Ice machine, 801-1500 lbs/day"]
[null,"Manitowoc","RCU-A","IYT1500N-263E*JCT1500-261","Cube",1533,4,"Comm. Ice machine, >1500 lbs/day"]
[null,"Manitowoc","RCU-A","IYT1900N-261*JCT1500-261","Cube",1560,4.08,"Comm. Ice machine, >1500 lbs/day"]
[null,"Manitowoc","RCU-A","IYT1900N-261E*JCT1500-261","Cube",1744,4,"Comm. Ice machine, >1500 lbs/day"]
[null,"Manitowoc","RCU-A","IYT1900N-263*JCT1500-261","Cube",1560,4.08,"Comm. Ice machine, >1500 lbs/day"]
[null,"Manitowoc","RCU-A","IYT1900N-263E*JCT1500-261","Cube",1744,4,"Comm. Ice machine, >1500 lbs/day"]
[null,"Manitowoc","SC-A","RF0266A-161","Continuous",151,7.37,"Comm. ice machine, <300 lbs/day"]
[null,"Manitowoc","SC-A","RF0385A-161","Continuous",273,6.32,"Comm. ice machine, <300 lbs/day"]
[null,"Manitowoc","IMH-A","RF2300A-263","Continuous",1819,4.0999999999999996,"Comm. Ice machine, >1500 lbs/day"]
[null,"Manitowoc","IMH-A","RFF0320A-161","Continuous",287,5.58,"Comm. ice machine, <300 lbs/day"]
[null,"Manitowoc","IMH-A","RFF0620A-161","Continuous",506,5.19,"Comm. Ice machine, 300-800 lbs/day"]
[null,"Manitowoc","IMH-A","RFF0620A-261","Continuous",540,4.74,"Comm. Ice machine, 300-800 lbs/day"]
[null,"Manitowoc","RCRC-A","RFF1220C-261*RCUF1200-261","Continuous",958,3.98,"Comm. Ice machine, 801-1500 lbs/day"]
[null,"Manitowoc","IMH-A","RFF1300A-261","Continuous",950,4.24,"Comm. Ice machine, 801-1500 lbs/day"]
[null,"Manitowoc","RCRC-A","RFF2200C-261*RCUF2200-263","Continuous",1702,3.87,"Comm. Ice machine, >1500 lbs/day"]
[null,"Manitowoc","IMH-A","RFF2500A-263","Continuous",1819,4.0999999999999996,"Comm. Ice machine, >1500 lbs/day"]
[null,"Manitowoc","IMH-A","RFF320A-161","Continuous",287,5.58,"Comm. ice machine, <300 lbs/day"]
[null,"Manitowoc","IMH-A","RFS0650A-161","Continuous",530,5.08,"Comm. Ice machine, 300-800 lbs/day"]
[null,"Manitowoc","IMH-A","RFS0650A-261","Continuous",540,4.74,"Comm. Ice machine, 300-800 lbs/day"]
[null,"Manitowoc","RCRC-A","RFS1278C-261*RCU1075-261","Continuous",958,3.98,"Comm. Ice machine, 801-1500 lbs/day"]
[null,"Manitowoc","RCRC-A","RFS2378C-261*RCU2375-261","Continuous",1702,3.87,"Comm. Ice machine, >1500 lbs/day"]
[null,"Manitowoc","IMH-A","RNF0620A-161","Continuous",451,5.81,"Comm. Ice machine, 300-800 lbs/day"]
[null,"Manitowoc","SC-A","RNS0244A-161","Continuous",147,7.82,"Comm. ice machine, <300 lbs/day"]
[null,"Manitowoc","SC-A","RNS0385A-161","Continuous",248,6.89,"Comm. ice machine, <300 lbs/day"]
[null,"Manitowoc","IMH-A","RNS0608A-161","Continuous",451,5.81,"Comm. Ice machine, 300-800 lbs/day"]
[null,"Manitowoc","SC-A","UFF0200A-161","Continuous",198,5.31,"Comm. ice machine, <300 lbs/day"]
[null,"Manitowoc","SC-A","UFF0350A-161","Continuous",328,5.27,"Comm. Ice machine, 300-800 lbs/day"]
[null,"Manitowoc","SC-A","UNF0200A-161","Continuous",164,6.65,"Comm. ice machine, <300 lbs/day"]
[null,"Manitowoc","SC-A","UNF0300A-161","Continuous",275,6.43,"Comm. ice machine, <300 lbs/day"]
[null,"Marvel","SC-A","MLNP115-IS01A","Continuous",90,10,"Comm. ice machine, <300 lbs/day"]
[null,"Marvel","SC-A","MLNP115-SS01A","Continuous",90,10,"Comm. ice machine, <300 lbs/day"]
[null,"Marvel","SC-A","MS15NPS1XS","Continuous",90,10,"Comm. ice machine, <300 lbs/day"]
[null,"Marvel","SC-A","MSNP115-SS01A","Continuous",90,10,"Comm. ice machine, <300 lbs/day"]
[null,"Omcan Inc","IMH-A","IC-CN-0529","Cube",460,4.7,"Comm. Ice machine, 300-800 lbs/day"]
[null,"Scotsman","SC-A","AFE424A-1#","Continuous",250,6,"Comm. ice machine, <300 lbs/day"]
[null,"Scotsman","RCU-A","C0630MR-32E*ERC311-32E","Cube",540,5.35,"Comm. Ice machine, 300-800 lbs/day"]
[null,"Scotsman","RCU-A","C0630SR-32E*ERC311-32E","Cube",540,5.35,"Comm. Ice machine, 300-800 lbs/day"]
[null,"Scotsman","RCU-A","C0830MR-32#*ERC311-32#","Cube",780,4.7,"Comm. Ice machine, 300-800 lbs/day"]
[null,"Scotsman","RCU-A","C0830SR-32#*ERC311-32#","Cube",780,4.7,"Comm. Ice machine, 300-800 lbs/day"]
[null,"Scotsman","IMH-A","C1448MA-32E","Cube",1296,4.25,"Comm. Ice machine, 801-1500 lbs/day"]
[null,"Scotsman","IMH-A","C1448MA-3E","Cube",1296,4.25,"Comm. Ice machine, 801-1500 lbs/day"]
[null,"Scotsman","IMH-A","C1448SA-32E","Cube",1296,4.25,"Comm. Ice machine, 801-1500 lbs/day"]
[null,"Scotsman","IMH-A","C1448SA-3E","Cube",1296,4.25,"Comm. Ice machine, 801-1500 lbs/day"]
[null,"Scotsman","SC-A","CU2026MA-1E","Cube",145,7.23,"Comm. ice machine, <300 lbs/day"]
[null,"Scotsman","SC-A","CU2026SA-1E","Cube",145,7.23,"Comm. ice machine, <300 lbs/day"]
[null,"Scotsman","IMH-A","F0522A-1#","Continuous",320,6.1,"Comm. Ice machine, 300-800 lbs/day"]
[null,"Scotsman","IMH-A","F0522A-1E","Continuous",343,4.6100000000000003,"Comm. Ice machine, 300-800 lbs/day"]
[null,"Scotsman","IMH-A","F0822A-1#","Continuous",580,4.7,"Comm. Ice machine, 300-800 lbs/day"]
[null,"Scotsman","IMH-A","F0822A-1E","Continuous",641,4,"Comm. Ice machine, 300-800 lbs/day"]
[null,"Scotsman","IMH-A","F1222A-3#","Continuous",878,3.22,"Comm. Ice machine, 801-1500 lbs/day"]
[null,"Scotsman","IMH-A","F1222A-32#","Continuous",878,3.22,"Comm. Ice machine, 801-1500 lbs/day"]
[null,"Scotsman","IMH-A","F1222A-32E","Continuous",878,3.22,"Comm. Ice machine, 801-1500 lbs/day"]
[null,"Scotsman","IMH-A","F1222A-3E","Continuous",878,3.22,"Comm. Ice machine, 801-1500 lbs/day"]
[null,"Scotsman","RCU-A","F1222R-32E*ERC311-32E","Continuous",907,3.34,"Comm. Ice machine, 801-1500 lbs/day"]
[null,"Scotsman","RCU-A","F1222R-3E*ERC311-32E","Continuous",907,3.34,"Comm. Ice machine, 801-1500 lbs/day"]
[null,"Scotsman","IMH-A","F1522A-32#","Continuous",1100,3.7,"Comm. Ice machine, 801-1500 lbs/day"]
[null,"Scotsman","IMH-A","F1522A-32E","Continuous",1066,3.36,"Comm. Ice machine, 801-1500 lbs/day"]
[null,"Scotsman","IMH-A","FME2404AS-32#","Continuous",1400,4,"Comm. Ice machine, 801-1500 lbs/day"]
[null,"Scotsman","IMH-A","FME2404AS-32E","Continuous",1792,3.35,"Comm. Ice machine, >1500 lbs/day"]
[null,"Scotsman","IMH-A","FS0522A-1A","Continuous",372,4.6500000000000004,"Comm. Ice machine, 300-800 lbs/day"]
[null,"Scotsman","IMH-A","FS0822A-1A","Continuous",606,4.1100000000000003,"Comm. Ice machine, 300-800 lbs/day"]
[null,"Scotsman","RCU-A","FS0822R-1A*ERC111-1E","Continuous",589,4.22,"Comm. Ice machine, 300-800 lbs/day"]
[null,"Scotsman","IMH-A","FS1222A-32A","Continuous",861,3.24,"Comm. Ice machine, 801-1500 lbs/day"]
[null,"Scotsman","IMH-A","FS1222A-3A","Continuous",861,3.24,"Comm. Ice machine, 801-1500 lbs/day"]
[null,"Scotsman","RCU-A","FS1222R-32A*ERC311-32E","Continuous",875,3.35,"Comm. Ice machine, 801-1500 lbs/day"]
[null,"Scotsman","RCU-A","FS1222R-3A*ERC311-32E","Continuous",875,3.35,"Comm. Ice machine, 801-1500 lbs/day"]
[null,"Scotsman","IMH-A","FS1522A-32A","Continuous",1100,3.64,"Comm. Ice machine, 801-1500 lbs/day"]
[null,"Scotsman","RCU-A","FS1522R-32A*ERC311-32E","Continuous",1133,3.66,"Comm. Ice machine, 801-1500 lbs/day"]
[null,"Scotsman","IMH-A","FS0522A-1A","Continuous",372,4.6500000000000004,"Comm. Ice machine, 300-800 lbs/day"]
[null,"Scotsman","IMH-A","FS0822A-1A","Continuous",606,4.1100000000000003,"Comm. Ice machine, 300-800 lbs/day"]
[null,"Scotsman","RCU-A","FS0822R-1A*ERC111-1E","Continuous",589,4.22,"Comm. Ice machine, 300-800 lbs/day"]
[null,"Scotsman","IMH-A","FS1222A-32A","Continuous",861,3.24,"Comm. Ice machine, 801-1500 lbs/day"]
[null,"Scotsman","IMH-A","FS1222A-3A","Continuous",861,3.24,"Comm. Ice machine, 801-1500 lbs/day"]
[null,"Scotsman","RCU-A","FS1222R-32A*ERC311-32E","Continuous",875,3.35,"Comm. Ice machine, 801-1500 lbs/day"]
[null,"Scotsman","RCU-A","FS1222R-3A*ERC311-32E","Continuous",875,3.35,"Comm. Ice machine, 801-1500 lbs/day"]
[null,"Scotsman","IMH-A","FS1522A-32A","Continuous",1100,3.64,"Comm. Ice machine, 801-1500 lbs/day"]
[null,"Scotsman","RCU-A","FS1522R-32A*ERC311-32E","Continuous",1133,3.66,"Comm. Ice machine, 801-1500 lbs/day"]
[null,"Scotsman","SC-A","HID312A-1#","Continuous",220,4.9000000000000004,"Comm. ice machine, <300 lbs/day"]
[null,"Scotsman","SC-A","HID312AW-1#","Continuous",220,4.9000000000000004,"Comm. ice machine, <300 lbs/day"]
[null,"Scotsman","SC-A","HID525A-1#","Continuous",365,5.5,"Comm. Ice machine, 300-800 lbs/day"]
[null,"Scotsman","SC-A","HID525AW-1#","Continuous",365,5.5,"Comm. Ice machine, 300-800 lbs/day"]
[null,"Scotsman","SC-A","HID540A-1#","Continuous",365,5.5,"Comm. Ice machine, 300-800 lbs/day"]
[null,"Scotsman","SC-A","HID540AW-1#","Continuous",365,5.5,"Comm. Ice machine, 300-800 lbs/day"]
[null,"Scotsman","IMH-A","N0422A-1E","Continuous",348,5.36,"Comm. Ice machine, 300-800 lbs/day"]
[null,"Scotsman","IMH-A","N0622A-1#","Continuous",500,5.6,"Comm. Ice machine, 300-800 lbs/day"]
[null,"Scotsman","IMH-A","N0622A-1E","Continuous",552,4.71,"Comm. Ice machine, 300-800 lbs/day"]
[null,"Scotsman","IMH-A","N0622A-32#","Continuous",500,5.6,"Comm. Ice machine, 300-800 lbs/day"]
[null,"Scotsman","IMH-A","N0622A-32E","Continuous",552,4.71,"Comm. Ice machine, 300-800 lbs/day"]
[null,"Scotsman","RCU-A","N0622R-1E*ERC111-1E","Continuous",579,4.95,"Comm. Ice machine, 300-800 lbs/day"]
[null,"Scotsman","IMH-A","N0922A-32E","Continuous",784,3.85,"Comm. Ice machine, 300-800 lbs/day"]
[null,"Scotsman","RCU-A","N0922R-32E*ERC311-32E","Continuous",781,3.82,"Comm. Ice machine, 300-800 lbs/day"]
[null,"Scotsman","IMH-A","N1322A-32#","Continuous",950,4.4000000000000004,"Comm. Ice machine, 801-1500 lbs/day"]
[null,"Scotsman","IMH-A","N1322A-32E","Continuous",940,3.85,"Comm. Ice machine, 801-1500 lbs/day"]
[null,"Scotsman","RCU-A","N1322R-32#*ERC311-32#","Continuous",1030,4,"Comm. Ice machine, 801-1500 lbs/day"]
[null,"Scotsman","RCU-A","N1322R-32E*ERC311-32E","Continuous",1022,3.78,"Comm. Ice machine, 801-1500 lbs/day"]
[null,"Scotsman","IMH-A","NH0422A-1A","Continuous",327,5.21,"Comm. Ice machine, 300-800 lbs/day"]
[null,"Scotsman","IMH-A","NH0622A-1A","Continuous",466,5.65,"Comm. Ice machine, 300-800 lbs/day"]
[null,"Scotsman","IMH-A","NH0622A-32A","Continuous",466,5.65,"Comm. Ice machine, 300-800 lbs/day"]
[null,"Scotsman","RCU-A","NH0622R-1A*ERC111-1E","Continuous",494,5.1100000000000003,"Comm. Ice machine, 300-800 lbs/day"]
[null,"Scotsman","IMH-A","NH0922A-1A","Continuous",676,4.2300000000000004,"Comm. Ice machine, 300-800 lbs/day"]
[null,"Scotsman","IMH-A","NH0922A-32A","Continuous",676,4.2300000000000004,"Comm. Ice machine, 300-800 lbs/day"]
[null,"Scotsman","RCU-A","NH0922R-1A*ERC111-1E","Continuous",717,4.3600000000000003,"Comm. Ice machine, 300-800 lbs/day"]
[null,"Scotsman","RCU-A","NH0922R-32A*ERC311-32E","Continuous",717,4.3600000000000003,"Comm. Ice machine, 300-800 lbs/day"]
[null,"Scotsman","IMH-A","NH1322A-32A","Continuous",866,4.55,"Comm. Ice machine, 801-1500 lbs/day"]
[null,"Scotsman","RCU-A","NME1854RS-32E*PR2C240-32E","Continuous",1631,3.63,"Comm. Ice machine, >1500 lbs/day"]
[null,"Scotsman","IMH-A","NS0422A-1A","Continuous",320,5.23,"Comm. Ice machine, 300-800 lbs/day"]
[null,"Scotsman","IMH-A","NS0622A-1A","Continuous",530,4.91,"Comm. Ice machine, 300-800 lbs/day"]
[null,"Scotsman","IMH-A","NS0622A-32A","Continuous",530,4.91,"Comm. Ice machine, 300-800 lbs/day"]
[null,"Scotsman","RCU-A","NS0622R-1A*ERC111-1E","Continuous",515,4.82,"Comm. Ice machine, 300-800 lbs/day"]
[null,"Scotsman","IMH-A","NS0922A-1A","Continuous",740,3.91,"Comm. Ice machine, 300-800 lbs/day"]
[null,"Scotsman","IMH-A","NS0922A-32A","Continuous",740,3.91,"Comm. Ice machine, 300-800 lbs/day"]
[null,"Scotsman","RCU-A","NS0922R-1A*ERC111-1E","Continuous",754,3.91,"Comm. Ice machine, 300-800 lbs/day"]
[null,"Scotsman","RCU-A","NS0922R-32A*ERC311-32E","Continuous",754,3.91,"Comm. Ice machine, 300-800 lbs/day"]
[null,"Scotsman","IMH-A","NS1322A-32A","Continuous",954,4.1100000000000003,"Comm. Ice machine, 801-1500 lbs/day"]
[null,"Scotsman","RCU-A","NS1322R-32A*ERC311-32E","Continuous",1077,3.88,"Comm. Ice machine, 801-1500 lbs/day"]
[null,"Scotsman","SC-A","UC2024MA-1A","Cube",166,6.27,"Comm. ice machine, <300 lbs/day"]
[null,"Scotsman","SC-A","UC2024SA-1A","Cube",166,6.27,"Comm. ice machine, <300 lbs/day"]
[null,"Scotsman","SC-A","UF0915A-1A","Continuous",76,5.75,"Comm. ice machine, <300 lbs/day"]
[null,"Scotsman","SC-A","UF1415A-1A","Continuous",107,5.29,"Comm. ice machine, <300 lbs/day"]
[null,"Scotsman","SC-A","UF2020A-1A","Continuous",149,4.63,"Comm. ice machine, <300 lbs/day"]
[null,"Scotsman","SC-A","UF424A-1A","Continuous",310,4.58,"Comm. Ice machine, 300-800 lbs/day"]
[null,"Scotsman","SC-A","UN1215A-1A","Continuous",84,6.73,"Comm. ice machine, <300 lbs/day"]
[null,"Scotsman","SC-A","UN1520A-1A","Continuous",125,5.23,"Comm. ice machine, <300 lbs/day"]
[null,"Scotsman","SC-A","UN324A-1A","Continuous",266,5.47,"Comm. ice machine, <300 lbs/day"]
[null,"U-line","SC-A","UANB115-SS01A","Continuous",90,10,"Comm. ice machine, <300 lbs/day"]
[null,"U-line","SC-A","UANP115-SS01A","Continuous",90,10,"Comm. ice machine, <300 lbs/day"]
[null,"U-line","SC-A","UCNB115-SS01A","Continuous",90,10,"Comm. ice machine, <300 lbs/day"]
[null,"U-line","SC-A","UCNP115-SS01A","Continuous",90,10,"Comm. ice machine, <300 lbs/day"]
[null,"U-line","SC-A","UHNB115-IS01A","Continuous",90,10,"Comm. ice machine, <300 lbs/day"]
[null,"U-line","SC-A","UHNB115-IS01B","Continuous",90,10,"Comm. ice machine, <300 lbs/day"]
[null,"U-line","SC-A","UHNB115-SS01A","Continuous",90,10,"Comm. ice machine, <300 lbs/day"]
[null,"U-line","SC-A","UHNB115-SS01B","Continuous",90,10,"Comm. ice machine, <300 lbs/day"]
[null,"U-line","SC-A","UHNB315-IS01A","Continuous",90,10,"Comm. ice machine, <300 lbs/day"]
[null,"U-line","SC-A","UHNB315-SS01A","Continuous",90,10,"Comm. ice machine, <300 lbs/day"]
[null,"U-line","SC-A","UHNP115-IS01A","Continuous",90,10,"Comm. ice machine, <300 lbs/day"]
[null,"U-line","SC-A","UHNP115-IS01B","Continuous",90,10,"Comm. ice machine, <300 lbs/day"]
[null,"U-line","SC-A","UHNP115-SS01A","Continuous",90,10,"Comm. ice machine, <300 lbs/day"]
[null,"U-line","SC-A","UHNP115-SS01B","Continuous",90,10,"Comm. ice machine, <300 lbs/day"]
[null,"U-line","SC-A","UHNP315-IS01A","Continuous",90,10,"Comm. ice machine, <300 lbs/day"]
[null,"U-line","SC-A","UHNP315-IS02A","Continuous",90,10,"Comm. ice machine, <300 lbs/day"]
[null,"U-line","SC-A","UHNP315-SS01A","Continuous",90,10,"Comm. ice machine, <300 lbs/day"]
[null,"U-line","SC-A","UKNB115-SS01A","Continuous",90,10,"Comm. ice machine, <300 lbs/day"]
[null,"U-line","SC-A","UKNP115-SS01A","Continuous",90,10,"Comm. ice machine, <300 lbs/day"]
[null,"U-line","SC-A","UONB115-SS01A","Continuous",90,10,"Comm. ice machine, <300 lbs/day"]
[null,"U-line","SC-A","UONB115-SS01B","Continuous",90,10,"Comm. ice machine, <300 lbs/day"]
[null,"U-line","SC-A","UONP115-SS01A","Continuous",90,10,"Comm. ice machine, <300 lbs/day"]
[null,"U-line","SC-A","UONP115-SS01B","Continuous",90,10,"Comm. ice machine, <300 lbs/day"]
[null,"Vremi","SC-A","VRM050692N","Cube",76,7.14,"Comm. ice machine, <300 lbs/day"]

{"sheet":"Lighting","index":14,"n_rows":16,"n_cols":27,"rows_kept":16,"cut":false,"hidden":true,"merged":[]}
[null,"SVP LED Rebate Calculator"]
[]
[null,"Instructions for Using Rebate Calculator"]
[null,"1. Use the below table to estimate your potential rebate amount."]
[null,"2. Enter the quantity of each type of fixture being installed"]
[null,"3. Transfer the information into the SVP rebate application form and submit a copy of this calculator."]
[null,"4. For equipment and program eligibility rules, see the SVP rebate application form."]
[]
[null,"Rebate Amount"]
[]
[null,"Measure","Rebate/Unit","Quantity","Rebate",null,null,null,null,null,null,null,null,null,null,null,null,null,null,null,null,null,null,null,null,null,"HIDE Incentive"]
[null,"LED Troffer Fixture","$40/fixture",null,{"$f":"Table22[[#This Row],[Quantity]]*AA12","v":0},null,null,null,null,null,null,null,null,null,null,null,null,null,null,null,null,null,null,null,null,null,40]
[null,"LED Low-Bay Fixture","$100/fixture",null,{"$f":"Table22[[#This Row],[Quantity]]*AA13","v":0},null,null,null,null,null,null,null,null,null,null,null,null,null,null,null,null,null,null,null,null,null,100]
[null,"LED High-Bay Fixture < 150 watts","$130/fixture",null,{"$f":"Table22[[#This Row],[Quantity]]*AA14","v":0},null,null,null,null,null,null,null,null,null,null,null,null,null,null,null,null,null,null,null,null,null,130]
[null,"LED High-Bay Fixture > 150 watts","$200/fixture",null,{"$f":"Table22[[#This Row],[Quantity]]*AA15","v":0},null,null,null,null,null,null,null,null,null,null,null,null,null,null,null,null,null,null,null,null,null,200]
[null,"Total Rebate Amount",null,{"$f":"SUBTOTAL(109,Table22[Quantity])","v":0},{"$f":"SUBTOTAL(109,Table22[Rebate])","v":0}]

{"sheet":"Sheet4","index":15,"n_rows":27,"n_cols":8,"rows_kept":27,"cut":false,"hidden":true,"merged":[]}
["Measure Name","LED low bay fixture"]
[]
["Row Labels","Sum of Annual kWh",null,"Weighted Ave","Weighted Savings",null,null,"Weighted Average Savings"]
["Assembly",202,null,0.02,{"$f":"D4*B4","v":4.04},null,"LED downlight fixture, 9-15 W, interior, replacing incand",153]
["Big Box Retail",340,null,0.01,{"$f":"D5*B5","v":3.4},null,"LED downlight fixture, 9-15 W, interior, replacing (2) 2 W CFL ",169]
["Bio/Tech Manufacturing",292,null,0,0,null,"LED downlight, screw-in lamp, 1-3 W, interior",153]
["Community College",198,null,0,0,null,"LED downlight, screw-in lamp, 4-20 W, interior",169]
["Conditioned Storage",247,null,0,0,null,"LED MR16, pin-based lamp, interior",54]
["Department Store",272,null,0.02,5.44,null,"LED troffer, 2'X2' and 2'X4'",49]
["Fast-Food Restaurant",375,null,0.05,18.75,null,"LED troffer retrofit kit, 2'X2' and 2'X4'",77]
["Grocery",341,null,0.02,6.82,null,"LED high bay fixture",910]
["Hospital",431,null,0.02,8.620000000000001,null,"LED low bay fixture",263]
["Hotel",145,null,0.05,7.25]
["Large Office",218,null,0.02,4.3600000000000003]
["Light Industrial Manuf.",249,null,0.1,24.900000000000002]
["Motel",120,null,0.1,12]
["Nursing Home",322,null,0.15,48.3]
["Primary School",171,null,0.1,17.100000000000001]
["Refrigerated Warehouse",570,null,0.06,34.199999999999996]
["Relocatable Classroom",192,null,0.05,9.6000000000000014]
["Secondary School",180,null,0.05,9]
["Sit-Down Restaurant",371,null,0.05,18.55]
["Small Office",204,null,0.05,10.200000000000001]
["Small Retail",269,null,0.02,5.38]
["Unconditioned Storage",252,null,0.05,12.600000000000001]
["University",194,null,0.01,1.94]
["Grand Total",6155,null,{"$f":"SUM(D4:D26)","v":1.0000000000000002},{"$f":"SUM(E4:E26)","v":262.45}]